Workbook

Sheet DEPARTAMENTAL
A4: POBLACION ESTIMADA POR EDADES SIMPLES Y GRUPOS DE EDAD, SEGÚN DEPARTAMENTO. 2024
A5: * Actualizado con datos INEI
A6: POBLACION 2024 | D6: POBLACION TOTAL, POR EDADS SIMPLES | X6: POBLACIÓN TOTAL, POR GRUPOS QUINQUEN ALES DE EDAD | AL6: EDADES ESPECIALES | AO6: NACIMIENTOS VIVOS | AP6: POBLACION FEMENINA TOTAL | AQ6: POBLACION FEMENINA | AT6: GESTANTES ESPERADAS
A7: UBIGEO | B7: DEPARTAMENTO | C7: Total | D7: 0 | E7: 1 | F7: 2 | G7: 3 | H7: 4 | I7: 5 | J7: 6 | K7: 7 | L7: 8 | M7: 9 | N7: 10 | O7: 11 | P7: 12 | Q7: 13 | R7: 14 | S7: 15 | T7: 16 | U7: 17 | V7: 18 | W7: 19 | X7: 20-24 | Y7: 25-29 | Z7: 30-34 | AA7: 35-39 | AB7: 40-44 | AC7: 45-49 | AD7: 50-54 | AE7: 55-59 | AF7: 60-64 | AG7: 65-69 | AH7: 70-74 | AI7: 75-79 | AJ7: 80-84 | AK7: 85-+ | AL7: 28 DIAS | AM7: 0-5 MESES | AN7: 6-11 MESES | AQ7: 10 - 14 | AR7: 15- 19 | AS7: 20- 49 | AV7: TOTAL | AW7: NIÑO | AX7: Adolescente | AY7: Joven | AZ7: Adulto | BA7: Adulto Mayor | BC7: Hombres | BD7: Mujeres | BE7: Nacimientos vivos | BF7: Gestantes Esperadas
A8: 00 | B8: PERU | C8: =SUM(C9:C9) -> 1,438,610 | D8: 11,793 | E8: 11,788 | F8: 11,950 | G8: 14,062 | H8: 15,118 | I8: 20,927 | J8: 24,536 | K8: 24,892 | L8: 24,919 | M8: 23,912 | N8: 23,290 | O8: 23,386 | P8: 24,115 | Q8: 23,177 | R8: 21,418 | S8: 21,426 | T8: 21,454 | U8: 21,446 | V8: 21,499 | W8: 21,738 | X8: 112,969 | Y8: 129,003 | Z8: 128,833 | AA8: 118,304 | AB8: 109,140 | AC8: 98,084 | AD8: 81,313 | AE8: 68,624 | AF8: 54,907 | AG8: 44,617 | AH8: 32,620 | AI8: 23,391 | AJ8: 15,066 | AK8: 14,893 | AL8: 1,141 | AM8: 7,920 | AN8: 7,834 | AO8: 22,995 | AP8: 741,864 | AQ8: 57,312 | AR8: 53,911 | AS8: 350,617 | AT8: 37,080 | AV8: =C8 -> 1,438,610 | AW8: =SUM(D8:O8) -> 230,573 | AX8: =SUM(P8:U8) -> 133,036 | AY8: =SUM(V8:Y8) -> 285,209 | AZ8: =SUM(Z8:AE8) -> 604,298 | BA8: =SUM(AF8:AK8) -> 185,494 | BC8: =SUM(BC9:BC9) -> 784,832 | BD8: =SUM(BD9:BD9) -> 809,259 | BE8: =SUM(BE9:BE9) -> 22,995 | BF8: =SUM(BF9:BF9) -> 37,080
A9: 04 | B9: AREQUIPA | C9: =SUM(D9:AK9) -> 1438610 | D9: =SUMIF('RED DE SALUD AREQUIPA CAYLLOMA'!$C$9:$C$236,DEPARTAMENTAL!$B9,'RED DE SALUD AREQUIPA CAYLLOMA'!J$9:J$236) -> 11793 | E9: =SUMIF('RED DE SALUD AREQUIPA CAYLLOMA'!$C$9:$C$236,DEPARTAMENTAL!$B9,'RED DE SALUD AREQUIPA CAYLLOMA'!K$9:K$236) -> 11788 | F9: =SUMIF('RED DE SALUD AREQUIPA CAYLLOMA'!$C$9:$C$236,DEPARTAMENTAL!$B9,'RED DE SALUD AREQUIPA CAYLLOMA'!L$9:L$236) -> 11950 | G9: =SUMIF('RED DE SALUD AREQUIPA CAYLLOMA'!$C$9:$C$236,DEPARTAMENTAL!$B9,'RED DE SALUD AREQUIPA CAYLLOMA'!M$9:M$236) -> 14062 | H9: =SUMIF('RED DE SALUD AREQUIPA CAYLLOMA'!$C$9:$C$236,DEPARTAMENTAL!$B9,'RED DE SALUD AREQUIPA CAYLLOMA'!N$9:N$236) -> 15118 | I9: =SUMIF('RED DE SALUD AREQUIPA CAYLLOMA'!$C$9:$C$236,DEPARTAMENTAL!$B9,'RED DE SALUD AREQUIPA CAYLLOMA'!O$9:O$236) -> 20927 | J9: =SUMIF('RED DE SALUD AREQUIPA CAYLLOMA'!$C$9:$C$236,DEPARTAMENTAL!$B9,'RED DE SALUD AREQUIPA CAYLLOMA'!P$9:P$236) -> 24536 | K9: =SUMIF('RED DE SALUD AREQUIPA CAYLLOMA'!$C$9:$C$236,DEPARTAMENTAL!$B9,'RED DE SALUD AREQUIPA CAYLLOMA'!Q$9:Q$236) -> 24892 | L9: =SUMIF('RED DE SALUD AREQUIPA CAYLLOMA'!$C$9:$C$236,DEPARTAMENTAL!$B9,'RED DE SALUD AREQUIPA CAYLLOMA'!R$9:R$236) -> 24919 | M9: =SUMIF('RED DE SALUD AREQUIPA CAYLLOMA'!$C$9:$C$236,DEPARTAMENTAL!$B9,'RED DE SALUD AREQUIPA CAYLLOMA'!S$9:S$236) -> 23912 | N9: =SUMIF('RED DE SALUD AREQUIPA CAYLLOMA'!$C$9:$C$236,DEPARTAMENTAL!$B9,'RED DE SALUD AREQUIPA CAYLLOMA'!T$9:T$236) -> 23290 | O9: =SUMIF('RED DE SALUD AREQUIPA CAYLLOMA'!$C$9:$C$236,DEPARTAMENTAL!$B9,'RED DE SALUD AREQUIPA CAYLLOMA'!U$9:U$236) -> 23386 | P9: =SUMIF('RED DE SALUD AREQUIPA CAYLLOMA'!$C$9:$C$236,DEPARTAMENTAL!$B9,'RED DE SALUD AREQUIPA CAYLLOMA'!V$9:V$236) -> 24115 | Q9: =SUMIF('RED DE SALUD AREQUIPA CAYLLOMA'!$C$9:$C$236,DEPARTAMENTAL!$B9,'RED DE SALUD AREQUIPA CAYLLOMA'!W$9:W$236) -> 23177 | R9: =SUMIF('RED DE SALUD AREQUIPA CAYLLOMA'!$C$9:$C$236,DEPARTAMENTAL!$B9,'RED DE SALUD AREQUIPA CAYLLOMA'!X$9:X$236) -> 21418 | S9: =SUMIF('RED DE SALUD AREQUIPA CAYLLOMA'!$C$9:$C$236,DEPARTAMENTAL!$B9,'RED DE SALUD AREQUIPA CAYLLOMA'!Y$9:Y$236) -> 21426 | T9: =SUMIF('RED DE SALUD AREQUIPA CAYLLOMA'!$C$9:$C$236,DEPARTAMENTAL!$B9,'RED DE SALUD AREQUIPA CAYLLOMA'!Z$9:Z$236) -> 21454 | U9: =SUMIF('RED DE SALUD AREQUIPA CAYLLOMA'!$C$9:$C$236,DEPARTAMENTAL!$B9,'RED DE SALUD AREQUIPA CAYLLOMA'!AA$9:AA$236) -> 21446 | V9: =SUMIF('RED DE SALUD AREQUIPA CAYLLOMA'!$C$9:$C$236,DEPARTAMENTAL!$B9,'RED DE SALUD AREQUIPA CAYLLOMA'!AB$9:AB$236) -> 21499 | W9: =SUMIF('RED DE SALUD AREQUIPA CAYLLOMA'!$C$9:$C$236,DEPARTAMENTAL!$B9,'RED DE SALUD AREQUIPA CAYLLOMA'!AC$9:AC$236) -> 21738 | X9: =SUMIF('RED DE SALUD AREQUIPA CAYLLOMA'!$C$9:$C$236,DEPARTAMENTAL!$B9,'RED DE SALUD AREQUIPA CAYLLOMA'!AD$9:AD$236) -> 112969 | Y9: =SUMIF('RED DE SALUD AREQUIPA CAYLLOMA'!$C$9:$C$236,DEPARTAMENTAL!$B9,'RED DE SALUD AREQUIPA CAYLLOMA'!AE$9:AE$236) -> 129003 | Z9: =SUMIF('RED DE SALUD AREQUIPA CAYLLOMA'!$C$9:$C$236,DEPARTAMENTAL!$B9,'RED DE SALUD AREQUIPA CAYLLOMA'!AF$9:AF$236) -> 128833 | AA9: =SUMIF('RED DE SALUD AREQUIPA CAYLLOMA'!$C$9:$C$236,DEPARTAMENTAL!$B9,'RED DE SALUD AREQUIPA CAYLLOMA'!AG$9:AG$236) -> 118304 | AB9: =SUMIF('RED DE SALUD AREQUIPA CAYLLOMA'!$C$9:$C$236,DEPARTAMENTAL!$B9,'RED DE SALUD AREQUIPA CAYLLOMA'!AH$9:AH$236) -> 109140 | AC9: =SUMIF('RED DE SALUD AREQUIPA CAYLLOMA'!$C$9:$C$236,DEPARTAMENTAL!$B9,'RED DE SALUD AREQUIPA CAYLLOMA'!AI$9:AI$236) -> 98084 | AD9: =SUMIF('RED DE SALUD AREQUIPA CAYLLOMA'!$C$9:$C$236,DEPARTAMENTAL!$B9,'RED DE SALUD AREQUIPA CAYLLOMA'!AJ$9:AJ$236) -> 81313 | AE9: =SUMIF('RED DE SALUD AREQUIPA CAYLLOMA'!$C$9:$C$236,DEPARTAMENTAL!$B9,'RED DE SALUD AREQUIPA CAYLLOMA'!AK$9:AK$236) -> 68624 | AF9: =SUMIF('RED DE SALUD AREQUIPA CAYLLOMA'!$C$9:$C$236,DEPARTAMENTAL!$B9,'RED DE SALUD AREQUIPA CAYLLOMA'!AL$9:AL$236) -> 54907 | AG9: =SUMIF('RED DE SALUD AREQUIPA CAYLLOMA'!$C$9:$C$236,DEPARTAMENTAL!$B9,'RED DE SALUD AREQUIPA CAYLLOMA'!AM$9:AM$236) -> 44617 | AH9: =SUMIF('RED DE SALUD AREQUIPA CAYLLOMA'!$C$9:$C$236,DEPARTAMENTAL!$B9,'RED DE SALUD AREQUIPA CAYLLOMA'!AN$9:AN$236) -> 32620 | AI9: =SUMIF('RED DE SALUD AREQUIPA CAYLLOMA'!$C$9:$C$236,DEPARTAMENTAL!$B9,'RED DE SALUD AREQUIPA CAYLLOMA'!AO$9:AO$236) -> 23391 | AJ9: =SUMIF('RED DE SALUD AREQUIPA CAYLLOMA'!$C$9:$C$236,DEPARTAMENTAL!$B9,'RED DE SALUD AREQUIPA CAYLLOMA'!AP$9:AP$236) -> 15066 | AK9: =SUMIF('RED DE SALUD AREQUIPA CAYLLOMA'!$C$9:$C$236,DEPARTAMENTAL!$B9,'RED DE SALUD AREQUIPA CAYLLOMA'!AQ$9:AQ$236) -> 14893 | AL9: =SUMIF('RED DE SALUD AREQUIPA CAYLLOMA'!$C$9:$C$236,DEPARTAMENTAL!$B9,'RED DE SALUD AREQUIPA CAYLLOMA'!AR$9:AR$236) -> 1141 | AM9: =SUMIF('RED DE SALUD AREQUIPA CAYLLOMA'!$C$9:$C$236,DEPARTAMENTAL!$B9,'RED DE SALUD AREQUIPA CAYLLOMA'!AS$9:AS$236) -> 7920 | AN9: =SUMIF('RED DE SALUD AREQUIPA CAYLLOMA'!$C$9:$C$236,DEPARTAMENTAL!$B9,'RED DE SALUD AREQUIPA CAYLLOMA'!AT$9:AT$236) -> 7834 | AO9: =SUMIF('RED DE SALUD AREQUIPA CAYLLOMA'!$C$9:$C$236,DEPARTAMENTAL!$B9,'RED DE SALUD AREQUIPA CAYLLOMA'!AU$9:AU$236) -> 22,995 | AP9: =SUMIF('RED DE SALUD AREQUIPA CAYLLOMA'!$C$9:$C$236,DEPARTAMENTAL!$B9,'RED DE SALUD AREQUIPA CAYLLOMA'!AV$9:AV$236) -> 741,864 | AQ9: =SUMIF('RED DE SALUD AREQUIPA CAYLLOMA'!$C$9:$C$236,DEPARTAMENTAL!$B9,'RED DE SALUD AREQUIPA CAYLLOMA'!AW$9:AW$236) -> 57312 | AR9: =SUMIF('RED DE SALUD AREQUIPA CAYLLOMA'!$C$9:$C$236,DEPARTAMENTAL!$B9,'RED DE SALUD AREQUIPA CAYLLOMA'!AX$9:AX$236) -> 53911 | AS9: =SUMIF('RED DE SALUD AREQUIPA CAYLLOMA'!$C$9:$C$236,DEPARTAMENTAL!$B9,'RED DE SALUD AREQUIPA CAYLLOMA'!AY$9:AY$236) -> 350617 | AT9: =SUMIF('RED DE SALUD AREQUIPA CAYLLOMA'!$C$9:$C$236,DEPARTAMENTAL!$B9,'RED DE SALUD AREQUIPA CAYLLOMA'!AZ$9:AZ$236) -> 37080 | AV9: =C9 -> 1,438,610 | AW9: =SUM(D9:O9) -> 230,573 | AX9: =SUM(P9:U9) -> 133,036 | AY9: =SUM(V9:Y9) -> 285,209 | AZ9: =SUM(Z9:AE9) -> 604,298 | BA9: =SUM(AF9:AK9) -> 185,494 | BC9: =SUMIF('Pob x Genero'!$C$9:$C$117,DEPARTAMENTAL!B9,'Pob x Genero'!$G$9:$G$117) -> 784,832 | BD9: =SUMIF('Pob x Genero'!$C$9:$C$117,DEPARTAMENTAL!B9,'Pob x Genero'!$AT$9:$AT$117) -> 809,259 | BE9: =AO9 -> 22,995 | BF9: =AT9 -> 37,080
A11: NOTA: LA POBLACION ESTIMADA DE EDADES SIMPLES Y GRUPOS DE EDAD DE DISTRITOS, CORRESPONDEN A CIFRAS REFERENCIALES HASTA OBTENER LAS CIFRAS DE LAS PROYECCIONES DEL INEI
A12: FUENTE: CENSO NACIONAL XI DE POBLACION Y VI DE VIVIENDA 2017/- BOLETIN DEMOGRAFICO Nº 26,37, 39 / RENIEC / Padrón Nominal/ CNV
A13: La población de 0-5 años corresponden al reporte de la poblacion del Padrón Nominal con corte al 31/12/2023 con ajuste en el grupo de edad de 0 años
A14: OFICINA DE GESTION DE LA INFORMACION - MINISTERIO DE SALUD

Sheet PROVINCIAL
A4: POBLACION ESTIMADA POR EDADES SIMPLES Y GRUPOS DE EDAD, SEGÚN DEPARTAMENTO y PROVINCIA. 2024
A5: * Actualizado con datos INEI
A6: POBLACION 2024 | F6: POBLACION TOTAL, POR EDADS SIMPLES | Z6: POBLACIÓN TOTAL, POR GRUPOS QUINQUEN ALES DE EDAD | AN6: EDADES ESPECIALES | AQ6: NACIMIENTOS VIVOS | AR6: POBLACION FEMENINA TOTAL | AS6: POBLACION FEMENINA | AV6: GESTANTES ESPERADAS
A7: UBIGEO | B7: DIRESA | C7: DEPARTAMENTO | D7: PROVINCIA | E7: Total | F7: 0 | G7: 1 | H7: 2 | I7: 3 | J7: 4 | K7: 5 | L7: 6 | M7: 7 | N7: 8 | O7: 9 | P7: 10 | Q7: 11 | R7: 12 | S7: 13 | T7: 14 | U7: 15 | V7: 16 | W7: 17 | X7: 18 | Y7: 19 | Z7: 20-24 | AA7: 25-29 | AB7: 30-34 | AC7: 35-39 | AD7: 40-44 | AE7: 45-49 | AF7: 50-54 | AG7: 55-59 | AH7: 60-64 | AI7: 65-69 | AJ7: 70-74 | AK7: 75-79 | AL7: 80-84 | AM7: 85-+ | AN7: 28 DIAS | AO7: 0-5 MESES | AP7: 6-11 MESES | AS7: 10 - 14 | AT7: 15- 19 | AU7: 20- 49 | AX7: TOTAL | AY7: NIÑO | AZ7: Adolescente | BA7: Joven | BB7: Adulto | BC7: Adulto Mayor
A8: 0000 | B8: PERU | C8: PERU | D8: PERU | E8: =SUM(E9:E16) -> 1,438,610 | F8: 11,793 | G8: 11,788 | H8: 11,950 | I8: 14,062 | J8: 15,118 | K8: 20,927 | L8: 24,536 | M8: 24,892 | N8: 24,919 | O8: 23,912 | P8: 23,290 | Q8: 23,386 | R8: 24,115 | S8: 23,177 | T8: 21,418 | U8: 21,426 | V8: 21,454 | W8: 21,446 | X8: 21,499 | Y8: 21,738 | Z8: 112,969 | AA8: 129,003 | AB8: 128,833 | AC8: 118,304 | AD8: 109,140 | AE8: 98,084 | AF8: 81,313 | AG8: 68,624 | AH8: 54,907 | AI8: 44,617 | AJ8: 32,620 | AK8: 23,391 | AL8: 15,066 | AM8: 14,893 | AN8: 1,141 | AO8: 7,920 | AP8: 7,834 | AQ8: 22,995 | AR8: 741,864 | AS8: 57,312 | AT8: 53,911 | AU8: 350,617 | AV8: 37,080 | AX8: =E8 -> 1,438,610 | AY8: =SUM(F8:Q8) -> 230,573 | AZ8: =SUM(R8:W8) -> 133,036 | BA8: =SUM(X8:AA8) -> 285,209 | BB8: =SUM(AB8:AG8) -> 604,298 | BC8: =SUM(AH8:AM8) -> 185,494
A9: 0401 | B9: AREQUIPA | C9: AREQUIPA | D9: AREQUIPA | E9: =SUM(F9:AM9) -> 1301340 | F9: =SUMIF('RED DE SALUD AREQUIPA CAYLLOMA'!$D$9:$D$236,PROVINCIAL!$D9,'RED DE SALUD AREQUIPA CAYLLOMA'!J$9:J$236) -> 10365 | G9: =SUMIF('RED DE SALUD AREQUIPA CAYLLOMA'!$D$9:$D$236,PROVINCIAL!$D9,'RED DE SALUD AREQUIPA CAYLLOMA'!K$9:K$236) -> 10306 | H9: =SUMIF('RED DE SALUD AREQUIPA CAYLLOMA'!$D$9:$D$236,PROVINCIAL!$D9,'RED DE SALUD AREQUIPA CAYLLOMA'!L$9:L$236) -> 10504 | I9: =SUMIF('RED DE SALUD AREQUIPA CAYLLOMA'!$D$9:$D$236,PROVINCIAL!$D9,'RED DE SALUD AREQUIPA CAYLLOMA'!M$9:M$236) -> 12444 | J9: =SUMIF('RED DE SALUD AREQUIPA CAYLLOMA'!$D$9:$D$236,PROVINCIAL!$D9,'RED DE SALUD AREQUIPA CAYLLOMA'!N$9:N$236) -> 13631 | K9: =SUMIF('RED DE SALUD AREQUIPA CAYLLOMA'!$D$9:$D$236,PROVINCIAL!$D9,'RED DE SALUD AREQUIPA CAYLLOMA'!O$9:O$236) -> 19002 | L9: =SUMIF('RED DE SALUD AREQUIPA CAYLLOMA'!$D$9:$D$236,PROVINCIAL!$D9,'RED DE SALUD AREQUIPA CAYLLOMA'!P$9:P$236) -> 22416 | M9: =SUMIF('RED DE SALUD AREQUIPA CAYLLOMA'!$D$9:$D$236,PROVINCIAL!$D9,'RED DE SALUD AREQUIPA CAYLLOMA'!Q$9:Q$236) -> 22622 | N9: =SUMIF('RED DE SALUD AREQUIPA CAYLLOMA'!$D$9:$D$236,PROVINCIAL!$D9,'RED DE SALUD AREQUIPA CAYLLOMA'!R$9:R$236) -> 22889 | O9: =SUMIF('RED DE SALUD AREQUIPA CAYLLOMA'!$D$9:$D$236,PROVINCIAL!$D9,'RED DE SALUD AREQUIPA CAYLLOMA'!S$9:S$236) -> 21853 | P9: =SUMIF('RED DE SALUD AREQUIPA CAYLLOMA'!$D$9:$D$236,PROVINCIAL!$D9,'RED DE SALUD AREQUIPA CAYLLOMA'!T$9:T$236) -> 21241 | Q9: =SUMIF('RED DE SALUD AREQUIPA CAYLLOMA'!$D$9:$D$236,PROVINCIAL!$D9,'RED DE SALUD AREQUIPA CAYLLOMA'!U$9:U$236) -> 21206 | R9: =SUMIF('RED DE SALUD AREQUIPA CAYLLOMA'!$D$9:$D$236,PROVINCIAL!$D9,'RED DE SALUD AREQUIPA CAYLLOMA'!V$9:V$236) -> 21892 | S9: =SUMIF('RED DE SALUD AREQUIPA CAYLLOMA'!$D$9:$D$236,PROVINCIAL!$D9,'RED DE SALUD AREQUIPA CAYLLOMA'!W$9:W$236) -> 20998 | T9: =SUMIF('RED DE SALUD AREQUIPA CAYLLOMA'!$D$9:$D$236,PROVINCIAL!$D9,'RED DE SALUD AREQUIPA CAYLLOMA'!X$9:X$236) -> 19313 | U9: =SUMIF('RED DE SALUD AREQUIPA CAYLLOMA'!$D$9:$D$236,PROVINCIAL!$D9,'RED DE SALUD AREQUIPA CAYLLOMA'!Y$9:Y$236) -> 19378 | V9: =SUMIF('RED DE SALUD AREQUIPA CAYLLOMA'!$D$9:$D$236,PROVINCIAL!$D9,'RED DE SALUD AREQUIPA CAYLLOMA'!Z$9:Z$236) -> 19135 | W9: =SUMIF('RED DE SALUD AREQUIPA CAYLLOMA'!$D$9:$D$236,PROVINCIAL!$D9,'RED DE SALUD AREQUIPA CAYLLOMA'!AA$9:AA$236) -> 19175 | X9: =SUMIF('RED DE SALUD AREQUIPA CAYLLOMA'!$D$9:$D$236,PROVINCIAL!$D9,'RED DE SALUD AREQUIPA CAYLLOMA'!AB$9:AB$236) -> 19345 | Y9: =SUMIF('RED DE SALUD AREQUIPA CAYLLOMA'!$D$9:$D$236,PROVINCIAL!$D9,'RED DE SALUD AREQUIPA CAYLLOMA'!AC$9:AC$236) -> 19667 | Z9: =SUMIF('RED DE SALUD AREQUIPA CAYLLOMA'!$D$9:$D$236,PROVINCIAL!$D9,'RED DE SALUD AREQUIPA CAYLLOMA'!AD$9:AD$236) -> 102430 | AA9: =SUMIF('RED DE SALUD AREQUIPA CAYLLOMA'!$D$9:$D$236,PROVINCIAL!$D9,'RED DE SALUD AREQUIPA CAYLLOMA'!AE$9:AE$236) -> 117148 | AB9: =SUMIF('RED DE SALUD AREQUIPA CAYLLOMA'!$D$9:$D$236,PROVINCIAL!$D9,'RED DE SALUD AREQUIPA CAYLLOMA'!AF$9:AF$236) -> 117308 | AC9: =SUMIF('RED DE SALUD AREQUIPA CAYLLOMA'!$D$9:$D$236,PROVINCIAL!$D9,'RED DE SALUD AREQUIPA CAYLLOMA'!AG$9:AG$236) -> 107114 | AD9: =SUMIF('RED DE SALUD AREQUIPA CAYLLOMA'!$D$9:$D$236,PROVINCIAL!$D9,'RED DE SALUD AREQUIPA CAYLLOMA'!AH$9:AH$236) -> 98892 | AE9: =SUMIF('RED DE SALUD AREQUIPA CAYLLOMA'!$D$9:$D$236,PROVINCIAL!$D9,'RED DE SALUD AREQUIPA CAYLLOMA'!AI$9:AI$236) -> 88635 | AF9: =SUMIF('RED DE SALUD AREQUIPA CAYLLOMA'!$D$9:$D$236,PROVINCIAL!$D9,'RED DE SALUD AREQUIPA CAYLLOMA'!AJ$9:AJ$236) -> 73539 | AG9: =SUMIF('RED DE SALUD AREQUIPA CAYLLOMA'!$D$9:$D$236,PROVINCIAL!$D9,'RED DE SALUD AREQUIPA CAYLLOMA'!AK$9:AK$236) -> 61652 | AH9: =SUMIF('RED DE SALUD AREQUIPA CAYLLOMA'!$D$9:$D$236,PROVINCIAL!$D9,'RED DE SALUD AREQUIPA CAYLLOMA'!AL$9:AL$236) -> 49485 | AI9: =SUMIF('RED DE SALUD AREQUIPA CAYLLOMA'!$D$9:$D$236,PROVINCIAL!$D9,'RED DE SALUD AREQUIPA CAYLLOMA'!AM$9:AM$236) -> 40274 | AJ9: =SUMIF('RED DE SALUD AREQUIPA CAYLLOMA'!$D$9:$D$236,PROVINCIAL!$D9,'RED DE SALUD AREQUIPA CAYLLOMA'!AN$9:AN$236) -> 29432 | AK9: =SUMIF('RED DE SALUD AREQUIPA CAYLLOMA'!$D$9:$D$236,PROVINCIAL!$D9,'RED DE SALUD AREQUIPA CAYLLOMA'!AO$9:AO$236) -> 21060 | AL9: =SUMIF('RED DE SALUD AREQUIPA CAYLLOMA'!$D$9:$D$236,PROVINCIAL!$D9,'RED DE SALUD AREQUIPA CAYLLOMA'!AP$9:AP$236) -> 13563 | AM9: =SUMIF('RED DE SALUD AREQUIPA CAYLLOMA'!$D$9:$D$236,PROVINCIAL!$D9,'RED DE SALUD AREQUIPA CAYLLOMA'!AQ$9:AQ$236) -> 13426 | AN9: =SUMIF('RED DE SALUD AREQUIPA CAYLLOMA'!$D$9:$D$236,PROVINCIAL!$D9,'RED DE SALUD AREQUIPA CAYLLOMA'!AR$9:AR$236) -> 1036 | AO9: =SUMIF('RED DE SALUD AREQUIPA CAYLLOMA'!$D$9:$D$236,PROVINCIAL!$D9,'RED DE SALUD AREQUIPA CAYLLOMA'!AS$9:AS$236) -> 7021 | AP9: =SUMIF('RED DE SALUD AREQUIPA CAYLLOMA'!$D$9:$D$236,PROVINCIAL!$D9,'RED DE SALUD AREQUIPA CAYLLOMA'!AT$9:AT$236) -> 6947 | AQ9: =SUMIF('RED DE SALUD AREQUIPA CAYLLOMA'!$D$9:$D$236,PROVINCIAL!$D9,'RED DE SALUD AREQUIPA CAYLLOMA'!AU$9:AU$236) -> 20150 | AR9: =SUMIF('RED DE SALUD AREQUIPA CAYLLOMA'!$D$9:$D$236,PROVINCIAL!$D9,'RED DE SALUD AREQUIPA CAYLLOMA'!AV$9:AV$236) -> 671,337 | AS9: =SUMIF('RED DE SALUD AREQUIPA CAYLLOMA'!$D$9:$D$236,PROVINCIAL!$D9,'RED DE SALUD AREQUIPA CAYLLOMA'!AW$9:AW$236) -> 51875 | AT9: =SUMIF('RED DE SALUD AREQUIPA CAYLLOMA'!$D$9:$D$236,PROVINCIAL!$D9,'RED DE SALUD AREQUIPA CAYLLOMA'!AX$9:AX$236) -> 48463 | AU9: =SUMIF('RED DE SALUD AREQUIPA CAYLLOMA'!$D$9:$D$236,PROVINCIAL!$D9,'RED DE SALUD AREQUIPA CAYLLOMA'!AY$9:AY$236) -> 318028 | AV9: =SUMIF('RED DE SALUD AREQUIPA CAYLLOMA'!$D$9:$D$236,PROVINCIAL!$D9,'RED DE SALUD AREQUIPA CAYLLOMA'!AZ$9:AZ$236) -> 33127 | AX9: =E9 -> 1,301,340 | AY9: =SUM(F9:Q9) -> 208,479 | AZ9: =SUM(R9:W9) -> 119,891 | BA9: =SUM(X9:AA9) -> 258,590 | BB9: =SUM(AB9:AG9) -> 547,140 | BC9: =SUM(AH9:AM9) -> 167,240
A10: 0402 | B10: AREQUIPA | C10: AREQUIPA | D10: CAMANA | E10: 0 | F10: =SUMIF('RED DE SALUD AREQUIPA CAYLLOMA'!$D$9:$D$236,PROVINCIAL!$D10,'RED DE SALUD AREQUIPA CAYLLOMA'!J$9:J$236) -> 0 | G10: =SUMIF('RED DE SALUD AREQUIPA CAYLLOMA'!$D$9:$D$236,PROVINCIAL!$D10,'RED DE SALUD AREQUIPA CAYLLOMA'!K$9:K$236) -> 0 | H10: =SUMIF('RED DE SALUD AREQUIPA CAYLLOMA'!$D$9:$D$236,PROVINCIAL!$D10,'RED DE SALUD AREQUIPA CAYLLOMA'!L$9:L$236) -> 0 | I10: =SUMIF('RED DE SALUD AREQUIPA CAYLLOMA'!$D$9:$D$236,PROVINCIAL!$D10,'RED DE SALUD AREQUIPA CAYLLOMA'!M$9:M$236) -> 0 | J10: =SUMIF('RED DE SALUD AREQUIPA CAYLLOMA'!$D$9:$D$236,PROVINCIAL!$D10,'RED DE SALUD AREQUIPA CAYLLOMA'!N$9:N$236) -> 0 | K10: =SUMIF('RED DE SALUD AREQUIPA CAYLLOMA'!$D$9:$D$236,PROVINCIAL!$D10,'RED DE SALUD AREQUIPA CAYLLOMA'!O$9:O$236) -> 0 | L10: =SUMIF('RED DE SALUD AREQUIPA CAYLLOMA'!$D$9:$D$236,PROVINCIAL!$D10,'RED DE SALUD AREQUIPA CAYLLOMA'!P$9:P$236) -> 0 | M10: =SUMIF('RED DE SALUD AREQUIPA CAYLLOMA'!$D$9:$D$236,PROVINCIAL!$D10,'RED DE SALUD AREQUIPA CAYLLOMA'!Q$9:Q$236) -> 0 | N10: =SUMIF('RED DE SALUD AREQUIPA CAYLLOMA'!$D$9:$D$236,PROVINCIAL!$D10,'RED DE SALUD AREQUIPA CAYLLOMA'!R$9:R$236) -> 0 | O10: =SUMIF('RED DE SALUD AREQUIPA CAYLLOMA'!$D$9:$D$236,PROVINCIAL!$D10,'RED DE SALUD AREQUIPA CAYLLOMA'!S$9:S$236) -> 0 | P10: =SUMIF('RED DE SALUD AREQUIPA CAYLLOMA'!$D$9:$D$236,PROVINCIAL!$D10,'RED DE SALUD AREQUIPA CAYLLOMA'!T$9:T$236) -> 0 | Q10: =SUMIF('RED DE SALUD AREQUIPA CAYLLOMA'!$D$9:$D$236,PROVINCIAL!$D10,'RED DE SALUD AREQUIPA CAYLLOMA'!U$9:U$236) -> 0 | R10: =SUMIF('RED DE SALUD AREQUIPA CAYLLOMA'!$D$9:$D$236,PROVINCIAL!$D10,'RED DE SALUD AREQUIPA CAYLLOMA'!V$9:V$236) -> 0 | S10: =SUMIF('RED DE SALUD AREQUIPA CAYLLOMA'!$D$9:$D$236,PROVINCIAL!$D10,'RED DE SALUD AREQUIPA CAYLLOMA'!W$9:W$236) -> 0 | T10: =SUMIF('RED DE SALUD AREQUIPA CAYLLOMA'!$D$9:$D$236,PROVINCIAL!$D10,'RED DE SALUD AREQUIPA CAYLLOMA'!X$9:X$236) -> 0 | U10: =SUMIF('RED DE SALUD AREQUIPA CAYLLOMA'!$D$9:$D$236,PROVINCIAL!$D10,'RED DE SALUD AREQUIPA CAYLLOMA'!Y$9:Y$236) -> 0 | V10: =SUMIF('RED DE SALUD AREQUIPA CAYLLOMA'!$D$9:$D$236,PROVINCIAL!$D10,'RED DE SALUD AREQUIPA CAYLLOMA'!Z$9:Z$236) -> 0 | W10: =SUMIF('RED DE SALUD AREQUIPA CAYLLOMA'!$D$9:$D$236,PROVINCIAL!$D10,'RED DE SALUD AREQUIPA CAYLLOMA'!AA$9:AA$236) -> 0 | X10: =SUMIF('RED DE SALUD AREQUIPA CAYLLOMA'!$D$9:$D$236,PROVINCIAL!$D10,'RED DE SALUD AREQUIPA CAYLLOMA'!AB$9:AB$236) -> 0 | Y10: =SUMIF('RED DE SALUD AREQUIPA CAYLLOMA'!$D$9:$D$236,PROVINCIAL!$D10,'RED DE SALUD AREQUIPA CAYLLOMA'!AC$9:AC$236) -> 0 | Z10: =SUMIF('RED DE SALUD AREQUIPA CAYLLOMA'!$D$9:$D$236,PROVINCIAL!$D10,'RED DE SALUD AREQUIPA CAYLLOMA'!AD$9:AD$236) -> 0 | AA10: =SUMIF('RED DE SALUD AREQUIPA CAYLLOMA'!$D$9:$D$236,PROVINCIAL!$D10,'RED DE SALUD AREQUIPA CAYLLOMA'!AE$9:AE$236) -> 0 | AB10: =SUMIF('RED DE SALUD AREQUIPA CAYLLOMA'!$D$9:$D$236,PROVINCIAL!$D10,'RED DE SALUD AREQUIPA CAYLLOMA'!AF$9:AF$236) -> 0 | AC10: =SUMIF('RED DE SALUD AREQUIPA CAYLLOMA'!$D$9:$D$236,PROVINCIAL!$D10,'RED DE SALUD AREQUIPA CAYLLOMA'!AG$9:AG$236) -> 0 | AD10: =SUMIF('RED DE SALUD AREQUIPA CAYLLOMA'!$D$9:$D$236,PROVINCIAL!$D10,'RED DE SALUD AREQUIPA CAYLLOMA'!AH$9:AH$236) -> 0 | AE10: =SUMIF('RED DE SALUD AREQUIPA CAYLLOMA'!$D$9:$D$236,PROVINCIAL!$D10,'RED DE SALUD AREQUIPA CAYLLOMA'!AI$9:AI$236) -> 0 | AF10: =SUMIF('RED DE SALUD AREQUIPA CAYLLOMA'!$D$9:$D$236,PROVINCIAL!$D10,'RED DE SALUD AREQUIPA CAYLLOMA'!AJ$9:AJ$236) -> 0 | AG10: =SUMIF('RED DE SALUD AREQUIPA CAYLLOMA'!$D$9:$D$236,PROVINCIAL!$D10,'RED DE SALUD AREQUIPA CAYLLOMA'!AK$9:AK$236) -> 0 | AH10: =SUMIF('RED DE SALUD AREQUIPA CAYLLOMA'!$D$9:$D$236,PROVINCIAL!$D10,'RED DE SALUD AREQUIPA CAYLLOMA'!AL$9:AL$236) -> 0 | AI10: =SUMIF('RED DE SALUD AREQUIPA CAYLLOMA'!$D$9:$D$236,PROVINCIAL!$D10,'RED DE SALUD AREQUIPA CAYLLOMA'!AM$9:AM$236) -> 0 | AJ10: =SUMIF('RED DE SALUD AREQUIPA CAYLLOMA'!$D$9:$D$236,PROVINCIAL!$D10,'RED DE SALUD AREQUIPA CAYLLOMA'!AN$9:AN$236) -> 0 | AK10: =SUMIF('RED DE SALUD AREQUIPA CAYLLOMA'!$D$9:$D$236,PROVINCIAL!$D10,'RED DE SALUD AREQUIPA CAYLLOMA'!AO$9:AO$236) -> 0 | AL10: =SUMIF('RED DE SALUD AREQUIPA CAYLLOMA'!$D$9:$D$236,PROVINCIAL!$D10,'RED DE SALUD AREQUIPA CAYLLOMA'!AP$9:AP$236) -> 0 | AM10: =SUMIF('RED DE SALUD AREQUIPA CAYLLOMA'!$D$9:$D$236,PROVINCIAL!$D10,'RED DE SALUD AREQUIPA CAYLLOMA'!AQ$9:AQ$236) -> 0 | AN10: =SUMIF('RED DE SALUD AREQUIPA CAYLLOMA'!$D$9:$D$236,PROVINCIAL!$D10,'RED DE SALUD AREQUIPA CAYLLOMA'!AR$9:AR$236) -> 0 | AO10: =SUMIF('RED DE SALUD AREQUIPA CAYLLOMA'!$D$9:$D$236,PROVINCIAL!$D10,'RED DE SALUD AREQUIPA CAYLLOMA'!AS$9:AS$236) -> 0 | AP10: =SUMIF('RED DE SALUD AREQUIPA CAYLLOMA'!$D$9:$D$236,PROVINCIAL!$D10,'RED DE SALUD AREQUIPA CAYLLOMA'!AT$9:AT$236) -> 0 | AQ10: =SUMIF('RED DE SALUD AREQUIPA CAYLLOMA'!$D$9:$D$236,PROVINCIAL!$D10,'RED DE SALUD AREQUIPA CAYLLOMA'!AU$9:AU$236) -> 0 | AR10: =SUMIF('RED DE SALUD AREQUIPA CAYLLOMA'!$D$9:$D$236,PROVINCIAL!$D10,'RED DE SALUD AREQUIPA CAYLLOMA'!AV$9:AV$236) -> 0 | AS10: =SUMIF('RED DE SALUD AREQUIPA CAYLLOMA'!$D$9:$D$236,PROVINCIAL!$D10,'RED DE SALUD AREQUIPA CAYLLOMA'!AW$9:AW$236) -> 0 | AT10: =SUMIF('RED DE SALUD AREQUIPA CAYLLOMA'!$D$9:$D$236,PROVINCIAL!$D10,'RED DE SALUD AREQUIPA CAYLLOMA'!AX$9:AX$236) -> 0 | AU10: =SUMIF('RED DE SALUD AREQUIPA CAYLLOMA'!$D$9:$D$236,PROVINCIAL!$D10,'RED DE SALUD AREQUIPA CAYLLOMA'!AY$9:AY$236) -> 0 | AV10: =SUMIF('RED DE SALUD AREQUIPA CAYLLOMA'!$D$9:$D$236,PROVINCIAL!$D10,'RED DE SALUD AREQUIPA CAYLLOMA'!AZ$9:AZ$236) -> 0 | AX10: 0 | AY10: 0 | AZ10: 0 | BA10: 0 | BB10: 0 | BC10: 0
A11: 0403 | B11: AREQUIPA | C11: AREQUIPA | D11: CARAVELI | E11: 0 | F11: =SUMIF('RED DE SALUD AREQUIPA CAYLLOMA'!$D$9:$D$236,PROVINCIAL!$D11,'RED DE SALUD AREQUIPA CAYLLOMA'!J$9:J$236) -> 0 | G11: =SUMIF('RED DE SALUD AREQUIPA CAYLLOMA'!$D$9:$D$236,PROVINCIAL!$D11,'RED DE SALUD AREQUIPA CAYLLOMA'!K$9:K$236) -> 0 | H11: =SUMIF('RED DE SALUD AREQUIPA CAYLLOMA'!$D$9:$D$236,PROVINCIAL!$D11,'RED DE SALUD AREQUIPA CAYLLOMA'!L$9:L$236) -> 0 | I11: =SUMIF('RED DE SALUD AREQUIPA CAYLLOMA'!$D$9:$D$236,PROVINCIAL!$D11,'RED DE SALUD AREQUIPA CAYLLOMA'!M$9:M$236) -> 0 | J11: =SUMIF('RED DE SALUD AREQUIPA CAYLLOMA'!$D$9:$D$236,PROVINCIAL!$D11,'RED DE SALUD AREQUIPA CAYLLOMA'!N$9:N$236) -> 0 | K11: =SUMIF('RED DE SALUD AREQUIPA CAYLLOMA'!$D$9:$D$236,PROVINCIAL!$D11,'RED DE SALUD AREQUIPA CAYLLOMA'!O$9:O$236) -> 0 | L11: =SUMIF('RED DE SALUD AREQUIPA CAYLLOMA'!$D$9:$D$236,PROVINCIAL!$D11,'RED DE SALUD AREQUIPA CAYLLOMA'!P$9:P$236) -> 0 | M11: =SUMIF('RED DE SALUD AREQUIPA CAYLLOMA'!$D$9:$D$236,PROVINCIAL!$D11,'RED DE SALUD AREQUIPA CAYLLOMA'!Q$9:Q$236) -> 0 | N11: =SUMIF('RED DE SALUD AREQUIPA CAYLLOMA'!$D$9:$D$236,PROVINCIAL!$D11,'RED DE SALUD AREQUIPA CAYLLOMA'!R$9:R$236) -> 0 | O11: =SUMIF('RED DE SALUD AREQUIPA CAYLLOMA'!$D$9:$D$236,PROVINCIAL!$D11,'RED DE SALUD AREQUIPA CAYLLOMA'!S$9:S$236) -> 0 | P11: =SUMIF('RED DE SALUD AREQUIPA CAYLLOMA'!$D$9:$D$236,PROVINCIAL!$D11,'RED DE SALUD AREQUIPA CAYLLOMA'!T$9:T$236) -> 0 | Q11: =SUMIF('RED DE SALUD AREQUIPA CAYLLOMA'!$D$9:$D$236,PROVINCIAL!$D11,'RED DE SALUD AREQUIPA CAYLLOMA'!U$9:U$236) -> 0 | R11: =SUMIF('RED DE SALUD AREQUIPA CAYLLOMA'!$D$9:$D$236,PROVINCIAL!$D11,'RED DE SALUD AREQUIPA CAYLLOMA'!V$9:V$236) -> 0 | S11: =SUMIF('RED DE SALUD AREQUIPA CAYLLOMA'!$D$9:$D$236,PROVINCIAL!$D11,'RED DE SALUD AREQUIPA CAYLLOMA'!W$9:W$236) -> 0 | T11: =SUMIF('RED DE SALUD AREQUIPA CAYLLOMA'!$D$9:$D$236,PROVINCIAL!$D11,'RED DE SALUD AREQUIPA CAYLLOMA'!X$9:X$236) -> 0 | U11: =SUMIF('RED DE SALUD AREQUIPA CAYLLOMA'!$D$9:$D$236,PROVINCIAL!$D11,'RED DE SALUD AREQUIPA CAYLLOMA'!Y$9:Y$236) -> 0 | V11: =SUMIF('RED DE SALUD AREQUIPA CAYLLOMA'!$D$9:$D$236,PROVINCIAL!$D11,'RED DE SALUD AREQUIPA CAYLLOMA'!Z$9:Z$236) -> 0 | W11: =SUMIF('RED DE SALUD AREQUIPA CAYLLOMA'!$D$9:$D$236,PROVINCIAL!$D11,'RED DE SALUD AREQUIPA CAYLLOMA'!AA$9:AA$236) -> 0 | X11: =SUMIF('RED DE SALUD AREQUIPA CAYLLOMA'!$D$9:$D$236,PROVINCIAL!$D11,'RED DE SALUD AREQUIPA CAYLLOMA'!AB$9:AB$236) -> 0 | Y11: =SUMIF('RED DE SALUD AREQUIPA CAYLLOMA'!$D$9:$D$236,PROVINCIAL!$D11,'RED DE SALUD AREQUIPA CAYLLOMA'!AC$9:AC$236) -> 0 | Z11: =SUMIF('RED DE SALUD AREQUIPA CAYLLOMA'!$D$9:$D$236,PROVINCIAL!$D11,'RED DE SALUD AREQUIPA CAYLLOMA'!AD$9:AD$236) -> 0 | AA11: =SUMIF('RED DE SALUD AREQUIPA CAYLLOMA'!$D$9:$D$236,PROVINCIAL!$D11,'RED DE SALUD AREQUIPA CAYLLOMA'!AE$9:AE$236) -> 0 | AB11: =SUMIF('RED DE SALUD AREQUIPA CAYLLOMA'!$D$9:$D$236,PROVINCIAL!$D11,'RED DE SALUD AREQUIPA CAYLLOMA'!AF$9:AF$236) -> 0 | AC11: =SUMIF('RED DE SALUD AREQUIPA CAYLLOMA'!$D$9:$D$236,PROVINCIAL!$D11,'RED DE SALUD AREQUIPA CAYLLOMA'!AG$9:AG$236) -> 0 | AD11: =SUMIF('RED DE SALUD AREQUIPA CAYLLOMA'!$D$9:$D$236,PROVINCIAL!$D11,'RED DE SALUD AREQUIPA CAYLLOMA'!AH$9:AH$236) -> 0 | AE11: =SUMIF('RED DE SALUD AREQUIPA CAYLLOMA'!$D$9:$D$236,PROVINCIAL!$D11,'RED DE SALUD AREQUIPA CAYLLOMA'!AI$9:AI$236) -> 0 | AF11: =SUMIF('RED DE SALUD AREQUIPA CAYLLOMA'!$D$9:$D$236,PROVINCIAL!$D11,'RED DE SALUD AREQUIPA CAYLLOMA'!AJ$9:AJ$236) -> 0 | AG11: =SUMIF('RED DE SALUD AREQUIPA CAYLLOMA'!$D$9:$D$236,PROVINCIAL!$D11,'RED DE SALUD AREQUIPA CAYLLOMA'!AK$9:AK$236) -> 0 | AH11: =SUMIF('RED DE SALUD AREQUIPA CAYLLOMA'!$D$9:$D$236,PROVINCIAL!$D11,'RED DE SALUD AREQUIPA CAYLLOMA'!AL$9:AL$236) -> 0 | AI11: =SUMIF('RED DE SALUD AREQUIPA CAYLLOMA'!$D$9:$D$236,PROVINCIAL!$D11,'RED DE SALUD AREQUIPA CAYLLOMA'!AM$9:AM$236) -> 0 | AJ11: =SUMIF('RED DE SALUD AREQUIPA CAYLLOMA'!$D$9:$D$236,PROVINCIAL!$D11,'RED DE SALUD AREQUIPA CAYLLOMA'!AN$9:AN$236) -> 0 | AK11: =SUMIF('RED DE SALUD AREQUIPA CAYLLOMA'!$D$9:$D$236,PROVINCIAL!$D11,'RED DE SALUD AREQUIPA CAYLLOMA'!AO$9:AO$236) -> 0 | AL11: =SUMIF('RED DE SALUD AREQUIPA CAYLLOMA'!$D$9:$D$236,PROVINCIAL!$D11,'RED DE SALUD AREQUIPA CAYLLOMA'!AP$9:AP$236) -> 0 | AM11: =SUMIF('RED DE SALUD AREQUIPA CAYLLOMA'!$D$9:$D$236,PROVINCIAL!$D11,'RED DE SALUD AREQUIPA CAYLLOMA'!AQ$9:AQ$236) -> 0 | AN11: =SUMIF('RED DE SALUD AREQUIPA CAYLLOMA'!$D$9:$D$236,PROVINCIAL!$D11,'RED DE SALUD AREQUIPA CAYLLOMA'!AR$9:AR$236) -> 0 | AO11: =SUMIF('RED DE SALUD AREQUIPA CAYLLOMA'!$D$9:$D$236,PROVINCIAL!$D11,'RED DE SALUD AREQUIPA CAYLLOMA'!AS$9:AS$236) -> 0 | AP11: =SUMIF('RED DE SALUD AREQUIPA CAYLLOMA'!$D$9:$D$236,PROVINCIAL!$D11,'RED DE SALUD AREQUIPA CAYLLOMA'!AT$9:AT$236) -> 0 | AQ11: =SUMIF('RED DE SALUD AREQUIPA CAYLLOMA'!$D$9:$D$236,PROVINCIAL!$D11,'RED DE SALUD AREQUIPA CAYLLOMA'!AU$9:AU$236) -> 0 | AR11: =SUMIF('RED DE SALUD AREQUIPA CAYLLOMA'!$D$9:$D$236,PROVINCIAL!$D11,'RED DE SALUD AREQUIPA CAYLLOMA'!AV$9:AV$236) -> 0 | AS11: =SUMIF('RED DE SALUD AREQUIPA CAYLLOMA'!$D$9:$D$236,PROVINCIAL!$D11,'RED DE SALUD AREQUIPA CAYLLOMA'!AW$9:AW$236) -> 0 | AT11: =SUMIF('RED DE SALUD AREQUIPA CAYLLOMA'!$D$9:$D$236,PROVINCIAL!$D11,'RED DE SALUD AREQUIPA CAYLLOMA'!AX$9:AX$236) -> 0 | AU11: =SUMIF('RED DE SALUD AREQUIPA CAYLLOMA'!$D$9:$D$236,PROVINCIAL!$D11,'RED DE SALUD AREQUIPA CAYLLOMA'!AY$9:AY$236) -> 0 | AV11: =SUMIF('RED DE SALUD AREQUIPA CAYLLOMA'!$D$9:$D$236,PROVINCIAL!$D11,'RED DE SALUD AREQUIPA CAYLLOMA'!AZ$9:AZ$236) -> 0 | AX11: 0 | AY11: 0 | AZ11: 0 | BA11: 0 | BB11: 0 | BC11: 0
A12: 0404 | B12: AREQUIPA | C12: AREQUIPA | D12: CASTILLA | E12: 1719 | F12: =SUMIF('RED DE SALUD AREQUIPA CAYLLOMA'!$D$9:$D$236,PROVINCIAL!$D12,'RED DE SALUD AREQUIPA CAYLLOMA'!J$9:J$236) -> 33 | G12: =SUMIF('RED DE SALUD AREQUIPA CAYLLOMA'!$D$9:$D$236,PROVINCIAL!$D12,'RED DE SALUD AREQUIPA CAYLLOMA'!K$9:K$236) -> 25 | H12: =SUMIF('RED DE SALUD AREQUIPA CAYLLOMA'!$D$9:$D$236,PROVINCIAL!$D12,'RED DE SALUD AREQUIPA CAYLLOMA'!L$9:L$236) -> 21 | I12: =SUMIF('RED DE SALUD AREQUIPA CAYLLOMA'!$D$9:$D$236,PROVINCIAL!$D12,'RED DE SALUD AREQUIPA CAYLLOMA'!M$9:M$236) -> 26 | J12: =SUMIF('RED DE SALUD AREQUIPA CAYLLOMA'!$D$9:$D$236,PROVINCIAL!$D12,'RED DE SALUD AREQUIPA CAYLLOMA'!N$9:N$236) -> 25 | K12: =SUMIF('RED DE SALUD AREQUIPA CAYLLOMA'!$D$9:$D$236,PROVINCIAL!$D12,'RED DE SALUD AREQUIPA CAYLLOMA'!O$9:O$236) -> 17 | L12: =SUMIF('RED DE SALUD AREQUIPA CAYLLOMA'!$D$9:$D$236,PROVINCIAL!$D12,'RED DE SALUD AREQUIPA CAYLLOMA'!P$9:P$236) -> 20 | M12: =SUMIF('RED DE SALUD AREQUIPA CAYLLOMA'!$D$9:$D$236,PROVINCIAL!$D12,'RED DE SALUD AREQUIPA CAYLLOMA'!Q$9:Q$236) -> 22 | N12: =SUMIF('RED DE SALUD AREQUIPA CAYLLOMA'!$D$9:$D$236,PROVINCIAL!$D12,'RED DE SALUD AREQUIPA CAYLLOMA'!R$9:R$236) -> 23 | O12: =SUMIF('RED DE SALUD AREQUIPA CAYLLOMA'!$D$9:$D$236,PROVINCIAL!$D12,'RED DE SALUD AREQUIPA CAYLLOMA'!S$9:S$236) -> 22 | P12: =SUMIF('RED DE SALUD AREQUIPA CAYLLOMA'!$D$9:$D$236,PROVINCIAL!$D12,'RED DE SALUD AREQUIPA CAYLLOMA'!T$9:T$236) -> 29 | Q12: =SUMIF('RED DE SALUD AREQUIPA CAYLLOMA'!$D$9:$D$236,PROVINCIAL!$D12,'RED DE SALUD AREQUIPA CAYLLOMA'!U$9:U$236) -> 28 | R12: =SUMIF('RED DE SALUD AREQUIPA CAYLLOMA'!$D$9:$D$236,PROVINCIAL!$D12,'RED DE SALUD AREQUIPA CAYLLOMA'!V$9:V$236) -> 28 | S12: =SUMIF('RED DE SALUD AREQUIPA CAYLLOMA'!$D$9:$D$236,PROVINCIAL!$D12,'RED DE SALUD AREQUIPA CAYLLOMA'!W$9:W$236) -> 29 | T12: =SUMIF('RED DE SALUD AREQUIPA CAYLLOMA'!$D$9:$D$236,PROVINCIAL!$D12,'RED DE SALUD AREQUIPA CAYLLOMA'!X$9:X$236) -> 25 | U12: =SUMIF('RED DE SALUD AREQUIPA CAYLLOMA'!$D$9:$D$236,PROVINCIAL!$D12,'RED DE SALUD AREQUIPA CAYLLOMA'!Y$9:Y$236) -> 32 | V12: =SUMIF('RED DE SALUD AREQUIPA CAYLLOMA'!$D$9:$D$236,PROVINCIAL!$D12,'RED DE SALUD AREQUIPA CAYLLOMA'!Z$9:Z$236) -> 27 | W12: =SUMIF('RED DE SALUD AREQUIPA CAYLLOMA'!$D$9:$D$236,PROVINCIAL!$D12,'RED DE SALUD AREQUIPA CAYLLOMA'!AA$9:AA$236) -> 27 | X12: =SUMIF('RED DE SALUD AREQUIPA CAYLLOMA'!$D$9:$D$236,PROVINCIAL!$D12,'RED DE SALUD AREQUIPA CAYLLOMA'!AB$9:AB$236) -> 23 | Y12: =SUMIF('RED DE SALUD AREQUIPA CAYLLOMA'!$D$9:$D$236,PROVINCIAL!$D12,'RED DE SALUD AREQUIPA CAYLLOMA'!AC$9:AC$236) -> 23 | Z12: =SUMIF('RED DE SALUD AREQUIPA CAYLLOMA'!$D$9:$D$236,PROVINCIAL!$D12,'RED DE SALUD AREQUIPA CAYLLOMA'!AD$9:AD$236) -> 120 | AA12: =SUMIF('RED DE SALUD AREQUIPA CAYLLOMA'!$D$9:$D$236,PROVINCIAL!$D12,'RED DE SALUD AREQUIPA CAYLLOMA'!AE$9:AE$236) -> 113 | AB12: =SUMIF('RED DE SALUD AREQUIPA CAYLLOMA'!$D$9:$D$236,PROVINCIAL!$D12,'RED DE SALUD AREQUIPA CAYLLOMA'!AF$9:AF$236) -> 137 | AC12: =SUMIF('RED DE SALUD AREQUIPA CAYLLOMA'!$D$9:$D$236,PROVINCIAL!$D12,'RED DE SALUD AREQUIPA CAYLLOMA'!AG$9:AG$236) -> 127 | AD12: =SUMIF('RED DE SALUD AREQUIPA CAYLLOMA'!$D$9:$D$236,PROVINCIAL!$D12,'RED DE SALUD AREQUIPA CAYLLOMA'!AH$9:AH$236) -> 111 | AE12: =SUMIF('RED DE SALUD AREQUIPA CAYLLOMA'!$D$9:$D$236,PROVINCIAL!$D12,'RED DE SALUD AREQUIPA CAYLLOMA'!AI$9:AI$236) -> 110 | AF12: =SUMIF('RED DE SALUD AREQUIPA CAYLLOMA'!$D$9:$D$236,PROVINCIAL!$D12,'RED DE SALUD AREQUIPA CAYLLOMA'!AJ$9:AJ$236) -> 91 | AG12: =SUMIF('RED DE SALUD AREQUIPA CAYLLOMA'!$D$9:$D$236,PROVINCIAL!$D12,'RED DE SALUD AREQUIPA CAYLLOMA'!AK$9:AK$236) -> 91 | AH12: =SUMIF('RED DE SALUD AREQUIPA CAYLLOMA'!$D$9:$D$236,PROVINCIAL!$D12,'RED DE SALUD AREQUIPA CAYLLOMA'!AL$9:AL$236) -> 81 | AI12: =SUMIF('RED DE SALUD AREQUIPA CAYLLOMA'!$D$9:$D$236,PROVINCIAL!$D12,'RED DE SALUD AREQUIPA CAYLLOMA'!AM$9:AM$236) -> 66 | AJ12: =SUMIF('RED DE SALUD AREQUIPA CAYLLOMA'!$D$9:$D$236,PROVINCIAL!$D12,'RED DE SALUD AREQUIPA CAYLLOMA'!AN$9:AN$236) -> 46 | AK12: =SUMIF('RED DE SALUD AREQUIPA CAYLLOMA'!$D$9:$D$236,PROVINCIAL!$D12,'RED DE SALUD AREQUIPA CAYLLOMA'!AO$9:AO$236) -> 46 | AL12: =SUMIF('RED DE SALUD AREQUIPA CAYLLOMA'!$D$9:$D$236,PROVINCIAL!$D12,'RED DE SALUD AREQUIPA CAYLLOMA'!AP$9:AP$236) -> 31 | AM12: =SUMIF('RED DE SALUD AREQUIPA CAYLLOMA'!$D$9:$D$236,PROVINCIAL!$D12,'RED DE SALUD AREQUIPA CAYLLOMA'!AQ$9:AQ$236) -> 44 | AN12: =SUMIF('RED DE SALUD AREQUIPA CAYLLOMA'!$D$9:$D$236,PROVINCIAL!$D12,'RED DE SALUD AREQUIPA CAYLLOMA'!AR$9:AR$236) -> 2 | AO12: =SUMIF('RED DE SALUD AREQUIPA CAYLLOMA'!$D$9:$D$236,PROVINCIAL!$D12,'RED DE SALUD AREQUIPA CAYLLOMA'!AS$9:AS$236) -> 23 | AP12: =SUMIF('RED DE SALUD AREQUIPA CAYLLOMA'!$D$9:$D$236,PROVINCIAL!$D12,'RED DE SALUD AREQUIPA CAYLLOMA'!AT$9:AT$236) -> 10 | AQ12: =SUMIF('RED DE SALUD AREQUIPA CAYLLOMA'!$D$9:$D$236,PROVINCIAL!$D12,'RED DE SALUD AREQUIPA CAYLLOMA'!AU$9:AU$236) -> 56 | AR12: =SUMIF('RED DE SALUD AREQUIPA CAYLLOMA'!$D$9:$D$236,PROVINCIAL!$D12,'RED DE SALUD AREQUIPA CAYLLOMA'!AV$9:AV$236) -> 860 | AS12: =SUMIF('RED DE SALUD AREQUIPA CAYLLOMA'!$D$9:$D$236,PROVINCIAL!$D12,'RED DE SALUD AREQUIPA CAYLLOMA'!AW$9:AW$236) -> 79 | AT12: =SUMIF('RED DE SALUD AREQUIPA CAYLLOMA'!$D$9:$D$236,PROVINCIAL!$D12,'RED DE SALUD AREQUIPA CAYLLOMA'!AX$9:AX$236) -> 71 | AU12: =SUMIF('RED DE SALUD AREQUIPA CAYLLOMA'!$D$9:$D$236,PROVINCIAL!$D12,'RED DE SALUD AREQUIPA CAYLLOMA'!AY$9:AY$236) -> 323 | AV12: =SUMIF('RED DE SALUD AREQUIPA CAYLLOMA'!$D$9:$D$236,PROVINCIAL!$D12,'RED DE SALUD AREQUIPA CAYLLOMA'!AZ$9:AZ$236) -> 68 | AX12: 1,719 | AY12: 291 | AZ12: 168 | BA12: 279 | BB12: 667 | BC12: 314
A13: 0405 | B13: AREQUIPA | C13: AREQUIPA | D13: CAYLLOMA | E13: 131822 | F13: =SUMIF('RED DE SALUD AREQUIPA CAYLLOMA'!$D$9:$D$236,PROVINCIAL!$D13,'RED DE SALUD AREQUIPA CAYLLOMA'!J$9:J$236) -> 1351 | G13: =SUMIF('RED DE SALUD AREQUIPA CAYLLOMA'!$D$9:$D$236,PROVINCIAL!$D13,'RED DE SALUD AREQUIPA CAYLLOMA'!K$9:K$236) -> 1419 | H13: =SUMIF('RED DE SALUD AREQUIPA CAYLLOMA'!$D$9:$D$236,PROVINCIAL!$D13,'RED DE SALUD AREQUIPA CAYLLOMA'!L$9:L$236) -> 1377 | I13: =SUMIF('RED DE SALUD AREQUIPA CAYLLOMA'!$D$9:$D$236,PROVINCIAL!$D13,'RED DE SALUD AREQUIPA CAYLLOMA'!M$9:M$236) -> 1551 | J13: =SUMIF('RED DE SALUD AREQUIPA CAYLLOMA'!$D$9:$D$236,PROVINCIAL!$D13,'RED DE SALUD AREQUIPA CAYLLOMA'!N$9:N$236) -> 1416 | K13: =SUMIF('RED DE SALUD AREQUIPA CAYLLOMA'!$D$9:$D$236,PROVINCIAL!$D13,'RED DE SALUD AREQUIPA CAYLLOMA'!O$9:O$236) -> 1855 | L13: =SUMIF('RED DE SALUD AREQUIPA CAYLLOMA'!$D$9:$D$236,PROVINCIAL!$D13,'RED DE SALUD AREQUIPA CAYLLOMA'!P$9:P$236) -> 2045 | M13: =SUMIF('RED DE SALUD AREQUIPA CAYLLOMA'!$D$9:$D$236,PROVINCIAL!$D13,'RED DE SALUD AREQUIPA CAYLLOMA'!Q$9:Q$236) -> 2190 | N13: =SUMIF('RED DE SALUD AREQUIPA CAYLLOMA'!$D$9:$D$236,PROVINCIAL!$D13,'RED DE SALUD AREQUIPA CAYLLOMA'!R$9:R$236) -> 1944 | O13: =SUMIF('RED DE SALUD AREQUIPA CAYLLOMA'!$D$9:$D$236,PROVINCIAL!$D13,'RED DE SALUD AREQUIPA CAYLLOMA'!S$9:S$236) -> 1980 | P13: =SUMIF('RED DE SALUD AREQUIPA CAYLLOMA'!$D$9:$D$236,PROVINCIAL!$D13,'RED DE SALUD AREQUIPA CAYLLOMA'!T$9:T$236) -> 1962 | Q13: =SUMIF('RED DE SALUD AREQUIPA CAYLLOMA'!$D$9:$D$236,PROVINCIAL!$D13,'RED DE SALUD AREQUIPA CAYLLOMA'!U$9:U$236) -> 2091 | R13: =SUMIF('RED DE SALUD AREQUIPA CAYLLOMA'!$D$9:$D$236,PROVINCIAL!$D13,'RED DE SALUD AREQUIPA CAYLLOMA'!V$9:V$236) -> 2139 | S13: =SUMIF('RED DE SALUD AREQUIPA CAYLLOMA'!$D$9:$D$236,PROVINCIAL!$D13,'RED DE SALUD AREQUIPA CAYLLOMA'!W$9:W$236) -> 2075 | T13: =SUMIF('RED DE SALUD AREQUIPA CAYLLOMA'!$D$9:$D$236,PROVINCIAL!$D13,'RED DE SALUD AREQUIPA CAYLLOMA'!X$9:X$236) -> 2017 | U13: =SUMIF('RED DE SALUD AREQUIPA CAYLLOMA'!$D$9:$D$236,PROVINCIAL!$D13,'RED DE SALUD AREQUIPA CAYLLOMA'!Y$9:Y$236) -> 1933 | V13: =SUMIF('RED DE SALUD AREQUIPA CAYLLOMA'!$D$9:$D$236,PROVINCIAL!$D13,'RED DE SALUD AREQUIPA CAYLLOMA'!Z$9:Z$236) -> 2217 | W13: =SUMIF('RED DE SALUD AREQUIPA CAYLLOMA'!$D$9:$D$236,PROVINCIAL!$D13,'RED DE SALUD AREQUIPA CAYLLOMA'!AA$9:AA$236) -> 2172 | X13: =SUMIF('RED DE SALUD AREQUIPA CAYLLOMA'!$D$9:$D$236,PROVINCIAL!$D13,'RED DE SALUD AREQUIPA CAYLLOMA'!AB$9:AB$236) -> 2062 | Y13: =SUMIF('RED DE SALUD AREQUIPA CAYLLOMA'!$D$9:$D$236,PROVINCIAL!$D13,'RED DE SALUD AREQUIPA CAYLLOMA'!AC$9:AC$236) -> 1977 | Z13: =SUMIF('RED DE SALUD AREQUIPA CAYLLOMA'!$D$9:$D$236,PROVINCIAL!$D13,'RED DE SALUD AREQUIPA CAYLLOMA'!AD$9:AD$236) -> 10087 | AA13: =SUMIF('RED DE SALUD AREQUIPA CAYLLOMA'!$D$9:$D$236,PROVINCIAL!$D13,'RED DE SALUD AREQUIPA CAYLLOMA'!AE$9:AE$236) -> 11424 | AB13: =SUMIF('RED DE SALUD AREQUIPA CAYLLOMA'!$D$9:$D$236,PROVINCIAL!$D13,'RED DE SALUD AREQUIPA CAYLLOMA'!AF$9:AF$236) -> 11097 | AC13: =SUMIF('RED DE SALUD AREQUIPA CAYLLOMA'!$D$9:$D$236,PROVINCIAL!$D13,'RED DE SALUD AREQUIPA CAYLLOMA'!AG$9:AG$236) -> 10796 | AD13: =SUMIF('RED DE SALUD AREQUIPA CAYLLOMA'!$D$9:$D$236,PROVINCIAL!$D13,'RED DE SALUD AREQUIPA CAYLLOMA'!AH$9:AH$236) -> 9906 | AE13: =SUMIF('RED DE SALUD AREQUIPA CAYLLOMA'!$D$9:$D$236,PROVINCIAL!$D13,'RED DE SALUD AREQUIPA CAYLLOMA'!AI$9:AI$236) -> 9106 | AF13: =SUMIF('RED DE SALUD AREQUIPA CAYLLOMA'!$D$9:$D$236,PROVINCIAL!$D13,'RED DE SALUD AREQUIPA CAYLLOMA'!AJ$9:AJ$236) -> 7496 | AG13: =SUMIF('RED DE SALUD AREQUIPA CAYLLOMA'!$D$9:$D$236,PROVINCIAL!$D13,'RED DE SALUD AREQUIPA CAYLLOMA'!AK$9:AK$236) -> 6671 | AH13: =SUMIF('RED DE SALUD AREQUIPA CAYLLOMA'!$D$9:$D$236,PROVINCIAL!$D13,'RED DE SALUD AREQUIPA CAYLLOMA'!AL$9:AL$236) -> 5201 | AI13: =SUMIF('RED DE SALUD AREQUIPA CAYLLOMA'!$D$9:$D$236,PROVINCIAL!$D13,'RED DE SALUD AREQUIPA CAYLLOMA'!AM$9:AM$236) -> 4153 | AJ13: =SUMIF('RED DE SALUD AREQUIPA CAYLLOMA'!$D$9:$D$236,PROVINCIAL!$D13,'RED DE SALUD AREQUIPA CAYLLOMA'!AN$9:AN$236) -> 3068 | AK13: =SUMIF('RED DE SALUD AREQUIPA CAYLLOMA'!$D$9:$D$236,PROVINCIAL!$D13,'RED DE SALUD AREQUIPA CAYLLOMA'!AO$9:AO$236) -> 2235 | AL13: =SUMIF('RED DE SALUD AREQUIPA CAYLLOMA'!$D$9:$D$236,PROVINCIAL!$D13,'RED DE SALUD AREQUIPA CAYLLOMA'!AP$9:AP$236) -> 1430 | AM13: =SUMIF('RED DE SALUD AREQUIPA CAYLLOMA'!$D$9:$D$236,PROVINCIAL!$D13,'RED DE SALUD AREQUIPA CAYLLOMA'!AQ$9:AQ$236) -> 1379 | AN13: =SUMIF('RED DE SALUD AREQUIPA CAYLLOMA'!$D$9:$D$236,PROVINCIAL!$D13,'RED DE SALUD AREQUIPA CAYLLOMA'!AR$9:AR$236) -> 100 | AO13: =SUMIF('RED DE SALUD AREQUIPA CAYLLOMA'!$D$9:$D$236,PROVINCIAL!$D13,'RED DE SALUD AREQUIPA CAYLLOMA'!AS$9:AS$236) -> 853 | AP13: =SUMIF('RED DE SALUD AREQUIPA CAYLLOMA'!$D$9:$D$236,PROVINCIAL!$D13,'RED DE SALUD AREQUIPA CAYLLOMA'!AT$9:AT$236) -> 857 | AQ13: =SUMIF('RED DE SALUD AREQUIPA CAYLLOMA'!$D$9:$D$236,PROVINCIAL!$D13,'RED DE SALUD AREQUIPA CAYLLOMA'!AU$9:AU$236) -> 2707 | AR13: =SUMIF('RED DE SALUD AREQUIPA CAYLLOMA'!$D$9:$D$236,PROVINCIAL!$D13,'RED DE SALUD AREQUIPA CAYLLOMA'!AV$9:AV$236) -> 67,792 | AS13: =SUMIF('RED DE SALUD AREQUIPA CAYLLOMA'!$D$9:$D$236,PROVINCIAL!$D13,'RED DE SALUD AREQUIPA CAYLLOMA'!AW$9:AW$236) -> 5195 | AT13: =SUMIF('RED DE SALUD AREQUIPA CAYLLOMA'!$D$9:$D$236,PROVINCIAL!$D13,'RED DE SALUD AREQUIPA CAYLLOMA'!AX$9:AX$236) -> 5182 | AU13: =SUMIF('RED DE SALUD AREQUIPA CAYLLOMA'!$D$9:$D$236,PROVINCIAL!$D13,'RED DE SALUD AREQUIPA CAYLLOMA'!AY$9:AY$236) -> 31449 | AV13: =SUMIF('RED DE SALUD AREQUIPA CAYLLOMA'!$D$9:$D$236,PROVINCIAL!$D13,'RED DE SALUD AREQUIPA CAYLLOMA'!AZ$9:AZ$236) -> 3786 | AX13: 131,822 | AY13: 21,181 | AZ13: 12,553 | BA13: 25,550 | BB13: 55,072 | BC13: 17,466
A14: 0406 | B14: AREQUIPA | C14: AREQUIPA | D14: CONDESUYOS | E14: 2534 | F14: =SUMIF('RED DE SALUD AREQUIPA CAYLLOMA'!$D$9:$D$236,PROVINCIAL!$D14,'RED DE SALUD AREQUIPA CAYLLOMA'!J$9:J$236) -> 29 | G14: =SUMIF('RED DE SALUD AREQUIPA CAYLLOMA'!$D$9:$D$236,PROVINCIAL!$D14,'RED DE SALUD AREQUIPA CAYLLOMA'!K$9:K$236) -> 25 | H14: =SUMIF('RED DE SALUD AREQUIPA CAYLLOMA'!$D$9:$D$236,PROVINCIAL!$D14,'RED DE SALUD AREQUIPA CAYLLOMA'!L$9:L$236) -> 35 | I14: =SUMIF('RED DE SALUD AREQUIPA CAYLLOMA'!$D$9:$D$236,PROVINCIAL!$D14,'RED DE SALUD AREQUIPA CAYLLOMA'!M$9:M$236) -> 27 | J14: =SUMIF('RED DE SALUD AREQUIPA CAYLLOMA'!$D$9:$D$236,PROVINCIAL!$D14,'RED DE SALUD AREQUIPA CAYLLOMA'!N$9:N$236) -> 30 | K14: =SUMIF('RED DE SALUD AREQUIPA CAYLLOMA'!$D$9:$D$236,PROVINCIAL!$D14,'RED DE SALUD AREQUIPA CAYLLOMA'!O$9:O$236) -> 38 | L14: =SUMIF('RED DE SALUD AREQUIPA CAYLLOMA'!$D$9:$D$236,PROVINCIAL!$D14,'RED DE SALUD AREQUIPA CAYLLOMA'!P$9:P$236) -> 42 | M14: =SUMIF('RED DE SALUD AREQUIPA CAYLLOMA'!$D$9:$D$236,PROVINCIAL!$D14,'RED DE SALUD AREQUIPA CAYLLOMA'!Q$9:Q$236) -> 42 | N14: =SUMIF('RED DE SALUD AREQUIPA CAYLLOMA'!$D$9:$D$236,PROVINCIAL!$D14,'RED DE SALUD AREQUIPA CAYLLOMA'!R$9:R$236) -> 44 | O14: =SUMIF('RED DE SALUD AREQUIPA CAYLLOMA'!$D$9:$D$236,PROVINCIAL!$D14,'RED DE SALUD AREQUIPA CAYLLOMA'!S$9:S$236) -> 43 | P14: =SUMIF('RED DE SALUD AREQUIPA CAYLLOMA'!$D$9:$D$236,PROVINCIAL!$D14,'RED DE SALUD AREQUIPA CAYLLOMA'!T$9:T$236) -> 45 | Q14: =SUMIF('RED DE SALUD AREQUIPA CAYLLOMA'!$D$9:$D$236,PROVINCIAL!$D14,'RED DE SALUD AREQUIPA CAYLLOMA'!U$9:U$236) -> 47 | R14: =SUMIF('RED DE SALUD AREQUIPA CAYLLOMA'!$D$9:$D$236,PROVINCIAL!$D14,'RED DE SALUD AREQUIPA CAYLLOMA'!V$9:V$236) -> 42 | S14: =SUMIF('RED DE SALUD AREQUIPA CAYLLOMA'!$D$9:$D$236,PROVINCIAL!$D14,'RED DE SALUD AREQUIPA CAYLLOMA'!W$9:W$236) -> 58 | T14: =SUMIF('RED DE SALUD AREQUIPA CAYLLOMA'!$D$9:$D$236,PROVINCIAL!$D14,'RED DE SALUD AREQUIPA CAYLLOMA'!X$9:X$236) -> 47 | U14: =SUMIF('RED DE SALUD AREQUIPA CAYLLOMA'!$D$9:$D$236,PROVINCIAL!$D14,'RED DE SALUD AREQUIPA CAYLLOMA'!Y$9:Y$236) -> 66 | V14: =SUMIF('RED DE SALUD AREQUIPA CAYLLOMA'!$D$9:$D$236,PROVINCIAL!$D14,'RED DE SALUD AREQUIPA CAYLLOMA'!Z$9:Z$236) -> 61 | W14: =SUMIF('RED DE SALUD AREQUIPA CAYLLOMA'!$D$9:$D$236,PROVINCIAL!$D14,'RED DE SALUD AREQUIPA CAYLLOMA'!AA$9:AA$236) -> 56 | X14: =SUMIF('RED DE SALUD AREQUIPA CAYLLOMA'!$D$9:$D$236,PROVINCIAL!$D14,'RED DE SALUD AREQUIPA CAYLLOMA'!AB$9:AB$236) -> 54 | Y14: =SUMIF('RED DE SALUD AREQUIPA CAYLLOMA'!$D$9:$D$236,PROVINCIAL!$D14,'RED DE SALUD AREQUIPA CAYLLOMA'!AC$9:AC$236) -> 54 | Z14: =SUMIF('RED DE SALUD AREQUIPA CAYLLOMA'!$D$9:$D$236,PROVINCIAL!$D14,'RED DE SALUD AREQUIPA CAYLLOMA'!AD$9:AD$236) -> 253 | AA14: =SUMIF('RED DE SALUD AREQUIPA CAYLLOMA'!$D$9:$D$236,PROVINCIAL!$D14,'RED DE SALUD AREQUIPA CAYLLOMA'!AE$9:AE$236) -> 222 | AB14: =SUMIF('RED DE SALUD AREQUIPA CAYLLOMA'!$D$9:$D$236,PROVINCIAL!$D14,'RED DE SALUD AREQUIPA CAYLLOMA'!AF$9:AF$236) -> 194 | AC14: =SUMIF('RED DE SALUD AREQUIPA CAYLLOMA'!$D$9:$D$236,PROVINCIAL!$D14,'RED DE SALUD AREQUIPA CAYLLOMA'!AG$9:AG$236) -> 167 | AD14: =SUMIF('RED DE SALUD AREQUIPA CAYLLOMA'!$D$9:$D$236,PROVINCIAL!$D14,'RED DE SALUD AREQUIPA CAYLLOMA'!AH$9:AH$236) -> 142 | AE14: =SUMIF('RED DE SALUD AREQUIPA CAYLLOMA'!$D$9:$D$236,PROVINCIAL!$D14,'RED DE SALUD AREQUIPA CAYLLOMA'!AI$9:AI$236) -> 150 | AF14: =SUMIF('RED DE SALUD AREQUIPA CAYLLOMA'!$D$9:$D$236,PROVINCIAL!$D14,'RED DE SALUD AREQUIPA CAYLLOMA'!AJ$9:AJ$236) -> 107 | AG14: =SUMIF('RED DE SALUD AREQUIPA CAYLLOMA'!$D$9:$D$236,PROVINCIAL!$D14,'RED DE SALUD AREQUIPA CAYLLOMA'!AK$9:AK$236) -> 133 | AH14: =SUMIF('RED DE SALUD AREQUIPA CAYLLOMA'!$D$9:$D$236,PROVINCIAL!$D14,'RED DE SALUD AREQUIPA CAYLLOMA'!AL$9:AL$236) -> 84 | AI14: =SUMIF('RED DE SALUD AREQUIPA CAYLLOMA'!$D$9:$D$236,PROVINCIAL!$D14,'RED DE SALUD AREQUIPA CAYLLOMA'!AM$9:AM$236) -> 74 | AJ14: =SUMIF('RED DE SALUD AREQUIPA CAYLLOMA'!$D$9:$D$236,PROVINCIAL!$D14,'RED DE SALUD AREQUIPA CAYLLOMA'!AN$9:AN$236) -> 43 | AK14: =SUMIF('RED DE SALUD AREQUIPA CAYLLOMA'!$D$9:$D$236,PROVINCIAL!$D14,'RED DE SALUD AREQUIPA CAYLLOMA'!AO$9:AO$236) -> 27 | AL14: =SUMIF('RED DE SALUD AREQUIPA CAYLLOMA'!$D$9:$D$236,PROVINCIAL!$D14,'RED DE SALUD AREQUIPA CAYLLOMA'!AP$9:AP$236) -> 26 | AM14: =SUMIF('RED DE SALUD AREQUIPA CAYLLOMA'!$D$9:$D$236,PROVINCIAL!$D14,'RED DE SALUD AREQUIPA CAYLLOMA'!AQ$9:AQ$236) -> 27 | AN14: =SUMIF('RED DE SALUD AREQUIPA CAYLLOMA'!$D$9:$D$236,PROVINCIAL!$D14,'RED DE SALUD AREQUIPA CAYLLOMA'!AR$9:AR$236) -> 2 | AO14: =SUMIF('RED DE SALUD AREQUIPA CAYLLOMA'!$D$9:$D$236,PROVINCIAL!$D14,'RED DE SALUD AREQUIPA CAYLLOMA'!AS$9:AS$236) -> 17 | AP14: =SUMIF('RED DE SALUD AREQUIPA CAYLLOMA'!$D$9:$D$236,PROVINCIAL!$D14,'RED DE SALUD AREQUIPA CAYLLOMA'!AT$9:AT$236) -> 12 | AQ14: =SUMIF('RED DE SALUD AREQUIPA CAYLLOMA'!$D$9:$D$236,PROVINCIAL!$D14,'RED DE SALUD AREQUIPA CAYLLOMA'!AU$9:AU$236) -> 61 | AR14: =SUMIF('RED DE SALUD AREQUIPA CAYLLOMA'!$D$9:$D$236,PROVINCIAL!$D14,'RED DE SALUD AREQUIPA CAYLLOMA'!AV$9:AV$236) -> 1,273 | AS14: =SUMIF('RED DE SALUD AREQUIPA CAYLLOMA'!$D$9:$D$236,PROVINCIAL!$D14,'RED DE SALUD AREQUIPA CAYLLOMA'!AW$9:AW$236) -> 125 | AT14: =SUMIF('RED DE SALUD AREQUIPA CAYLLOMA'!$D$9:$D$236,PROVINCIAL!$D14,'RED DE SALUD AREQUIPA CAYLLOMA'!AX$9:AX$236) -> 154 | AU14: =SUMIF('RED DE SALUD AREQUIPA CAYLLOMA'!$D$9:$D$236,PROVINCIAL!$D14,'RED DE SALUD AREQUIPA CAYLLOMA'!AY$9:AY$236) -> 544 | AV14: =SUMIF('RED DE SALUD AREQUIPA CAYLLOMA'!$D$9:$D$236,PROVINCIAL!$D14,'RED DE SALUD AREQUIPA CAYLLOMA'!AZ$9:AZ$236) -> 61 | AX14: 2,534 | AY14: 447 | AZ14: 330 | BA14: 583 | BB14: 893 | BC14: 281
A15: 0407 | B15: AREQUIPA | C15: AREQUIPA | D15: ISLAY | E15: 1195 | F15: =SUMIF('RED DE SALUD AREQUIPA CAYLLOMA'!$D$9:$D$236,PROVINCIAL!$D15,'RED DE SALUD AREQUIPA CAYLLOMA'!J$9:J$236) -> 15 | G15: =SUMIF('RED DE SALUD AREQUIPA CAYLLOMA'!$D$9:$D$236,PROVINCIAL!$D15,'RED DE SALUD AREQUIPA CAYLLOMA'!K$9:K$236) -> 13 | H15: =SUMIF('RED DE SALUD AREQUIPA CAYLLOMA'!$D$9:$D$236,PROVINCIAL!$D15,'RED DE SALUD AREQUIPA CAYLLOMA'!L$9:L$236) -> 13 | I15: =SUMIF('RED DE SALUD AREQUIPA CAYLLOMA'!$D$9:$D$236,PROVINCIAL!$D15,'RED DE SALUD AREQUIPA CAYLLOMA'!M$9:M$236) -> 14 | J15: =SUMIF('RED DE SALUD AREQUIPA CAYLLOMA'!$D$9:$D$236,PROVINCIAL!$D15,'RED DE SALUD AREQUIPA CAYLLOMA'!N$9:N$236) -> 16 | K15: =SUMIF('RED DE SALUD AREQUIPA CAYLLOMA'!$D$9:$D$236,PROVINCIAL!$D15,'RED DE SALUD AREQUIPA CAYLLOMA'!O$9:O$236) -> 15 | L15: =SUMIF('RED DE SALUD AREQUIPA CAYLLOMA'!$D$9:$D$236,PROVINCIAL!$D15,'RED DE SALUD AREQUIPA CAYLLOMA'!P$9:P$236) -> 13 | M15: =SUMIF('RED DE SALUD AREQUIPA CAYLLOMA'!$D$9:$D$236,PROVINCIAL!$D15,'RED DE SALUD AREQUIPA CAYLLOMA'!Q$9:Q$236) -> 16 | N15: =SUMIF('RED DE SALUD AREQUIPA CAYLLOMA'!$D$9:$D$236,PROVINCIAL!$D15,'RED DE SALUD AREQUIPA CAYLLOMA'!R$9:R$236) -> 19 | O15: =SUMIF('RED DE SALUD AREQUIPA CAYLLOMA'!$D$9:$D$236,PROVINCIAL!$D15,'RED DE SALUD AREQUIPA CAYLLOMA'!S$9:S$236) -> 14 | P15: =SUMIF('RED DE SALUD AREQUIPA CAYLLOMA'!$D$9:$D$236,PROVINCIAL!$D15,'RED DE SALUD AREQUIPA CAYLLOMA'!T$9:T$236) -> 13 | Q15: =SUMIF('RED DE SALUD AREQUIPA CAYLLOMA'!$D$9:$D$236,PROVINCIAL!$D15,'RED DE SALUD AREQUIPA CAYLLOMA'!U$9:U$236) -> 14 | R15: =SUMIF('RED DE SALUD AREQUIPA CAYLLOMA'!$D$9:$D$236,PROVINCIAL!$D15,'RED DE SALUD AREQUIPA CAYLLOMA'!V$9:V$236) -> 14 | S15: =SUMIF('RED DE SALUD AREQUIPA CAYLLOMA'!$D$9:$D$236,PROVINCIAL!$D15,'RED DE SALUD AREQUIPA CAYLLOMA'!W$9:W$236) -> 17 | T15: =SUMIF('RED DE SALUD AREQUIPA CAYLLOMA'!$D$9:$D$236,PROVINCIAL!$D15,'RED DE SALUD AREQUIPA CAYLLOMA'!X$9:X$236) -> 16 | U15: =SUMIF('RED DE SALUD AREQUIPA CAYLLOMA'!$D$9:$D$236,PROVINCIAL!$D15,'RED DE SALUD AREQUIPA CAYLLOMA'!Y$9:Y$236) -> 17 | V15: =SUMIF('RED DE SALUD AREQUIPA CAYLLOMA'!$D$9:$D$236,PROVINCIAL!$D15,'RED DE SALUD AREQUIPA CAYLLOMA'!Z$9:Z$236) -> 14 | W15: =SUMIF('RED DE SALUD AREQUIPA CAYLLOMA'!$D$9:$D$236,PROVINCIAL!$D15,'RED DE SALUD AREQUIPA CAYLLOMA'!AA$9:AA$236) -> 16 | X15: =SUMIF('RED DE SALUD AREQUIPA CAYLLOMA'!$D$9:$D$236,PROVINCIAL!$D15,'RED DE SALUD AREQUIPA CAYLLOMA'!AB$9:AB$236) -> 15 | Y15: =SUMIF('RED DE SALUD AREQUIPA CAYLLOMA'!$D$9:$D$236,PROVINCIAL!$D15,'RED DE SALUD AREQUIPA CAYLLOMA'!AC$9:AC$236) -> 17 | Z15: =SUMIF('RED DE SALUD AREQUIPA CAYLLOMA'!$D$9:$D$236,PROVINCIAL!$D15,'RED DE SALUD AREQUIPA CAYLLOMA'!AD$9:AD$236) -> 79 | AA15: =SUMIF('RED DE SALUD AREQUIPA CAYLLOMA'!$D$9:$D$236,PROVINCIAL!$D15,'RED DE SALUD AREQUIPA CAYLLOMA'!AE$9:AE$236) -> 96 | AB15: =SUMIF('RED DE SALUD AREQUIPA CAYLLOMA'!$D$9:$D$236,PROVINCIAL!$D15,'RED DE SALUD AREQUIPA CAYLLOMA'!AF$9:AF$236) -> 97 | AC15: =SUMIF('RED DE SALUD AREQUIPA CAYLLOMA'!$D$9:$D$236,PROVINCIAL!$D15,'RED DE SALUD AREQUIPA CAYLLOMA'!AG$9:AG$236) -> 100 | AD15: =SUMIF('RED DE SALUD AREQUIPA CAYLLOMA'!$D$9:$D$236,PROVINCIAL!$D15,'RED DE SALUD AREQUIPA CAYLLOMA'!AH$9:AH$236) -> 89 | AE15: =SUMIF('RED DE SALUD AREQUIPA CAYLLOMA'!$D$9:$D$236,PROVINCIAL!$D15,'RED DE SALUD AREQUIPA CAYLLOMA'!AI$9:AI$236) -> 83 | AF15: =SUMIF('RED DE SALUD AREQUIPA CAYLLOMA'!$D$9:$D$236,PROVINCIAL!$D15,'RED DE SALUD AREQUIPA CAYLLOMA'!AJ$9:AJ$236) -> 80 | AG15: =SUMIF('RED DE SALUD AREQUIPA CAYLLOMA'!$D$9:$D$236,PROVINCIAL!$D15,'RED DE SALUD AREQUIPA CAYLLOMA'!AK$9:AK$236) -> 77 | AH15: =SUMIF('RED DE SALUD AREQUIPA CAYLLOMA'!$D$9:$D$236,PROVINCIAL!$D15,'RED DE SALUD AREQUIPA CAYLLOMA'!AL$9:AL$236) -> 56 | AI15: =SUMIF('RED DE SALUD AREQUIPA CAYLLOMA'!$D$9:$D$236,PROVINCIAL!$D15,'RED DE SALUD AREQUIPA CAYLLOMA'!AM$9:AM$236) -> 50 | AJ15: =SUMIF('RED DE SALUD AREQUIPA CAYLLOMA'!$D$9:$D$236,PROVINCIAL!$D15,'RED DE SALUD AREQUIPA CAYLLOMA'!AN$9:AN$236) -> 31 | AK15: =SUMIF('RED DE SALUD AREQUIPA CAYLLOMA'!$D$9:$D$236,PROVINCIAL!$D15,'RED DE SALUD AREQUIPA CAYLLOMA'!AO$9:AO$236) -> 23 | AL15: =SUMIF('RED DE SALUD AREQUIPA CAYLLOMA'!$D$9:$D$236,PROVINCIAL!$D15,'RED DE SALUD AREQUIPA CAYLLOMA'!AP$9:AP$236) -> 16 | AM15: =SUMIF('RED DE SALUD AREQUIPA CAYLLOMA'!$D$9:$D$236,PROVINCIAL!$D15,'RED DE SALUD AREQUIPA CAYLLOMA'!AQ$9:AQ$236) -> 17 | AN15: =SUMIF('RED DE SALUD AREQUIPA CAYLLOMA'!$D$9:$D$236,PROVINCIAL!$D15,'RED DE SALUD AREQUIPA CAYLLOMA'!AR$9:AR$236) -> 1 | AO15: =SUMIF('RED DE SALUD AREQUIPA CAYLLOMA'!$D$9:$D$236,PROVINCIAL!$D15,'RED DE SALUD AREQUIPA CAYLLOMA'!AS$9:AS$236) -> 6 | AP15: =SUMIF('RED DE SALUD AREQUIPA CAYLLOMA'!$D$9:$D$236,PROVINCIAL!$D15,'RED DE SALUD AREQUIPA CAYLLOMA'!AT$9:AT$236) -> 8 | AQ15: =SUMIF('RED DE SALUD AREQUIPA CAYLLOMA'!$D$9:$D$236,PROVINCIAL!$D15,'RED DE SALUD AREQUIPA CAYLLOMA'!AU$9:AU$236) -> 21 | AR15: =SUMIF('RED DE SALUD AREQUIPA CAYLLOMA'!$D$9:$D$236,PROVINCIAL!$D15,'RED DE SALUD AREQUIPA CAYLLOMA'!AV$9:AV$236) -> 602 | AS15: =SUMIF('RED DE SALUD AREQUIPA CAYLLOMA'!$D$9:$D$236,PROVINCIAL!$D15,'RED DE SALUD AREQUIPA CAYLLOMA'!AW$9:AW$236) -> 38 | AT15: =SUMIF('RED DE SALUD AREQUIPA CAYLLOMA'!$D$9:$D$236,PROVINCIAL!$D15,'RED DE SALUD AREQUIPA CAYLLOMA'!AX$9:AX$236) -> 41 | AU15: =SUMIF('RED DE SALUD AREQUIPA CAYLLOMA'!$D$9:$D$236,PROVINCIAL!$D15,'RED DE SALUD AREQUIPA CAYLLOMA'!AY$9:AY$236) -> 273 | AV15: =SUMIF('RED DE SALUD AREQUIPA CAYLLOMA'!$D$9:$D$236,PROVINCIAL!$D15,'RED DE SALUD AREQUIPA CAYLLOMA'!AZ$9:AZ$236) -> 38 | AX15: 1,195 | AY15: 175 | AZ15: 94 | BA15: 207 | BB15: 526 | BC15: 193
A16: 0408 | B16: AREQUIPA | C16: AREQUIPA | D16: LA UNION | E16: 0 | F16: =SUMIF('RED DE SALUD AREQUIPA CAYLLOMA'!$D$9:$D$236,PROVINCIAL!$D16,'RED DE SALUD AREQUIPA CAYLLOMA'!J$9:J$236) -> 0 | G16: =SUMIF('RED DE SALUD AREQUIPA CAYLLOMA'!$D$9:$D$236,PROVINCIAL!$D16,'RED DE SALUD AREQUIPA CAYLLOMA'!K$9:K$236) -> 0 | H16: =SUMIF('RED DE SALUD AREQUIPA CAYLLOMA'!$D$9:$D$236,PROVINCIAL!$D16,'RED DE SALUD AREQUIPA CAYLLOMA'!L$9:L$236) -> 0 | I16: =SUMIF('RED DE SALUD AREQUIPA CAYLLOMA'!$D$9:$D$236,PROVINCIAL!$D16,'RED DE SALUD AREQUIPA CAYLLOMA'!M$9:M$236) -> 0 | J16: =SUMIF('RED DE SALUD AREQUIPA CAYLLOMA'!$D$9:$D$236,PROVINCIAL!$D16,'RED DE SALUD AREQUIPA CAYLLOMA'!N$9:N$236) -> 0 | K16: =SUMIF('RED DE SALUD AREQUIPA CAYLLOMA'!$D$9:$D$236,PROVINCIAL!$D16,'RED DE SALUD AREQUIPA CAYLLOMA'!O$9:O$236) -> 0 | L16: =SUMIF('RED DE SALUD AREQUIPA CAYLLOMA'!$D$9:$D$236,PROVINCIAL!$D16,'RED DE SALUD AREQUIPA CAYLLOMA'!P$9:P$236) -> 0 | M16: =SUMIF('RED DE SALUD AREQUIPA CAYLLOMA'!$D$9:$D$236,PROVINCIAL!$D16,'RED DE SALUD AREQUIPA CAYLLOMA'!Q$9:Q$236) -> 0 | N16: =SUMIF('RED DE SALUD AREQUIPA CAYLLOMA'!$D$9:$D$236,PROVINCIAL!$D16,'RED DE SALUD AREQUIPA CAYLLOMA'!R$9:R$236) -> 0 | O16: =SUMIF('RED DE SALUD AREQUIPA CAYLLOMA'!$D$9:$D$236,PROVINCIAL!$D16,'RED DE SALUD AREQUIPA CAYLLOMA'!S$9:S$236) -> 0 | P16: =SUMIF('RED DE SALUD AREQUIPA CAYLLOMA'!$D$9:$D$236,PROVINCIAL!$D16,'RED DE SALUD AREQUIPA CAYLLOMA'!T$9:T$236) -> 0 | Q16: =SUMIF('RED DE SALUD AREQUIPA CAYLLOMA'!$D$9:$D$236,PROVINCIAL!$D16,'RED DE SALUD AREQUIPA CAYLLOMA'!U$9:U$236) -> 0 | R16: =SUMIF('RED DE SALUD AREQUIPA CAYLLOMA'!$D$9:$D$236,PROVINCIAL!$D16,'RED DE SALUD AREQUIPA CAYLLOMA'!V$9:V$236) -> 0 | S16: =SUMIF('RED DE SALUD AREQUIPA CAYLLOMA'!$D$9:$D$236,PROVINCIAL!$D16,'RED DE SALUD AREQUIPA CAYLLOMA'!W$9:W$236) -> 0 | T16: =SUMIF('RED DE SALUD AREQUIPA CAYLLOMA'!$D$9:$D$236,PROVINCIAL!$D16,'RED DE SALUD AREQUIPA CAYLLOMA'!X$9:X$236) -> 0 | U16: =SUMIF('RED DE SALUD AREQUIPA CAYLLOMA'!$D$9:$D$236,PROVINCIAL!$D16,'RED DE SALUD AREQUIPA CAYLLOMA'!Y$9:Y$236) -> 0 | V16: =SUMIF('RED DE SALUD AREQUIPA CAYLLOMA'!$D$9:$D$236,PROVINCIAL!$D16,'RED DE SALUD AREQUIPA CAYLLOMA'!Z$9:Z$236) -> 0 | W16: =SUMIF('RED DE SALUD AREQUIPA CAYLLOMA'!$D$9:$D$236,PROVINCIAL!$D16,'RED DE SALUD AREQUIPA CAYLLOMA'!AA$9:AA$236) -> 0 | X16: =SUMIF('RED DE SALUD AREQUIPA CAYLLOMA'!$D$9:$D$236,PROVINCIAL!$D16,'RED DE SALUD AREQUIPA CAYLLOMA'!AB$9:AB$236) -> 0 | Y16: =SUMIF('RED DE SALUD AREQUIPA CAYLLOMA'!$D$9:$D$236,PROVINCIAL!$D16,'RED DE SALUD AREQUIPA CAYLLOMA'!AC$9:AC$236) -> 0 | Z16: =SUMIF('RED DE SALUD AREQUIPA CAYLLOMA'!$D$9:$D$236,PROVINCIAL!$D16,'RED DE SALUD AREQUIPA CAYLLOMA'!AD$9:AD$236) -> 0 | AA16: =SUMIF('RED DE SALUD AREQUIPA CAYLLOMA'!$D$9:$D$236,PROVINCIAL!$D16,'RED DE SALUD AREQUIPA CAYLLOMA'!AE$9:AE$236) -> 0 | AB16: =SUMIF('RED DE SALUD AREQUIPA CAYLLOMA'!$D$9:$D$236,PROVINCIAL!$D16,'RED DE SALUD AREQUIPA CAYLLOMA'!AF$9:AF$236) -> 0 | AC16: =SUMIF('RED DE SALUD AREQUIPA CAYLLOMA'!$D$9:$D$236,PROVINCIAL!$D16,'RED DE SALUD AREQUIPA CAYLLOMA'!AG$9:AG$236) -> 0 | AD16: =SUMIF('RED DE SALUD AREQUIPA CAYLLOMA'!$D$9:$D$236,PROVINCIAL!$D16,'RED DE SALUD AREQUIPA CAYLLOMA'!AH$9:AH$236) -> 0 | AE16: =SUMIF('RED DE SALUD AREQUIPA CAYLLOMA'!$D$9:$D$236,PROVINCIAL!$D16,'RED DE SALUD AREQUIPA CAYLLOMA'!AI$9:AI$236) -> 0 | AF16: =SUMIF('RED DE SALUD AREQUIPA CAYLLOMA'!$D$9:$D$236,PROVINCIAL!$D16,'RED DE SALUD AREQUIPA CAYLLOMA'!AJ$9:AJ$236) -> 0 | AG16: =SUMIF('RED DE SALUD AREQUIPA CAYLLOMA'!$D$9:$D$236,PROVINCIAL!$D16,'RED DE SALUD AREQUIPA CAYLLOMA'!AK$9:AK$236) -> 0 | AH16: =SUMIF('RED DE SALUD AREQUIPA CAYLLOMA'!$D$9:$D$236,PROVINCIAL!$D16,'RED DE SALUD AREQUIPA CAYLLOMA'!AL$9:AL$236) -> 0 | AI16: =SUMIF('RED DE SALUD AREQUIPA CAYLLOMA'!$D$9:$D$236,PROVINCIAL!$D16,'RED DE SALUD AREQUIPA CAYLLOMA'!AM$9:AM$236) -> 0 | AJ16: =SUMIF('RED DE SALUD AREQUIPA CAYLLOMA'!$D$9:$D$236,PROVINCIAL!$D16,'RED DE SALUD AREQUIPA CAYLLOMA'!AN$9:AN$236) -> 0 | AK16: =SUMIF('RED DE SALUD AREQUIPA CAYLLOMA'!$D$9:$D$236,PROVINCIAL!$D16,'RED DE SALUD AREQUIPA CAYLLOMA'!AO$9:AO$236) -> 0 | AL16: =SUMIF('RED DE SALUD AREQUIPA CAYLLOMA'!$D$9:$D$236,PROVINCIAL!$D16,'RED DE SALUD AREQUIPA CAYLLOMA'!AP$9:AP$236) -> 0 | AM16: =SUMIF('RED DE SALUD AREQUIPA CAYLLOMA'!$D$9:$D$236,PROVINCIAL!$D16,'RED DE SALUD AREQUIPA CAYLLOMA'!AQ$9:AQ$236) -> 0 | AN16: =SUMIF('RED DE SALUD AREQUIPA CAYLLOMA'!$D$9:$D$236,PROVINCIAL!$D16,'RED DE SALUD AREQUIPA CAYLLOMA'!AR$9:AR$236) -> 0 | AO16: =SUMIF('RED DE SALUD AREQUIPA CAYLLOMA'!$D$9:$D$236,PROVINCIAL!$D16,'RED DE SALUD AREQUIPA CAYLLOMA'!AS$9:AS$236) -> 0 | AP16: =SUMIF('RED DE SALUD AREQUIPA CAYLLOMA'!$D$9:$D$236,PROVINCIAL!$D16,'RED DE SALUD AREQUIPA CAYLLOMA'!AT$9:AT$236) -> 0 | AQ16: =SUMIF('RED DE SALUD AREQUIPA CAYLLOMA'!$D$9:$D$236,PROVINCIAL!$D16,'RED DE SALUD AREQUIPA CAYLLOMA'!AU$9:AU$236) -> 0 | AR16: =SUMIF('RED DE SALUD AREQUIPA CAYLLOMA'!$D$9:$D$236,PROVINCIAL!$D16,'RED DE SALUD AREQUIPA CAYLLOMA'!AV$9:AV$236) -> 0 | AS16: =SUMIF('RED DE SALUD AREQUIPA CAYLLOMA'!$D$9:$D$236,PROVINCIAL!$D16,'RED DE SALUD AREQUIPA CAYLLOMA'!AW$9:AW$236) -> 0 | AT16: =SUMIF('RED DE SALUD AREQUIPA CAYLLOMA'!$D$9:$D$236,PROVINCIAL!$D16,'RED DE SALUD AREQUIPA CAYLLOMA'!AX$9:AX$236) -> 0 | AU16: =SUMIF('RED DE SALUD AREQUIPA CAYLLOMA'!$D$9:$D$236,PROVINCIAL!$D16,'RED DE SALUD AREQUIPA CAYLLOMA'!AY$9:AY$236) -> 0 | AV16: =SUMIF('RED DE SALUD AREQUIPA CAYLLOMA'!$D$9:$D$236,PROVINCIAL!$D16,'RED DE SALUD AREQUIPA CAYLLOMA'!AZ$9:AZ$236) -> 0 | AX16: 0 | AY16: 0 | AZ16: 0 | BA16: 0 | BB16: 0 | BC16: 0
A18: NOTA: LA POBLACION ESTIMADA DE EDADES SIMPLES Y GRUPOS DE EDAD DE DISTRITOS, CORRESPONDEN A CIFRAS REFERENCIALES HASTA OBTENER LAS CIFRAS DE LAS PROYECCIONES DEL INEI
A19: FUENTE: CENSO NACIONAL XI DE POBLACION Y VI DE VIVIENDA 2017/- BOLETIN DEMOGRAFICO Nº 26,37, 39 / RENIEC / Padrón Nominal/ CNV
A20: La población de 0-5 años corresponden al reporte de la poblacion del Padrón Nominal con corte al 31/12/2023 con ajuste en el grupo de edad de 0 años
A21: OFICINA DE GESTION DE LA INFORMACION - MINISTERIO DE SALUD

Sheet DISTRITAL
A4: POBLACION ESTIMADA POR EDADES SIMPLES Y GRUPOS DE EDAD, SEGÚN DEPARTAMENTO, PROVINCIA Y DISTRITO. 2024
A5: * Actualizado con datos INEI
A6: POBLACION 2024 | G6: POBLACION TOTAL, POR EDADS SIMPLES | AA6: POBLACIÓN TOTAL, POR GRUPOS QUINQUEN ALES DE EDAD | AO6: EDADES ESPECIALES | AR6: NACIMIENTOS VIVOS | AS6: POBLACION FEMENINA TOTAL | AT6: POBLACION FEMENINA | AW6: GESTANTES ESPERADAS
A7: UBIGEO | B7: DIRESA | C7: DEPARTAMENTO | D7: PROVINCIA | E7: DISTRITO | F7: Total | G7: 0 | H7: 1 | I7: 2 | J7: 3 | K7: 4 | L7: 5 | M7: 6 | N7: 7 | O7: 8 | P7: 9 | Q7: 10 | R7: 11 | S7: 12 | T7: 13 | U7: 14 | V7: 15 | W7: 16 | X7: 17 | Y7: 18 | Z7: 19 | AA7: 20-24 | AB7: 25-29 | AC7: 30-34 | AD7: 35-39 | AE7: 40-44 | AF7: 45-49 | AG7: 50-54 | AH7: 55-59 | AI7: 60-64 | AJ7: 65-69 | AK7: 70-74 | AL7: 75-79 | AM7: 80-84 | AN7: 85-+ | AO7: 28 DIAS | AP7: 0-5 MESES | AQ7: 6-11 MESES | AT7: 10 - 14 | AU7: 15- 19 | AV7: 20- 49 | AZ7: TOTAL | BA7: NIÑO | BB7: Adolescente | BC7: Joven | BD7: Adulto | BE7: Adulto Mayor
A8: 000000 | B8: PERU | C8: PERU | D8: PERU | E8: PERU | F8: =SUM(F9:F117) -> 1,594,091 | G8: 17,582 | H8: 17,584 | I8: 17,595 | J8: 20,559 | K8: 22,083 | L8: 22,837 | M8: 26,471 | N8: 26,959 | O8: 27,070 | P8: 26,055 | Q8: 25,314 | R8: 25,751 | S8: 26,392 | T8: 25,372 | U8: 23,695 | V8: 23,769 | W8: 23,977 | X8: 23,863 | Y8: 23,424 | Z8: 23,557 | AA8: 121,848 | AB8: 138,442 | AC8: 137,846 | AD8: 127,608 | AE8: 118,255 | AF8: 107,124 | AG8: 89,802 | AH8: 76,209 | AI8: 61,196 | AJ8: 49,581 | AK8: 36,235 | AL8: 26,050 | AM8: 16,960 | AN8: 17,026 | AO8: 1,236 | AP8: 8,823 | AQ8: 8,759 | AR8: 25,610 | AS8: 809,259 | AT8: 63,041 | AU8: 59,690 | AV8: 378,691 | AW8: 40,721 | AZ8: =F8 -> 1,594,091 | BA8: =SUM(G8:R8) -> 275,860 | BB8: =SUM(S8:X8) -> 147,068 | BC8: =SUM(Y8:AB8) -> 307,271 | BD8: =SUM(AC8:AH8) -> 656,844 | BE8: =SUM(AI8:AN8) -> 207,048
A9: 040101 | B9: AREQUIPA | C9: AREQUIPA | D9: AREQUIPA | E9: AREQUIPA | F9: =SUM(G9:AN9) -> 56,005 | G9: ='Pob x Genero'!H9+'Pob x Genero'!AU9 -> 555 | H9: ='Pob x Genero'!I9+'Pob x Genero'!AV9 -> 468 | I9: ='Pob x Genero'!J9+'Pob x Genero'!AW9 -> 486 | J9: ='Pob x Genero'!K9+'Pob x Genero'!AX9 -> 639 | K9: ='Pob x Genero'!L9+'Pob x Genero'!AY9 -> 730 | L9: ='Pob x Genero'!M9+'Pob x Genero'!AZ9 -> 816 | M9: ='Pob x Genero'!N9+'Pob x Genero'!BA9 -> 638 | N9: ='Pob x Genero'!O9+'Pob x Genero'!BB9 -> 688 | O9: ='Pob x Genero'!P9+'Pob x Genero'!BC9 -> 689 | P9: ='Pob x Genero'!Q9+'Pob x Genero'!BD9 -> 635 | Q9: ='Pob x Genero'!R9+'Pob x Genero'!BE9 -> 631 | R9: ='Pob x Genero'!S9+'Pob x Genero'!BF9 -> 642 | S9: ='Pob x Genero'!T9+'Pob x Genero'!BG9 -> 648 | T9: ='Pob x Genero'!U9+'Pob x Genero'!BH9 -> 630 | U9: ='Pob x Genero'!V9+'Pob x Genero'!BI9 -> 613 | V9: ='Pob x Genero'!W9+'Pob x Genero'!BJ9 -> 616 | W9: ='Pob x Genero'!X9+'Pob x Genero'!BK9 -> 603 | X9: ='Pob x Genero'!Y9+'Pob x Genero'!BL9 -> 596 | Y9: ='Pob x Genero'!Z9+'Pob x Genero'!BM9 -> 570 | Z9: ='Pob x Genero'!AA9+'Pob x Genero'!BN9 -> 595 | AA9: ='Pob x Genero'!AB9+'Pob x Genero'!BO9 -> 3,349 | AB9: ='Pob x Genero'!AC9+'Pob x Genero'!BP9 -> 3,685 | AC9: ='Pob x Genero'!AD9+'Pob x Genero'!BQ9 -> 3,994 | AD9: ='Pob x Genero'!AE9+'Pob x Genero'!BR9 -> 3,717 | AE9: ='Pob x Genero'!AF9+'Pob x Genero'!BS9 -> 3,804 | AF9: ='Pob x Genero'!AG9+'Pob x Genero'!BT9 -> 4,016 | AG9: ='Pob x Genero'!AH9+'Pob x Genero'!BU9 -> 3,956 | AH9: ='Pob x Genero'!AI9+'Pob x Genero'!BV9 -> 3,803 | AI9: ='Pob x Genero'!AJ9+'Pob x Genero'!BW9 -> 3,486 | AJ9: ='Pob x Genero'!AK9+'Pob x Genero'!BX9 -> 2,989 | AK9: ='Pob x Genero'!AL9+'Pob x Genero'!BY9 -> 2,343 | AL9: ='Pob x Genero'!AM9+'Pob x Genero'!BZ9 -> 1,745 | AM9: ='Pob x Genero'!AN9+'Pob x Genero'!CA9 -> 1,261 | AN9: ='Pob x Genero'!AO9+'Pob x Genero'!CB9 -> 1,369 | AO9: ='Pob x Genero'!AP9+'Pob x Genero'!CC9 -> 35 | AP9: ='Pob x Genero'!AQ9+'Pob x Genero'!CD9 -> 283 | AQ9: ='Pob x Genero'!AR9+'Pob x Genero'!CE9 -> 272 | AR9: ='Pob x Genero'!AS9+'Pob x Genero'!CF9 -> 802 | AS9: ='Pob x Genero'!AT9 -> 28,454 | AT9: =SUM('Pob x Genero'!BE9:BI9) -> 1,502 | AU9: =SUM('Pob x Genero'!BJ9:BN9) -> 1,445 | AV9: =SUM('Pob x Genero'!BO9:BT9) -> 11,187 | AW9: ='Pob x Genero'!CG9 -> 1,752 | AZ9: =F9 -> 56,005 | BA9: =SUM(G9:R9) -> 7,617 | BB9: =SUM(S9:X9) -> 3,706 | BC9: =SUM(Y9:AB9) -> 8,199 | BD9: =SUM(AC9:AH9) -> 23,290 | BE9: =SUM(AI9:AN9) -> 13,193
A10: 040102 | B10: AREQUIPA | C10: AREQUIPA | D10: AREQUIPA | E10: ALTO SELVA ALEGRE | F10: 92,580 | G10: ='Pob x Genero'!H10+'Pob x Genero'!AU10 -> 879 | H10: ='Pob x Genero'!I10+'Pob x Genero'!AV10 -> 810 | I10: ='Pob x Genero'!J10+'Pob x Genero'!AW10 -> 1,005 | J10: ='Pob x Genero'!K10+'Pob x Genero'!AX10 -> 1,281 | K10: ='Pob x Genero'!L10+'Pob x Genero'!AY10 -> 1,319 | L10: ='Pob x Genero'!M10+'Pob x Genero'!AZ10 -> 1,402 | M10: ='Pob x Genero'!N10+'Pob x Genero'!BA10 -> 1,531 | N10: ='Pob x Genero'!O10+'Pob x Genero'!BB10 -> 1,585 | O10: ='Pob x Genero'!P10+'Pob x Genero'!BC10 -> 1,570 | P10: ='Pob x Genero'!Q10+'Pob x Genero'!BD10 -> 1,494 | Q10: ='Pob x Genero'!R10+'Pob x Genero'!BE10 -> 1,464 | R10: ='Pob x Genero'!S10+'Pob x Genero'!BF10 -> 1,484 | S10: ='Pob x Genero'!T10+'Pob x Genero'!BG10 -> 1,486 | T10: ='Pob x Genero'!U10+'Pob x Genero'!BH10 -> 1,472 | U10: ='Pob x Genero'!V10+'Pob x Genero'!BI10 -> 1,391 | V10: ='Pob x Genero'!W10+'Pob x Genero'!BJ10 -> 1,277 | W10: ='Pob x Genero'!X10+'Pob x Genero'!BK10 -> 1,341 | X10: ='Pob x Genero'!Y10+'Pob x Genero'!BL10 -> 1,311 | Y10: ='Pob x Genero'!Z10+'Pob x Genero'!BM10 -> 1,236 | Z10: ='Pob x Genero'!AA10+'Pob x Genero'!BN10 -> 1,375 | AA10: ='Pob x Genero'!AB10+'Pob x Genero'!BO10 -> 7,392 | AB10: ='Pob x Genero'!AC10+'Pob x Genero'!BP10 -> 8,867 | AC10: ='Pob x Genero'!AD10+'Pob x Genero'!BQ10 -> 8,611 | AD10: ='Pob x Genero'!AE10+'Pob x Genero'!BR10 -> 7,400 | AE10: ='Pob x Genero'!AF10+'Pob x Genero'!BS10 -> 6,642 | AF10: ='Pob x Genero'!AG10+'Pob x Genero'!BT10 -> 5,831 | AG10: ='Pob x Genero'!AH10+'Pob x Genero'!BU10 -> 5,134 | AH10: ='Pob x Genero'!AI10+'Pob x Genero'!BV10 -> 4,544 | AI10: ='Pob x Genero'!AJ10+'Pob x Genero'!BW10 -> 3,827 | AJ10: ='Pob x Genero'!AK10+'Pob x Genero'!BX10 -> 2,796 | AK10: ='Pob x Genero'!AL10+'Pob x Genero'!BY10 -> 1,830 | AL10: ='Pob x Genero'!AM10+'Pob x Genero'!BZ10 -> 1,232 | AM10: ='Pob x Genero'!AN10+'Pob x Genero'!CA10 -> 837 | AN10: ='Pob x Genero'!AO10+'Pob x Genero'!CB10 -> 924 | AO10: ='Pob x Genero'!AP10+'Pob x Genero'!CC10 -> 71 | AP10: ='Pob x Genero'!AQ10+'Pob x Genero'!CD10 -> 497 | AQ10: ='Pob x Genero'!AR10+'Pob x Genero'!CE10 -> 382 | AR10: ='Pob x Genero'!AS10+'Pob x Genero'!CF10 -> 1,262 | AS10: ='Pob x Genero'!AT10 -> 47,028 | AT10: =SUM('Pob x Genero'!BE10:BI10) -> 3,537 | AU10: =SUM('Pob x Genero'!BJ10:BN10) -> 3,215 | AV10: =SUM('Pob x Genero'!BO10:BT10) -> 22,515 | AW10: ='Pob x Genero'!CG10 -> 2,425 | AZ10: 92,580 | BA10: 15,824 | BB10: 8,278 | BC10: 18,870 | BD10: 38,162 | BE10: 11,446
A11: 040103 | B11: AREQUIPA | C11: AREQUIPA | D11: AREQUIPA | E11: CAYMA | F11: 110,215 | G11: ='Pob x Genero'!H11+'Pob x Genero'!AU11 -> 1,238 | H11: ='Pob x Genero'!I11+'Pob x Genero'!AV11 -> 1,318 | I11: ='Pob x Genero'!J11+'Pob x Genero'!AW11 -> 1,231 | J11: ='Pob x Genero'!K11+'Pob x Genero'!AX11 -> 1,444 | K11: ='Pob x Genero'!L11+'Pob x Genero'!AY11 -> 1,659 | L11: ='Pob x Genero'!M11+'Pob x Genero'!AZ11 -> 1,680 | M11: ='Pob x Genero'!N11+'Pob x Genero'!BA11 -> 2,014 | N11: ='Pob x Genero'!O11+'Pob x Genero'!BB11 -> 1,976 | O11: ='Pob x Genero'!P11+'Pob x Genero'!BC11 -> 1,958 | P11: ='Pob x Genero'!Q11+'Pob x Genero'!BD11 -> 1,848 | Q11: ='Pob x Genero'!R11+'Pob x Genero'!BE11 -> 1,796 | R11: ='Pob x Genero'!S11+'Pob x Genero'!BF11 -> 1,796 | S11: ='Pob x Genero'!T11+'Pob x Genero'!BG11 -> 1,928 | T11: ='Pob x Genero'!U11+'Pob x Genero'!BH11 -> 1,776 | U11: ='Pob x Genero'!V11+'Pob x Genero'!BI11 -> 1,622 | V11: ='Pob x Genero'!W11+'Pob x Genero'!BJ11 -> 1,683 | W11: ='Pob x Genero'!X11+'Pob x Genero'!BK11 -> 1,514 | X11: ='Pob x Genero'!Y11+'Pob x Genero'!BL11 -> 1,593 | Y11: ='Pob x Genero'!Z11+'Pob x Genero'!BM11 -> 1,611 | Z11: ='Pob x Genero'!AA11+'Pob x Genero'!BN11 -> 1,576 | AA11: ='Pob x Genero'!AB11+'Pob x Genero'!BO11 -> 8,557 | AB11: ='Pob x Genero'!AC11+'Pob x Genero'!BP11 -> 9,966 | AC11: ='Pob x Genero'!AD11+'Pob x Genero'!BQ11 -> 10,456 | AD11: ='Pob x Genero'!AE11+'Pob x Genero'!BR11 -> 9,262 | AE11: ='Pob x Genero'!AF11+'Pob x Genero'!BS11 -> 7,997 | AF11: ='Pob x Genero'!AG11+'Pob x Genero'!BT11 -> 6,977 | AG11: ='Pob x Genero'!AH11+'Pob x Genero'!BU11 -> 5,827 | AH11: ='Pob x Genero'!AI11+'Pob x Genero'!BV11 -> 4,929 | AI11: ='Pob x Genero'!AJ11+'Pob x Genero'!BW11 -> 4,058 | AJ11: ='Pob x Genero'!AK11+'Pob x Genero'!BX11 -> 3,214 | AK11: ='Pob x Genero'!AL11+'Pob x Genero'!BY11 -> 2,256 | AL11: ='Pob x Genero'!AM11+'Pob x Genero'!BZ11 -> 1,587 | AM11: ='Pob x Genero'!AN11+'Pob x Genero'!CA11 -> 908 | AN11: ='Pob x Genero'!AO11+'Pob x Genero'!CB11 -> 960 | AO11: ='Pob x Genero'!AP11+'Pob x Genero'!CC11 -> 90 | AP11: ='Pob x Genero'!AQ11+'Pob x Genero'!CD11 -> 614 | AQ11: ='Pob x Genero'!AR11+'Pob x Genero'!CE11 -> 624 | AR11: ='Pob x Genero'!AS11+'Pob x Genero'!CF11 -> 1,712 | AS11: ='Pob x Genero'!AT11 -> 55,953 | AT11: =SUM('Pob x Genero'!BE11:BI11) -> 4,378 | AU11: =SUM('Pob x Genero'!BJ11:BN11) -> 3,920 | AV11: =SUM('Pob x Genero'!BO11:BT11) -> 26,733 | AW11: ='Pob x Genero'!CG11 -> 2,625 | AZ11: 110,215 | BA11: 19,958 | BB11: 10,116 | BC11: 21,710 | BD11: 45,448 | BE11: 12,983
A12: 040104 | B12: AREQUIPA | C12: AREQUIPA | D12: AREQUIPA | E12: CERRO COLORADO | F12: 244,282 | G12: ='Pob x Genero'!H12+'Pob x Genero'!AU12 -> 2,414 | H12: ='Pob x Genero'!I12+'Pob x Genero'!AV12 -> 2,457 | I12: ='Pob x Genero'!J12+'Pob x Genero'!AW12 -> 2,630 | J12: ='Pob x Genero'!K12+'Pob x Genero'!AX12 -> 3,040 | K12: ='Pob x Genero'!L12+'Pob x Genero'!AY12 -> 3,353 | L12: ='Pob x Genero'!M12+'Pob x Genero'!AZ12 -> 3,274 | M12: ='Pob x Genero'!N12+'Pob x Genero'!BA12 -> 4,625 | N12: ='Pob x Genero'!O12+'Pob x Genero'!BB12 -> 4,624 | O12: ='Pob x Genero'!P12+'Pob x Genero'!BC12 -> 5,029 | P12: ='Pob x Genero'!Q12+'Pob x Genero'!BD12 -> 4,810 | Q12: ='Pob x Genero'!R12+'Pob x Genero'!BE12 -> 4,504 | R12: ='Pob x Genero'!S12+'Pob x Genero'!BF12 -> 4,463 | S12: ='Pob x Genero'!T12+'Pob x Genero'!BG12 -> 4,515 | T12: ='Pob x Genero'!U12+'Pob x Genero'!BH12 -> 4,298 | U12: ='Pob x Genero'!V12+'Pob x Genero'!BI12 -> 3,846 | V12: ='Pob x Genero'!W12+'Pob x Genero'!BJ12 -> 3,957 | W12: ='Pob x Genero'!X12+'Pob x Genero'!BK12 -> 3,801 | X12: ='Pob x Genero'!Y12+'Pob x Genero'!BL12 -> 3,934 | Y12: ='Pob x Genero'!Z12+'Pob x Genero'!BM12 -> 3,881 | Z12: ='Pob x Genero'!AA12+'Pob x Genero'!BN12 -> 4,018 | AA12: ='Pob x Genero'!AB12+'Pob x Genero'!BO12 -> 20,686 | AB12: ='Pob x Genero'!AC12+'Pob x Genero'!BP12 -> 22,865 | AC12: ='Pob x Genero'!AD12+'Pob x Genero'!BQ12 -> 22,605 | AD12: ='Pob x Genero'!AE12+'Pob x Genero'!BR12 -> 20,399 | AE12: ='Pob x Genero'!AF12+'Pob x Genero'!BS12 -> 18,823 | AF12: ='Pob x Genero'!AG12+'Pob x Genero'!BT12 -> 15,912 | AG12: ='Pob x Genero'!AH12+'Pob x Genero'!BU12 -> 12,386 | AH12: ='Pob x Genero'!AI12+'Pob x Genero'!BV12 -> 9,778 | AI12: ='Pob x Genero'!AJ12+'Pob x Genero'!BW12 -> 7,086 | AJ12: ='Pob x Genero'!AK12+'Pob x Genero'!BX12 -> 5,729 | AK12: ='Pob x Genero'!AL12+'Pob x Genero'!BY12 -> 4,267 | AL12: ='Pob x Genero'!AM12+'Pob x Genero'!BZ12 -> 2,790 | AM12: ='Pob x Genero'!AN12+'Pob x Genero'!CA12 -> 1,803 | AN12: ='Pob x Genero'!AO12+'Pob x Genero'!CB12 -> 1,680 | AO12: ='Pob x Genero'!AP12+'Pob x Genero'!CC12 -> 197 | AP12: ='Pob x Genero'!AQ12+'Pob x Genero'!CD12 -> 1,317 | AQ12: ='Pob x Genero'!AR12+'Pob x Genero'!CE12 -> 1,097 | AR12: ='Pob x Genero'!AS12+'Pob x Genero'!CF12 -> 3,684 | AS12: ='Pob x Genero'!AT12 -> 124,587 | AT12: =SUM('Pob x Genero'!BE12:BI12) -> 10,700 | AU12: =SUM('Pob x Genero'!BJ12:BN12) -> 9,762 | AV12: =SUM('Pob x Genero'!BO12:BT12) -> 61,774 | AW12: ='Pob x Genero'!CG12 -> 6,609 | AZ12: 244,282 | BA12: 45,223 | BB12: 24,351 | BC12: 51,450 | BD12: 99,903 | BE12: 23,355
A13: 040105 | B13: AREQUIPA | C13: AREQUIPA | D13: AREQUIPA | E13: CHARACATO | F13: 18,293 | G13: ='Pob x Genero'!H13+'Pob x Genero'!AU13 -> 167 | H13: ='Pob x Genero'!I13+'Pob x Genero'!AV13 -> 194 | I13: ='Pob x Genero'!J13+'Pob x Genero'!AW13 -> 165 | J13: ='Pob x Genero'!K13+'Pob x Genero'!AX13 -> 194 | K13: ='Pob x Genero'!L13+'Pob x Genero'!AY13 -> 213 | L13: ='Pob x Genero'!M13+'Pob x Genero'!AZ13 -> 200 | M13: ='Pob x Genero'!N13+'Pob x Genero'!BA13 -> 376 | N13: ='Pob x Genero'!O13+'Pob x Genero'!BB13 -> 334 | O13: ='Pob x Genero'!P13+'Pob x Genero'!BC13 -> 280 | P13: ='Pob x Genero'!Q13+'Pob x Genero'!BD13 -> 288 | Q13: ='Pob x Genero'!R13+'Pob x Genero'!BE13 -> 299 | R13: ='Pob x Genero'!S13+'Pob x Genero'!BF13 -> 294 | S13: ='Pob x Genero'!T13+'Pob x Genero'!BG13 -> 326 | T13: ='Pob x Genero'!U13+'Pob x Genero'!BH13 -> 309 | U13: ='Pob x Genero'!V13+'Pob x Genero'!BI13 -> 267 | V13: ='Pob x Genero'!W13+'Pob x Genero'!BJ13 -> 268 | W13: ='Pob x Genero'!X13+'Pob x Genero'!BK13 -> 272 | X13: ='Pob x Genero'!Y13+'Pob x Genero'!BL13 -> 243 | Y13: ='Pob x Genero'!Z13+'Pob x Genero'!BM13 -> 270 | Z13: ='Pob x Genero'!AA13+'Pob x Genero'!BN13 -> 333 | AA13: ='Pob x Genero'!AB13+'Pob x Genero'!BO13 -> 1,444 | AB13: ='Pob x Genero'!AC13+'Pob x Genero'!BP13 -> 1,500 | AC13: ='Pob x Genero'!AD13+'Pob x Genero'!BQ13 -> 1,517 | AD13: ='Pob x Genero'!AE13+'Pob x Genero'!BR13 -> 1,525 | AE13: ='Pob x Genero'!AF13+'Pob x Genero'!BS13 -> 1,502 | AF13: ='Pob x Genero'!AG13+'Pob x Genero'!BT13 -> 1,326 | AG13: ='Pob x Genero'!AH13+'Pob x Genero'!BU13 -> 1,031 | AH13: ='Pob x Genero'!AI13+'Pob x Genero'!BV13 -> 859 | AI13: ='Pob x Genero'!AJ13+'Pob x Genero'!BW13 -> 655 | AJ13: ='Pob x Genero'!AK13+'Pob x Genero'!BX13 -> 568 | AK13: ='Pob x Genero'!AL13+'Pob x Genero'!BY13 -> 406 | AL13: ='Pob x Genero'!AM13+'Pob x Genero'!BZ13 -> 307 | AM13: ='Pob x Genero'!AN13+'Pob x Genero'!CA13 -> 198 | AN13: ='Pob x Genero'!AO13+'Pob x Genero'!CB13 -> 163 | AO13: ='Pob x Genero'!AP13+'Pob x Genero'!CC13 -> 6 | AP13: ='Pob x Genero'!AQ13+'Pob x Genero'!CD13 -> 71 | AQ13: ='Pob x Genero'!AR13+'Pob x Genero'!CE13 -> 96 | AR13: ='Pob x Genero'!AS13+'Pob x Genero'!CF13 -> 227 | AS13: ='Pob x Genero'!AT13 -> 9,281 | AT13: =SUM('Pob x Genero'!BE13:BI13) -> 733 | AU13: =SUM('Pob x Genero'!BJ13:BN13) -> 689 | AV13: =SUM('Pob x Genero'!BO13:BT13) -> 4,466 | AW13: ='Pob x Genero'!CG13 -> 369 | AZ13: 18,293 | BA13: 3,004 | BB13: 1,685 | BC13: 3,547 | BD13: 7,760 | BE13: 2,297
A14: 040106 | B14: AREQUIPA | C14: AREQUIPA | D14: AREQUIPA | E14: CHIGUATA | F14: 3,387 | G14: ='Pob x Genero'!H14+'Pob x Genero'!AU14 -> 54 | H14: ='Pob x Genero'!I14+'Pob x Genero'!AV14 -> 49 | I14: ='Pob x Genero'!J14+'Pob x Genero'!AW14 -> 53 | J14: ='Pob x Genero'!K14+'Pob x Genero'!AX14 -> 69 | K14: ='Pob x Genero'!L14+'Pob x Genero'!AY14 -> 60 | L14: ='Pob x Genero'!M14+'Pob x Genero'!AZ14 -> 46 | M14: ='Pob x Genero'!N14+'Pob x Genero'!BA14 -> 48 | N14: ='Pob x Genero'!O14+'Pob x Genero'!BB14 -> 57 | O14: ='Pob x Genero'!P14+'Pob x Genero'!BC14 -> 53 | P14: ='Pob x Genero'!Q14+'Pob x Genero'!BD14 -> 49 | Q14: ='Pob x Genero'!R14+'Pob x Genero'!BE14 -> 42 | R14: ='Pob x Genero'!S14+'Pob x Genero'!BF14 -> 57 | S14: ='Pob x Genero'!T14+'Pob x Genero'!BG14 -> 40 | T14: ='Pob x Genero'!U14+'Pob x Genero'!BH14 -> 35 | U14: ='Pob x Genero'!V14+'Pob x Genero'!BI14 -> 46 | V14: ='Pob x Genero'!W14+'Pob x Genero'!BJ14 -> 48 | W14: ='Pob x Genero'!X14+'Pob x Genero'!BK14 -> 26 | X14: ='Pob x Genero'!Y14+'Pob x Genero'!BL14 -> 41 | Y14: ='Pob x Genero'!Z14+'Pob x Genero'!BM14 -> 42 | Z14: ='Pob x Genero'!AA14+'Pob x Genero'!BN14 -> 40 | AA14: ='Pob x Genero'!AB14+'Pob x Genero'!BO14 -> 235 | AB14: ='Pob x Genero'!AC14+'Pob x Genero'!BP14 -> 269 | AC14: ='Pob x Genero'!AD14+'Pob x Genero'!BQ14 -> 305 | AD14: ='Pob x Genero'!AE14+'Pob x Genero'!BR14 -> 273 | AE14: ='Pob x Genero'!AF14+'Pob x Genero'!BS14 -> 238 | AF14: ='Pob x Genero'!AG14+'Pob x Genero'!BT14 -> 215 | AG14: ='Pob x Genero'!AH14+'Pob x Genero'!BU14 -> 197 | AH14: ='Pob x Genero'!AI14+'Pob x Genero'!BV14 -> 169 | AI14: ='Pob x Genero'!AJ14+'Pob x Genero'!BW14 -> 129 | AJ14: ='Pob x Genero'!AK14+'Pob x Genero'!BX14 -> 133 | AK14: ='Pob x Genero'!AL14+'Pob x Genero'!BY14 -> 105 | AL14: ='Pob x Genero'!AM14+'Pob x Genero'!BZ14 -> 65 | AM14: ='Pob x Genero'!AN14+'Pob x Genero'!CA14 -> 48 | AN14: ='Pob x Genero'!AO14+'Pob x Genero'!CB14 -> 51 | AO14: ='Pob x Genero'!AP14+'Pob x Genero'!CC14 -> 8 | AP14: ='Pob x Genero'!AQ14+'Pob x Genero'!CD14 -> 22 | AQ14: ='Pob x Genero'!AR14+'Pob x Genero'!CE14 -> 32 | AR14: ='Pob x Genero'!AS14+'Pob x Genero'!CF14 -> 83 | AS14: ='Pob x Genero'!AT14 -> 1,707 | AT14: =SUM('Pob x Genero'!BE14:BI14) -> 105 | AU14: =SUM('Pob x Genero'!BJ14:BN14) -> 96 | AV14: =SUM('Pob x Genero'!BO14:BT14) -> 798 | AW14: ='Pob x Genero'!CG14 -> 170 | AZ14: 3,387 | BA14: 637 | BB14: 236 | BC14: 586 | BD14: 1,397 | BE14: 531
A15: 040107 | B15: AREQUIPA | C15: AREQUIPA | D15: AREQUIPA | E15: JACOBO HUNTER | F15: 54,617 | G15: ='Pob x Genero'!H15+'Pob x Genero'!AU15 -> 557 | H15: ='Pob x Genero'!I15+'Pob x Genero'!AV15 -> 584 | I15: ='Pob x Genero'!J15+'Pob x Genero'!AW15 -> 590 | J15: ='Pob x Genero'!K15+'Pob x Genero'!AX15 -> 709 | K15: ='Pob x Genero'!L15+'Pob x Genero'!AY15 -> 747 | L15: ='Pob x Genero'!M15+'Pob x Genero'!AZ15 -> 770 | M15: ='Pob x Genero'!N15+'Pob x Genero'!BA15 -> 992 | N15: ='Pob x Genero'!O15+'Pob x Genero'!BB15 -> 960 | O15: ='Pob x Genero'!P15+'Pob x Genero'!BC15 -> 942 | P15: ='Pob x Genero'!Q15+'Pob x Genero'!BD15 -> 915 | Q15: ='Pob x Genero'!R15+'Pob x Genero'!BE15 -> 863 | R15: ='Pob x Genero'!S15+'Pob x Genero'!BF15 -> 847 | S15: ='Pob x Genero'!T15+'Pob x Genero'!BG15 -> 931 | T15: ='Pob x Genero'!U15+'Pob x Genero'!BH15 -> 914 | U15: ='Pob x Genero'!V15+'Pob x Genero'!BI15 -> 767 | V15: ='Pob x Genero'!W15+'Pob x Genero'!BJ15 -> 786 | W15: ='Pob x Genero'!X15+'Pob x Genero'!BK15 -> 819 | X15: ='Pob x Genero'!Y15+'Pob x Genero'!BL15 -> 826 | Y15: ='Pob x Genero'!Z15+'Pob x Genero'!BM15 -> 748 | Z15: ='Pob x Genero'!AA15+'Pob x Genero'!BN15 -> 753 | AA15: ='Pob x Genero'!AB15+'Pob x Genero'!BO15 -> 4,209 | AB15: ='Pob x Genero'!AC15+'Pob x Genero'!BP15 -> 4,773 | AC15: ='Pob x Genero'!AD15+'Pob x Genero'!BQ15 -> 4,586 | AD15: ='Pob x Genero'!AE15+'Pob x Genero'!BR15 -> 4,493 | AE15: ='Pob x Genero'!AF15+'Pob x Genero'!BS15 -> 4,207 | AF15: ='Pob x Genero'!AG15+'Pob x Genero'!BT15 -> 3,783 | AG15: ='Pob x Genero'!AH15+'Pob x Genero'!BU15 -> 3,132 | AH15: ='Pob x Genero'!AI15+'Pob x Genero'!BV15 -> 2,598 | AI15: ='Pob x Genero'!AJ15+'Pob x Genero'!BW15 -> 2,013 | AJ15: ='Pob x Genero'!AK15+'Pob x Genero'!BX15 -> 1,678 | AK15: ='Pob x Genero'!AL15+'Pob x Genero'!BY15 -> 1,184 | AL15: ='Pob x Genero'!AM15+'Pob x Genero'!BZ15 -> 878 | AM15: ='Pob x Genero'!AN15+'Pob x Genero'!CA15 -> 531 | AN15: ='Pob x Genero'!AO15+'Pob x Genero'!CB15 -> 532 | AO15: ='Pob x Genero'!AP15+'Pob x Genero'!CC15 -> 38 | AP15: ='Pob x Genero'!AQ15+'Pob x Genero'!CD15 -> 284 | AQ15: ='Pob x Genero'!AR15+'Pob x Genero'!CE15 -> 273 | AR15: ='Pob x Genero'!AS15+'Pob x Genero'!CF15 -> 759 | AS15: ='Pob x Genero'!AT15 -> 27,727 | AT15: =SUM('Pob x Genero'!BE15:BI15) -> 2,145 | AU15: =SUM('Pob x Genero'!BJ15:BN15) -> 2,010 | AV15: =SUM('Pob x Genero'!BO15:BT15) -> 12,987 | AW15: ='Pob x Genero'!CG15 -> 1,397 | AZ15: 54,617 | BA15: 9,476 | BB15: 5,043 | BC15: 10,483 | BD15: 22,799 | BE15: 6,816
A16: 040108 | B16: AREQUIPA | C16: AREQUIPA | D16: AREQUIPA | E16: LA JOYA | F16: 42,239 | G16: ='Pob x Genero'!H16+'Pob x Genero'!AU16 -> 546 | H16: ='Pob x Genero'!I16+'Pob x Genero'!AV16 -> 591 | I16: ='Pob x Genero'!J16+'Pob x Genero'!AW16 -> 598 | J16: ='Pob x Genero'!K16+'Pob x Genero'!AX16 -> 620 | K16: ='Pob x Genero'!L16+'Pob x Genero'!AY16 -> 598 | L16: ='Pob x Genero'!M16+'Pob x Genero'!AZ16 -> 649 | M16: ='Pob x Genero'!N16+'Pob x Genero'!BA16 -> 737 | N16: ='Pob x Genero'!O16+'Pob x Genero'!BB16 -> 672 | O16: ='Pob x Genero'!P16+'Pob x Genero'!BC16 -> 796 | P16: ='Pob x Genero'!Q16+'Pob x Genero'!BD16 -> 818 | Q16: ='Pob x Genero'!R16+'Pob x Genero'!BE16 -> 779 | R16: ='Pob x Genero'!S16+'Pob x Genero'!BF16 -> 731 | S16: ='Pob x Genero'!T16+'Pob x Genero'!BG16 -> 773 | T16: ='Pob x Genero'!U16+'Pob x Genero'!BH16 -> 727 | U16: ='Pob x Genero'!V16+'Pob x Genero'!BI16 -> 741 | V16: ='Pob x Genero'!W16+'Pob x Genero'!BJ16 -> 719 | W16: ='Pob x Genero'!X16+'Pob x Genero'!BK16 -> 748 | X16: ='Pob x Genero'!Y16+'Pob x Genero'!BL16 -> 736 | Y16: ='Pob x Genero'!Z16+'Pob x Genero'!BM16 -> 763 | Z16: ='Pob x Genero'!AA16+'Pob x Genero'!BN16 -> 742 | AA16: ='Pob x Genero'!AB16+'Pob x Genero'!BO16 -> 3,597 | AB16: ='Pob x Genero'!AC16+'Pob x Genero'!BP16 -> 4,029 | AC16: ='Pob x Genero'!AD16+'Pob x Genero'!BQ16 -> 3,594 | AD16: ='Pob x Genero'!AE16+'Pob x Genero'!BR16 -> 3,431 | AE16: ='Pob x Genero'!AF16+'Pob x Genero'!BS16 -> 2,858 | AF16: ='Pob x Genero'!AG16+'Pob x Genero'!BT16 -> 2,667 | AG16: ='Pob x Genero'!AH16+'Pob x Genero'!BU16 -> 2,018 | AH16: ='Pob x Genero'!AI16+'Pob x Genero'!BV16 -> 1,705 | AI16: ='Pob x Genero'!AJ16+'Pob x Genero'!BW16 -> 1,325 | AJ16: ='Pob x Genero'!AK16+'Pob x Genero'!BX16 -> 1,102 | AK16: ='Pob x Genero'!AL16+'Pob x Genero'!BY16 -> 685 | AL16: ='Pob x Genero'!AM16+'Pob x Genero'!BZ16 -> 519 | AM16: ='Pob x Genero'!AN16+'Pob x Genero'!CA16 -> 330 | AN16: ='Pob x Genero'!AO16+'Pob x Genero'!CB16 -> 295 | AO16: ='Pob x Genero'!AP16+'Pob x Genero'!CC16 -> 35 | AP16: ='Pob x Genero'!AQ16+'Pob x Genero'!CD16 -> 228 | AQ16: ='Pob x Genero'!AR16+'Pob x Genero'!CE16 -> 318 | AR16: ='Pob x Genero'!AS16+'Pob x Genero'!CF16 -> 808 | AS16: ='Pob x Genero'!AT16 -> 21,473 | AT16: =SUM('Pob x Genero'!BE16:BI16) -> 1,946 | AU16: =SUM('Pob x Genero'!BJ16:BN16) -> 1,904 | AV16: =SUM('Pob x Genero'!BO16:BT16) -> 10,279 | AW16: ='Pob x Genero'!CG16 -> 1,115 | AZ16: 42,239 | BA16: 8,135 | BB16: 4,444 | BC16: 9,131 | BD16: 16,273 | BE16: 4,256
A17: 040109 | B17: AREQUIPA | C17: AREQUIPA | D17: AREQUIPA | E17: MARIANO MELGAR | F17: 68,358 | G17: ='Pob x Genero'!H17+'Pob x Genero'!AU17 -> 776 | H17: ='Pob x Genero'!I17+'Pob x Genero'!AV17 -> 788 | I17: ='Pob x Genero'!J17+'Pob x Genero'!AW17 -> 739 | J17: ='Pob x Genero'!K17+'Pob x Genero'!AX17 -> 821 | K17: ='Pob x Genero'!L17+'Pob x Genero'!AY17 -> 890 | L17: ='Pob x Genero'!M17+'Pob x Genero'!AZ17 -> 924 | M17: ='Pob x Genero'!N17+'Pob x Genero'!BA17 -> 1,096 | N17: ='Pob x Genero'!O17+'Pob x Genero'!BB17 -> 1,069 | O17: ='Pob x Genero'!P17+'Pob x Genero'!BC17 -> 1,120 | P17: ='Pob x Genero'!Q17+'Pob x Genero'!BD17 -> 1,094 | Q17: ='Pob x Genero'!R17+'Pob x Genero'!BE17 -> 1,021 | R17: ='Pob x Genero'!S17+'Pob x Genero'!BF17 -> 1,050 | S17: ='Pob x Genero'!T17+'Pob x Genero'!BG17 -> 1,073 | T17: ='Pob x Genero'!U17+'Pob x Genero'!BH17 -> 1,060 | U17: ='Pob x Genero'!V17+'Pob x Genero'!BI17 -> 1,030 | V17: ='Pob x Genero'!W17+'Pob x Genero'!BJ17 -> 1,001 | W17: ='Pob x Genero'!X17+'Pob x Genero'!BK17 -> 1,012 | X17: ='Pob x Genero'!Y17+'Pob x Genero'!BL17 -> 943 | Y17: ='Pob x Genero'!Z17+'Pob x Genero'!BM17 -> 960 | Z17: ='Pob x Genero'!AA17+'Pob x Genero'!BN17 -> 1,010 | AA17: ='Pob x Genero'!AB17+'Pob x Genero'!BO17 -> 5,163 | AB17: ='Pob x Genero'!AC17+'Pob x Genero'!BP17 -> 5,932 | AC17: ='Pob x Genero'!AD17+'Pob x Genero'!BQ17 -> 5,914 | AD17: ='Pob x Genero'!AE17+'Pob x Genero'!BR17 -> 5,218 | AE17: ='Pob x Genero'!AF17+'Pob x Genero'!BS17 -> 5,001 | AF17: ='Pob x Genero'!AG17+'Pob x Genero'!BT17 -> 4,688 | AG17: ='Pob x Genero'!AH17+'Pob x Genero'!BU17 -> 4,064 | AH17: ='Pob x Genero'!AI17+'Pob x Genero'!BV17 -> 3,458 | AI17: ='Pob x Genero'!AJ17+'Pob x Genero'!BW17 -> 2,839 | AJ17: ='Pob x Genero'!AK17+'Pob x Genero'!BX17 -> 2,263 | AK17: ='Pob x Genero'!AL17+'Pob x Genero'!BY17 -> 1,652 | AL17: ='Pob x Genero'!AM17+'Pob x Genero'!BZ17 -> 1,126 | AM17: ='Pob x Genero'!AN17+'Pob x Genero'!CA17 -> 756 | AN17: ='Pob x Genero'!AO17+'Pob x Genero'!CB17 -> 807 | AO17: ='Pob x Genero'!AP17+'Pob x Genero'!CC17 -> 68 | AP17: ='Pob x Genero'!AQ17+'Pob x Genero'!CD17 -> 400 | AQ17: ='Pob x Genero'!AR17+'Pob x Genero'!CE17 -> 376 | AR17: ='Pob x Genero'!AS17+'Pob x Genero'!CF17 -> 1,066 | AS17: ='Pob x Genero'!AT17 -> 34,681 | AT17: =SUM('Pob x Genero'!BE17:BI17) -> 2,604 | AU17: =SUM('Pob x Genero'!BJ17:BN17) -> 2,479 | AV17: =SUM('Pob x Genero'!BO17:BT17) -> 15,978 | AW17: ='Pob x Genero'!CG17 -> 1,715 | AZ17: 68,358 | BA17: 11,388 | BB17: 6,119 | BC17: 13,065 | BD17: 28,343 | BE17: 9,443
A18: 040110 | B18: AREQUIPA | C18: AREQUIPA | D18: AREQUIPA | E18: MIRAFLORES | F18: 67,421 | G18: ='Pob x Genero'!H18+'Pob x Genero'!AU18 -> 694 | H18: ='Pob x Genero'!I18+'Pob x Genero'!AV18 -> 728 | I18: ='Pob x Genero'!J18+'Pob x Genero'!AW18 -> 655 | J18: ='Pob x Genero'!K18+'Pob x Genero'!AX18 -> 774 | K18: ='Pob x Genero'!L18+'Pob x Genero'!AY18 -> 898 | L18: ='Pob x Genero'!M18+'Pob x Genero'!AZ18 -> 1,015 | M18: ='Pob x Genero'!N18+'Pob x Genero'!BA18 -> 1,027 | N18: ='Pob x Genero'!O18+'Pob x Genero'!BB18 -> 1,065 | O18: ='Pob x Genero'!P18+'Pob x Genero'!BC18 -> 1,130 | P18: ='Pob x Genero'!Q18+'Pob x Genero'!BD18 -> 991 | Q18: ='Pob x Genero'!R18+'Pob x Genero'!BE18 -> 1,029 | R18: ='Pob x Genero'!S18+'Pob x Genero'!BF18 -> 988 | S18: ='Pob x Genero'!T18+'Pob x Genero'!BG18 -> 985 | T18: ='Pob x Genero'!U18+'Pob x Genero'!BH18 -> 984 | U18: ='Pob x Genero'!V18+'Pob x Genero'!BI18 -> 938 | V18: ='Pob x Genero'!W18+'Pob x Genero'!BJ18 -> 862 | W18: ='Pob x Genero'!X18+'Pob x Genero'!BK18 -> 927 | X18: ='Pob x Genero'!Y18+'Pob x Genero'!BL18 -> 885 | Y18: ='Pob x Genero'!Z18+'Pob x Genero'!BM18 -> 908 | Z18: ='Pob x Genero'!AA18+'Pob x Genero'!BN18 -> 977 | AA18: ='Pob x Genero'!AB18+'Pob x Genero'!BO18 -> 5,186 | AB18: ='Pob x Genero'!AC18+'Pob x Genero'!BP18 -> 5,886 | AC18: ='Pob x Genero'!AD18+'Pob x Genero'!BQ18 -> 5,814 | AD18: ='Pob x Genero'!AE18+'Pob x Genero'!BR18 -> 5,236 | AE18: ='Pob x Genero'!AF18+'Pob x Genero'!BS18 -> 5,156 | AF18: ='Pob x Genero'!AG18+'Pob x Genero'!BT18 -> 4,800 | AG18: ='Pob x Genero'!AH18+'Pob x Genero'!BU18 -> 4,136 | AH18: ='Pob x Genero'!AI18+'Pob x Genero'!BV18 -> 3,414 | AI18: ='Pob x Genero'!AJ18+'Pob x Genero'!BW18 -> 2,817 | AJ18: ='Pob x Genero'!AK18+'Pob x Genero'!BX18 -> 2,187 | AK18: ='Pob x Genero'!AL18+'Pob x Genero'!BY18 -> 1,591 | AL18: ='Pob x Genero'!AM18+'Pob x Genero'!BZ18 -> 1,136 | AM18: ='Pob x Genero'!AN18+'Pob x Genero'!CA18 -> 760 | AN18: ='Pob x Genero'!AO18+'Pob x Genero'!CB18 -> 842 | AO18: ='Pob x Genero'!AP18+'Pob x Genero'!CC18 -> 47 | AP18: ='Pob x Genero'!AQ18+'Pob x Genero'!CD18 -> 330 | AQ18: ='Pob x Genero'!AR18+'Pob x Genero'!CE18 -> 364 | AR18: ='Pob x Genero'!AS18+'Pob x Genero'!CF18 -> 1,004 | AS18: ='Pob x Genero'!AT18 -> 34,188 | AT18: =SUM('Pob x Genero'!BE18:BI18) -> 2,487 | AU18: =SUM('Pob x Genero'!BJ18:BN18) -> 2,342 | AV18: =SUM('Pob x Genero'!BO18:BT18) -> 16,033 | AW18: ='Pob x Genero'!CG18 -> 1,709 | AZ18: 67,421 | BA18: 10,994 | BB18: 5,581 | BC18: 12,957 | BD18: 28,556 | BE18: 9,333
A19: 040111 | B19: AREQUIPA | C19: AREQUIPA | D19: AREQUIPA | E19: MOLLEBAYA | F19: 8,012 | G19: ='Pob x Genero'!H19+'Pob x Genero'!AU19 -> 70 | H19: ='Pob x Genero'!I19+'Pob x Genero'!AV19 -> 79 | I19: ='Pob x Genero'!J19+'Pob x Genero'!AW19 -> 61 | J19: ='Pob x Genero'!K19+'Pob x Genero'!AX19 -> 72 | K19: ='Pob x Genero'!L19+'Pob x Genero'!AY19 -> 64 | L19: ='Pob x Genero'!M19+'Pob x Genero'!AZ19 -> 69 | M19: ='Pob x Genero'!N19+'Pob x Genero'!BA19 -> 114 | N19: ='Pob x Genero'!O19+'Pob x Genero'!BB19 -> 173 | O19: ='Pob x Genero'!P19+'Pob x Genero'!BC19 -> 163 | P19: ='Pob x Genero'!Q19+'Pob x Genero'!BD19 -> 134 | Q19: ='Pob x Genero'!R19+'Pob x Genero'!BE19 -> 126 | R19: ='Pob x Genero'!S19+'Pob x Genero'!BF19 -> 129 | S19: ='Pob x Genero'!T19+'Pob x Genero'!BG19 -> 103 | T19: ='Pob x Genero'!U19+'Pob x Genero'!BH19 -> 111 | U19: ='Pob x Genero'!V19+'Pob x Genero'!BI19 -> 125 | V19: ='Pob x Genero'!W19+'Pob x Genero'!BJ19 -> 124 | W19: ='Pob x Genero'!X19+'Pob x Genero'!BK19 -> 121 | X19: ='Pob x Genero'!Y19+'Pob x Genero'!BL19 -> 111 | Y19: ='Pob x Genero'!Z19+'Pob x Genero'!BM19 -> 125 | Z19: ='Pob x Genero'!AA19+'Pob x Genero'!BN19 -> 84 | AA19: ='Pob x Genero'!AB19+'Pob x Genero'!BO19 -> 496 | AB19: ='Pob x Genero'!AC19+'Pob x Genero'!BP19 -> 702 | AC19: ='Pob x Genero'!AD19+'Pob x Genero'!BQ19 -> 884 | AD19: ='Pob x Genero'!AE19+'Pob x Genero'!BR19 -> 783 | AE19: ='Pob x Genero'!AF19+'Pob x Genero'!BS19 -> 677 | AF19: ='Pob x Genero'!AG19+'Pob x Genero'!BT19 -> 624 | AG19: ='Pob x Genero'!AH19+'Pob x Genero'!BU19 -> 366 | AH19: ='Pob x Genero'!AI19+'Pob x Genero'!BV19 -> 355 | AI19: ='Pob x Genero'!AJ19+'Pob x Genero'!BW19 -> 309 | AJ19: ='Pob x Genero'!AK19+'Pob x Genero'!BX19 -> 234 | AK19: ='Pob x Genero'!AL19+'Pob x Genero'!BY19 -> 177 | AL19: ='Pob x Genero'!AM19+'Pob x Genero'!BZ19 -> 122 | AM19: ='Pob x Genero'!AN19+'Pob x Genero'!CA19 -> 62 | AN19: ='Pob x Genero'!AO19+'Pob x Genero'!CB19 -> 63 | AO19: ='Pob x Genero'!AP19+'Pob x Genero'!CC19 -> 2 | AP19: ='Pob x Genero'!AQ19+'Pob x Genero'!CD19 -> 36 | AQ19: ='Pob x Genero'!AR19+'Pob x Genero'!CE19 -> 34 | AR19: ='Pob x Genero'!AS19+'Pob x Genero'!CF19 -> 103 | AS19: ='Pob x Genero'!AT19 -> 4,067 | AT19: =SUM('Pob x Genero'!BE19:BI19) -> 299 | AU19: =SUM('Pob x Genero'!BJ19:BN19) -> 280 | AV19: =SUM('Pob x Genero'!BO19:BT19) -> 2,163 | AW19: ='Pob x Genero'!CG19 -> 177 | AZ19: 8,012 | BA19: 1,254 | BB19: 695 | BC19: 1,407 | BD19: 3,689 | BE19: 967
A20: 040112 | B20: AREQUIPA | C20: AREQUIPA | D20: AREQUIPA | E20: PAUCARPATA | F20: 140,772 | G20: ='Pob x Genero'!H20+'Pob x Genero'!AU20 -> 1,631 | H20: ='Pob x Genero'!I20+'Pob x Genero'!AV20 -> 1,696 | I20: ='Pob x Genero'!J20+'Pob x Genero'!AW20 -> 1,564 | J20: ='Pob x Genero'!K20+'Pob x Genero'!AX20 -> 1,765 | K20: ='Pob x Genero'!L20+'Pob x Genero'!AY20 -> 2,112 | L20: ='Pob x Genero'!M20+'Pob x Genero'!AZ20 -> 2,240 | M20: ='Pob x Genero'!N20+'Pob x Genero'!BA20 -> 2,387 | N20: ='Pob x Genero'!O20+'Pob x Genero'!BB20 -> 2,464 | O20: ='Pob x Genero'!P20+'Pob x Genero'!BC20 -> 2,393 | P20: ='Pob x Genero'!Q20+'Pob x Genero'!BD20 -> 2,325 | Q20: ='Pob x Genero'!R20+'Pob x Genero'!BE20 -> 2,296 | R20: ='Pob x Genero'!S20+'Pob x Genero'!BF20 -> 2,311 | S20: ='Pob x Genero'!T20+'Pob x Genero'!BG20 -> 2,378 | T20: ='Pob x Genero'!U20+'Pob x Genero'!BH20 -> 2,337 | U20: ='Pob x Genero'!V20+'Pob x Genero'!BI20 -> 2,157 | V20: ='Pob x Genero'!W20+'Pob x Genero'!BJ20 -> 2,153 | W20: ='Pob x Genero'!X20+'Pob x Genero'!BK20 -> 2,184 | X20: ='Pob x Genero'!Y20+'Pob x Genero'!BL20 -> 2,083 | Y20: ='Pob x Genero'!Z20+'Pob x Genero'!BM20 -> 2,075 | Z20: ='Pob x Genero'!AA20+'Pob x Genero'!BN20 -> 2,078 | AA20: ='Pob x Genero'!AB20+'Pob x Genero'!BO20 -> 10,701 | AB20: ='Pob x Genero'!AC20+'Pob x Genero'!BP20 -> 11,915 | AC20: ='Pob x Genero'!AD20+'Pob x Genero'!BQ20 -> 11,683 | AD20: ='Pob x Genero'!AE20+'Pob x Genero'!BR20 -> 10,943 | AE20: ='Pob x Genero'!AF20+'Pob x Genero'!BS20 -> 10,729 | AF20: ='Pob x Genero'!AG20+'Pob x Genero'!BT20 -> 9,925 | AG20: ='Pob x Genero'!AH20+'Pob x Genero'!BU20 -> 8,298 | AH20: ='Pob x Genero'!AI20+'Pob x Genero'!BV20 -> 6,379 | AI20: ='Pob x Genero'!AJ20+'Pob x Genero'!BW20 -> 4,826 | AJ20: ='Pob x Genero'!AK20+'Pob x Genero'!BX20 -> 4,095 | AK20: ='Pob x Genero'!AL20+'Pob x Genero'!BY20 -> 3,161 | AL20: ='Pob x Genero'!AM20+'Pob x Genero'!BZ20 -> 2,486 | AM20: ='Pob x Genero'!AN20+'Pob x Genero'!CA20 -> 1,566 | AN20: ='Pob x Genero'!AO20+'Pob x Genero'!CB20 -> 1,436 | AO20: ='Pob x Genero'!AP20+'Pob x Genero'!CC20 -> 104 | AP20: ='Pob x Genero'!AQ20+'Pob x Genero'!CD20 -> 793 | AQ20: ='Pob x Genero'!AR20+'Pob x Genero'!CE20 -> 838 | AR20: ='Pob x Genero'!AS20+'Pob x Genero'!CF20 -> 2,163 | AS20: ='Pob x Genero'!AT20 -> 71,362 | AT20: =SUM('Pob x Genero'!BE20:BI20) -> 5,684 | AU20: =SUM('Pob x Genero'!BJ20:BN20) -> 5,356 | AV20: =SUM('Pob x Genero'!BO20:BT20) -> 32,861 | AW20: ='Pob x Genero'!CG20 -> 3,488 | AZ20: 140,772 | BA20: 25,184 | BB20: 13,292 | BC20: 26,769 | BD20: 57,957 | BE20: 17,570
A21: 040113 | B21: AREQUIPA | C21: AREQUIPA | D21: AREQUIPA | E21: POCSI | F21: 471 | G21: ='Pob x Genero'!H21+'Pob x Genero'!AU21 -> 9 | H21: ='Pob x Genero'!I21+'Pob x Genero'!AV21 -> 5 | I21: ='Pob x Genero'!J21+'Pob x Genero'!AW21 -> 2 | J21: ='Pob x Genero'!K21+'Pob x Genero'!AX21 -> 9 | K21: ='Pob x Genero'!L21+'Pob x Genero'!AY21 -> 10 | L21: ='Pob x Genero'!M21+'Pob x Genero'!AZ21 -> 6 | M21: ='Pob x Genero'!N21+'Pob x Genero'!BA21 -> 2 | N21: ='Pob x Genero'!O21+'Pob x Genero'!BB21 -> 2 | O21: ='Pob x Genero'!P21+'Pob x Genero'!BC21 -> 2 | P21: ='Pob x Genero'!Q21+'Pob x Genero'!BD21 -> 2 | Q21: ='Pob x Genero'!R21+'Pob x Genero'!BE21 -> 3 | R21: ='Pob x Genero'!S21+'Pob x Genero'!BF21 -> 2 | S21: ='Pob x Genero'!T21+'Pob x Genero'!BG21 -> 3 | T21: ='Pob x Genero'!U21+'Pob x Genero'!BH21 -> 5 | U21: ='Pob x Genero'!V21+'Pob x Genero'!BI21 -> 3 | V21: ='Pob x Genero'!W21+'Pob x Genero'!BJ21 -> 3 | W21: ='Pob x Genero'!X21+'Pob x Genero'!BK21 -> 3 | X21: ='Pob x Genero'!Y21+'Pob x Genero'!BL21 -> 3 | Y21: ='Pob x Genero'!Z21+'Pob x Genero'!BM21 -> 5 | Z21: ='Pob x Genero'!AA21+'Pob x Genero'!BN21 -> 4 | AA21: ='Pob x Genero'!AB21+'Pob x Genero'!BO21 -> 24 | AB21: ='Pob x Genero'!AC21+'Pob x Genero'!BP21 -> 40 | AC21: ='Pob x Genero'!AD21+'Pob x Genero'!BQ21 -> 44 | AD21: ='Pob x Genero'!AE21+'Pob x Genero'!BR21 -> 34 | AE21: ='Pob x Genero'!AF21+'Pob x Genero'!BS21 -> 37 | AF21: ='Pob x Genero'!AG21+'Pob x Genero'!BT21 -> 39 | AG21: ='Pob x Genero'!AH21+'Pob x Genero'!BU21 -> 34 | AH21: ='Pob x Genero'!AI21+'Pob x Genero'!BV21 -> 30 | AI21: ='Pob x Genero'!AJ21+'Pob x Genero'!BW21 -> 28 | AJ21: ='Pob x Genero'!AK21+'Pob x Genero'!BX21 -> 21 | AK21: ='Pob x Genero'!AL21+'Pob x Genero'!BY21 -> 17 | AL21: ='Pob x Genero'!AM21+'Pob x Genero'!BZ21 -> 14 | AM21: ='Pob x Genero'!AN21+'Pob x Genero'!CA21 -> 15 | AN21: ='Pob x Genero'!AO21+'Pob x Genero'!CB21 -> 11 | AO21: ='Pob x Genero'!AP21+'Pob x Genero'!CC21 -> 0 | AP21: ='Pob x Genero'!AQ21+'Pob x Genero'!CD21 -> 3 | AQ21: ='Pob x Genero'!AR21+'Pob x Genero'!CE21 -> 6 | AR21: ='Pob x Genero'!AS21+'Pob x Genero'!CF21 -> 12 | AS21: ='Pob x Genero'!AT21 -> 234 | AT21: =SUM('Pob x Genero'!BE21:BI21) -> 7 | AU21: =SUM('Pob x Genero'!BJ21:BN21) -> 7 | AV21: =SUM('Pob x Genero'!BO21:BT21) -> 106 | AW21: ='Pob x Genero'!CG21 -> 10 | AZ21: 471 | BA21: 54 | BB21: 20 | BC21: 73 | BD21: 218 | BE21: 106
A22: 040114 | B22: AREQUIPA | C22: AREQUIPA | D22: AREQUIPA | E22: POLOBAYA | F22: 798 | G22: ='Pob x Genero'!H22+'Pob x Genero'!AU22 -> 10 | H22: ='Pob x Genero'!I22+'Pob x Genero'!AV22 -> 14 | I22: ='Pob x Genero'!J22+'Pob x Genero'!AW22 -> 11 | J22: ='Pob x Genero'!K22+'Pob x Genero'!AX22 -> 17 | K22: ='Pob x Genero'!L22+'Pob x Genero'!AY22 -> 7 | L22: ='Pob x Genero'!M22+'Pob x Genero'!AZ22 -> 12 | M22: ='Pob x Genero'!N22+'Pob x Genero'!BA22 -> 3 | N22: ='Pob x Genero'!O22+'Pob x Genero'!BB22 -> 5 | O22: ='Pob x Genero'!P22+'Pob x Genero'!BC22 -> 6 | P22: ='Pob x Genero'!Q22+'Pob x Genero'!BD22 -> 9 | Q22: ='Pob x Genero'!R22+'Pob x Genero'!BE22 -> 9 | R22: ='Pob x Genero'!S22+'Pob x Genero'!BF22 -> 9 | S22: ='Pob x Genero'!T22+'Pob x Genero'!BG22 -> 9 | T22: ='Pob x Genero'!U22+'Pob x Genero'!BH22 -> 8 | U22: ='Pob x Genero'!V22+'Pob x Genero'!BI22 -> 9 | V22: ='Pob x Genero'!W22+'Pob x Genero'!BJ22 -> 7 | W22: ='Pob x Genero'!X22+'Pob x Genero'!BK22 -> 8 | X22: ='Pob x Genero'!Y22+'Pob x Genero'!BL22 -> 5 | Y22: ='Pob x Genero'!Z22+'Pob x Genero'!BM22 -> 7 | Z22: ='Pob x Genero'!AA22+'Pob x Genero'!BN22 -> 16 | AA22: ='Pob x Genero'!AB22+'Pob x Genero'!BO22 -> 52 | AB22: ='Pob x Genero'!AC22+'Pob x Genero'!BP22 -> 64 | AC22: ='Pob x Genero'!AD22+'Pob x Genero'!BQ22 -> 65 | AD22: ='Pob x Genero'!AE22+'Pob x Genero'!BR22 -> 56 | AE22: ='Pob x Genero'!AF22+'Pob x Genero'!BS22 -> 52 | AF22: ='Pob x Genero'!AG22+'Pob x Genero'!BT22 -> 47 | AG22: ='Pob x Genero'!AH22+'Pob x Genero'!BU22 -> 47 | AH22: ='Pob x Genero'!AI22+'Pob x Genero'!BV22 -> 60 | AI22: ='Pob x Genero'!AJ22+'Pob x Genero'!BW22 -> 51 | AJ22: ='Pob x Genero'!AK22+'Pob x Genero'!BX22 -> 45 | AK22: ='Pob x Genero'!AL22+'Pob x Genero'!BY22 -> 31 | AL22: ='Pob x Genero'!AM22+'Pob x Genero'!BZ22 -> 15 | AM22: ='Pob x Genero'!AN22+'Pob x Genero'!CA22 -> 16 | AN22: ='Pob x Genero'!AO22+'Pob x Genero'!CB22 -> 16 | AO22: ='Pob x Genero'!AP22+'Pob x Genero'!CC22 -> 0 | AP22: ='Pob x Genero'!AQ22+'Pob x Genero'!CD22 -> 6 | AQ22: ='Pob x Genero'!AR22+'Pob x Genero'!CE22 -> 4 | AR22: ='Pob x Genero'!AS22+'Pob x Genero'!CF22 -> 22 | AS22: ='Pob x Genero'!AT22 -> 398 | AT22: =SUM('Pob x Genero'!BE22:BI22) -> 21 | AU22: =SUM('Pob x Genero'!BJ22:BN22) -> 20 | AV22: =SUM('Pob x Genero'!BO22:BT22) -> 166 | AW22: ='Pob x Genero'!CG22 -> 28 | AZ22: 798 | BA22: 112 | BB22: 46 | BC22: 139 | BD22: 327 | BE22: 174
A23: 040115 | B23: AREQUIPA | C23: AREQUIPA | D23: AREQUIPA | E23: QUEQUEÑA | F23: 7,974 | G23: ='Pob x Genero'!H23+'Pob x Genero'!AU23 -> 42 | H23: ='Pob x Genero'!I23+'Pob x Genero'!AV23 -> 44 | I23: ='Pob x Genero'!J23+'Pob x Genero'!AW23 -> 53 | J23: ='Pob x Genero'!K23+'Pob x Genero'!AX23 -> 41 | K23: ='Pob x Genero'!L23+'Pob x Genero'!AY23 -> 34 | L23: ='Pob x Genero'!M23+'Pob x Genero'!AZ23 -> 33 | M23: ='Pob x Genero'!N23+'Pob x Genero'!BA23 -> 111 | N23: ='Pob x Genero'!O23+'Pob x Genero'!BB23 -> 108 | O23: ='Pob x Genero'!P23+'Pob x Genero'!BC23 -> 67 | P23: ='Pob x Genero'!Q23+'Pob x Genero'!BD23 -> 94 | Q23: ='Pob x Genero'!R23+'Pob x Genero'!BE23 -> 111 | R23: ='Pob x Genero'!S23+'Pob x Genero'!BF23 -> 86 | S23: ='Pob x Genero'!T23+'Pob x Genero'!BG23 -> 98 | T23: ='Pob x Genero'!U23+'Pob x Genero'!BH23 -> 76 | U23: ='Pob x Genero'!V23+'Pob x Genero'!BI23 -> 85 | V23: ='Pob x Genero'!W23+'Pob x Genero'!BJ23 -> 95 | W23: ='Pob x Genero'!X23+'Pob x Genero'!BK23 -> 86 | X23: ='Pob x Genero'!Y23+'Pob x Genero'!BL23 -> 89 | Y23: ='Pob x Genero'!Z23+'Pob x Genero'!BM23 -> 110 | Z23: ='Pob x Genero'!AA23+'Pob x Genero'!BN23 -> 86 | AA23: ='Pob x Genero'!AB23+'Pob x Genero'!BO23 -> 389 | AB23: ='Pob x Genero'!AC23+'Pob x Genero'!BP23 -> 582 | AC23: ='Pob x Genero'!AD23+'Pob x Genero'!BQ23 -> 830 | AD23: ='Pob x Genero'!AE23+'Pob x Genero'!BR23 -> 911 | AE23: ='Pob x Genero'!AF23+'Pob x Genero'!BS23 -> 688 | AF23: ='Pob x Genero'!AG23+'Pob x Genero'!BT23 -> 655 | AG23: ='Pob x Genero'!AH23+'Pob x Genero'!BU23 -> 599 | AH23: ='Pob x Genero'!AI23+'Pob x Genero'!BV23 -> 483 | AI23: ='Pob x Genero'!AJ23+'Pob x Genero'!BW23 -> 417 | AJ23: ='Pob x Genero'!AK23+'Pob x Genero'!BX23 -> 286 | AK23: ='Pob x Genero'!AL23+'Pob x Genero'!BY23 -> 210 | AL23: ='Pob x Genero'!AM23+'Pob x Genero'!BZ23 -> 173 | AM23: ='Pob x Genero'!AN23+'Pob x Genero'!CA23 -> 101 | AN23: ='Pob x Genero'!AO23+'Pob x Genero'!CB23 -> 101 | AO23: ='Pob x Genero'!AP23+'Pob x Genero'!CC23 -> 3 | AP23: ='Pob x Genero'!AQ23+'Pob x Genero'!CD23 -> 17 | AQ23: ='Pob x Genero'!AR23+'Pob x Genero'!CE23 -> 25 | AR23: ='Pob x Genero'!AS23+'Pob x Genero'!CF23 -> 91 | AS23: ='Pob x Genero'!AT23 -> 4,054 | AT23: =SUM('Pob x Genero'!BE23:BI23) -> 218 | AU23: =SUM('Pob x Genero'!BJ23:BN23) -> 237 | AV23: =SUM('Pob x Genero'!BO23:BT23) -> 2,143 | AW23: ='Pob x Genero'!CG23 -> 132 | AZ23: 7,974 | BA23: 824 | BB23: 529 | BC23: 1,167 | BD23: 4,166 | BE23: 1,288
A24: 040116 | B24: AREQUIPA | C24: AREQUIPA | D24: AREQUIPA | E24: SABANDIA | F24: 4,963 | G24: ='Pob x Genero'!H24+'Pob x Genero'!AU24 -> 84 | H24: ='Pob x Genero'!I24+'Pob x Genero'!AV24 -> 79 | I24: ='Pob x Genero'!J24+'Pob x Genero'!AW24 -> 102 | J24: ='Pob x Genero'!K24+'Pob x Genero'!AX24 -> 94 | K24: ='Pob x Genero'!L24+'Pob x Genero'!AY24 -> 97 | L24: ='Pob x Genero'!M24+'Pob x Genero'!AZ24 -> 87 | M24: ='Pob x Genero'!N24+'Pob x Genero'!BA24 -> 75 | N24: ='Pob x Genero'!O24+'Pob x Genero'!BB24 -> 71 | O24: ='Pob x Genero'!P24+'Pob x Genero'!BC24 -> 88 | P24: ='Pob x Genero'!Q24+'Pob x Genero'!BD24 -> 65 | Q24: ='Pob x Genero'!R24+'Pob x Genero'!BE24 -> 68 | R24: ='Pob x Genero'!S24+'Pob x Genero'!BF24 -> 75 | S24: ='Pob x Genero'!T24+'Pob x Genero'!BG24 -> 81 | T24: ='Pob x Genero'!U24+'Pob x Genero'!BH24 -> 64 | U24: ='Pob x Genero'!V24+'Pob x Genero'!BI24 -> 62 | V24: ='Pob x Genero'!W24+'Pob x Genero'!BJ24 -> 69 | W24: ='Pob x Genero'!X24+'Pob x Genero'!BK24 -> 64 | X24: ='Pob x Genero'!Y24+'Pob x Genero'!BL24 -> 59 | Y24: ='Pob x Genero'!Z24+'Pob x Genero'!BM24 -> 64 | Z24: ='Pob x Genero'!AA24+'Pob x Genero'!BN24 -> 59 | AA24: ='Pob x Genero'!AB24+'Pob x Genero'!BO24 -> 340 | AB24: ='Pob x Genero'!AC24+'Pob x Genero'!BP24 -> 406 | AC24: ='Pob x Genero'!AD24+'Pob x Genero'!BQ24 -> 370 | AD24: ='Pob x Genero'!AE24+'Pob x Genero'!BR24 -> 414 | AE24: ='Pob x Genero'!AF24+'Pob x Genero'!BS24 -> 374 | AF24: ='Pob x Genero'!AG24+'Pob x Genero'!BT24 -> 343 | AG24: ='Pob x Genero'!AH24+'Pob x Genero'!BU24 -> 278 | AH24: ='Pob x Genero'!AI24+'Pob x Genero'!BV24 -> 221 | AI24: ='Pob x Genero'!AJ24+'Pob x Genero'!BW24 -> 175 | AJ24: ='Pob x Genero'!AK24+'Pob x Genero'!BX24 -> 157 | AK24: ='Pob x Genero'!AL24+'Pob x Genero'!BY24 -> 141 | AL24: ='Pob x Genero'!AM24+'Pob x Genero'!BZ24 -> 97 | AM24: ='Pob x Genero'!AN24+'Pob x Genero'!CA24 -> 79 | AN24: ='Pob x Genero'!AO24+'Pob x Genero'!CB24 -> 61 | AO24: ='Pob x Genero'!AP24+'Pob x Genero'!CC24 -> 5 | AP24: ='Pob x Genero'!AQ24+'Pob x Genero'!CD24 -> 42 | AQ24: ='Pob x Genero'!AR24+'Pob x Genero'!CE24 -> 42 | AR24: ='Pob x Genero'!AS24+'Pob x Genero'!CF24 -> 148 | AS24: ='Pob x Genero'!AT24 -> 2,516 | AT24: =SUM('Pob x Genero'!BE24:BI24) -> 173 | AU24: =SUM('Pob x Genero'!BJ24:BN24) -> 159 | AV24: =SUM('Pob x Genero'!BO24:BT24) -> 1,145 | AW24: ='Pob x Genero'!CG24 -> 198 | AZ24: 4,963 | BA24: 985 | BB24: 399 | BC24: 869 | BD24: 2,000 | BE24: 710
A25: 040117 | B25: AREQUIPA | C25: AREQUIPA | D25: AREQUIPA | E25: SACHACA | F25: 29,929 | G25: ='Pob x Genero'!H25+'Pob x Genero'!AU25 -> 367 | H25: ='Pob x Genero'!I25+'Pob x Genero'!AV25 -> 342 | I25: ='Pob x Genero'!J25+'Pob x Genero'!AW25 -> 368 | J25: ='Pob x Genero'!K25+'Pob x Genero'!AX25 -> 446 | K25: ='Pob x Genero'!L25+'Pob x Genero'!AY25 -> 450 | L25: ='Pob x Genero'!M25+'Pob x Genero'!AZ25 -> 509 | M25: ='Pob x Genero'!N25+'Pob x Genero'!BA25 -> 509 | N25: ='Pob x Genero'!O25+'Pob x Genero'!BB25 -> 526 | O25: ='Pob x Genero'!P25+'Pob x Genero'!BC25 -> 500 | P25: ='Pob x Genero'!Q25+'Pob x Genero'!BD25 -> 470 | Q25: ='Pob x Genero'!R25+'Pob x Genero'!BE25 -> 436 | R25: ='Pob x Genero'!S25+'Pob x Genero'!BF25 -> 464 | S25: ='Pob x Genero'!T25+'Pob x Genero'!BG25 -> 496 | T25: ='Pob x Genero'!U25+'Pob x Genero'!BH25 -> 464 | U25: ='Pob x Genero'!V25+'Pob x Genero'!BI25 -> 461 | V25: ='Pob x Genero'!W25+'Pob x Genero'!BJ25 -> 446 | W25: ='Pob x Genero'!X25+'Pob x Genero'!BK25 -> 424 | X25: ='Pob x Genero'!Y25+'Pob x Genero'!BL25 -> 444 | Y25: ='Pob x Genero'!Z25+'Pob x Genero'!BM25 -> 429 | Z25: ='Pob x Genero'!AA25+'Pob x Genero'!BN25 -> 437 | AA25: ='Pob x Genero'!AB25+'Pob x Genero'!BO25 -> 2,286 | AB25: ='Pob x Genero'!AC25+'Pob x Genero'!BP25 -> 2,359 | AC25: ='Pob x Genero'!AD25+'Pob x Genero'!BQ25 -> 2,437 | AD25: ='Pob x Genero'!AE25+'Pob x Genero'!BR25 -> 2,258 | AE25: ='Pob x Genero'!AF25+'Pob x Genero'!BS25 -> 2,211 | AF25: ='Pob x Genero'!AG25+'Pob x Genero'!BT25 -> 2,010 | AG25: ='Pob x Genero'!AH25+'Pob x Genero'!BU25 -> 1,680 | AH25: ='Pob x Genero'!AI25+'Pob x Genero'!BV25 -> 1,427 | AI25: ='Pob x Genero'!AJ25+'Pob x Genero'!BW25 -> 1,182 | AJ25: ='Pob x Genero'!AK25+'Pob x Genero'!BX25 -> 1,056 | AK25: ='Pob x Genero'!AL25+'Pob x Genero'!BY25 -> 774 | AL25: ='Pob x Genero'!AM25+'Pob x Genero'!BZ25 -> 564 | AM25: ='Pob x Genero'!AN25+'Pob x Genero'!CA25 -> 354 | AN25: ='Pob x Genero'!AO25+'Pob x Genero'!CB25 -> 343 | AO25: ='Pob x Genero'!AP25+'Pob x Genero'!CC25 -> 21 | AP25: ='Pob x Genero'!AQ25+'Pob x Genero'!CD25 -> 171 | AQ25: ='Pob x Genero'!AR25+'Pob x Genero'!CE25 -> 196 | AR25: ='Pob x Genero'!AS25+'Pob x Genero'!CF25 -> 512 | AS25: ='Pob x Genero'!AT25 -> 15,229 | AT25: =SUM('Pob x Genero'!BE25:BI25) -> 1,137 | AU25: =SUM('Pob x Genero'!BJ25:BN25) -> 1,114 | AV25: =SUM('Pob x Genero'!BO25:BT25) -> 6,824 | AW25: ='Pob x Genero'!CG25 -> 662 | AZ25: 29,929 | BA25: 5,387 | BB25: 2,735 | BC25: 5,511 | BD25: 12,023 | BE25: 4,273
A26: 040118 | B26: AREQUIPA | C26: AREQUIPA | D26: AREQUIPA | E26: SAN JUAN DE SIGUAS | F26: 552 | G26: ='Pob x Genero'!H26+'Pob x Genero'!AU26 -> 8 | H26: ='Pob x Genero'!I26+'Pob x Genero'!AV26 -> 8 | I26: ='Pob x Genero'!J26+'Pob x Genero'!AW26 -> 10 | J26: ='Pob x Genero'!K26+'Pob x Genero'!AX26 -> 9 | K26: ='Pob x Genero'!L26+'Pob x Genero'!AY26 -> 6 | L26: ='Pob x Genero'!M26+'Pob x Genero'!AZ26 -> 16 | M26: ='Pob x Genero'!N26+'Pob x Genero'!BA26 -> 4 | N26: ='Pob x Genero'!O26+'Pob x Genero'!BB26 -> 7 | O26: ='Pob x Genero'!P26+'Pob x Genero'!BC26 -> 4 | P26: ='Pob x Genero'!Q26+'Pob x Genero'!BD26 -> 5 | Q26: ='Pob x Genero'!R26+'Pob x Genero'!BE26 -> 9 | R26: ='Pob x Genero'!S26+'Pob x Genero'!BF26 -> 8 | S26: ='Pob x Genero'!T26+'Pob x Genero'!BG26 -> 10 | T26: ='Pob x Genero'!U26+'Pob x Genero'!BH26 -> 4 | U26: ='Pob x Genero'!V26+'Pob x Genero'!BI26 -> 5 | V26: ='Pob x Genero'!W26+'Pob x Genero'!BJ26 -> 4 | W26: ='Pob x Genero'!X26+'Pob x Genero'!BK26 -> 11 | X26: ='Pob x Genero'!Y26+'Pob x Genero'!BL26 -> 5 | Y26: ='Pob x Genero'!Z26+'Pob x Genero'!BM26 -> 7 | Z26: ='Pob x Genero'!AA26+'Pob x Genero'!BN26 -> 4 | AA26: ='Pob x Genero'!AB26+'Pob x Genero'!BO26 -> 38 | AB26: ='Pob x Genero'!AC26+'Pob x Genero'!BP26 -> 42 | AC26: ='Pob x Genero'!AD26+'Pob x Genero'!BQ26 -> 45 | AD26: ='Pob x Genero'!AE26+'Pob x Genero'!BR26 -> 36 | AE26: ='Pob x Genero'!AF26+'Pob x Genero'!BS26 -> 41 | AF26: ='Pob x Genero'!AG26+'Pob x Genero'!BT26 -> 30 | AG26: ='Pob x Genero'!AH26+'Pob x Genero'!BU26 -> 42 | AH26: ='Pob x Genero'!AI26+'Pob x Genero'!BV26 -> 38 | AI26: ='Pob x Genero'!AJ26+'Pob x Genero'!BW26 -> 27 | AJ26: ='Pob x Genero'!AK26+'Pob x Genero'!BX26 -> 28 | AK26: ='Pob x Genero'!AL26+'Pob x Genero'!BY26 -> 17 | AL26: ='Pob x Genero'!AM26+'Pob x Genero'!BZ26 -> 11 | AM26: ='Pob x Genero'!AN26+'Pob x Genero'!CA26 -> 5 | AN26: ='Pob x Genero'!AO26+'Pob x Genero'!CB26 -> 8 | AO26: ='Pob x Genero'!AP26+'Pob x Genero'!CC26 -> 1 | AP26: ='Pob x Genero'!AQ26+'Pob x Genero'!CD26 -> 5 | AQ26: ='Pob x Genero'!AR26+'Pob x Genero'!CE26 -> 3 | AR26: ='Pob x Genero'!AS26+'Pob x Genero'!CF26 -> 15 | AS26: ='Pob x Genero'!AT26 -> 274 | AT26: =SUM('Pob x Genero'!BE26:BI26) -> 21 | AU26: =SUM('Pob x Genero'!BJ26:BN26) -> 15 | AV26: =SUM('Pob x Genero'!BO26:BT26) -> 115 | AW26: ='Pob x Genero'!CG26 -> 42 | AZ26: 552 | BA26: 94 | BB26: 39 | BC26: 91 | BD26: 232 | BE26: 96
A27: 040119 | B27: AREQUIPA | C27: AREQUIPA | D27: AREQUIPA | E27: SAN JUAN DE TARUCANI | F27: 1,280 | G27: ='Pob x Genero'!H27+'Pob x Genero'!AU27 -> 22 | H27: ='Pob x Genero'!I27+'Pob x Genero'!AV27 -> 28 | I27: ='Pob x Genero'!J27+'Pob x Genero'!AW27 -> 17 | J27: ='Pob x Genero'!K27+'Pob x Genero'!AX27 -> 25 | K27: ='Pob x Genero'!L27+'Pob x Genero'!AY27 -> 23 | L27: ='Pob x Genero'!M27+'Pob x Genero'!AZ27 -> 29 | M27: ='Pob x Genero'!N27+'Pob x Genero'!BA27 -> 7 | N27: ='Pob x Genero'!O27+'Pob x Genero'!BB27 -> 10 | O27: ='Pob x Genero'!P27+'Pob x Genero'!BC27 -> 9 | P27: ='Pob x Genero'!Q27+'Pob x Genero'!BD27 -> 11 | Q27: ='Pob x Genero'!R27+'Pob x Genero'!BE27 -> 11 | R27: ='Pob x Genero'!S27+'Pob x Genero'!BF27 -> 10 | S27: ='Pob x Genero'!T27+'Pob x Genero'!BG27 -> 7 | T27: ='Pob x Genero'!U27+'Pob x Genero'!BH27 -> 16 | U27: ='Pob x Genero'!V27+'Pob x Genero'!BI27 -> 8 | V27: ='Pob x Genero'!W27+'Pob x Genero'!BJ27 -> 14 | W27: ='Pob x Genero'!X27+'Pob x Genero'!BK27 -> 8 | X27: ='Pob x Genero'!Y27+'Pob x Genero'!BL27 -> 15 | Y27: ='Pob x Genero'!Z27+'Pob x Genero'!BM27 -> 12 | Z27: ='Pob x Genero'!AA27+'Pob x Genero'!BN27 -> 12 | AA27: ='Pob x Genero'!AB27+'Pob x Genero'!BO27 -> 68 | AB27: ='Pob x Genero'!AC27+'Pob x Genero'!BP27 -> 95 | AC27: ='Pob x Genero'!AD27+'Pob x Genero'!BQ27 -> 97 | AD27: ='Pob x Genero'!AE27+'Pob x Genero'!BR27 -> 110 | AE27: ='Pob x Genero'!AF27+'Pob x Genero'!BS27 -> 122 | AF27: ='Pob x Genero'!AG27+'Pob x Genero'!BT27 -> 98 | AG27: ='Pob x Genero'!AH27+'Pob x Genero'!BU27 -> 85 | AH27: ='Pob x Genero'!AI27+'Pob x Genero'!BV27 -> 87 | AI27: ='Pob x Genero'!AJ27+'Pob x Genero'!BW27 -> 65 | AJ27: ='Pob x Genero'!AK27+'Pob x Genero'!BX27 -> 51 | AK27: ='Pob x Genero'!AL27+'Pob x Genero'!BY27 -> 35 | AL27: ='Pob x Genero'!AM27+'Pob x Genero'!BZ27 -> 27 | AM27: ='Pob x Genero'!AN27+'Pob x Genero'!CA27 -> 24 | AN27: ='Pob x Genero'!AO27+'Pob x Genero'!CB27 -> 22 | AO27: ='Pob x Genero'!AP27+'Pob x Genero'!CC27 -> 0 | AP27: ='Pob x Genero'!AQ27+'Pob x Genero'!CD27 -> 6 | AQ27: ='Pob x Genero'!AR27+'Pob x Genero'!CE27 -> 16 | AR27: ='Pob x Genero'!AS27+'Pob x Genero'!CF27 -> 30 | AS27: ='Pob x Genero'!AT27 -> 647 | AT27: =SUM('Pob x Genero'!BE27:BI27) -> 24 | AU27: =SUM('Pob x Genero'!BJ27:BN27) -> 30 | AV27: =SUM('Pob x Genero'!BO27:BT27) -> 315 | AW27: ='Pob x Genero'!CG27 -> 46 | AZ27: 1,280 | BA27: 202 | BB27: 68 | BC27: 187 | BD27: 599 | BE27: 224
A28: 040120 | B28: AREQUIPA | C28: AREQUIPA | D28: AREQUIPA | E28: SANTA ISABEL DE SIGUAS | F28: 639 | G28: ='Pob x Genero'!H28+'Pob x Genero'!AU28 -> 5 | H28: ='Pob x Genero'!I28+'Pob x Genero'!AV28 -> 4 | I28: ='Pob x Genero'!J28+'Pob x Genero'!AW28 -> 4 | J28: ='Pob x Genero'!K28+'Pob x Genero'!AX28 -> 13 | K28: ='Pob x Genero'!L28+'Pob x Genero'!AY28 -> 6 | L28: ='Pob x Genero'!M28+'Pob x Genero'!AZ28 -> 8 | M28: ='Pob x Genero'!N28+'Pob x Genero'!BA28 -> 9 | N28: ='Pob x Genero'!O28+'Pob x Genero'!BB28 -> 10 | O28: ='Pob x Genero'!P28+'Pob x Genero'!BC28 -> 8 | P28: ='Pob x Genero'!Q28+'Pob x Genero'!BD28 -> 7 | Q28: ='Pob x Genero'!R28+'Pob x Genero'!BE28 -> 8 | R28: ='Pob x Genero'!S28+'Pob x Genero'!BF28 -> 10 | S28: ='Pob x Genero'!T28+'Pob x Genero'!BG28 -> 9 | T28: ='Pob x Genero'!U28+'Pob x Genero'!BH28 -> 9 | U28: ='Pob x Genero'!V28+'Pob x Genero'!BI28 -> 6 | V28: ='Pob x Genero'!W28+'Pob x Genero'!BJ28 -> 9 | W28: ='Pob x Genero'!X28+'Pob x Genero'!BK28 -> 9 | X28: ='Pob x Genero'!Y28+'Pob x Genero'!BL28 -> 14 | Y28: ='Pob x Genero'!Z28+'Pob x Genero'!BM28 -> 7 | Z28: ='Pob x Genero'!AA28+'Pob x Genero'!BN28 -> 7 | AA28: ='Pob x Genero'!AB28+'Pob x Genero'!BO28 -> 52 | AB28: ='Pob x Genero'!AC28+'Pob x Genero'!BP28 -> 48 | AC28: ='Pob x Genero'!AD28+'Pob x Genero'!BQ28 -> 52 | AD28: ='Pob x Genero'!AE28+'Pob x Genero'!BR28 -> 35 | AE28: ='Pob x Genero'!AF28+'Pob x Genero'!BS28 -> 35 | AF28: ='Pob x Genero'!AG28+'Pob x Genero'!BT28 -> 43 | AG28: ='Pob x Genero'!AH28+'Pob x Genero'!BU28 -> 47 | AH28: ='Pob x Genero'!AI28+'Pob x Genero'!BV28 -> 38 | AI28: ='Pob x Genero'!AJ28+'Pob x Genero'!BW28 -> 36 | AJ28: ='Pob x Genero'!AK28+'Pob x Genero'!BX28 -> 30 | AK28: ='Pob x Genero'!AL28+'Pob x Genero'!BY28 -> 19 | AL28: ='Pob x Genero'!AM28+'Pob x Genero'!BZ28 -> 16 | AM28: ='Pob x Genero'!AN28+'Pob x Genero'!CA28 -> 14 | AN28: ='Pob x Genero'!AO28+'Pob x Genero'!CB28 -> 12 | AO28: ='Pob x Genero'!AP28+'Pob x Genero'!CC28 -> 0 | AP28: ='Pob x Genero'!AQ28+'Pob x Genero'!CD28 -> 2 | AQ28: ='Pob x Genero'!AR28+'Pob x Genero'!CE28 -> 3 | AR28: ='Pob x Genero'!AS28+'Pob x Genero'!CF28 -> 8 | AS28: ='Pob x Genero'!AT28 -> 318 | AT28: =SUM('Pob x Genero'!BE28:BI28) -> 27 | AU28: =SUM('Pob x Genero'!BJ28:BN28) -> 21 | AV28: =SUM('Pob x Genero'!BO28:BT28) -> 132 | AW28: ='Pob x Genero'!CG28 -> 13 | AZ28: 639 | BA28: 92 | BB28: 56 | BC28: 114 | BD28: 250 | BE28: 127
A29: 040121 | B29: AREQUIPA | C29: AREQUIPA | D29: AREQUIPA | E29: SANTA RITA DE SIGUAS | F29: 8,403 | G29: ='Pob x Genero'!H29+'Pob x Genero'!AU29 -> 100 | H29: ='Pob x Genero'!I29+'Pob x Genero'!AV29 -> 91 | I29: ='Pob x Genero'!J29+'Pob x Genero'!AW29 -> 111 | J29: ='Pob x Genero'!K29+'Pob x Genero'!AX29 -> 107 | K29: ='Pob x Genero'!L29+'Pob x Genero'!AY29 -> 98 | L29: ='Pob x Genero'!M29+'Pob x Genero'!AZ29 -> 102 | M29: ='Pob x Genero'!N29+'Pob x Genero'!BA29 -> 164 | N29: ='Pob x Genero'!O29+'Pob x Genero'!BB29 -> 175 | O29: ='Pob x Genero'!P29+'Pob x Genero'!BC29 -> 141 | P29: ='Pob x Genero'!Q29+'Pob x Genero'!BD29 -> 137 | Q29: ='Pob x Genero'!R29+'Pob x Genero'!BE29 -> 168 | R29: ='Pob x Genero'!S29+'Pob x Genero'!BF29 -> 140 | S29: ='Pob x Genero'!T29+'Pob x Genero'!BG29 -> 151 | T29: ='Pob x Genero'!U29+'Pob x Genero'!BH29 -> 156 | U29: ='Pob x Genero'!V29+'Pob x Genero'!BI29 -> 126 | V29: ='Pob x Genero'!W29+'Pob x Genero'!BJ29 -> 150 | W29: ='Pob x Genero'!X29+'Pob x Genero'!BK29 -> 120 | X29: ='Pob x Genero'!Y29+'Pob x Genero'!BL29 -> 121 | Y29: ='Pob x Genero'!Z29+'Pob x Genero'!BM29 -> 130 | Z29: ='Pob x Genero'!AA29+'Pob x Genero'!BN29 -> 151 | AA29: ='Pob x Genero'!AB29+'Pob x Genero'!BO29 -> 703 | AB29: ='Pob x Genero'!AC29+'Pob x Genero'!BP29 -> 890 | AC29: ='Pob x Genero'!AD29+'Pob x Genero'!BQ29 -> 910 | AD29: ='Pob x Genero'!AE29+'Pob x Genero'!BR29 -> 810 | AE29: ='Pob x Genero'!AF29+'Pob x Genero'!BS29 -> 655 | AF29: ='Pob x Genero'!AG29+'Pob x Genero'!BT29 -> 472 | AG29: ='Pob x Genero'!AH29+'Pob x Genero'!BU29 -> 354 | AH29: ='Pob x Genero'!AI29+'Pob x Genero'!BV29 -> 319 | AI29: ='Pob x Genero'!AJ29+'Pob x Genero'!BW29 -> 249 | AJ29: ='Pob x Genero'!AK29+'Pob x Genero'!BX29 -> 143 | AK29: ='Pob x Genero'!AL29+'Pob x Genero'!BY29 -> 110 | AL29: ='Pob x Genero'!AM29+'Pob x Genero'!BZ29 -> 72 | AM29: ='Pob x Genero'!AN29+'Pob x Genero'!CA29 -> 43 | AN29: ='Pob x Genero'!AO29+'Pob x Genero'!CB29 -> 34 | AO29: ='Pob x Genero'!AP29+'Pob x Genero'!CC29 -> 2 | AP29: ='Pob x Genero'!AQ29+'Pob x Genero'!CD29 -> 52 | AQ29: ='Pob x Genero'!AR29+'Pob x Genero'!CE29 -> 48 | AR29: ='Pob x Genero'!AS29+'Pob x Genero'!CF29 -> 168 | AS29: ='Pob x Genero'!AT29 -> 4,271 | AT29: =SUM('Pob x Genero'!BE29:BI29) -> 374 | AU29: =SUM('Pob x Genero'!BJ29:BN29) -> 344 | AV29: =SUM('Pob x Genero'!BO29:BT29) -> 2,240 | AW29: ='Pob x Genero'!CG29 -> 244 | AZ29: 8,403 | BA29: 1,534 | BB29: 824 | BC29: 1,874 | BD29: 3,520 | BE29: 651
A30: 040122 | B30: AREQUIPA | C30: AREQUIPA | D30: AREQUIPA | E30: SOCABAYA | F30: 86,938 | G30: ='Pob x Genero'!H30+'Pob x Genero'!AU30 -> 720 | H30: ='Pob x Genero'!I30+'Pob x Genero'!AV30 -> 625 | I30: ='Pob x Genero'!J30+'Pob x Genero'!AW30 -> 761 | J30: ='Pob x Genero'!K30+'Pob x Genero'!AX30 -> 922 | K30: ='Pob x Genero'!L30+'Pob x Genero'!AY30 -> 1,093 | L30: ='Pob x Genero'!M30+'Pob x Genero'!AZ30 -> 1,116 | M30: ='Pob x Genero'!N30+'Pob x Genero'!BA30 -> 1,401 | N30: ='Pob x Genero'!O30+'Pob x Genero'!BB30 -> 1,468 | O30: ='Pob x Genero'!P30+'Pob x Genero'!BC30 -> 1,478 | P30: ='Pob x Genero'!Q30+'Pob x Genero'!BD30 -> 1,484 | Q30: ='Pob x Genero'!R30+'Pob x Genero'!BE30 -> 1,338 | R30: ='Pob x Genero'!S30+'Pob x Genero'!BF30 -> 1,456 | S30: ='Pob x Genero'!T30+'Pob x Genero'!BG30 -> 1,461 | T30: ='Pob x Genero'!U30+'Pob x Genero'!BH30 -> 1,461 | U30: ='Pob x Genero'!V30+'Pob x Genero'!BI30 -> 1,299 | V30: ='Pob x Genero'!W30+'Pob x Genero'!BJ30 -> 1,294 | W30: ='Pob x Genero'!X30+'Pob x Genero'!BK30 -> 1,393 | X30: ='Pob x Genero'!Y30+'Pob x Genero'!BL30 -> 1,296 | Y30: ='Pob x Genero'!Z30+'Pob x Genero'!BM30 -> 1,369 | Z30: ='Pob x Genero'!AA30+'Pob x Genero'!BN30 -> 1,376 | AA30: ='Pob x Genero'!AB30+'Pob x Genero'!BO30 -> 7,186 | AB30: ='Pob x Genero'!AC30+'Pob x Genero'!BP30 -> 7,891 | AC30: ='Pob x Genero'!AD30+'Pob x Genero'!BQ30 -> 7,486 | AD30: ='Pob x Genero'!AE30+'Pob x Genero'!BR30 -> 6,877 | AE30: ='Pob x Genero'!AF30+'Pob x Genero'!BS30 -> 6,557 | AF30: ='Pob x Genero'!AG30+'Pob x Genero'!BT30 -> 5,974 | AG30: ='Pob x Genero'!AH30+'Pob x Genero'!BU30 -> 4,848 | AH30: ='Pob x Genero'!AI30+'Pob x Genero'!BV30 -> 4,144 | AI30: ='Pob x Genero'!AJ30+'Pob x Genero'!BW30 -> 3,413 | AJ30: ='Pob x Genero'!AK30+'Pob x Genero'!BX30 -> 2,900 | AK30: ='Pob x Genero'!AL30+'Pob x Genero'!BY30 -> 1,930 | AL30: ='Pob x Genero'!AM30+'Pob x Genero'!BZ30 -> 1,357 | AM30: ='Pob x Genero'!AN30+'Pob x Genero'!CA30 -> 803 | AN30: ='Pob x Genero'!AO30+'Pob x Genero'!CB30 -> 761 | AO30: ='Pob x Genero'!AP30+'Pob x Genero'!CC30 -> 60 | AP30: ='Pob x Genero'!AQ30+'Pob x Genero'!CD30 -> 336 | AQ30: ='Pob x Genero'!AR30+'Pob x Genero'!CE30 -> 384 | AR30: ='Pob x Genero'!AS30+'Pob x Genero'!CF30 -> 1,155 | AS30: ='Pob x Genero'!AT30 -> 44,141 | AT30: =SUM('Pob x Genero'!BE30:BI30) -> 3,568 | AU30: =SUM('Pob x Genero'!BJ30:BN30) -> 3,359 | AV30: =SUM('Pob x Genero'!BO30:BT30) -> 21,030 | AW30: ='Pob x Genero'!CG30 -> 1,443 | AZ30: 86,938 | BA30: 13,862 | BB30: 8,204 | BC30: 17,822 | BD30: 35,886 | BE30: 11,164
A31: 040123 | B31: AREQUIPA | C31: AREQUIPA | D31: AREQUIPA | E31: TIABAYA | F31: 18,168 | G31: ='Pob x Genero'!H31+'Pob x Genero'!AU31 -> 270 | H31: ='Pob x Genero'!I31+'Pob x Genero'!AV31 -> 248 | I31: ='Pob x Genero'!J31+'Pob x Genero'!AW31 -> 232 | J31: ='Pob x Genero'!K31+'Pob x Genero'!AX31 -> 296 | K31: ='Pob x Genero'!L31+'Pob x Genero'!AY31 -> 274 | L31: ='Pob x Genero'!M31+'Pob x Genero'!AZ31 -> 299 | M31: ='Pob x Genero'!N31+'Pob x Genero'!BA31 -> 294 | N31: ='Pob x Genero'!O31+'Pob x Genero'!BB31 -> 358 | O31: ='Pob x Genero'!P31+'Pob x Genero'!BC31 -> 287 | P31: ='Pob x Genero'!Q31+'Pob x Genero'!BD31 -> 279 | Q31: ='Pob x Genero'!R31+'Pob x Genero'!BE31 -> 250 | R31: ='Pob x Genero'!S31+'Pob x Genero'!BF31 -> 279 | S31: ='Pob x Genero'!T31+'Pob x Genero'!BG31 -> 280 | T31: ='Pob x Genero'!U31+'Pob x Genero'!BH31 -> 281 | U31: ='Pob x Genero'!V31+'Pob x Genero'!BI31 -> 272 | V31: ='Pob x Genero'!W31+'Pob x Genero'!BJ31 -> 246 | W31: ='Pob x Genero'!X31+'Pob x Genero'!BK31 -> 238 | X31: ='Pob x Genero'!Y31+'Pob x Genero'!BL31 -> 272 | Y31: ='Pob x Genero'!Z31+'Pob x Genero'!BM31 -> 228 | Z31: ='Pob x Genero'!AA31+'Pob x Genero'!BN31 -> 258 | AA31: ='Pob x Genero'!AB31+'Pob x Genero'!BO31 -> 1,371 | AB31: ='Pob x Genero'!AC31+'Pob x Genero'!BP31 -> 1,645 | AC31: ='Pob x Genero'!AD31+'Pob x Genero'!BQ31 -> 1,629 | AD31: ='Pob x Genero'!AE31+'Pob x Genero'!BR31 -> 1,513 | AE31: ='Pob x Genero'!AF31+'Pob x Genero'!BS31 -> 1,385 | AF31: ='Pob x Genero'!AG31+'Pob x Genero'!BT31 -> 1,184 | AG31: ='Pob x Genero'!AH31+'Pob x Genero'!BU31 -> 945 | AH31: ='Pob x Genero'!AI31+'Pob x Genero'!BV31 -> 828 | AI31: ='Pob x Genero'!AJ31+'Pob x Genero'!BW31 -> 646 | AJ31: ='Pob x Genero'!AK31+'Pob x Genero'!BX31 -> 522 | AK31: ='Pob x Genero'!AL31+'Pob x Genero'!BY31 -> 387 | AL31: ='Pob x Genero'!AM31+'Pob x Genero'!BZ31 -> 294 | AM31: ='Pob x Genero'!AN31+'Pob x Genero'!CA31 -> 186 | AN31: ='Pob x Genero'!AO31+'Pob x Genero'!CB31 -> 192 | AO31: ='Pob x Genero'!AP31+'Pob x Genero'!CC31 -> 19 | AP31: ='Pob x Genero'!AQ31+'Pob x Genero'!CD31 -> 121 | AQ31: ='Pob x Genero'!AR31+'Pob x Genero'!CE31 -> 149 | AR31: ='Pob x Genero'!AS31+'Pob x Genero'!CF31 -> 366 | AS31: ='Pob x Genero'!AT31 -> 9,176 | AT31: =SUM('Pob x Genero'!BE31:BI31) -> 684 | AU31: =SUM('Pob x Genero'!BJ31:BN31) -> 648 | AV31: =SUM('Pob x Genero'!BO31:BT31) -> 4,253 | AW31: ='Pob x Genero'!CG31 -> 694 | AZ31: 18,168 | BA31: 3,366 | BB31: 1,589 | BC31: 3,502 | BD31: 7,484 | BE31: 2,227
A32: 040124 | B32: AREQUIPA | C32: AREQUIPA | D32: AREQUIPA | E32: UCHUMAYO | F32: 17,940 | G32: ='Pob x Genero'!H32+'Pob x Genero'!AU32 -> 220 | H32: ='Pob x Genero'!I32+'Pob x Genero'!AV32 -> 227 | I32: ='Pob x Genero'!J32+'Pob x Genero'!AW32 -> 195 | J32: ='Pob x Genero'!K32+'Pob x Genero'!AX32 -> 250 | K32: ='Pob x Genero'!L32+'Pob x Genero'!AY32 -> 258 | L32: ='Pob x Genero'!M32+'Pob x Genero'!AZ32 -> 265 | M32: ='Pob x Genero'!N32+'Pob x Genero'!BA32 -> 304 | N32: ='Pob x Genero'!O32+'Pob x Genero'!BB32 -> 294 | O32: ='Pob x Genero'!P32+'Pob x Genero'!BC32 -> 276 | P32: ='Pob x Genero'!Q32+'Pob x Genero'!BD32 -> 259 | Q32: ='Pob x Genero'!R32+'Pob x Genero'!BE32 -> 266 | R32: ='Pob x Genero'!S32+'Pob x Genero'!BF32 -> 278 | S32: ='Pob x Genero'!T32+'Pob x Genero'!BG32 -> 286 | T32: ='Pob x Genero'!U32+'Pob x Genero'!BH32 -> 261 | U32: ='Pob x Genero'!V32+'Pob x Genero'!BI32 -> 225 | V32: ='Pob x Genero'!W32+'Pob x Genero'!BJ32 -> 239 | W32: ='Pob x Genero'!X32+'Pob x Genero'!BK32 -> 240 | X32: ='Pob x Genero'!Y32+'Pob x Genero'!BL32 -> 231 | Y32: ='Pob x Genero'!Z32+'Pob x Genero'!BM32 -> 251 | Z32: ='Pob x Genero'!AA32+'Pob x Genero'!BN32 -> 244 | AA32: ='Pob x Genero'!AB32+'Pob x Genero'!BO32 -> 1,199 | AB32: ='Pob x Genero'!AC32+'Pob x Genero'!BP32 -> 1,650 | AC32: ='Pob x Genero'!AD32+'Pob x Genero'!BQ32 -> 1,673 | AD32: ='Pob x Genero'!AE32+'Pob x Genero'!BR32 -> 1,680 | AE32: ='Pob x Genero'!AF32+'Pob x Genero'!BS32 -> 1,556 | AF32: ='Pob x Genero'!AG32+'Pob x Genero'!BT32 -> 1,279 | AG32: ='Pob x Genero'!AH32+'Pob x Genero'!BU32 -> 989 | AH32: ='Pob x Genero'!AI32+'Pob x Genero'!BV32 -> 838 | AI32: ='Pob x Genero'!AJ32+'Pob x Genero'!BW32 -> 661 | AJ32: ='Pob x Genero'!AK32+'Pob x Genero'!BX32 -> 541 | AK32: ='Pob x Genero'!AL32+'Pob x Genero'!BY32 -> 338 | AL32: ='Pob x Genero'!AM32+'Pob x Genero'!BZ32 -> 232 | AM32: ='Pob x Genero'!AN32+'Pob x Genero'!CA32 -> 140 | AN32: ='Pob x Genero'!AO32+'Pob x Genero'!CB32 -> 95 | AO32: ='Pob x Genero'!AP32+'Pob x Genero'!CC32 -> 18 | AP32: ='Pob x Genero'!AQ32+'Pob x Genero'!CD32 -> 122 | AQ32: ='Pob x Genero'!AR32+'Pob x Genero'!CE32 -> 98 | AR32: ='Pob x Genero'!AS32+'Pob x Genero'!CF32 -> 280 | AS32: ='Pob x Genero'!AT32 -> 9,060 | AT32: =SUM('Pob x Genero'!BE32:BI32) -> 697 | AU32: =SUM('Pob x Genero'!BJ32:BN32) -> 626 | AV32: =SUM('Pob x Genero'!BO32:BT32) -> 4,401 | AW32: ='Pob x Genero'!CG32 -> 503 | AZ32: 17,940 | BA32: 3,092 | BB32: 1,482 | BC32: 3,344 | BD32: 8,015 | BE32: 2,007
A33: 040125 | B33: AREQUIPA | C33: AREQUIPA | D33: AREQUIPA | E33: VITOR | F33: 5,084 | G33: ='Pob x Genero'!H33+'Pob x Genero'!AU33 -> 53 | H33: ='Pob x Genero'!I33+'Pob x Genero'!AV33 -> 33 | I33: ='Pob x Genero'!J33+'Pob x Genero'!AW33 -> 38 | J33: ='Pob x Genero'!K33+'Pob x Genero'!AX33 -> 36 | K33: ='Pob x Genero'!L33+'Pob x Genero'!AY33 -> 34 | L33: ='Pob x Genero'!M33+'Pob x Genero'!AZ33 -> 45 | M33: ='Pob x Genero'!N33+'Pob x Genero'!BA33 -> 60 | N33: ='Pob x Genero'!O33+'Pob x Genero'!BB33 -> 87 | O33: ='Pob x Genero'!P33+'Pob x Genero'!BC33 -> 70 | P33: ='Pob x Genero'!Q33+'Pob x Genero'!BD33 -> 76 | Q33: ='Pob x Genero'!R33+'Pob x Genero'!BE33 -> 58 | R33: ='Pob x Genero'!S33+'Pob x Genero'!BF33 -> 84 | S33: ='Pob x Genero'!T33+'Pob x Genero'!BG33 -> 92 | T33: ='Pob x Genero'!U33+'Pob x Genero'!BH33 -> 85 | U33: ='Pob x Genero'!V33+'Pob x Genero'!BI33 -> 72 | V33: ='Pob x Genero'!W33+'Pob x Genero'!BJ33 -> 89 | W33: ='Pob x Genero'!X33+'Pob x Genero'!BK33 -> 85 | X33: ='Pob x Genero'!Y33+'Pob x Genero'!BL33 -> 94 | Y33: ='Pob x Genero'!Z33+'Pob x Genero'!BM33 -> 92 | Z33: ='Pob x Genero'!AA33+'Pob x Genero'!BN33 -> 89 | AA33: ='Pob x Genero'!AB33+'Pob x Genero'!BO33 -> 412 | AB33: ='Pob x Genero'!AC33+'Pob x Genero'!BP33 -> 463 | AC33: ='Pob x Genero'!AD33+'Pob x Genero'!BQ33 -> 435 | AD33: ='Pob x Genero'!AE33+'Pob x Genero'!BR33 -> 428 | AE33: ='Pob x Genero'!AF33+'Pob x Genero'!BS33 -> 368 | AF33: ='Pob x Genero'!AG33+'Pob x Genero'!BT33 -> 309 | AG33: ='Pob x Genero'!AH33+'Pob x Genero'!BU33 -> 274 | AH33: ='Pob x Genero'!AI33+'Pob x Genero'!BV33 -> 272 | AI33: ='Pob x Genero'!AJ33+'Pob x Genero'!BW33 -> 229 | AJ33: ='Pob x Genero'!AK33+'Pob x Genero'!BX33 -> 190 | AK33: ='Pob x Genero'!AL33+'Pob x Genero'!BY33 -> 130 | AL33: ='Pob x Genero'!AM33+'Pob x Genero'!BZ33 -> 78 | AM33: ='Pob x Genero'!AN33+'Pob x Genero'!CA33 -> 63 | AN33: ='Pob x Genero'!AO33+'Pob x Genero'!CB33 -> 61 | AO33: ='Pob x Genero'!AP33+'Pob x Genero'!CC33 -> 0 | AP33: ='Pob x Genero'!AQ33+'Pob x Genero'!CD33 -> 25 | AQ33: ='Pob x Genero'!AR33+'Pob x Genero'!CE33 -> 28 | AR33: ='Pob x Genero'!AS33+'Pob x Genero'!CF33 -> 71 | AS33: ='Pob x Genero'!AT33 -> 2,578 | AT33: =SUM('Pob x Genero'!BE33:BI33) -> 211 | AU33: =SUM('Pob x Genero'!BJ33:BN33) -> 236 | AV33: =SUM('Pob x Genero'!BO33:BT33) -> 1,238 | AW33: ='Pob x Genero'!CG33 -> 93 | AZ33: 5,084 | BA33: 674 | BB33: 517 | BC33: 1,056 | BD33: 2,086 | BE33: 751
A34: 040126 | B34: AREQUIPA | C34: AREQUIPA | D34: AREQUIPA | E34: YANAHUARA | F34: 28,122 | G34: ='Pob x Genero'!H34+'Pob x Genero'!AU34 -> 227 | H34: ='Pob x Genero'!I34+'Pob x Genero'!AV34 -> 218 | I34: ='Pob x Genero'!J34+'Pob x Genero'!AW34 -> 301 | J34: ='Pob x Genero'!K34+'Pob x Genero'!AX34 -> 392 | K34: ='Pob x Genero'!L34+'Pob x Genero'!AY34 -> 419 | L34: ='Pob x Genero'!M34+'Pob x Genero'!AZ34 -> 359 | M34: ='Pob x Genero'!N34+'Pob x Genero'!BA34 -> 382 | N34: ='Pob x Genero'!O34+'Pob x Genero'!BB34 -> 366 | O34: ='Pob x Genero'!P34+'Pob x Genero'!BC34 -> 398 | P34: ='Pob x Genero'!Q34+'Pob x Genero'!BD34 -> 410 | Q34: ='Pob x Genero'!R34+'Pob x Genero'!BE34 -> 374 | R34: ='Pob x Genero'!S34+'Pob x Genero'!BF34 -> 377 | S34: ='Pob x Genero'!T34+'Pob x Genero'!BG34 -> 359 | T34: ='Pob x Genero'!U34+'Pob x Genero'!BH34 -> 370 | U34: ='Pob x Genero'!V34+'Pob x Genero'!BI34 -> 323 | V34: ='Pob x Genero'!W34+'Pob x Genero'!BJ34 -> 305 | W34: ='Pob x Genero'!X34+'Pob x Genero'!BK34 -> 336 | X34: ='Pob x Genero'!Y34+'Pob x Genero'!BL34 -> 303 | Y34: ='Pob x Genero'!Z34+'Pob x Genero'!BM34 -> 338 | Z34: ='Pob x Genero'!AA34+'Pob x Genero'!BN34 -> 354 | AA34: ='Pob x Genero'!AB34+'Pob x Genero'!BO34 -> 1,658 | AB34: ='Pob x Genero'!AC34+'Pob x Genero'!BP34 -> 1,944 | AC34: ='Pob x Genero'!AD34+'Pob x Genero'!BQ34 -> 2,076 | AD34: ='Pob x Genero'!AE34+'Pob x Genero'!BR34 -> 1,987 | AE34: ='Pob x Genero'!AF34+'Pob x Genero'!BS34 -> 1,993 | AF34: ='Pob x Genero'!AG34+'Pob x Genero'!BT34 -> 2,063 | AG34: ='Pob x Genero'!AH34+'Pob x Genero'!BU34 -> 1,859 | AH34: ='Pob x Genero'!AI34+'Pob x Genero'!BV34 -> 1,664 | AI34: ='Pob x Genero'!AJ34+'Pob x Genero'!BW34 -> 1,525 | AJ34: ='Pob x Genero'!AK34+'Pob x Genero'!BX34 -> 1,319 | AK34: ='Pob x Genero'!AL34+'Pob x Genero'!BY34 -> 1,063 | AL34: ='Pob x Genero'!AM34+'Pob x Genero'!BZ34 -> 819 | AM34: ='Pob x Genero'!AN34+'Pob x Genero'!CA34 -> 580 | AN34: ='Pob x Genero'!AO34+'Pob x Genero'!CB34 -> 661 | AO34: ='Pob x Genero'!AP34+'Pob x Genero'!CC34 -> 19 | AP34: ='Pob x Genero'!AQ34+'Pob x Genero'!CD34 -> 141 | AQ34: ='Pob x Genero'!AR34+'Pob x Genero'!CE34 -> 86 | AR34: ='Pob x Genero'!AS34+'Pob x Genero'!CF34 -> 379 | AS34: ='Pob x Genero'!AT34 -> 14,334 | AT34: =SUM('Pob x Genero'!BE34:BI34) -> 820 | AU34: =SUM('Pob x Genero'!BJ34:BN34) -> 752 | AV34: =SUM('Pob x Genero'!BO34:BT34) -> 5,992 | AW34: ='Pob x Genero'!CG34 -> 557 | AZ34: 28,122 | BA34: 4,223 | BB34: 1,996 | BC34: 4,294 | BD34: 11,642 | BE34: 5,967
A35: 040127 | B35: AREQUIPA | C35: AREQUIPA | D35: AREQUIPA | E35: YARABAMBA | F35: 1,794 | G35: ='Pob x Genero'!H35+'Pob x Genero'!AU35 -> 49 | H35: ='Pob x Genero'!I35+'Pob x Genero'!AV35 -> 40 | I35: ='Pob x Genero'!J35+'Pob x Genero'!AW35 -> 31 | J35: ='Pob x Genero'!K35+'Pob x Genero'!AX35 -> 34 | K35: ='Pob x Genero'!L35+'Pob x Genero'!AY35 -> 23 | L35: ='Pob x Genero'!M35+'Pob x Genero'!AZ35 -> 24 | M35: ='Pob x Genero'!N35+'Pob x Genero'!BA35 -> 15 | N35: ='Pob x Genero'!O35+'Pob x Genero'!BB35 -> 20 | O35: ='Pob x Genero'!P35+'Pob x Genero'!BC35 -> 16 | P35: ='Pob x Genero'!Q35+'Pob x Genero'!BD35 -> 13 | Q35: ='Pob x Genero'!R35+'Pob x Genero'!BE35 -> 19 | R35: ='Pob x Genero'!S35+'Pob x Genero'!BF35 -> 16 | S35: ='Pob x Genero'!T35+'Pob x Genero'!BG35 -> 15 | T35: ='Pob x Genero'!U35+'Pob x Genero'!BH35 -> 13 | U35: ='Pob x Genero'!V35+'Pob x Genero'!BI35 -> 12 | V35: ='Pob x Genero'!W35+'Pob x Genero'!BJ35 -> 17 | W35: ='Pob x Genero'!X35+'Pob x Genero'!BK35 -> 15 | X35: ='Pob x Genero'!Y35+'Pob x Genero'!BL35 -> 15 | Y35: ='Pob x Genero'!Z35+'Pob x Genero'!BM35 -> 25 | Z35: ='Pob x Genero'!AA35+'Pob x Genero'!BN35 -> 19 | AA35: ='Pob x Genero'!AB35+'Pob x Genero'!BO35 -> 113 | AB35: ='Pob x Genero'!AC35+'Pob x Genero'!BP35 -> 163 | AC35: ='Pob x Genero'!AD35+'Pob x Genero'!BQ35 -> 191 | AD35: ='Pob x Genero'!AE35+'Pob x Genero'!BR35 -> 157 | AE35: ='Pob x Genero'!AF35+'Pob x Genero'!BS35 -> 146 | AF35: ='Pob x Genero'!AG35+'Pob x Genero'!BT35 -> 150 | AG35: ='Pob x Genero'!AH35+'Pob x Genero'!BU35 -> 107 | AH35: ='Pob x Genero'!AI35+'Pob x Genero'!BV35 -> 94 | AI35: ='Pob x Genero'!AJ35+'Pob x Genero'!BW35 -> 75 | AJ35: ='Pob x Genero'!AK35+'Pob x Genero'!BX35 -> 55 | AK35: ='Pob x Genero'!AL35+'Pob x Genero'!BY35 -> 46 | AL35: ='Pob x Genero'!AM35+'Pob x Genero'!BZ35 -> 26 | AM35: ='Pob x Genero'!AN35+'Pob x Genero'!CA35 -> 18 | AN35: ='Pob x Genero'!AO35+'Pob x Genero'!CB35 -> 22 | AO35: ='Pob x Genero'!AP35+'Pob x Genero'!CC35 -> 6 | AP35: ='Pob x Genero'!AQ35+'Pob x Genero'!CD35 -> 20 | AQ35: ='Pob x Genero'!AR35+'Pob x Genero'!CE35 -> 29 | AR35: ='Pob x Genero'!AS35+'Pob x Genero'!CF35 -> 66 | AS35: ='Pob x Genero'!AT35 -> 899 | AT35: =SUM('Pob x Genero'!BE35:BI35) -> 41 | AU35: =SUM('Pob x Genero'!BJ35:BN35) -> 44 | AV35: =SUM('Pob x Genero'!BO35:BT35) -> 445 | AW35: ='Pob x Genero'!CG35 -> 74 | AZ35: 1,794 | BA35: 300 | BB35: 87 | BC35: 320 | BD35: 845 | BE35: 242
A36: 040128 | B36: AREQUIPA | C36: AREQUIPA | D36: AREQUIPA | E36: YURA | F36: 46,147 | G36: ='Pob x Genero'!H36+'Pob x Genero'!AU36 -> 585 | H36: ='Pob x Genero'!I36+'Pob x Genero'!AV36 -> 592 | I36: ='Pob x Genero'!J36+'Pob x Genero'!AW36 -> 605 | J36: ='Pob x Genero'!K36+'Pob x Genero'!AX36 -> 766 | K36: ='Pob x Genero'!L36+'Pob x Genero'!AY36 -> 871 | L36: ='Pob x Genero'!M36+'Pob x Genero'!AZ36 -> 914 | M36: ='Pob x Genero'!N36+'Pob x Genero'!BA36 -> 983 | N36: ='Pob x Genero'!O36+'Pob x Genero'!BB36 -> 915 | O36: ='Pob x Genero'!P36+'Pob x Genero'!BC36 -> 911 | P36: ='Pob x Genero'!Q36+'Pob x Genero'!BD36 -> 800 | Q36: ='Pob x Genero'!R36+'Pob x Genero'!BE36 -> 844 | R36: ='Pob x Genero'!S36+'Pob x Genero'!BF36 -> 793 | S36: ='Pob x Genero'!T36+'Pob x Genero'!BG36 -> 867 | T36: ='Pob x Genero'!U36+'Pob x Genero'!BH36 -> 805 | U36: ='Pob x Genero'!V36+'Pob x Genero'!BI36 -> 697 | V36: ='Pob x Genero'!W36+'Pob x Genero'!BJ36 -> 714 | W36: ='Pob x Genero'!X36+'Pob x Genero'!BK36 -> 642 | X36: ='Pob x Genero'!Y36+'Pob x Genero'!BL36 -> 726 | Y36: ='Pob x Genero'!Z36+'Pob x Genero'!BM36 -> 802 | Z36: ='Pob x Genero'!AA36+'Pob x Genero'!BN36 -> 733 | AA36: ='Pob x Genero'!AB36+'Pob x Genero'!BO36 -> 3,858 | AB36: ='Pob x Genero'!AC36+'Pob x Genero'!BP36 -> 4,599 | AC36: ='Pob x Genero'!AD36+'Pob x Genero'!BQ36 -> 4,636 | AD36: ='Pob x Genero'!AE36+'Pob x Genero'!BR36 -> 3,969 | AE36: ='Pob x Genero'!AF36+'Pob x Genero'!BS36 -> 3,191 | AF36: ='Pob x Genero'!AG36+'Pob x Genero'!BT36 -> 2,666 | AG36: ='Pob x Genero'!AH36+'Pob x Genero'!BU36 -> 2,098 | AH36: ='Pob x Genero'!AI36+'Pob x Genero'!BV36 -> 1,725 | AI36: ='Pob x Genero'!AJ36+'Pob x Genero'!BW36 -> 1,277 | AJ36: ='Pob x Genero'!AK36+'Pob x Genero'!BX36 -> 1,044 | AK36: ='Pob x Genero'!AL36+'Pob x Genero'!BY36 -> 664 | AL36: ='Pob x Genero'!AM36+'Pob x Genero'!BZ36 -> 422 | AM36: ='Pob x Genero'!AN36+'Pob x Genero'!CA36 -> 230 | AN36: ='Pob x Genero'!AO36+'Pob x Genero'!CB36 -> 203 | AO36: ='Pob x Genero'!AP36+'Pob x Genero'!CC36 -> 56 | AP36: ='Pob x Genero'!AQ36+'Pob x Genero'!CD36 -> 270 | AQ36: ='Pob x Genero'!AR36+'Pob x Genero'!CE36 -> 315 | AR36: ='Pob x Genero'!AS36+'Pob x Genero'!CF36 -> 844 | AS36: ='Pob x Genero'!AT36 -> 23,439 | AT36: =SUM('Pob x Genero'!BE36:BI36) -> 1,992 | AU36: =SUM('Pob x Genero'!BJ36:BN36) -> 1,829 | AV36: =SUM('Pob x Genero'!BO36:BT36) -> 11,768 | AW36: ='Pob x Genero'!CG36 -> 1,195 | AZ36: 46,147 | BA36: 9,579 | BB36: 4,451 | BC36: 9,992 | BD36: 18,285 | BE36: 3,840
A37: 040129 | B37: AREQUIPA | C37: AREQUIPA | D37: AREQUIPA | E37: JOSE LUIS BUSTAMANTE Y RIVERO | F37: 85,718 | G37: ='Pob x Genero'!H37+'Pob x Genero'!AU37 -> 745 | H37: ='Pob x Genero'!I37+'Pob x Genero'!AV37 -> 757 | I37: ='Pob x Genero'!J37+'Pob x Genero'!AW37 -> 725 | J37: ='Pob x Genero'!K37+'Pob x Genero'!AX37 -> 908 | K37: ='Pob x Genero'!L37+'Pob x Genero'!AY37 -> 1,043 | L37: ='Pob x Genero'!M37+'Pob x Genero'!AZ37 -> 1,009 | M37: ='Pob x Genero'!N37+'Pob x Genero'!BA37 -> 1,245 | N37: ='Pob x Genero'!O37+'Pob x Genero'!BB37 -> 1,300 | O37: ='Pob x Genero'!P37+'Pob x Genero'!BC37 -> 1,332 | P37: ='Pob x Genero'!Q37+'Pob x Genero'!BD37 -> 1,263 | Q37: ='Pob x Genero'!R37+'Pob x Genero'!BE37 -> 1,239 | R37: ='Pob x Genero'!S37+'Pob x Genero'!BF37 -> 1,240 | S37: ='Pob x Genero'!T37+'Pob x Genero'!BG37 -> 1,329 | T37: ='Pob x Genero'!U37+'Pob x Genero'!BH37 -> 1,182 | U37: ='Pob x Genero'!V37+'Pob x Genero'!BI37 -> 1,164 | V37: ='Pob x Genero'!W37+'Pob x Genero'!BJ37 -> 1,167 | W37: ='Pob x Genero'!X37+'Pob x Genero'!BK37 -> 1,164 | X37: ='Pob x Genero'!Y37+'Pob x Genero'!BL37 -> 1,193 | Y37: ='Pob x Genero'!Z37+'Pob x Genero'!BM37 -> 1,170 | Z37: ='Pob x Genero'!AA37+'Pob x Genero'!BN37 -> 1,216 | AA37: ='Pob x Genero'!AB37+'Pob x Genero'!BO37 -> 6,484 | AB37: ='Pob x Genero'!AC37+'Pob x Genero'!BP37 -> 7,240 | AC37: ='Pob x Genero'!AD37+'Pob x Genero'!BQ37 -> 7,391 | AD37: ='Pob x Genero'!AE37+'Pob x Genero'!BR37 -> 6,697 | AE37: ='Pob x Genero'!AF37+'Pob x Genero'!BS37 -> 6,535 | AF37: ='Pob x Genero'!AG37+'Pob x Genero'!BT37 -> 5,973 | AG37: ='Pob x Genero'!AH37+'Pob x Genero'!BU37 -> 5,075 | AH37: ='Pob x Genero'!AI37+'Pob x Genero'!BV37 -> 4,289 | AI37: ='Pob x Genero'!AJ37+'Pob x Genero'!BW37 -> 3,626 | AJ37: ='Pob x Genero'!AK37+'Pob x Genero'!BX37 -> 3,049 | AK37: ='Pob x Genero'!AL37+'Pob x Genero'!BY37 -> 2,550 | AL37: ='Pob x Genero'!AM37+'Pob x Genero'!BZ37 -> 1,958 | AM37: ='Pob x Genero'!AN37+'Pob x Genero'!CA37 -> 1,270 | AN37: ='Pob x Genero'!AO37+'Pob x Genero'!CB37 -> 1,190 | AO37: ='Pob x Genero'!AP37+'Pob x Genero'!CC37 -> 54 | AP37: ='Pob x Genero'!AQ37+'Pob x Genero'!CD37 -> 381 | AQ37: ='Pob x Genero'!AR37+'Pob x Genero'!CE37 -> 364 | AR37: ='Pob x Genero'!AS37+'Pob x Genero'!CF37 -> 965 | AS37: ='Pob x Genero'!AT37 -> 43,563 | AT37: =SUM('Pob x Genero'!BE37:BI37) -> 3,019 | AU37: =SUM('Pob x Genero'!BJ37:BN37) -> 2,963 | AV37: =SUM('Pob x Genero'!BO37:BT37) -> 20,015 | AW37: ='Pob x Genero'!CG37 -> 1,691 | AZ37: 85,718 | BA37: 12,806 | BB37: 7,199 | BC37: 16,110 | BD37: 35,960 | BE37: 13,643
A38: 040201 | B38: AREQUIPA | C38: AREQUIPA | D38: CAMANA | E38: CAMANA | F38: 13,589 | G38: ='Pob x Genero'!H38+'Pob x Genero'!AU38 -> 138 | H38: ='Pob x Genero'!I38+'Pob x Genero'!AV38 -> 81 | I38: ='Pob x Genero'!J38+'Pob x Genero'!AW38 -> 30 | J38: ='Pob x Genero'!K38+'Pob x Genero'!AX38 -> 13 | K38: ='Pob x Genero'!L38+'Pob x Genero'!AY38 -> 80 | L38: ='Pob x Genero'!M38+'Pob x Genero'!AZ38 -> 81 | M38: ='Pob x Genero'!N38+'Pob x Genero'!BA38 -> 210 | N38: ='Pob x Genero'!O38+'Pob x Genero'!BB38 -> 237 | O38: ='Pob x Genero'!P38+'Pob x Genero'!BC38 -> 245 | P38: ='Pob x Genero'!Q38+'Pob x Genero'!BD38 -> 205 | Q38: ='Pob x Genero'!R38+'Pob x Genero'!BE38 -> 229 | R38: ='Pob x Genero'!S38+'Pob x Genero'!BF38 -> 224 | S38: ='Pob x Genero'!T38+'Pob x Genero'!BG38 -> 230 | T38: ='Pob x Genero'!U38+'Pob x Genero'!BH38 -> 246 | U38: ='Pob x Genero'!V38+'Pob x Genero'!BI38 -> 239 | V38: ='Pob x Genero'!W38+'Pob x Genero'!BJ38 -> 259 | W38: ='Pob x Genero'!X38+'Pob x Genero'!BK38 -> 224 | X38: ='Pob x Genero'!Y38+'Pob x Genero'!BL38 -> 247 | Y38: ='Pob x Genero'!Z38+'Pob x Genero'!BM38 -> 220 | Z38: ='Pob x Genero'!AA38+'Pob x Genero'!BN38 -> 230 | AA38: ='Pob x Genero'!AB38+'Pob x Genero'!BO38 -> 1,163 | AB38: ='Pob x Genero'!AC38+'Pob x Genero'!BP38 -> 1,154 | AC38: ='Pob x Genero'!AD38+'Pob x Genero'!BQ38 -> 1,105 | AD38: ='Pob x Genero'!AE38+'Pob x Genero'!BR38 -> 921 | AE38: ='Pob x Genero'!AF38+'Pob x Genero'!BS38 -> 863 | AF38: ='Pob x Genero'!AG38+'Pob x Genero'!BT38 -> 898 | AG38: ='Pob x Genero'!AH38+'Pob x Genero'!BU38 -> 849 | AH38: ='Pob x Genero'!AI38+'Pob x Genero'!BV38 -> 747 | AI38: ='Pob x Genero'!AJ38+'Pob x Genero'!BW38 -> 689 | AJ38: ='Pob x Genero'!AK38+'Pob x Genero'!BX38 -> 512 | AK38: ='Pob x Genero'!AL38+'Pob x Genero'!BY38 -> 380 | AL38: ='Pob x Genero'!AM38+'Pob x Genero'!BZ38 -> 270 | AM38: ='Pob x Genero'!AN38+'Pob x Genero'!CA38 -> 195 | AN38: ='Pob x Genero'!AO38+'Pob x Genero'!CB38 -> 175 | AO38: ='Pob x Genero'!AP38+'Pob x Genero'!CC38 -> 12 | AP38: ='Pob x Genero'!AQ38+'Pob x Genero'!CD38 -> 81 | AQ38: ='Pob x Genero'!AR38+'Pob x Genero'!CE38 -> 57 | AR38: ='Pob x Genero'!AS38+'Pob x Genero'!CF38 -> 200 | AS38: ='Pob x Genero'!AT38 -> 6,878 | AT38: =SUM('Pob x Genero'!BE38:BI38) -> 570 | AU38: =SUM('Pob x Genero'!BJ38:BN38) -> 610 | AV38: =SUM('Pob x Genero'!BO38:BT38) -> 3,042 | AW38: ='Pob x Genero'!CG38 -> 225 | AZ38: 13,589 | BA38: 1,773 | BB38: 1,445 | BC38: 2,767 | BD38: 5,383 | BE38: 2,221
A39: 040202 | B39: AREQUIPA | C39: AREQUIPA | D39: CAMANA | E39: JOSE MARIA QUIMPER | F39: 5,306 | G39: ='Pob x Genero'!H39+'Pob x Genero'!AU39 -> 82 | H39: ='Pob x Genero'!I39+'Pob x Genero'!AV39 -> 66 | I39: ='Pob x Genero'!J39+'Pob x Genero'!AW39 -> 46 | J39: ='Pob x Genero'!K39+'Pob x Genero'!AX39 -> 77 | K39: ='Pob x Genero'!L39+'Pob x Genero'!AY39 -> 80 | L39: ='Pob x Genero'!M39+'Pob x Genero'!AZ39 -> 88 | M39: ='Pob x Genero'!N39+'Pob x Genero'!BA39 -> 80 | N39: ='Pob x Genero'!O39+'Pob x Genero'!BB39 -> 115 | O39: ='Pob x Genero'!P39+'Pob x Genero'!BC39 -> 108 | P39: ='Pob x Genero'!Q39+'Pob x Genero'!BD39 -> 73 | Q39: ='Pob x Genero'!R39+'Pob x Genero'!BE39 -> 70 | R39: ='Pob x Genero'!S39+'Pob x Genero'!BF39 -> 97 | S39: ='Pob x Genero'!T39+'Pob x Genero'!BG39 -> 95 | T39: ='Pob x Genero'!U39+'Pob x Genero'!BH39 -> 79 | U39: ='Pob x Genero'!V39+'Pob x Genero'!BI39 -> 78 | V39: ='Pob x Genero'!W39+'Pob x Genero'!BJ39 -> 80 | W39: ='Pob x Genero'!X39+'Pob x Genero'!BK39 -> 80 | X39: ='Pob x Genero'!Y39+'Pob x Genero'!BL39 -> 65 | Y39: ='Pob x Genero'!Z39+'Pob x Genero'!BM39 -> 72 | Z39: ='Pob x Genero'!AA39+'Pob x Genero'!BN39 -> 67 | AA39: ='Pob x Genero'!AB39+'Pob x Genero'!BO39 -> 347 | AB39: ='Pob x Genero'!AC39+'Pob x Genero'!BP39 -> 463 | AC39: ='Pob x Genero'!AD39+'Pob x Genero'!BQ39 -> 430 | AD39: ='Pob x Genero'!AE39+'Pob x Genero'!BR39 -> 424 | AE39: ='Pob x Genero'!AF39+'Pob x Genero'!BS39 -> 363 | AF39: ='Pob x Genero'!AG39+'Pob x Genero'!BT39 -> 322 | AG39: ='Pob x Genero'!AH39+'Pob x Genero'!BU39 -> 279 | AH39: ='Pob x Genero'!AI39+'Pob x Genero'!BV39 -> 283 | AI39: ='Pob x Genero'!AJ39+'Pob x Genero'!BW39 -> 265 | AJ39: ='Pob x Genero'!AK39+'Pob x Genero'!BX39 -> 222 | AK39: ='Pob x Genero'!AL39+'Pob x Genero'!BY39 -> 126 | AL39: ='Pob x Genero'!AM39+'Pob x Genero'!BZ39 -> 82 | AM39: ='Pob x Genero'!AN39+'Pob x Genero'!CA39 -> 54 | AN39: ='Pob x Genero'!AO39+'Pob x Genero'!CB39 -> 48 | AO39: ='Pob x Genero'!AP39+'Pob x Genero'!CC39 -> 5 | AP39: ='Pob x Genero'!AQ39+'Pob x Genero'!CD39 -> 43 | AQ39: ='Pob x Genero'!AR39+'Pob x Genero'!CE39 -> 39 | AR39: ='Pob x Genero'!AS39+'Pob x Genero'!CF39 -> 103 | AS39: ='Pob x Genero'!AT39 -> 2,689 | AT39: =SUM('Pob x Genero'!BE39:BI39) -> 218 | AU39: =SUM('Pob x Genero'!BJ39:BN39) -> 194 | AV39: =SUM('Pob x Genero'!BO39:BT39) -> 1,205 | AW39: ='Pob x Genero'!CG39 -> 110 | AZ39: 5,306 | BA39: 982 | BB39: 477 | BC39: 949 | BD39: 2,101 | BE39: 797
A40: 040203 | B40: AREQUIPA | C40: AREQUIPA | D40: CAMANA | E40: MARIANO NICOLAS VALCARCEL | F40: 8,909 | G40: ='Pob x Genero'!H40+'Pob x Genero'!AU40 -> 136 | H40: ='Pob x Genero'!I40+'Pob x Genero'!AV40 -> 150 | I40: ='Pob x Genero'!J40+'Pob x Genero'!AW40 -> 176 | J40: ='Pob x Genero'!K40+'Pob x Genero'!AX40 -> 162 | K40: ='Pob x Genero'!L40+'Pob x Genero'!AY40 -> 214 | L40: ='Pob x Genero'!M40+'Pob x Genero'!AZ40 -> 276 | M40: ='Pob x Genero'!N40+'Pob x Genero'!BA40 -> 162 | N40: ='Pob x Genero'!O40+'Pob x Genero'!BB40 -> 126 | O40: ='Pob x Genero'!P40+'Pob x Genero'!BC40 -> 103 | P40: ='Pob x Genero'!Q40+'Pob x Genero'!BD40 -> 140 | Q40: ='Pob x Genero'!R40+'Pob x Genero'!BE40 -> 127 | R40: ='Pob x Genero'!S40+'Pob x Genero'!BF40 -> 169 | S40: ='Pob x Genero'!T40+'Pob x Genero'!BG40 -> 163 | T40: ='Pob x Genero'!U40+'Pob x Genero'!BH40 -> 131 | U40: ='Pob x Genero'!V40+'Pob x Genero'!BI40 -> 126 | V40: ='Pob x Genero'!W40+'Pob x Genero'!BJ40 -> 97 | W40: ='Pob x Genero'!X40+'Pob x Genero'!BK40 -> 101 | X40: ='Pob x Genero'!Y40+'Pob x Genero'!BL40 -> 94 | Y40: ='Pob x Genero'!Z40+'Pob x Genero'!BM40 -> 73 | Z40: ='Pob x Genero'!AA40+'Pob x Genero'!BN40 -> 43 | AA40: ='Pob x Genero'!AB40+'Pob x Genero'!BO40 -> 348 | AB40: ='Pob x Genero'!AC40+'Pob x Genero'!BP40 -> 647 | AC40: ='Pob x Genero'!AD40+'Pob x Genero'!BQ40 -> 1,056 | AD40: ='Pob x Genero'!AE40+'Pob x Genero'!BR40 -> 1,018 | AE40: ='Pob x Genero'!AF40+'Pob x Genero'!BS40 -> 775 | AF40: ='Pob x Genero'!AG40+'Pob x Genero'!BT40 -> 656 | AG40: ='Pob x Genero'!AH40+'Pob x Genero'!BU40 -> 529 | AH40: ='Pob x Genero'!AI40+'Pob x Genero'!BV40 -> 492 | AI40: ='Pob x Genero'!AJ40+'Pob x Genero'!BW40 -> 283 | AJ40: ='Pob x Genero'!AK40+'Pob x Genero'!BX40 -> 174 | AK40: ='Pob x Genero'!AL40+'Pob x Genero'!BY40 -> 77 | AL40: ='Pob x Genero'!AM40+'Pob x Genero'!BZ40 -> 37 | AM40: ='Pob x Genero'!AN40+'Pob x Genero'!CA40 -> 32 | AN40: ='Pob x Genero'!AO40+'Pob x Genero'!CB40 -> 16 | AO40: ='Pob x Genero'!AP40+'Pob x Genero'!CC40 -> 9 | AP40: ='Pob x Genero'!AQ40+'Pob x Genero'!CD40 -> 76 | AQ40: ='Pob x Genero'!AR40+'Pob x Genero'!CE40 -> 60 | AR40: ='Pob x Genero'!AS40+'Pob x Genero'!CF40 -> 236 | AS40: ='Pob x Genero'!AT40 -> 4,488 | AT40: =SUM('Pob x Genero'!BE40:BI40) -> 413 | AU40: =SUM('Pob x Genero'!BJ40:BN40) -> 215 | AV40: =SUM('Pob x Genero'!BO40:BT40) -> 2,426 | AW40: ='Pob x Genero'!CG40 -> 201 | AZ40: 8,909 | BA40: 1,941 | BB40: 712 | BC40: 1,111 | BD40: 4,526 | BE40: 619
A41: 040204 | B41: AREQUIPA | C41: AREQUIPA | D41: CAMANA | E41: MARISCAL CACERES | F41: 7,394 | G41: ='Pob x Genero'!H41+'Pob x Genero'!AU41 -> 106 | H41: ='Pob x Genero'!I41+'Pob x Genero'!AV41 -> 79 | I41: ='Pob x Genero'!J41+'Pob x Genero'!AW41 -> 76 | J41: ='Pob x Genero'!K41+'Pob x Genero'!AX41 -> 108 | K41: ='Pob x Genero'!L41+'Pob x Genero'!AY41 -> 94 | L41: ='Pob x Genero'!M41+'Pob x Genero'!AZ41 -> 104 | M41: ='Pob x Genero'!N41+'Pob x Genero'!BA41 -> 106 | N41: ='Pob x Genero'!O41+'Pob x Genero'!BB41 -> 107 | O41: ='Pob x Genero'!P41+'Pob x Genero'!BC41 -> 118 | P41: ='Pob x Genero'!Q41+'Pob x Genero'!BD41 -> 107 | Q41: ='Pob x Genero'!R41+'Pob x Genero'!BE41 -> 103 | R41: ='Pob x Genero'!S41+'Pob x Genero'!BF41 -> 113 | S41: ='Pob x Genero'!T41+'Pob x Genero'!BG41 -> 101 | T41: ='Pob x Genero'!U41+'Pob x Genero'!BH41 -> 102 | U41: ='Pob x Genero'!V41+'Pob x Genero'!BI41 -> 107 | V41: ='Pob x Genero'!W41+'Pob x Genero'!BJ41 -> 108 | W41: ='Pob x Genero'!X41+'Pob x Genero'!BK41 -> 106 | X41: ='Pob x Genero'!Y41+'Pob x Genero'!BL41 -> 113 | Y41: ='Pob x Genero'!Z41+'Pob x Genero'!BM41 -> 114 | Z41: ='Pob x Genero'!AA41+'Pob x Genero'!BN41 -> 97 | AA41: ='Pob x Genero'!AB41+'Pob x Genero'!BO41 -> 463 | AB41: ='Pob x Genero'!AC41+'Pob x Genero'!BP41 -> 681 | AC41: ='Pob x Genero'!AD41+'Pob x Genero'!BQ41 -> 632 | AD41: ='Pob x Genero'!AE41+'Pob x Genero'!BR41 -> 622 | AE41: ='Pob x Genero'!AF41+'Pob x Genero'!BS41 -> 567 | AF41: ='Pob x Genero'!AG41+'Pob x Genero'!BT41 -> 541 | AG41: ='Pob x Genero'!AH41+'Pob x Genero'!BU41 -> 483 | AH41: ='Pob x Genero'!AI41+'Pob x Genero'!BV41 -> 388 | AI41: ='Pob x Genero'!AJ41+'Pob x Genero'!BW41 -> 320 | AJ41: ='Pob x Genero'!AK41+'Pob x Genero'!BX41 -> 252 | AK41: ='Pob x Genero'!AL41+'Pob x Genero'!BY41 -> 162 | AL41: ='Pob x Genero'!AM41+'Pob x Genero'!BZ41 -> 91 | AM41: ='Pob x Genero'!AN41+'Pob x Genero'!CA41 -> 67 | AN41: ='Pob x Genero'!AO41+'Pob x Genero'!CB41 -> 56 | AO41: ='Pob x Genero'!AP41+'Pob x Genero'!CC41 -> 7 | AP41: ='Pob x Genero'!AQ41+'Pob x Genero'!CD41 -> 53 | AQ41: ='Pob x Genero'!AR41+'Pob x Genero'!CE41 -> 53 | AR41: ='Pob x Genero'!AS41+'Pob x Genero'!CF41 -> 125 | AS41: ='Pob x Genero'!AT41 -> 3,743 | AT41: =SUM('Pob x Genero'!BE41:BI41) -> 250 | AU41: =SUM('Pob x Genero'!BJ41:BN41) -> 277 | AV41: =SUM('Pob x Genero'!BO41:BT41) -> 1,821 | AW41: ='Pob x Genero'!CG41 -> 282 | AZ41: 7,394 | BA41: 1,221 | BB41: 637 | BC41: 1,355 | BD41: 3,233 | BE41: 948
A42: 040205 | B42: AREQUIPA | C42: AREQUIPA | D42: CAMANA | E42: NICOLAS DE PIEROLA | F42: 8,512 | G42: ='Pob x Genero'!H42+'Pob x Genero'!AU42 -> 95 | H42: ='Pob x Genero'!I42+'Pob x Genero'!AV42 -> 91 | I42: ='Pob x Genero'!J42+'Pob x Genero'!AW42 -> 82 | J42: ='Pob x Genero'!K42+'Pob x Genero'!AX42 -> 120 | K42: ='Pob x Genero'!L42+'Pob x Genero'!AY42 -> 108 | L42: ='Pob x Genero'!M42+'Pob x Genero'!AZ42 -> 133 | M42: ='Pob x Genero'!N42+'Pob x Genero'!BA42 -> 124 | N42: ='Pob x Genero'!O42+'Pob x Genero'!BB42 -> 161 | O42: ='Pob x Genero'!P42+'Pob x Genero'!BC42 -> 147 | P42: ='Pob x Genero'!Q42+'Pob x Genero'!BD42 -> 138 | Q42: ='Pob x Genero'!R42+'Pob x Genero'!BE42 -> 147 | R42: ='Pob x Genero'!S42+'Pob x Genero'!BF42 -> 146 | S42: ='Pob x Genero'!T42+'Pob x Genero'!BG42 -> 149 | T42: ='Pob x Genero'!U42+'Pob x Genero'!BH42 -> 153 | U42: ='Pob x Genero'!V42+'Pob x Genero'!BI42 -> 127 | V42: ='Pob x Genero'!W42+'Pob x Genero'!BJ42 -> 129 | W42: ='Pob x Genero'!X42+'Pob x Genero'!BK42 -> 138 | X42: ='Pob x Genero'!Y42+'Pob x Genero'!BL42 -> 126 | Y42: ='Pob x Genero'!Z42+'Pob x Genero'!BM42 -> 134 | Z42: ='Pob x Genero'!AA42+'Pob x Genero'!BN42 -> 127 | AA42: ='Pob x Genero'!AB42+'Pob x Genero'!BO42 -> 588 | AB42: ='Pob x Genero'!AC42+'Pob x Genero'!BP42 -> 673 | AC42: ='Pob x Genero'!AD42+'Pob x Genero'!BQ42 -> 695 | AD42: ='Pob x Genero'!AE42+'Pob x Genero'!BR42 -> 671 | AE42: ='Pob x Genero'!AF42+'Pob x Genero'!BS42 -> 604 | AF42: ='Pob x Genero'!AG42+'Pob x Genero'!BT42 -> 560 | AG42: ='Pob x Genero'!AH42+'Pob x Genero'!BU42 -> 514 | AH42: ='Pob x Genero'!AI42+'Pob x Genero'!BV42 -> 461 | AI42: ='Pob x Genero'!AJ42+'Pob x Genero'!BW42 -> 386 | AJ42: ='Pob x Genero'!AK42+'Pob x Genero'!BX42 -> 289 | AK42: ='Pob x Genero'!AL42+'Pob x Genero'!BY42 -> 201 | AL42: ='Pob x Genero'!AM42+'Pob x Genero'!BZ42 -> 140 | AM42: ='Pob x Genero'!AN42+'Pob x Genero'!CA42 -> 82 | AN42: ='Pob x Genero'!AO42+'Pob x Genero'!CB42 -> 73 | AO42: ='Pob x Genero'!AP42+'Pob x Genero'!CC42 -> 7 | AP42: ='Pob x Genero'!AQ42+'Pob x Genero'!CD42 -> 43 | AQ42: ='Pob x Genero'!AR42+'Pob x Genero'!CE42 -> 52 | AR42: ='Pob x Genero'!AS42+'Pob x Genero'!CF42 -> 134 | AS42: ='Pob x Genero'!AT42 -> 4,313 | AT42: =SUM('Pob x Genero'!BE42:BI42) -> 349 | AU42: =SUM('Pob x Genero'!BJ42:BN42) -> 320 | AV42: =SUM('Pob x Genero'!BO42:BT42) -> 1,978 | AW42: ='Pob x Genero'!CG42 -> 232 | AZ42: 8,512 | BA42: 1,492 | BB42: 822 | BC42: 1,522 | BD42: 3,505 | BE42: 1,171
A43: 040206 | B43: AREQUIPA | C43: AREQUIPA | D43: CAMANA | E43: OCOÑA | F43: 4,330 | G43: ='Pob x Genero'!H43+'Pob x Genero'!AU43 -> 54 | H43: ='Pob x Genero'!I43+'Pob x Genero'!AV43 -> 41 | I43: ='Pob x Genero'!J43+'Pob x Genero'!AW43 -> 44 | J43: ='Pob x Genero'!K43+'Pob x Genero'!AX43 -> 66 | K43: ='Pob x Genero'!L43+'Pob x Genero'!AY43 -> 59 | L43: ='Pob x Genero'!M43+'Pob x Genero'!AZ43 -> 54 | M43: ='Pob x Genero'!N43+'Pob x Genero'!BA43 -> 66 | N43: ='Pob x Genero'!O43+'Pob x Genero'!BB43 -> 71 | O43: ='Pob x Genero'!P43+'Pob x Genero'!BC43 -> 61 | P43: ='Pob x Genero'!Q43+'Pob x Genero'!BD43 -> 49 | Q43: ='Pob x Genero'!R43+'Pob x Genero'!BE43 -> 61 | R43: ='Pob x Genero'!S43+'Pob x Genero'!BF43 -> 58 | S43: ='Pob x Genero'!T43+'Pob x Genero'!BG43 -> 52 | T43: ='Pob x Genero'!U43+'Pob x Genero'!BH43 -> 57 | U43: ='Pob x Genero'!V43+'Pob x Genero'!BI43 -> 63 | V43: ='Pob x Genero'!W43+'Pob x Genero'!BJ43 -> 69 | W43: ='Pob x Genero'!X43+'Pob x Genero'!BK43 -> 63 | X43: ='Pob x Genero'!Y43+'Pob x Genero'!BL43 -> 84 | Y43: ='Pob x Genero'!Z43+'Pob x Genero'!BM43 -> 56 | Z43: ='Pob x Genero'!AA43+'Pob x Genero'!BN43 -> 53 | AA43: ='Pob x Genero'!AB43+'Pob x Genero'!BO43 -> 265 | AB43: ='Pob x Genero'!AC43+'Pob x Genero'!BP43 -> 348 | AC43: ='Pob x Genero'!AD43+'Pob x Genero'!BQ43 -> 280 | AD43: ='Pob x Genero'!AE43+'Pob x Genero'!BR43 -> 313 | AE43: ='Pob x Genero'!AF43+'Pob x Genero'!BS43 -> 317 | AF43: ='Pob x Genero'!AG43+'Pob x Genero'!BT43 -> 285 | AG43: ='Pob x Genero'!AH43+'Pob x Genero'!BU43 -> 294 | AH43: ='Pob x Genero'!AI43+'Pob x Genero'!BV43 -> 266 | AI43: ='Pob x Genero'!AJ43+'Pob x Genero'!BW43 -> 244 | AJ43: ='Pob x Genero'!AK43+'Pob x Genero'!BX43 -> 188 | AK43: ='Pob x Genero'!AL43+'Pob x Genero'!BY43 -> 147 | AL43: ='Pob x Genero'!AM43+'Pob x Genero'!BZ43 -> 85 | AM43: ='Pob x Genero'!AN43+'Pob x Genero'!CA43 -> 59 | AN43: ='Pob x Genero'!AO43+'Pob x Genero'!CB43 -> 58 | AO43: ='Pob x Genero'!AP43+'Pob x Genero'!CC43 -> 3 | AP43: ='Pob x Genero'!AQ43+'Pob x Genero'!CD43 -> 25 | AQ43: ='Pob x Genero'!AR43+'Pob x Genero'!CE43 -> 29 | AR43: ='Pob x Genero'!AS43+'Pob x Genero'!CF43 -> 91 | AS43: ='Pob x Genero'!AT43 -> 2,196 | AT43: =SUM('Pob x Genero'!BE43:BI43) -> 152 | AU43: =SUM('Pob x Genero'!BJ43:BN43) -> 172 | AV43: =SUM('Pob x Genero'!BO43:BT43) -> 952 | AW43: ='Pob x Genero'!CG43 -> 92 | AZ43: 4,330 | BA43: 684 | BB43: 388 | BC43: 722 | BD43: 1,755 | BE43: 781
A44: 040207 | B44: AREQUIPA | C44: AREQUIPA | D44: CAMANA | E44: QUILCA | F44: 1,250 | G44: ='Pob x Genero'!H44+'Pob x Genero'!AU44 -> 17 | H44: ='Pob x Genero'!I44+'Pob x Genero'!AV44 -> 17 | I44: ='Pob x Genero'!J44+'Pob x Genero'!AW44 -> 15 | J44: ='Pob x Genero'!K44+'Pob x Genero'!AX44 -> 11 | K44: ='Pob x Genero'!L44+'Pob x Genero'!AY44 -> 13 | L44: ='Pob x Genero'!M44+'Pob x Genero'!AZ44 -> 15 | M44: ='Pob x Genero'!N44+'Pob x Genero'!BA44 -> 21 | N44: ='Pob x Genero'!O44+'Pob x Genero'!BB44 -> 16 | O44: ='Pob x Genero'!P44+'Pob x Genero'!BC44 -> 11 | P44: ='Pob x Genero'!Q44+'Pob x Genero'!BD44 -> 19 | Q44: ='Pob x Genero'!R44+'Pob x Genero'!BE44 -> 16 | R44: ='Pob x Genero'!S44+'Pob x Genero'!BF44 -> 17 | S44: ='Pob x Genero'!T44+'Pob x Genero'!BG44 -> 12 | T44: ='Pob x Genero'!U44+'Pob x Genero'!BH44 -> 18 | U44: ='Pob x Genero'!V44+'Pob x Genero'!BI44 -> 21 | V44: ='Pob x Genero'!W44+'Pob x Genero'!BJ44 -> 16 | W44: ='Pob x Genero'!X44+'Pob x Genero'!BK44 -> 18 | X44: ='Pob x Genero'!Y44+'Pob x Genero'!BL44 -> 18 | Y44: ='Pob x Genero'!Z44+'Pob x Genero'!BM44 -> 10 | Z44: ='Pob x Genero'!AA44+'Pob x Genero'!BN44 -> 16 | AA44: ='Pob x Genero'!AB44+'Pob x Genero'!BO44 -> 65 | AB44: ='Pob x Genero'!AC44+'Pob x Genero'!BP44 -> 93 | AC44: ='Pob x Genero'!AD44+'Pob x Genero'!BQ44 -> 111 | AD44: ='Pob x Genero'!AE44+'Pob x Genero'!BR44 -> 114 | AE44: ='Pob x Genero'!AF44+'Pob x Genero'!BS44 -> 97 | AF44: ='Pob x Genero'!AG44+'Pob x Genero'!BT44 -> 89 | AG44: ='Pob x Genero'!AH44+'Pob x Genero'!BU44 -> 83 | AH44: ='Pob x Genero'!AI44+'Pob x Genero'!BV44 -> 66 | AI44: ='Pob x Genero'!AJ44+'Pob x Genero'!BW44 -> 81 | AJ44: ='Pob x Genero'!AK44+'Pob x Genero'!BX44 -> 45 | AK44: ='Pob x Genero'!AL44+'Pob x Genero'!BY44 -> 37 | AL44: ='Pob x Genero'!AM44+'Pob x Genero'!BZ44 -> 24 | AM44: ='Pob x Genero'!AN44+'Pob x Genero'!CA44 -> 14 | AN44: ='Pob x Genero'!AO44+'Pob x Genero'!CB44 -> 14 | AO44: ='Pob x Genero'!AP44+'Pob x Genero'!CC44 -> 1 | AP44: ='Pob x Genero'!AQ44+'Pob x Genero'!CD44 -> 12 | AQ44: ='Pob x Genero'!AR44+'Pob x Genero'!CE44 -> 5 | AR44: ='Pob x Genero'!AS44+'Pob x Genero'!CF44 -> 31 | AS44: ='Pob x Genero'!AT44 -> 623 | AT44: =SUM('Pob x Genero'!BE44:BI44) -> 48 | AU44: =SUM('Pob x Genero'!BJ44:BN44) -> 43 | AV44: =SUM('Pob x Genero'!BO44:BT44) -> 296 | AW44: ='Pob x Genero'!CG44 -> 38 | AZ44: 1,250 | BA44: 188 | BB44: 103 | BC44: 184 | BD44: 560 | BE44: 215
A45: 040208 | B45: AREQUIPA | C45: AREQUIPA | D45: CAMANA | E45: SAMUEL PASTOR | F45: 17,615 | G45: ='Pob x Genero'!H45+'Pob x Genero'!AU45 -> 236 | H45: ='Pob x Genero'!I45+'Pob x Genero'!AV45 -> 257 | I45: ='Pob x Genero'!J45+'Pob x Genero'!AW45 -> 244 | J45: ='Pob x Genero'!K45+'Pob x Genero'!AX45 -> 307 | K45: ='Pob x Genero'!L45+'Pob x Genero'!AY45 -> 322 | L45: ='Pob x Genero'!M45+'Pob x Genero'!AZ45 -> 331 | M45: ='Pob x Genero'!N45+'Pob x Genero'!BA45 -> 328 | N45: ='Pob x Genero'!O45+'Pob x Genero'!BB45 -> 320 | O45: ='Pob x Genero'!P45+'Pob x Genero'!BC45 -> 319 | P45: ='Pob x Genero'!Q45+'Pob x Genero'!BD45 -> 294 | Q45: ='Pob x Genero'!R45+'Pob x Genero'!BE45 -> 282 | R45: ='Pob x Genero'!S45+'Pob x Genero'!BF45 -> 335 | S45: ='Pob x Genero'!T45+'Pob x Genero'!BG45 -> 316 | T45: ='Pob x Genero'!U45+'Pob x Genero'!BH45 -> 280 | U45: ='Pob x Genero'!V45+'Pob x Genero'!BI45 -> 287 | V45: ='Pob x Genero'!W45+'Pob x Genero'!BJ45 -> 283 | W45: ='Pob x Genero'!X45+'Pob x Genero'!BK45 -> 287 | X45: ='Pob x Genero'!Y45+'Pob x Genero'!BL45 -> 281 | Y45: ='Pob x Genero'!Z45+'Pob x Genero'!BM45 -> 285 | Z45: ='Pob x Genero'!AA45+'Pob x Genero'!BN45 -> 263 | AA45: ='Pob x Genero'!AB45+'Pob x Genero'!BO45 -> 1,357 | AB45: ='Pob x Genero'!AC45+'Pob x Genero'!BP45 -> 1,538 | AC45: ='Pob x Genero'!AD45+'Pob x Genero'!BQ45 -> 1,451 | AD45: ='Pob x Genero'!AE45+'Pob x Genero'!BR45 -> 1,405 | AE45: ='Pob x Genero'!AF45+'Pob x Genero'!BS45 -> 1,225 | AF45: ='Pob x Genero'!AG45+'Pob x Genero'!BT45 -> 1,128 | AG45: ='Pob x Genero'!AH45+'Pob x Genero'!BU45 -> 994 | AH45: ='Pob x Genero'!AI45+'Pob x Genero'!BV45 -> 813 | AI45: ='Pob x Genero'!AJ45+'Pob x Genero'!BW45 -> 664 | AJ45: ='Pob x Genero'!AK45+'Pob x Genero'!BX45 -> 461 | AK45: ='Pob x Genero'!AL45+'Pob x Genero'!BY45 -> 292 | AL45: ='Pob x Genero'!AM45+'Pob x Genero'!BZ45 -> 192 | AM45: ='Pob x Genero'!AN45+'Pob x Genero'!CA45 -> 117 | AN45: ='Pob x Genero'!AO45+'Pob x Genero'!CB45 -> 121 | AO45: ='Pob x Genero'!AP45+'Pob x Genero'!CC45 -> 10 | AP45: ='Pob x Genero'!AQ45+'Pob x Genero'!CD45 -> 108 | AQ45: ='Pob x Genero'!AR45+'Pob x Genero'!CE45 -> 128 | AR45: ='Pob x Genero'!AS45+'Pob x Genero'!CF45 -> 376 | AS45: ='Pob x Genero'!AT45 -> 8,951 | AT45: =SUM('Pob x Genero'!BE45:BI45) -> 751 | AU45: =SUM('Pob x Genero'!BJ45:BN45) -> 693 | AV45: =SUM('Pob x Genero'!BO45:BT45) -> 4,161 | AW45: ='Pob x Genero'!CG45 -> 486 | AZ45: 17,615 | BA45: 3,575 | BB45: 1,734 | BC45: 3,443 | BD45: 7,016 | BE45: 1,847
A46: 040301 | B46: AREQUIPA | C46: AREQUIPA | D46: CARAVELI | E46: CARAVELI | F46: 4,806 | G46: ='Pob x Genero'!H46+'Pob x Genero'!AU46 -> 90 | H46: ='Pob x Genero'!I46+'Pob x Genero'!AV46 -> 85 | I46: ='Pob x Genero'!J46+'Pob x Genero'!AW46 -> 74 | J46: ='Pob x Genero'!K46+'Pob x Genero'!AX46 -> 68 | K46: ='Pob x Genero'!L46+'Pob x Genero'!AY46 -> 70 | L46: ='Pob x Genero'!M46+'Pob x Genero'!AZ46 -> 83 | M46: ='Pob x Genero'!N46+'Pob x Genero'!BA46 -> 84 | N46: ='Pob x Genero'!O46+'Pob x Genero'!BB46 -> 79 | O46: ='Pob x Genero'!P46+'Pob x Genero'!BC46 -> 63 | P46: ='Pob x Genero'!Q46+'Pob x Genero'!BD46 -> 62 | Q46: ='Pob x Genero'!R46+'Pob x Genero'!BE46 -> 73 | R46: ='Pob x Genero'!S46+'Pob x Genero'!BF46 -> 50 | S46: ='Pob x Genero'!T46+'Pob x Genero'!BG46 -> 79 | T46: ='Pob x Genero'!U46+'Pob x Genero'!BH46 -> 71 | U46: ='Pob x Genero'!V46+'Pob x Genero'!BI46 -> 65 | V46: ='Pob x Genero'!W46+'Pob x Genero'!BJ46 -> 76 | W46: ='Pob x Genero'!X46+'Pob x Genero'!BK46 -> 91 | X46: ='Pob x Genero'!Y46+'Pob x Genero'!BL46 -> 78 | Y46: ='Pob x Genero'!Z46+'Pob x Genero'!BM46 -> 97 | Z46: ='Pob x Genero'!AA46+'Pob x Genero'!BN46 -> 90 | AA46: ='Pob x Genero'!AB46+'Pob x Genero'!BO46 -> 422 | AB46: ='Pob x Genero'!AC46+'Pob x Genero'!BP46 -> 458 | AC46: ='Pob x Genero'!AD46+'Pob x Genero'!BQ46 -> 382 | AD46: ='Pob x Genero'!AE46+'Pob x Genero'!BR46 -> 339 | AE46: ='Pob x Genero'!AF46+'Pob x Genero'!BS46 -> 278 | AF46: ='Pob x Genero'!AG46+'Pob x Genero'!BT46 -> 287 | AG46: ='Pob x Genero'!AH46+'Pob x Genero'!BU46 -> 277 | AH46: ='Pob x Genero'!AI46+'Pob x Genero'!BV46 -> 211 | AI46: ='Pob x Genero'!AJ46+'Pob x Genero'!BW46 -> 174 | AJ46: ='Pob x Genero'!AK46+'Pob x Genero'!BX46 -> 141 | AK46: ='Pob x Genero'!AL46+'Pob x Genero'!BY46 -> 93 | AL46: ='Pob x Genero'!AM46+'Pob x Genero'!BZ46 -> 74 | AM46: ='Pob x Genero'!AN46+'Pob x Genero'!CA46 -> 69 | AN46: ='Pob x Genero'!AO46+'Pob x Genero'!CB46 -> 73 | AO46: ='Pob x Genero'!AP46+'Pob x Genero'!CC46 -> 6 | AP46: ='Pob x Genero'!AQ46+'Pob x Genero'!CD46 -> 42 | AQ46: ='Pob x Genero'!AR46+'Pob x Genero'!CE46 -> 48 | AR46: ='Pob x Genero'!AS46+'Pob x Genero'!CF46 -> 111 | AS46: ='Pob x Genero'!AT46 -> 2,434 | AT46: =SUM('Pob x Genero'!BE46:BI46) -> 169 | AU46: =SUM('Pob x Genero'!BJ46:BN46) -> 219 | AV46: =SUM('Pob x Genero'!BO46:BT46) -> 1,127 | AW46: ='Pob x Genero'!CG46 -> 137 | AZ46: 4,806 | BA46: 881 | BB46: 460 | BC46: 1,067 | BD46: 1,774 | BE46: 624
A47: 040302 | B47: AREQUIPA | C47: AREQUIPA | D47: CARAVELI | E47: ACARI | F47: 5,873 | G47: ='Pob x Genero'!H47+'Pob x Genero'!AU47 -> 56 | H47: ='Pob x Genero'!I47+'Pob x Genero'!AV47 -> 63 | I47: ='Pob x Genero'!J47+'Pob x Genero'!AW47 -> 54 | J47: ='Pob x Genero'!K47+'Pob x Genero'!AX47 -> 59 | K47: ='Pob x Genero'!L47+'Pob x Genero'!AY47 -> 57 | L47: ='Pob x Genero'!M47+'Pob x Genero'!AZ47 -> 74 | M47: ='Pob x Genero'!N47+'Pob x Genero'!BA47 -> 79 | N47: ='Pob x Genero'!O47+'Pob x Genero'!BB47 -> 102 | O47: ='Pob x Genero'!P47+'Pob x Genero'!BC47 -> 78 | P47: ='Pob x Genero'!Q47+'Pob x Genero'!BD47 -> 101 | Q47: ='Pob x Genero'!R47+'Pob x Genero'!BE47 -> 110 | R47: ='Pob x Genero'!S47+'Pob x Genero'!BF47 -> 111 | S47: ='Pob x Genero'!T47+'Pob x Genero'!BG47 -> 125 | T47: ='Pob x Genero'!U47+'Pob x Genero'!BH47 -> 120 | U47: ='Pob x Genero'!V47+'Pob x Genero'!BI47 -> 100 | V47: ='Pob x Genero'!W47+'Pob x Genero'!BJ47 -> 111 | W47: ='Pob x Genero'!X47+'Pob x Genero'!BK47 -> 119 | X47: ='Pob x Genero'!Y47+'Pob x Genero'!BL47 -> 115 | Y47: ='Pob x Genero'!Z47+'Pob x Genero'!BM47 -> 92 | Z47: ='Pob x Genero'!AA47+'Pob x Genero'!BN47 -> 74 | AA47: ='Pob x Genero'!AB47+'Pob x Genero'!BO47 -> 399 | AB47: ='Pob x Genero'!AC47+'Pob x Genero'!BP47 -> 386 | AC47: ='Pob x Genero'!AD47+'Pob x Genero'!BQ47 -> 350 | AD47: ='Pob x Genero'!AE47+'Pob x Genero'!BR47 -> 406 | AE47: ='Pob x Genero'!AF47+'Pob x Genero'!BS47 -> 372 | AF47: ='Pob x Genero'!AG47+'Pob x Genero'!BT47 -> 385 | AG47: ='Pob x Genero'!AH47+'Pob x Genero'!BU47 -> 365 | AH47: ='Pob x Genero'!AI47+'Pob x Genero'!BV47 -> 321 | AI47: ='Pob x Genero'!AJ47+'Pob x Genero'!BW47 -> 284 | AJ47: ='Pob x Genero'!AK47+'Pob x Genero'!BX47 -> 230 | AK47: ='Pob x Genero'!AL47+'Pob x Genero'!BY47 -> 199 | AL47: ='Pob x Genero'!AM47+'Pob x Genero'!BZ47 -> 170 | AM47: ='Pob x Genero'!AN47+'Pob x Genero'!CA47 -> 88 | AN47: ='Pob x Genero'!AO47+'Pob x Genero'!CB47 -> 118 | AO47: ='Pob x Genero'!AP47+'Pob x Genero'!CC47 -> 4 | AP47: ='Pob x Genero'!AQ47+'Pob x Genero'!CD47 -> 31 | AQ47: ='Pob x Genero'!AR47+'Pob x Genero'!CE47 -> 25 | AR47: ='Pob x Genero'!AS47+'Pob x Genero'!CF47 -> 86 | AS47: ='Pob x Genero'!AT47 -> 2,995 | AT47: =SUM('Pob x Genero'!BE47:BI47) -> 287 | AU47: =SUM('Pob x Genero'!BJ47:BN47) -> 257 | AV47: =SUM('Pob x Genero'!BO47:BT47) -> 1,212 | AW47: ='Pob x Genero'!CG47 -> 174 | AZ47: 5,873 | BA47: 944 | BB47: 690 | BC47: 951 | BD47: 2,199 | BE47: 1,089
A48: 040303 | B48: AREQUIPA | C48: AREQUIPA | D48: CARAVELI | E48: ATICO | F48: 6,346 | G48: ='Pob x Genero'!H48+'Pob x Genero'!AU48 -> 83 | H48: ='Pob x Genero'!I48+'Pob x Genero'!AV48 -> 76 | I48: ='Pob x Genero'!J48+'Pob x Genero'!AW48 -> 55 | J48: ='Pob x Genero'!K48+'Pob x Genero'!AX48 -> 79 | K48: ='Pob x Genero'!L48+'Pob x Genero'!AY48 -> 67 | L48: ='Pob x Genero'!M48+'Pob x Genero'!AZ48 -> 81 | M48: ='Pob x Genero'!N48+'Pob x Genero'!BA48 -> 118 | N48: ='Pob x Genero'!O48+'Pob x Genero'!BB48 -> 92 | O48: ='Pob x Genero'!P48+'Pob x Genero'!BC48 -> 98 | P48: ='Pob x Genero'!Q48+'Pob x Genero'!BD48 -> 98 | Q48: ='Pob x Genero'!R48+'Pob x Genero'!BE48 -> 112 | R48: ='Pob x Genero'!S48+'Pob x Genero'!BF48 -> 118 | S48: ='Pob x Genero'!T48+'Pob x Genero'!BG48 -> 98 | T48: ='Pob x Genero'!U48+'Pob x Genero'!BH48 -> 104 | U48: ='Pob x Genero'!V48+'Pob x Genero'!BI48 -> 121 | V48: ='Pob x Genero'!W48+'Pob x Genero'!BJ48 -> 107 | W48: ='Pob x Genero'!X48+'Pob x Genero'!BK48 -> 115 | X48: ='Pob x Genero'!Y48+'Pob x Genero'!BL48 -> 102 | Y48: ='Pob x Genero'!Z48+'Pob x Genero'!BM48 -> 105 | Z48: ='Pob x Genero'!AA48+'Pob x Genero'!BN48 -> 85 | AA48: ='Pob x Genero'!AB48+'Pob x Genero'!BO48 -> 402 | AB48: ='Pob x Genero'!AC48+'Pob x Genero'!BP48 -> 501 | AC48: ='Pob x Genero'!AD48+'Pob x Genero'!BQ48 -> 560 | AD48: ='Pob x Genero'!AE48+'Pob x Genero'!BR48 -> 535 | AE48: ='Pob x Genero'!AF48+'Pob x Genero'!BS48 -> 470 | AF48: ='Pob x Genero'!AG48+'Pob x Genero'!BT48 -> 468 | AG48: ='Pob x Genero'!AH48+'Pob x Genero'!BU48 -> 403 | AH48: ='Pob x Genero'!AI48+'Pob x Genero'!BV48 -> 323 | AI48: ='Pob x Genero'!AJ48+'Pob x Genero'!BW48 -> 234 | AJ48: ='Pob x Genero'!AK48+'Pob x Genero'!BX48 -> 210 | AK48: ='Pob x Genero'!AL48+'Pob x Genero'!BY48 -> 122 | AL48: ='Pob x Genero'!AM48+'Pob x Genero'!BZ48 -> 100 | AM48: ='Pob x Genero'!AN48+'Pob x Genero'!CA48 -> 61 | AN48: ='Pob x Genero'!AO48+'Pob x Genero'!CB48 -> 43 | AO48: ='Pob x Genero'!AP48+'Pob x Genero'!CC48 -> 4 | AP48: ='Pob x Genero'!AQ48+'Pob x Genero'!CD48 -> 37 | AQ48: ='Pob x Genero'!AR48+'Pob x Genero'!CE48 -> 46 | AR48: ='Pob x Genero'!AS48+'Pob x Genero'!CF48 -> 102 | AS48: ='Pob x Genero'!AT48 -> 3,220 | AT48: =SUM('Pob x Genero'!BE48:BI48) -> 273 | AU48: =SUM('Pob x Genero'!BJ48:BN48) -> 258 | AV48: =SUM('Pob x Genero'!BO48:BT48) -> 1,518 | AW48: ='Pob x Genero'!CG48 -> 184 | AZ48: 6,346 | BA48: 1,077 | BB48: 647 | BC48: 1,093 | BD48: 2,759 | BE48: 770
A49: 040304 | B49: AREQUIPA | C49: AREQUIPA | D49: CARAVELI | E49: ATIQUIPA | F49: 589 | G49: ='Pob x Genero'!H49+'Pob x Genero'!AU49 -> 10 | H49: ='Pob x Genero'!I49+'Pob x Genero'!AV49 -> 11 | I49: ='Pob x Genero'!J49+'Pob x Genero'!AW49 -> 6 | J49: ='Pob x Genero'!K49+'Pob x Genero'!AX49 -> 11 | K49: ='Pob x Genero'!L49+'Pob x Genero'!AY49 -> 12 | L49: ='Pob x Genero'!M49+'Pob x Genero'!AZ49 -> 12 | M49: ='Pob x Genero'!N49+'Pob x Genero'!BA49 -> 3 | N49: ='Pob x Genero'!O49+'Pob x Genero'!BB49 -> 6 | O49: ='Pob x Genero'!P49+'Pob x Genero'!BC49 -> 9 | P49: ='Pob x Genero'!Q49+'Pob x Genero'!BD49 -> 10 | Q49: ='Pob x Genero'!R49+'Pob x Genero'!BE49 -> 8 | R49: ='Pob x Genero'!S49+'Pob x Genero'!BF49 -> 8 | S49: ='Pob x Genero'!T49+'Pob x Genero'!BG49 -> 11 | T49: ='Pob x Genero'!U49+'Pob x Genero'!BH49 -> 11 | U49: ='Pob x Genero'!V49+'Pob x Genero'!BI49 -> 5 | V49: ='Pob x Genero'!W49+'Pob x Genero'!BJ49 -> 7 | W49: ='Pob x Genero'!X49+'Pob x Genero'!BK49 -> 9 | X49: ='Pob x Genero'!Y49+'Pob x Genero'!BL49 -> 7 | Y49: ='Pob x Genero'!Z49+'Pob x Genero'!BM49 -> 9 | Z49: ='Pob x Genero'!AA49+'Pob x Genero'!BN49 -> 5 | AA49: ='Pob x Genero'!AB49+'Pob x Genero'!BO49 -> 37 | AB49: ='Pob x Genero'!AC49+'Pob x Genero'!BP49 -> 61 | AC49: ='Pob x Genero'!AD49+'Pob x Genero'!BQ49 -> 50 | AD49: ='Pob x Genero'!AE49+'Pob x Genero'!BR49 -> 43 | AE49: ='Pob x Genero'!AF49+'Pob x Genero'!BS49 -> 48 | AF49: ='Pob x Genero'!AG49+'Pob x Genero'!BT49 -> 25 | AG49: ='Pob x Genero'!AH49+'Pob x Genero'!BU49 -> 34 | AH49: ='Pob x Genero'!AI49+'Pob x Genero'!BV49 -> 33 | AI49: ='Pob x Genero'!AJ49+'Pob x Genero'!BW49 -> 30 | AJ49: ='Pob x Genero'!AK49+'Pob x Genero'!BX49 -> 14 | AK49: ='Pob x Genero'!AL49+'Pob x Genero'!BY49 -> 20 | AL49: ='Pob x Genero'!AM49+'Pob x Genero'!BZ49 -> 10 | AM49: ='Pob x Genero'!AN49+'Pob x Genero'!CA49 -> 7 | AN49: ='Pob x Genero'!AO49+'Pob x Genero'!CB49 -> 7 | AO49: ='Pob x Genero'!AP49+'Pob x Genero'!CC49 -> 0 | AP49: ='Pob x Genero'!AQ49+'Pob x Genero'!CD49 -> 7 | AQ49: ='Pob x Genero'!AR49+'Pob x Genero'!CE49 -> 3 | AR49: ='Pob x Genero'!AS49+'Pob x Genero'!CF49 -> 16 | AS49: ='Pob x Genero'!AT49 -> 299 | AT49: =SUM('Pob x Genero'!BE49:BI49) -> 25 | AU49: =SUM('Pob x Genero'!BJ49:BN49) -> 22 | AV49: =SUM('Pob x Genero'!BO49:BT49) -> 133 | AW49: ='Pob x Genero'!CG49 -> 22 | AZ49: 589 | BA49: 106 | BB49: 50 | BC49: 112 | BD49: 233 | BE49: 88
A50: 040305 | B50: AREQUIPA | C50: AREQUIPA | D50: CARAVELI | E50: BELLA UNION | F50: 3,180 | G50: ='Pob x Genero'!H50+'Pob x Genero'!AU50 -> 44 | H50: ='Pob x Genero'!I50+'Pob x Genero'!AV50 -> 45 | I50: ='Pob x Genero'!J50+'Pob x Genero'!AW50 -> 46 | J50: ='Pob x Genero'!K50+'Pob x Genero'!AX50 -> 41 | K50: ='Pob x Genero'!L50+'Pob x Genero'!AY50 -> 37 | L50: ='Pob x Genero'!M50+'Pob x Genero'!AZ50 -> 33 | M50: ='Pob x Genero'!N50+'Pob x Genero'!BA50 -> 55 | N50: ='Pob x Genero'!O50+'Pob x Genero'!BB50 -> 46 | O50: ='Pob x Genero'!P50+'Pob x Genero'!BC50 -> 48 | P50: ='Pob x Genero'!Q50+'Pob x Genero'!BD50 -> 43 | Q50: ='Pob x Genero'!R50+'Pob x Genero'!BE50 -> 30 | R50: ='Pob x Genero'!S50+'Pob x Genero'!BF50 -> 45 | S50: ='Pob x Genero'!T50+'Pob x Genero'!BG50 -> 55 | T50: ='Pob x Genero'!U50+'Pob x Genero'!BH50 -> 42 | U50: ='Pob x Genero'!V50+'Pob x Genero'!BI50 -> 38 | V50: ='Pob x Genero'!W50+'Pob x Genero'!BJ50 -> 48 | W50: ='Pob x Genero'!X50+'Pob x Genero'!BK50 -> 66 | X50: ='Pob x Genero'!Y50+'Pob x Genero'!BL50 -> 46 | Y50: ='Pob x Genero'!Z50+'Pob x Genero'!BM50 -> 48 | Z50: ='Pob x Genero'!AA50+'Pob x Genero'!BN50 -> 50 | AA50: ='Pob x Genero'!AB50+'Pob x Genero'!BO50 -> 217 | AB50: ='Pob x Genero'!AC50+'Pob x Genero'!BP50 -> 265 | AC50: ='Pob x Genero'!AD50+'Pob x Genero'!BQ50 -> 239 | AD50: ='Pob x Genero'!AE50+'Pob x Genero'!BR50 -> 266 | AE50: ='Pob x Genero'!AF50+'Pob x Genero'!BS50 -> 244 | AF50: ='Pob x Genero'!AG50+'Pob x Genero'!BT50 -> 240 | AG50: ='Pob x Genero'!AH50+'Pob x Genero'!BU50 -> 181 | AH50: ='Pob x Genero'!AI50+'Pob x Genero'!BV50 -> 163 | AI50: ='Pob x Genero'!AJ50+'Pob x Genero'!BW50 -> 135 | AJ50: ='Pob x Genero'!AK50+'Pob x Genero'!BX50 -> 93 | AK50: ='Pob x Genero'!AL50+'Pob x Genero'!BY50 -> 88 | AL50: ='Pob x Genero'!AM50+'Pob x Genero'!BZ50 -> 65 | AM50: ='Pob x Genero'!AN50+'Pob x Genero'!CA50 -> 39 | AN50: ='Pob x Genero'!AO50+'Pob x Genero'!CB50 -> 39 | AO50: ='Pob x Genero'!AP50+'Pob x Genero'!CC50 -> 2 | AP50: ='Pob x Genero'!AQ50+'Pob x Genero'!CD50 -> 15 | AQ50: ='Pob x Genero'!AR50+'Pob x Genero'!CE50 -> 29 | AR50: ='Pob x Genero'!AS50+'Pob x Genero'!CF50 -> 70 | AS50: ='Pob x Genero'!AT50 -> 1,596 | AT50: =SUM('Pob x Genero'!BE50:BI50) -> 104 | AU50: =SUM('Pob x Genero'!BJ50:BN50) -> 140 | AV50: =SUM('Pob x Genero'!BO50:BT50) -> 763 | AW50: ='Pob x Genero'!CG50 -> 123 | AZ50: 3,180 | BA50: 513 | BB50: 295 | BC50: 580 | BD50: 1,333 | BE50: 459
A51: 040306 | B51: AREQUIPA | C51: AREQUIPA | D51: CARAVELI | E51: CAHUACHO | F51: 915 | G51: ='Pob x Genero'!H51+'Pob x Genero'!AU51 -> 16 | H51: ='Pob x Genero'!I51+'Pob x Genero'!AV51 -> 9 | I51: ='Pob x Genero'!J51+'Pob x Genero'!AW51 -> 34 | J51: ='Pob x Genero'!K51+'Pob x Genero'!AX51 -> 9 | K51: ='Pob x Genero'!L51+'Pob x Genero'!AY51 -> 6 | L51: ='Pob x Genero'!M51+'Pob x Genero'!AZ51 -> 7 | M51: ='Pob x Genero'!N51+'Pob x Genero'!BA51 -> 7 | N51: ='Pob x Genero'!O51+'Pob x Genero'!BB51 -> 7 | O51: ='Pob x Genero'!P51+'Pob x Genero'!BC51 -> 18 | P51: ='Pob x Genero'!Q51+'Pob x Genero'!BD51 -> 13 | Q51: ='Pob x Genero'!R51+'Pob x Genero'!BE51 -> 9 | R51: ='Pob x Genero'!S51+'Pob x Genero'!BF51 -> 13 | S51: ='Pob x Genero'!T51+'Pob x Genero'!BG51 -> 19 | T51: ='Pob x Genero'!U51+'Pob x Genero'!BH51 -> 17 | U51: ='Pob x Genero'!V51+'Pob x Genero'!BI51 -> 16 | V51: ='Pob x Genero'!W51+'Pob x Genero'!BJ51 -> 16 | W51: ='Pob x Genero'!X51+'Pob x Genero'!BK51 -> 11 | X51: ='Pob x Genero'!Y51+'Pob x Genero'!BL51 -> 15 | Y51: ='Pob x Genero'!Z51+'Pob x Genero'!BM51 -> 16 | Z51: ='Pob x Genero'!AA51+'Pob x Genero'!BN51 -> 17 | AA51: ='Pob x Genero'!AB51+'Pob x Genero'!BO51 -> 49 | AB51: ='Pob x Genero'!AC51+'Pob x Genero'!BP51 -> 66 | AC51: ='Pob x Genero'!AD51+'Pob x Genero'!BQ51 -> 55 | AD51: ='Pob x Genero'!AE51+'Pob x Genero'!BR51 -> 52 | AE51: ='Pob x Genero'!AF51+'Pob x Genero'!BS51 -> 61 | AF51: ='Pob x Genero'!AG51+'Pob x Genero'!BT51 -> 49 | AG51: ='Pob x Genero'!AH51+'Pob x Genero'!BU51 -> 54 | AH51: ='Pob x Genero'!AI51+'Pob x Genero'!BV51 -> 46 | AI51: ='Pob x Genero'!AJ51+'Pob x Genero'!BW51 -> 36 | AJ51: ='Pob x Genero'!AK51+'Pob x Genero'!BX51 -> 39 | AK51: ='Pob x Genero'!AL51+'Pob x Genero'!BY51 -> 36 | AL51: ='Pob x Genero'!AM51+'Pob x Genero'!BZ51 -> 30 | AM51: ='Pob x Genero'!AN51+'Pob x Genero'!CA51 -> 28 | AN51: ='Pob x Genero'!AO51+'Pob x Genero'!CB51 -> 39 | AO51: ='Pob x Genero'!AP51+'Pob x Genero'!CC51 -> 1 | AP51: ='Pob x Genero'!AQ51+'Pob x Genero'!CD51 -> 11 | AQ51: ='Pob x Genero'!AR51+'Pob x Genero'!CE51 -> 5 | AR51: ='Pob x Genero'!AS51+'Pob x Genero'!CF51 -> 59 | AS51: ='Pob x Genero'!AT51 -> 461 | AT51: =SUM('Pob x Genero'!BE51:BI51) -> 41 | AU51: =SUM('Pob x Genero'!BJ51:BN51) -> 41 | AV51: =SUM('Pob x Genero'!BO51:BT51) -> 159 | AW51: ='Pob x Genero'!CG51 -> 233 | AZ51: 915 | BA51: 148 | BB51: 94 | BC51: 148 | BD51: 317 | BE51: 208
A52: 040307 | B52: AREQUIPA | C52: AREQUIPA | D52: CARAVELI | E52: CHALA | F52: 10,962 | G52: ='Pob x Genero'!H52+'Pob x Genero'!AU52 -> 177 | H52: ='Pob x Genero'!I52+'Pob x Genero'!AV52 -> 179 | I52: ='Pob x Genero'!J52+'Pob x Genero'!AW52 -> 155 | J52: ='Pob x Genero'!K52+'Pob x Genero'!AX52 -> 188 | K52: ='Pob x Genero'!L52+'Pob x Genero'!AY52 -> 171 | L52: ='Pob x Genero'!M52+'Pob x Genero'!AZ52 -> 161 | M52: ='Pob x Genero'!N52+'Pob x Genero'!BA52 -> 230 | N52: ='Pob x Genero'!O52+'Pob x Genero'!BB52 -> 236 | O52: ='Pob x Genero'!P52+'Pob x Genero'!BC52 -> 266 | P52: ='Pob x Genero'!Q52+'Pob x Genero'!BD52 -> 228 | Q52: ='Pob x Genero'!R52+'Pob x Genero'!BE52 -> 226 | R52: ='Pob x Genero'!S52+'Pob x Genero'!BF52 -> 211 | S52: ='Pob x Genero'!T52+'Pob x Genero'!BG52 -> 191 | T52: ='Pob x Genero'!U52+'Pob x Genero'!BH52 -> 192 | U52: ='Pob x Genero'!V52+'Pob x Genero'!BI52 -> 194 | V52: ='Pob x Genero'!W52+'Pob x Genero'!BJ52 -> 208 | W52: ='Pob x Genero'!X52+'Pob x Genero'!BK52 -> 213 | X52: ='Pob x Genero'!Y52+'Pob x Genero'!BL52 -> 192 | Y52: ='Pob x Genero'!Z52+'Pob x Genero'!BM52 -> 160 | Z52: ='Pob x Genero'!AA52+'Pob x Genero'!BN52 -> 164 | AA52: ='Pob x Genero'!AB52+'Pob x Genero'!BO52 -> 750 | AB52: ='Pob x Genero'!AC52+'Pob x Genero'!BP52 -> 856 | AC52: ='Pob x Genero'!AD52+'Pob x Genero'!BQ52 -> 950 | AD52: ='Pob x Genero'!AE52+'Pob x Genero'!BR52 -> 1,009 | AE52: ='Pob x Genero'!AF52+'Pob x Genero'!BS52 -> 806 | AF52: ='Pob x Genero'!AG52+'Pob x Genero'!BT52 -> 695 | AG52: ='Pob x Genero'!AH52+'Pob x Genero'!BU52 -> 555 | AH52: ='Pob x Genero'!AI52+'Pob x Genero'!BV52 -> 439 | AI52: ='Pob x Genero'!AJ52+'Pob x Genero'!BW52 -> 341 | AJ52: ='Pob x Genero'!AK52+'Pob x Genero'!BX52 -> 255 | AK52: ='Pob x Genero'!AL52+'Pob x Genero'!BY52 -> 152 | AL52: ='Pob x Genero'!AM52+'Pob x Genero'!BZ52 -> 87 | AM52: ='Pob x Genero'!AN52+'Pob x Genero'!CA52 -> 59 | AN52: ='Pob x Genero'!AO52+'Pob x Genero'!CB52 -> 66 | AO52: ='Pob x Genero'!AP52+'Pob x Genero'!CC52 -> 6 | AP52: ='Pob x Genero'!AQ52+'Pob x Genero'!CD52 -> 97 | AQ52: ='Pob x Genero'!AR52+'Pob x Genero'!CE52 -> 80 | AR52: ='Pob x Genero'!AS52+'Pob x Genero'!CF52 -> 255 | AS52: ='Pob x Genero'!AT52 -> 5,560 | AT52: =SUM('Pob x Genero'!BE52:BI52) -> 480 | AU52: =SUM('Pob x Genero'!BJ52:BN52) -> 482 | AV52: =SUM('Pob x Genero'!BO52:BT52) -> 2,747 | AW52: ='Pob x Genero'!CG52 -> 362 | AZ52: 10,962 | BA52: 2,428 | BB52: 1,190 | BC52: 1,930 | BD52: 4,454 | BE52: 960
A53: 040308 | B53: AREQUIPA | C53: AREQUIPA | D53: CARAVELI | E53: CHAPARRA | F53: 3,571 | G53: ='Pob x Genero'!H53+'Pob x Genero'!AU53 -> 44 | H53: ='Pob x Genero'!I53+'Pob x Genero'!AV53 -> 54 | I53: ='Pob x Genero'!J53+'Pob x Genero'!AW53 -> 46 | J53: ='Pob x Genero'!K53+'Pob x Genero'!AX53 -> 60 | K53: ='Pob x Genero'!L53+'Pob x Genero'!AY53 -> 80 | L53: ='Pob x Genero'!M53+'Pob x Genero'!AZ53 -> 49 | M53: ='Pob x Genero'!N53+'Pob x Genero'!BA53 -> 51 | N53: ='Pob x Genero'!O53+'Pob x Genero'!BB53 -> 52 | O53: ='Pob x Genero'!P53+'Pob x Genero'!BC53 -> 45 | P53: ='Pob x Genero'!Q53+'Pob x Genero'!BD53 -> 55 | Q53: ='Pob x Genero'!R53+'Pob x Genero'!BE53 -> 55 | R53: ='Pob x Genero'!S53+'Pob x Genero'!BF53 -> 79 | S53: ='Pob x Genero'!T53+'Pob x Genero'!BG53 -> 67 | T53: ='Pob x Genero'!U53+'Pob x Genero'!BH53 -> 61 | U53: ='Pob x Genero'!V53+'Pob x Genero'!BI53 -> 67 | V53: ='Pob x Genero'!W53+'Pob x Genero'!BJ53 -> 71 | W53: ='Pob x Genero'!X53+'Pob x Genero'!BK53 -> 61 | X53: ='Pob x Genero'!Y53+'Pob x Genero'!BL53 -> 66 | Y53: ='Pob x Genero'!Z53+'Pob x Genero'!BM53 -> 45 | Z53: ='Pob x Genero'!AA53+'Pob x Genero'!BN53 -> 40 | AA53: ='Pob x Genero'!AB53+'Pob x Genero'!BO53 -> 190 | AB53: ='Pob x Genero'!AC53+'Pob x Genero'!BP53 -> 207 | AC53: ='Pob x Genero'!AD53+'Pob x Genero'!BQ53 -> 321 | AD53: ='Pob x Genero'!AE53+'Pob x Genero'!BR53 -> 344 | AE53: ='Pob x Genero'!AF53+'Pob x Genero'!BS53 -> 320 | AF53: ='Pob x Genero'!AG53+'Pob x Genero'!BT53 -> 252 | AG53: ='Pob x Genero'!AH53+'Pob x Genero'!BU53 -> 210 | AH53: ='Pob x Genero'!AI53+'Pob x Genero'!BV53 -> 212 | AI53: ='Pob x Genero'!AJ53+'Pob x Genero'!BW53 -> 107 | AJ53: ='Pob x Genero'!AK53+'Pob x Genero'!BX53 -> 88 | AK53: ='Pob x Genero'!AL53+'Pob x Genero'!BY53 -> 76 | AL53: ='Pob x Genero'!AM53+'Pob x Genero'!BZ53 -> 30 | AM53: ='Pob x Genero'!AN53+'Pob x Genero'!CA53 -> 31 | AN53: ='Pob x Genero'!AO53+'Pob x Genero'!CB53 -> 35 | AO53: ='Pob x Genero'!AP53+'Pob x Genero'!CC53 -> 3 | AP53: ='Pob x Genero'!AQ53+'Pob x Genero'!CD53 -> 12 | AQ53: ='Pob x Genero'!AR53+'Pob x Genero'!CE53 -> 32 | AR53: ='Pob x Genero'!AS53+'Pob x Genero'!CF53 -> 69 | AS53: ='Pob x Genero'!AT53 -> 1,790 | AT53: =SUM('Pob x Genero'!BE53:BI53) -> 193 | AU53: =SUM('Pob x Genero'!BJ53:BN53) -> 179 | AV53: =SUM('Pob x Genero'!BO53:BT53) -> 776 | AW53: ='Pob x Genero'!CG53 -> 95 | AZ53: 3,571 | BA53: 670 | BB53: 393 | BC53: 482 | BD53: 1,659 | BE53: 367
A54: 040309 | B54: AREQUIPA | C54: AREQUIPA | D54: CARAVELI | E54: HUANUHUANU | F54: 3,261 | G54: ='Pob x Genero'!H54+'Pob x Genero'!AU54 -> 43 | H54: ='Pob x Genero'!I54+'Pob x Genero'!AV54 -> 45 | I54: ='Pob x Genero'!J54+'Pob x Genero'!AW54 -> 43 | J54: ='Pob x Genero'!K54+'Pob x Genero'!AX54 -> 53 | K54: ='Pob x Genero'!L54+'Pob x Genero'!AY54 -> 31 | L54: ='Pob x Genero'!M54+'Pob x Genero'!AZ54 -> 41 | M54: ='Pob x Genero'!N54+'Pob x Genero'!BA54 -> 41 | N54: ='Pob x Genero'!O54+'Pob x Genero'!BB54 -> 48 | O54: ='Pob x Genero'!P54+'Pob x Genero'!BC54 -> 40 | P54: ='Pob x Genero'!Q54+'Pob x Genero'!BD54 -> 53 | Q54: ='Pob x Genero'!R54+'Pob x Genero'!BE54 -> 46 | R54: ='Pob x Genero'!S54+'Pob x Genero'!BF54 -> 66 | S54: ='Pob x Genero'!T54+'Pob x Genero'!BG54 -> 66 | T54: ='Pob x Genero'!U54+'Pob x Genero'!BH54 -> 85 | U54: ='Pob x Genero'!V54+'Pob x Genero'!BI54 -> 74 | V54: ='Pob x Genero'!W54+'Pob x Genero'!BJ54 -> 56 | W54: ='Pob x Genero'!X54+'Pob x Genero'!BK54 -> 58 | X54: ='Pob x Genero'!Y54+'Pob x Genero'!BL54 -> 51 | Y54: ='Pob x Genero'!Z54+'Pob x Genero'!BM54 -> 44 | Z54: ='Pob x Genero'!AA54+'Pob x Genero'!BN54 -> 44 | AA54: ='Pob x Genero'!AB54+'Pob x Genero'!BO54 -> 183 | AB54: ='Pob x Genero'!AC54+'Pob x Genero'!BP54 -> 258 | AC54: ='Pob x Genero'!AD54+'Pob x Genero'!BQ54 -> 353 | AD54: ='Pob x Genero'!AE54+'Pob x Genero'!BR54 -> 325 | AE54: ='Pob x Genero'!AF54+'Pob x Genero'!BS54 -> 244 | AF54: ='Pob x Genero'!AG54+'Pob x Genero'!BT54 -> 254 | AG54: ='Pob x Genero'!AH54+'Pob x Genero'!BU54 -> 202 | AH54: ='Pob x Genero'!AI54+'Pob x Genero'!BV54 -> 146 | AI54: ='Pob x Genero'!AJ54+'Pob x Genero'!BW54 -> 114 | AJ54: ='Pob x Genero'!AK54+'Pob x Genero'!BX54 -> 65 | AK54: ='Pob x Genero'!AL54+'Pob x Genero'!BY54 -> 35 | AL54: ='Pob x Genero'!AM54+'Pob x Genero'!BZ54 -> 11 | AM54: ='Pob x Genero'!AN54+'Pob x Genero'!CA54 -> 15 | AN54: ='Pob x Genero'!AO54+'Pob x Genero'!CB54 -> 28 | AO54: ='Pob x Genero'!AP54+'Pob x Genero'!CC54 -> 2 | AP54: ='Pob x Genero'!AQ54+'Pob x Genero'!CD54 -> 16 | AQ54: ='Pob x Genero'!AR54+'Pob x Genero'!CE54 -> 27 | AR54: ='Pob x Genero'!AS54+'Pob x Genero'!CF54 -> 59 | AS54: ='Pob x Genero'!AT54 -> 1,623 | AT54: =SUM('Pob x Genero'!BE54:BI54) -> 201 | AU54: =SUM('Pob x Genero'!BJ54:BN54) -> 135 | AV54: =SUM('Pob x Genero'!BO54:BT54) -> 776 | AW54: ='Pob x Genero'!CG54 -> 103 | AZ54: 3,261 | BA54: 550 | BB54: 390 | BC54: 529 | BD54: 1,524 | BE54: 268
A55: 040310 | B55: AREQUIPA | C55: AREQUIPA | D55: CARAVELI | E55: JAQUI | F55: 1,738 | G55: ='Pob x Genero'!H55+'Pob x Genero'!AU55 -> 23 | H55: ='Pob x Genero'!I55+'Pob x Genero'!AV55 -> 17 | I55: ='Pob x Genero'!J55+'Pob x Genero'!AW55 -> 19 | J55: ='Pob x Genero'!K55+'Pob x Genero'!AX55 -> 28 | K55: ='Pob x Genero'!L55+'Pob x Genero'!AY55 -> 20 | L55: ='Pob x Genero'!M55+'Pob x Genero'!AZ55 -> 17 | M55: ='Pob x Genero'!N55+'Pob x Genero'!BA55 -> 27 | N55: ='Pob x Genero'!O55+'Pob x Genero'!BB55 -> 27 | O55: ='Pob x Genero'!P55+'Pob x Genero'!BC55 -> 27 | P55: ='Pob x Genero'!Q55+'Pob x Genero'!BD55 -> 21 | Q55: ='Pob x Genero'!R55+'Pob x Genero'!BE55 -> 24 | R55: ='Pob x Genero'!S55+'Pob x Genero'!BF55 -> 46 | S55: ='Pob x Genero'!T55+'Pob x Genero'!BG55 -> 44 | T55: ='Pob x Genero'!U55+'Pob x Genero'!BH55 -> 29 | U55: ='Pob x Genero'!V55+'Pob x Genero'!BI55 -> 28 | V55: ='Pob x Genero'!W55+'Pob x Genero'!BJ55 -> 36 | W55: ='Pob x Genero'!X55+'Pob x Genero'!BK55 -> 31 | X55: ='Pob x Genero'!Y55+'Pob x Genero'!BL55 -> 29 | Y55: ='Pob x Genero'!Z55+'Pob x Genero'!BM55 -> 28 | Z55: ='Pob x Genero'!AA55+'Pob x Genero'!BN55 -> 21 | AA55: ='Pob x Genero'!AB55+'Pob x Genero'!BO55 -> 101 | AB55: ='Pob x Genero'!AC55+'Pob x Genero'!BP55 -> 140 | AC55: ='Pob x Genero'!AD55+'Pob x Genero'!BQ55 -> 116 | AD55: ='Pob x Genero'!AE55+'Pob x Genero'!BR55 -> 98 | AE55: ='Pob x Genero'!AF55+'Pob x Genero'!BS55 -> 109 | AF55: ='Pob x Genero'!AG55+'Pob x Genero'!BT55 -> 118 | AG55: ='Pob x Genero'!AH55+'Pob x Genero'!BU55 -> 114 | AH55: ='Pob x Genero'!AI55+'Pob x Genero'!BV55 -> 107 | AI55: ='Pob x Genero'!AJ55+'Pob x Genero'!BW55 -> 95 | AJ55: ='Pob x Genero'!AK55+'Pob x Genero'!BX55 -> 77 | AK55: ='Pob x Genero'!AL55+'Pob x Genero'!BY55 -> 44 | AL55: ='Pob x Genero'!AM55+'Pob x Genero'!BZ55 -> 28 | AM55: ='Pob x Genero'!AN55+'Pob x Genero'!CA55 -> 24 | AN55: ='Pob x Genero'!AO55+'Pob x Genero'!CB55 -> 25 | AO55: ='Pob x Genero'!AP55+'Pob x Genero'!CC55 -> 1 | AP55: ='Pob x Genero'!AQ55+'Pob x Genero'!CD55 -> 10 | AQ55: ='Pob x Genero'!AR55+'Pob x Genero'!CE55 -> 13 | AR55: ='Pob x Genero'!AS55+'Pob x Genero'!CF55 -> 29 | AS55: ='Pob x Genero'!AT55 -> 880 | AT55: =SUM('Pob x Genero'!BE55:BI55) -> 88 | AU55: =SUM('Pob x Genero'!BJ55:BN55) -> 79 | AV55: =SUM('Pob x Genero'!BO55:BT55) -> 344 | AW55: ='Pob x Genero'!CG55 -> 54 | AZ55: 1,738 | BA55: 296 | BB55: 197 | BC55: 290 | BD55: 662 | BE55: 293
A56: 040311 | B56: AREQUIPA | C56: AREQUIPA | D56: CARAVELI | E56: LOMAS | F56: 1,637 | G56: ='Pob x Genero'!H56+'Pob x Genero'!AU56 -> 23 | H56: ='Pob x Genero'!I56+'Pob x Genero'!AV56 -> 27 | I56: ='Pob x Genero'!J56+'Pob x Genero'!AW56 -> 21 | J56: ='Pob x Genero'!K56+'Pob x Genero'!AX56 -> 17 | K56: ='Pob x Genero'!L56+'Pob x Genero'!AY56 -> 13 | L56: ='Pob x Genero'!M56+'Pob x Genero'!AZ56 -> 27 | M56: ='Pob x Genero'!N56+'Pob x Genero'!BA56 -> 24 | N56: ='Pob x Genero'!O56+'Pob x Genero'!BB56 -> 19 | O56: ='Pob x Genero'!P56+'Pob x Genero'!BC56 -> 25 | P56: ='Pob x Genero'!Q56+'Pob x Genero'!BD56 -> 33 | Q56: ='Pob x Genero'!R56+'Pob x Genero'!BE56 -> 24 | R56: ='Pob x Genero'!S56+'Pob x Genero'!BF56 -> 27 | S56: ='Pob x Genero'!T56+'Pob x Genero'!BG56 -> 21 | T56: ='Pob x Genero'!U56+'Pob x Genero'!BH56 -> 26 | U56: ='Pob x Genero'!V56+'Pob x Genero'!BI56 -> 20 | V56: ='Pob x Genero'!W56+'Pob x Genero'!BJ56 -> 23 | W56: ='Pob x Genero'!X56+'Pob x Genero'!BK56 -> 24 | X56: ='Pob x Genero'!Y56+'Pob x Genero'!BL56 -> 20 | Y56: ='Pob x Genero'!Z56+'Pob x Genero'!BM56 -> 17 | Z56: ='Pob x Genero'!AA56+'Pob x Genero'!BN56 -> 17 | AA56: ='Pob x Genero'!AB56+'Pob x Genero'!BO56 -> 118 | AB56: ='Pob x Genero'!AC56+'Pob x Genero'!BP56 -> 139 | AC56: ='Pob x Genero'!AD56+'Pob x Genero'!BQ56 -> 140 | AD56: ='Pob x Genero'!AE56+'Pob x Genero'!BR56 -> 136 | AE56: ='Pob x Genero'!AF56+'Pob x Genero'!BS56 -> 130 | AF56: ='Pob x Genero'!AG56+'Pob x Genero'!BT56 -> 127 | AG56: ='Pob x Genero'!AH56+'Pob x Genero'!BU56 -> 97 | AH56: ='Pob x Genero'!AI56+'Pob x Genero'!BV56 -> 94 | AI56: ='Pob x Genero'!AJ56+'Pob x Genero'!BW56 -> 82 | AJ56: ='Pob x Genero'!AK56+'Pob x Genero'!BX56 -> 49 | AK56: ='Pob x Genero'!AL56+'Pob x Genero'!BY56 -> 35 | AL56: ='Pob x Genero'!AM56+'Pob x Genero'!BZ56 -> 24 | AM56: ='Pob x Genero'!AN56+'Pob x Genero'!CA56 -> 9 | AN56: ='Pob x Genero'!AO56+'Pob x Genero'!CB56 -> 9 | AO56: ='Pob x Genero'!AP56+'Pob x Genero'!CC56 -> 0 | AP56: ='Pob x Genero'!AQ56+'Pob x Genero'!CD56 -> 10 | AQ56: ='Pob x Genero'!AR56+'Pob x Genero'!CE56 -> 13 | AR56: ='Pob x Genero'!AS56+'Pob x Genero'!CF56 -> 35 | AS56: ='Pob x Genero'!AT56 -> 825 | AT56: =SUM('Pob x Genero'!BE56:BI56) -> 59 | AU56: =SUM('Pob x Genero'!BJ56:BN56) -> 55 | AV56: =SUM('Pob x Genero'!BO56:BT56) -> 396 | AW56: ='Pob x Genero'!CG56 -> 41 | AZ56: 1,637 | BA56: 280 | BB56: 134 | BC56: 291 | BD56: 724 | BE56: 208
A57: 040312 | B57: AREQUIPA | C57: AREQUIPA | D57: CARAVELI | E57: QUICACHA | F57: 2,126 | G57: ='Pob x Genero'!H57+'Pob x Genero'!AU57 -> 27 | H57: ='Pob x Genero'!I57+'Pob x Genero'!AV57 -> 29 | I57: ='Pob x Genero'!J57+'Pob x Genero'!AW57 -> 22 | J57: ='Pob x Genero'!K57+'Pob x Genero'!AX57 -> 42 | K57: ='Pob x Genero'!L57+'Pob x Genero'!AY57 -> 16 | L57: ='Pob x Genero'!M57+'Pob x Genero'!AZ57 -> 27 | M57: ='Pob x Genero'!N57+'Pob x Genero'!BA57 -> 40 | N57: ='Pob x Genero'!O57+'Pob x Genero'!BB57 -> 36 | O57: ='Pob x Genero'!P57+'Pob x Genero'!BC57 -> 32 | P57: ='Pob x Genero'!Q57+'Pob x Genero'!BD57 -> 37 | Q57: ='Pob x Genero'!R57+'Pob x Genero'!BE57 -> 45 | R57: ='Pob x Genero'!S57+'Pob x Genero'!BF57 -> 48 | S57: ='Pob x Genero'!T57+'Pob x Genero'!BG57 -> 43 | T57: ='Pob x Genero'!U57+'Pob x Genero'!BH57 -> 49 | U57: ='Pob x Genero'!V57+'Pob x Genero'!BI57 -> 35 | V57: ='Pob x Genero'!W57+'Pob x Genero'!BJ57 -> 48 | W57: ='Pob x Genero'!X57+'Pob x Genero'!BK57 -> 45 | X57: ='Pob x Genero'!Y57+'Pob x Genero'!BL57 -> 45 | Y57: ='Pob x Genero'!Z57+'Pob x Genero'!BM57 -> 32 | Z57: ='Pob x Genero'!AA57+'Pob x Genero'!BN57 -> 38 | AA57: ='Pob x Genero'!AB57+'Pob x Genero'!BO57 -> 165 | AB57: ='Pob x Genero'!AC57+'Pob x Genero'!BP57 -> 149 | AC57: ='Pob x Genero'!AD57+'Pob x Genero'!BQ57 -> 150 | AD57: ='Pob x Genero'!AE57+'Pob x Genero'!BR57 -> 155 | AE57: ='Pob x Genero'!AF57+'Pob x Genero'!BS57 -> 124 | AF57: ='Pob x Genero'!AG57+'Pob x Genero'!BT57 -> 128 | AG57: ='Pob x Genero'!AH57+'Pob x Genero'!BU57 -> 112 | AH57: ='Pob x Genero'!AI57+'Pob x Genero'!BV57 -> 102 | AI57: ='Pob x Genero'!AJ57+'Pob x Genero'!BW57 -> 83 | AJ57: ='Pob x Genero'!AK57+'Pob x Genero'!BX57 -> 70 | AK57: ='Pob x Genero'!AL57+'Pob x Genero'!BY57 -> 46 | AL57: ='Pob x Genero'!AM57+'Pob x Genero'!BZ57 -> 34 | AM57: ='Pob x Genero'!AN57+'Pob x Genero'!CA57 -> 26 | AN57: ='Pob x Genero'!AO57+'Pob x Genero'!CB57 -> 46 | AO57: ='Pob x Genero'!AP57+'Pob x Genero'!CC57 -> 2 | AP57: ='Pob x Genero'!AQ57+'Pob x Genero'!CD57 -> 17 | AQ57: ='Pob x Genero'!AR57+'Pob x Genero'!CE57 -> 10 | AR57: ='Pob x Genero'!AS57+'Pob x Genero'!CF57 -> 39 | AS57: ='Pob x Genero'!AT57 -> 1,077 | AT57: =SUM('Pob x Genero'!BE57:BI57) -> 132 | AU57: =SUM('Pob x Genero'!BJ57:BN57) -> 105 | AV57: =SUM('Pob x Genero'!BO57:BT57) -> 425 | AW57: ='Pob x Genero'!CG57 -> 67 | AZ57: 2,126 | BA57: 401 | BB57: 265 | BC57: 384 | BD57: 771 | BE57: 305
A58: 040313 | B58: AREQUIPA | C58: AREQUIPA | D58: CARAVELI | E58: YAUCA | F58: 2,396 | G58: ='Pob x Genero'!H58+'Pob x Genero'!AU58 -> 31 | H58: ='Pob x Genero'!I58+'Pob x Genero'!AV58 -> 30 | I58: ='Pob x Genero'!J58+'Pob x Genero'!AW58 -> 16 | J58: ='Pob x Genero'!K58+'Pob x Genero'!AX58 -> 21 | K58: ='Pob x Genero'!L58+'Pob x Genero'!AY58 -> 14 | L58: ='Pob x Genero'!M58+'Pob x Genero'!AZ58 -> 22 | M58: ='Pob x Genero'!N58+'Pob x Genero'!BA58 -> 35 | N58: ='Pob x Genero'!O58+'Pob x Genero'!BB58 -> 39 | O58: ='Pob x Genero'!P58+'Pob x Genero'!BC58 -> 38 | P58: ='Pob x Genero'!Q58+'Pob x Genero'!BD58 -> 51 | Q58: ='Pob x Genero'!R58+'Pob x Genero'!BE58 -> 43 | R58: ='Pob x Genero'!S58+'Pob x Genero'!BF58 -> 44 | S58: ='Pob x Genero'!T58+'Pob x Genero'!BG58 -> 42 | T58: ='Pob x Genero'!U58+'Pob x Genero'!BH58 -> 34 | U58: ='Pob x Genero'!V58+'Pob x Genero'!BI58 -> 47 | V58: ='Pob x Genero'!W58+'Pob x Genero'!BJ58 -> 35 | W58: ='Pob x Genero'!X58+'Pob x Genero'!BK58 -> 40 | X58: ='Pob x Genero'!Y58+'Pob x Genero'!BL58 -> 30 | Y58: ='Pob x Genero'!Z58+'Pob x Genero'!BM58 -> 24 | Z58: ='Pob x Genero'!AA58+'Pob x Genero'!BN58 -> 29 | AA58: ='Pob x Genero'!AB58+'Pob x Genero'!BO58 -> 153 | AB58: ='Pob x Genero'!AC58+'Pob x Genero'!BP58 -> 198 | AC58: ='Pob x Genero'!AD58+'Pob x Genero'!BQ58 -> 156 | AD58: ='Pob x Genero'!AE58+'Pob x Genero'!BR58 -> 148 | AE58: ='Pob x Genero'!AF58+'Pob x Genero'!BS58 -> 167 | AF58: ='Pob x Genero'!AG58+'Pob x Genero'!BT58 -> 163 | AG58: ='Pob x Genero'!AH58+'Pob x Genero'!BU58 -> 146 | AH58: ='Pob x Genero'!AI58+'Pob x Genero'!BV58 -> 166 | AI58: ='Pob x Genero'!AJ58+'Pob x Genero'!BW58 -> 145 | AJ58: ='Pob x Genero'!AK58+'Pob x Genero'!BX58 -> 93 | AK58: ='Pob x Genero'!AL58+'Pob x Genero'!BY58 -> 75 | AL58: ='Pob x Genero'!AM58+'Pob x Genero'!BZ58 -> 50 | AM58: ='Pob x Genero'!AN58+'Pob x Genero'!CA58 -> 28 | AN58: ='Pob x Genero'!AO58+'Pob x Genero'!CB58 -> 43 | AO58: ='Pob x Genero'!AP58+'Pob x Genero'!CC58 -> 1 | AP58: ='Pob x Genero'!AQ58+'Pob x Genero'!CD58 -> 16 | AQ58: ='Pob x Genero'!AR58+'Pob x Genero'!CE58 -> 15 | AR58: ='Pob x Genero'!AS58+'Pob x Genero'!CF58 -> 39 | AS58: ='Pob x Genero'!AT58 -> 1,213 | AT58: =SUM('Pob x Genero'!BE58:BI58) -> 116 | AU58: =SUM('Pob x Genero'!BJ58:BN58) -> 70 | AV58: =SUM('Pob x Genero'!BO58:BT58) -> 529 | AW58: ='Pob x Genero'!CG58 -> 46 | AZ58: 2,396 | BA58: 384 | BB58: 228 | BC58: 404 | BD58: 946 | BE58: 434
A59: 040401 | B59: AREQUIPA | C59: AREQUIPA | D59: CASTILLA | E59: APLAO | F59: 9,465 | G59: ='Pob x Genero'!H59+'Pob x Genero'!AU59 -> 118 | H59: ='Pob x Genero'!I59+'Pob x Genero'!AV59 -> 113 | I59: ='Pob x Genero'!J59+'Pob x Genero'!AW59 -> 117 | J59: ='Pob x Genero'!K59+'Pob x Genero'!AX59 -> 146 | K59: ='Pob x Genero'!L59+'Pob x Genero'!AY59 -> 125 | L59: ='Pob x Genero'!M59+'Pob x Genero'!AZ59 -> 133 | M59: ='Pob x Genero'!N59+'Pob x Genero'!BA59 -> 130 | N59: ='Pob x Genero'!O59+'Pob x Genero'!BB59 -> 129 | O59: ='Pob x Genero'!P59+'Pob x Genero'!BC59 -> 135 | P59: ='Pob x Genero'!Q59+'Pob x Genero'!BD59 -> 118 | Q59: ='Pob x Genero'!R59+'Pob x Genero'!BE59 -> 144 | R59: ='Pob x Genero'!S59+'Pob x Genero'!BF59 -> 164 | S59: ='Pob x Genero'!T59+'Pob x Genero'!BG59 -> 200 | T59: ='Pob x Genero'!U59+'Pob x Genero'!BH59 -> 154 | U59: ='Pob x Genero'!V59+'Pob x Genero'!BI59 -> 152 | V59: ='Pob x Genero'!W59+'Pob x Genero'!BJ59 -> 131 | W59: ='Pob x Genero'!X59+'Pob x Genero'!BK59 -> 180 | X59: ='Pob x Genero'!Y59+'Pob x Genero'!BL59 -> 174 | Y59: ='Pob x Genero'!Z59+'Pob x Genero'!BM59 -> 145 | Z59: ='Pob x Genero'!AA59+'Pob x Genero'!BN59 -> 147 | AA59: ='Pob x Genero'!AB59+'Pob x Genero'!BO59 -> 706 | AB59: ='Pob x Genero'!AC59+'Pob x Genero'!BP59 -> 789 | AC59: ='Pob x Genero'!AD59+'Pob x Genero'!BQ59 -> 716 | AD59: ='Pob x Genero'!AE59+'Pob x Genero'!BR59 -> 657 | AE59: ='Pob x Genero'!AF59+'Pob x Genero'!BS59 -> 609 | AF59: ='Pob x Genero'!AG59+'Pob x Genero'!BT59 -> 620 | AG59: ='Pob x Genero'!AH59+'Pob x Genero'!BU59 -> 563 | AH59: ='Pob x Genero'!AI59+'Pob x Genero'!BV59 -> 538 | AI59: ='Pob x Genero'!AJ59+'Pob x Genero'!BW59 -> 402 | AJ59: ='Pob x Genero'!AK59+'Pob x Genero'!BX59 -> 345 | AK59: ='Pob x Genero'!AL59+'Pob x Genero'!BY59 -> 253 | AL59: ='Pob x Genero'!AM59+'Pob x Genero'!BZ59 -> 189 | AM59: ='Pob x Genero'!AN59+'Pob x Genero'!CA59 -> 104 | AN59: ='Pob x Genero'!AO59+'Pob x Genero'!CB59 -> 119 | AO59: ='Pob x Genero'!AP59+'Pob x Genero'!CC59 -> 14 | AP59: ='Pob x Genero'!AQ59+'Pob x Genero'!CD59 -> 55 | AQ59: ='Pob x Genero'!AR59+'Pob x Genero'!CE59 -> 63 | AR59: ='Pob x Genero'!AS59+'Pob x Genero'!CF59 -> 140 | AS59: ='Pob x Genero'!AT59 -> 4,789 | AT59: =SUM('Pob x Genero'!BE59:BI59) -> 394 | AU59: =SUM('Pob x Genero'!BJ59:BN59) -> 415 | AV59: =SUM('Pob x Genero'!BO59:BT59) -> 2,134 | AW59: ='Pob x Genero'!CG59 -> 241 | AZ59: 9,465 | BA59: 1,572 | BB59: 991 | BC59: 1,787 | BD59: 3,703 | BE59: 1,412
A60: 040402 | B60: AREQUIPA | C60: AREQUIPA | D60: CASTILLA | E60: ANDAGUA | F60: 928 | G60: ='Pob x Genero'!H60+'Pob x Genero'!AU60 -> 11 | H60: ='Pob x Genero'!I60+'Pob x Genero'!AV60 -> 10 | I60: ='Pob x Genero'!J60+'Pob x Genero'!AW60 -> 9 | J60: ='Pob x Genero'!K60+'Pob x Genero'!AX60 -> 13 | K60: ='Pob x Genero'!L60+'Pob x Genero'!AY60 -> 9 | L60: ='Pob x Genero'!M60+'Pob x Genero'!AZ60 -> 8 | M60: ='Pob x Genero'!N60+'Pob x Genero'!BA60 -> 13 | N60: ='Pob x Genero'!O60+'Pob x Genero'!BB60 -> 13 | O60: ='Pob x Genero'!P60+'Pob x Genero'!BC60 -> 9 | P60: ='Pob x Genero'!Q60+'Pob x Genero'!BD60 -> 14 | Q60: ='Pob x Genero'!R60+'Pob x Genero'!BE60 -> 14 | R60: ='Pob x Genero'!S60+'Pob x Genero'!BF60 -> 13 | S60: ='Pob x Genero'!T60+'Pob x Genero'!BG60 -> 13 | T60: ='Pob x Genero'!U60+'Pob x Genero'!BH60 -> 19 | U60: ='Pob x Genero'!V60+'Pob x Genero'!BI60 -> 12 | V60: ='Pob x Genero'!W60+'Pob x Genero'!BJ60 -> 8 | W60: ='Pob x Genero'!X60+'Pob x Genero'!BK60 -> 19 | X60: ='Pob x Genero'!Y60+'Pob x Genero'!BL60 -> 13 | Y60: ='Pob x Genero'!Z60+'Pob x Genero'!BM60 -> 13 | Z60: ='Pob x Genero'!AA60+'Pob x Genero'!BN60 -> 8 | AA60: ='Pob x Genero'!AB60+'Pob x Genero'!BO60 -> 78 | AB60: ='Pob x Genero'!AC60+'Pob x Genero'!BP60 -> 56 | AC60: ='Pob x Genero'!AD60+'Pob x Genero'!BQ60 -> 53 | AD60: ='Pob x Genero'!AE60+'Pob x Genero'!BR60 -> 55 | AE60: ='Pob x Genero'!AF60+'Pob x Genero'!BS60 -> 61 | AF60: ='Pob x Genero'!AG60+'Pob x Genero'!BT60 -> 61 | AG60: ='Pob x Genero'!AH60+'Pob x Genero'!BU60 -> 60 | AH60: ='Pob x Genero'!AI60+'Pob x Genero'!BV60 -> 53 | AI60: ='Pob x Genero'!AJ60+'Pob x Genero'!BW60 -> 52 | AJ60: ='Pob x Genero'!AK60+'Pob x Genero'!BX60 -> 43 | AK60: ='Pob x Genero'!AL60+'Pob x Genero'!BY60 -> 38 | AL60: ='Pob x Genero'!AM60+'Pob x Genero'!BZ60 -> 33 | AM60: ='Pob x Genero'!AN60+'Pob x Genero'!CA60 -> 17 | AN60: ='Pob x Genero'!AO60+'Pob x Genero'!CB60 -> 27 | AO60: ='Pob x Genero'!AP60+'Pob x Genero'!CC60 -> 0 | AP60: ='Pob x Genero'!AQ60+'Pob x Genero'!CD60 -> 5 | AQ60: ='Pob x Genero'!AR60+'Pob x Genero'!CE60 -> 6 | AR60: ='Pob x Genero'!AS60+'Pob x Genero'!CF60 -> 22 | AS60: ='Pob x Genero'!AT60 -> 466 | AT60: =SUM('Pob x Genero'!BE60:BI60) -> 38 | AU60: =SUM('Pob x Genero'!BJ60:BN60) -> 30 | AV60: =SUM('Pob x Genero'!BO60:BT60) -> 173 | AW60: ='Pob x Genero'!CG60 -> 21 | AZ60: 928 | BA60: 136 | BB60: 84 | BC60: 155 | BD60: 343 | BE60: 210
A61: 040403 | B61: AREQUIPA | C61: AREQUIPA | D61: CASTILLA | E61: AYO | F61: 284 | G61: ='Pob x Genero'!H61+'Pob x Genero'!AU61 -> 4 | H61: ='Pob x Genero'!I61+'Pob x Genero'!AV61 -> 2 | I61: ='Pob x Genero'!J61+'Pob x Genero'!AW61 -> 6 | J61: ='Pob x Genero'!K61+'Pob x Genero'!AX61 -> 3 | K61: ='Pob x Genero'!L61+'Pob x Genero'!AY61 -> 3 | L61: ='Pob x Genero'!M61+'Pob x Genero'!AZ61 -> 5 | M61: ='Pob x Genero'!N61+'Pob x Genero'!BA61 -> 2 | N61: ='Pob x Genero'!O61+'Pob x Genero'!BB61 -> 2 | O61: ='Pob x Genero'!P61+'Pob x Genero'!BC61 -> 2 | P61: ='Pob x Genero'!Q61+'Pob x Genero'!BD61 -> 1 | Q61: ='Pob x Genero'!R61+'Pob x Genero'!BE61 -> 0 | R61: ='Pob x Genero'!S61+'Pob x Genero'!BF61 -> 4 | S61: ='Pob x Genero'!T61+'Pob x Genero'!BG61 -> 1 | T61: ='Pob x Genero'!U61+'Pob x Genero'!BH61 -> 2 | U61: ='Pob x Genero'!V61+'Pob x Genero'!BI61 -> 2 | V61: ='Pob x Genero'!W61+'Pob x Genero'!BJ61 -> 1 | W61: ='Pob x Genero'!X61+'Pob x Genero'!BK61 -> 3 | X61: ='Pob x Genero'!Y61+'Pob x Genero'!BL61 -> 3 | Y61: ='Pob x Genero'!Z61+'Pob x Genero'!BM61 -> 1 | Z61: ='Pob x Genero'!AA61+'Pob x Genero'!BN61 -> 2 | AA61: ='Pob x Genero'!AB61+'Pob x Genero'!BO61 -> 6 | AB61: ='Pob x Genero'!AC61+'Pob x Genero'!BP61 -> 12 | AC61: ='Pob x Genero'!AD61+'Pob x Genero'!BQ61 -> 17 | AD61: ='Pob x Genero'!AE61+'Pob x Genero'!BR61 -> 23 | AE61: ='Pob x Genero'!AF61+'Pob x Genero'!BS61 -> 20 | AF61: ='Pob x Genero'!AG61+'Pob x Genero'!BT61 -> 17 | AG61: ='Pob x Genero'!AH61+'Pob x Genero'!BU61 -> 24 | AH61: ='Pob x Genero'!AI61+'Pob x Genero'!BV61 -> 17 | AI61: ='Pob x Genero'!AJ61+'Pob x Genero'!BW61 -> 20 | AJ61: ='Pob x Genero'!AK61+'Pob x Genero'!BX61 -> 20 | AK61: ='Pob x Genero'!AL61+'Pob x Genero'!BY61 -> 11 | AL61: ='Pob x Genero'!AM61+'Pob x Genero'!BZ61 -> 19 | AM61: ='Pob x Genero'!AN61+'Pob x Genero'!CA61 -> 11 | AN61: ='Pob x Genero'!AO61+'Pob x Genero'!CB61 -> 18 | AO61: ='Pob x Genero'!AP61+'Pob x Genero'!CC61 -> 0 | AP61: ='Pob x Genero'!AQ61+'Pob x Genero'!CD61 -> 2 | AQ61: ='Pob x Genero'!AR61+'Pob x Genero'!CE61 -> 2 | AR61: ='Pob x Genero'!AS61+'Pob x Genero'!CF61 -> 9 | AS61: ='Pob x Genero'!AT61 -> 142 | AT61: =SUM('Pob x Genero'!BE61:BI61) -> 6 | AU61: =SUM('Pob x Genero'!BJ61:BN61) -> 3 | AV61: =SUM('Pob x Genero'!BO61:BT61) -> 44 | AW61: ='Pob x Genero'!CG61 -> 10 | AZ61: 284 | BA61: 34 | BB61: 12 | BC61: 21 | BD61: 118 | BE61: 99
A62: 040404 | B62: AREQUIPA | C62: AREQUIPA | D62: CASTILLA | E62: CHACHAS | F62: 1,668 | G62: ='Pob x Genero'!H62+'Pob x Genero'!AU62 -> 34 | H62: ='Pob x Genero'!I62+'Pob x Genero'!AV62 -> 28 | I62: ='Pob x Genero'!J62+'Pob x Genero'!AW62 -> 29 | J62: ='Pob x Genero'!K62+'Pob x Genero'!AX62 -> 32 | K62: ='Pob x Genero'!L62+'Pob x Genero'!AY62 -> 30 | L62: ='Pob x Genero'!M62+'Pob x Genero'!AZ62 -> 23 | M62: ='Pob x Genero'!N62+'Pob x Genero'!BA62 -> 22 | N62: ='Pob x Genero'!O62+'Pob x Genero'!BB62 -> 24 | O62: ='Pob x Genero'!P62+'Pob x Genero'!BC62 -> 28 | P62: ='Pob x Genero'!Q62+'Pob x Genero'!BD62 -> 27 | Q62: ='Pob x Genero'!R62+'Pob x Genero'!BE62 -> 39 | R62: ='Pob x Genero'!S62+'Pob x Genero'!BF62 -> 29 | S62: ='Pob x Genero'!T62+'Pob x Genero'!BG62 -> 33 | T62: ='Pob x Genero'!U62+'Pob x Genero'!BH62 -> 32 | U62: ='Pob x Genero'!V62+'Pob x Genero'!BI62 -> 28 | V62: ='Pob x Genero'!W62+'Pob x Genero'!BJ62 -> 41 | W62: ='Pob x Genero'!X62+'Pob x Genero'!BK62 -> 26 | X62: ='Pob x Genero'!Y62+'Pob x Genero'!BL62 -> 35 | Y62: ='Pob x Genero'!Z62+'Pob x Genero'!BM62 -> 21 | Z62: ='Pob x Genero'!AA62+'Pob x Genero'!BN62 -> 23 | AA62: ='Pob x Genero'!AB62+'Pob x Genero'!BO62 -> 130 | AB62: ='Pob x Genero'!AC62+'Pob x Genero'!BP62 -> 130 | AC62: ='Pob x Genero'!AD62+'Pob x Genero'!BQ62 -> 140 | AD62: ='Pob x Genero'!AE62+'Pob x Genero'!BR62 -> 126 | AE62: ='Pob x Genero'!AF62+'Pob x Genero'!BS62 -> 85 | AF62: ='Pob x Genero'!AG62+'Pob x Genero'!BT62 -> 91 | AG62: ='Pob x Genero'!AH62+'Pob x Genero'!BU62 -> 75 | AH62: ='Pob x Genero'!AI62+'Pob x Genero'!BV62 -> 89 | AI62: ='Pob x Genero'!AJ62+'Pob x Genero'!BW62 -> 67 | AJ62: ='Pob x Genero'!AK62+'Pob x Genero'!BX62 -> 48 | AK62: ='Pob x Genero'!AL62+'Pob x Genero'!BY62 -> 30 | AL62: ='Pob x Genero'!AM62+'Pob x Genero'!BZ62 -> 26 | AM62: ='Pob x Genero'!AN62+'Pob x Genero'!CA62 -> 18 | AN62: ='Pob x Genero'!AO62+'Pob x Genero'!CB62 -> 29 | AO62: ='Pob x Genero'!AP62+'Pob x Genero'!CC62 -> 1 | AP62: ='Pob x Genero'!AQ62+'Pob x Genero'!CD62 -> 21 | AQ62: ='Pob x Genero'!AR62+'Pob x Genero'!CE62 -> 13 | AR62: ='Pob x Genero'!AS62+'Pob x Genero'!CF62 -> 59 | AS62: ='Pob x Genero'!AT62 -> 834 | AT62: =SUM('Pob x Genero'!BE62:BI62) -> 86 | AU62: =SUM('Pob x Genero'!BJ62:BN62) -> 78 | AV62: =SUM('Pob x Genero'!BO62:BT62) -> 320 | AW62: ='Pob x Genero'!CG62 -> 68 | AZ62: 1,668 | BA62: 345 | BB62: 195 | BC62: 304 | BD62: 606 | BE62: 218
A63: 040405 | B63: AREQUIPA | C63: AREQUIPA | D63: CASTILLA | E63: CHILCAYMARCA | F63: 1,073 | G63: ='Pob x Genero'!H63+'Pob x Genero'!AU63 -> 13 | H63: ='Pob x Genero'!I63+'Pob x Genero'!AV63 -> 12 | I63: ='Pob x Genero'!J63+'Pob x Genero'!AW63 -> 10 | J63: ='Pob x Genero'!K63+'Pob x Genero'!AX63 -> 10 | K63: ='Pob x Genero'!L63+'Pob x Genero'!AY63 -> 10 | L63: ='Pob x Genero'!M63+'Pob x Genero'!AZ63 -> 6 | M63: ='Pob x Genero'!N63+'Pob x Genero'!BA63 -> 17 | N63: ='Pob x Genero'!O63+'Pob x Genero'!BB63 -> 17 | O63: ='Pob x Genero'!P63+'Pob x Genero'!BC63 -> 20 | P63: ='Pob x Genero'!Q63+'Pob x Genero'!BD63 -> 20 | Q63: ='Pob x Genero'!R63+'Pob x Genero'!BE63 -> 18 | R63: ='Pob x Genero'!S63+'Pob x Genero'!BF63 -> 19 | S63: ='Pob x Genero'!T63+'Pob x Genero'!BG63 -> 10 | T63: ='Pob x Genero'!U63+'Pob x Genero'!BH63 -> 12 | U63: ='Pob x Genero'!V63+'Pob x Genero'!BI63 -> 18 | V63: ='Pob x Genero'!W63+'Pob x Genero'!BJ63 -> 23 | W63: ='Pob x Genero'!X63+'Pob x Genero'!BK63 -> 18 | X63: ='Pob x Genero'!Y63+'Pob x Genero'!BL63 -> 23 | Y63: ='Pob x Genero'!Z63+'Pob x Genero'!BM63 -> 18 | Z63: ='Pob x Genero'!AA63+'Pob x Genero'!BN63 -> 8 | AA63: ='Pob x Genero'!AB63+'Pob x Genero'!BO63 -> 68 | AB63: ='Pob x Genero'!AC63+'Pob x Genero'!BP63 -> 93 | AC63: ='Pob x Genero'!AD63+'Pob x Genero'!BQ63 -> 97 | AD63: ='Pob x Genero'!AE63+'Pob x Genero'!BR63 -> 101 | AE63: ='Pob x Genero'!AF63+'Pob x Genero'!BS63 -> 99 | AF63: ='Pob x Genero'!AG63+'Pob x Genero'!BT63 -> 82 | AG63: ='Pob x Genero'!AH63+'Pob x Genero'!BU63 -> 62 | AH63: ='Pob x Genero'!AI63+'Pob x Genero'!BV63 -> 47 | AI63: ='Pob x Genero'!AJ63+'Pob x Genero'!BW63 -> 43 | AJ63: ='Pob x Genero'!AK63+'Pob x Genero'!BX63 -> 30 | AK63: ='Pob x Genero'!AL63+'Pob x Genero'!BY63 -> 17 | AL63: ='Pob x Genero'!AM63+'Pob x Genero'!BZ63 -> 13 | AM63: ='Pob x Genero'!AN63+'Pob x Genero'!CA63 -> 11 | AN63: ='Pob x Genero'!AO63+'Pob x Genero'!CB63 -> 8 | AO63: ='Pob x Genero'!AP63+'Pob x Genero'!CC63 -> 0 | AP63: ='Pob x Genero'!AQ63+'Pob x Genero'!CD63 -> 6 | AQ63: ='Pob x Genero'!AR63+'Pob x Genero'!CE63 -> 7 | AR63: ='Pob x Genero'!AS63+'Pob x Genero'!CF63 -> 19 | AS63: ='Pob x Genero'!AT63 -> 544 | AT63: =SUM('Pob x Genero'!BE63:BI63) -> 34 | AU63: =SUM('Pob x Genero'!BJ63:BN63) -> 50 | AV63: =SUM('Pob x Genero'!BO63:BT63) -> 271 | AW63: ='Pob x Genero'!CG63 -> 23 | AZ63: 1,073 | BA63: 172 | BB63: 104 | BC63: 187 | BD63: 488 | BE63: 122
A64: 040406 | B64: AREQUIPA | C64: AREQUIPA | D64: CASTILLA | E64: CHOCO | F64: 671 | G64: ='Pob x Genero'!H64+'Pob x Genero'!AU64 -> 12 | H64: ='Pob x Genero'!I64+'Pob x Genero'!AV64 -> 7 | I64: ='Pob x Genero'!J64+'Pob x Genero'!AW64 -> 3 | J64: ='Pob x Genero'!K64+'Pob x Genero'!AX64 -> 6 | K64: ='Pob x Genero'!L64+'Pob x Genero'!AY64 -> 6 | L64: ='Pob x Genero'!M64+'Pob x Genero'!AZ64 -> 3 | M64: ='Pob x Genero'!N64+'Pob x Genero'!BA64 -> 6 | N64: ='Pob x Genero'!O64+'Pob x Genero'!BB64 -> 7 | O64: ='Pob x Genero'!P64+'Pob x Genero'!BC64 -> 5 | P64: ='Pob x Genero'!Q64+'Pob x Genero'!BD64 -> 5 | Q64: ='Pob x Genero'!R64+'Pob x Genero'!BE64 -> 4 | R64: ='Pob x Genero'!S64+'Pob x Genero'!BF64 -> 10 | S64: ='Pob x Genero'!T64+'Pob x Genero'!BG64 -> 7 | T64: ='Pob x Genero'!U64+'Pob x Genero'!BH64 -> 9 | U64: ='Pob x Genero'!V64+'Pob x Genero'!BI64 -> 7 | V64: ='Pob x Genero'!W64+'Pob x Genero'!BJ64 -> 6 | W64: ='Pob x Genero'!X64+'Pob x Genero'!BK64 -> 11 | X64: ='Pob x Genero'!Y64+'Pob x Genero'!BL64 -> 5 | Y64: ='Pob x Genero'!Z64+'Pob x Genero'!BM64 -> 10 | Z64: ='Pob x Genero'!AA64+'Pob x Genero'!BN64 -> 9 | AA64: ='Pob x Genero'!AB64+'Pob x Genero'!BO64 -> 38 | AB64: ='Pob x Genero'!AC64+'Pob x Genero'!BP64 -> 31 | AC64: ='Pob x Genero'!AD64+'Pob x Genero'!BQ64 -> 49 | AD64: ='Pob x Genero'!AE64+'Pob x Genero'!BR64 -> 48 | AE64: ='Pob x Genero'!AF64+'Pob x Genero'!BS64 -> 57 | AF64: ='Pob x Genero'!AG64+'Pob x Genero'!BT64 -> 53 | AG64: ='Pob x Genero'!AH64+'Pob x Genero'!BU64 -> 44 | AH64: ='Pob x Genero'!AI64+'Pob x Genero'!BV64 -> 35 | AI64: ='Pob x Genero'!AJ64+'Pob x Genero'!BW64 -> 39 | AJ64: ='Pob x Genero'!AK64+'Pob x Genero'!BX64 -> 36 | AK64: ='Pob x Genero'!AL64+'Pob x Genero'!BY64 -> 27 | AL64: ='Pob x Genero'!AM64+'Pob x Genero'!BZ64 -> 30 | AM64: ='Pob x Genero'!AN64+'Pob x Genero'!CA64 -> 20 | AN64: ='Pob x Genero'!AO64+'Pob x Genero'!CB64 -> 26 | AO64: ='Pob x Genero'!AP64+'Pob x Genero'!CC64 -> 1 | AP64: ='Pob x Genero'!AQ64+'Pob x Genero'!CD64 -> 10 | AQ64: ='Pob x Genero'!AR64+'Pob x Genero'!CE64 -> 2 | AR64: ='Pob x Genero'!AS64+'Pob x Genero'!CF64 -> 19 | AS64: ='Pob x Genero'!AT64 -> 335 | AT64: =SUM('Pob x Genero'!BE64:BI64) -> 25 | AU64: =SUM('Pob x Genero'!BJ64:BN64) -> 22 | AV64: =SUM('Pob x Genero'!BO64:BT64) -> 121 | AW64: ='Pob x Genero'!CG64 -> 25 | AZ64: 671 | BA64: 74 | BB64: 45 | BC64: 88 | BD64: 286 | BE64: 178
A65: 040407 | B65: AREQUIPA | C65: AREQUIPA | D65: CASTILLA | E65: HUANCARQUI | F65: 1,605 | G65: ='Pob x Genero'!H65+'Pob x Genero'!AU65 -> 21 | H65: ='Pob x Genero'!I65+'Pob x Genero'!AV65 -> 14 | I65: ='Pob x Genero'!J65+'Pob x Genero'!AW65 -> 12 | J65: ='Pob x Genero'!K65+'Pob x Genero'!AX65 -> 27 | K65: ='Pob x Genero'!L65+'Pob x Genero'!AY65 -> 16 | L65: ='Pob x Genero'!M65+'Pob x Genero'!AZ65 -> 14 | M65: ='Pob x Genero'!N65+'Pob x Genero'!BA65 -> 16 | N65: ='Pob x Genero'!O65+'Pob x Genero'!BB65 -> 15 | O65: ='Pob x Genero'!P65+'Pob x Genero'!BC65 -> 19 | P65: ='Pob x Genero'!Q65+'Pob x Genero'!BD65 -> 18 | Q65: ='Pob x Genero'!R65+'Pob x Genero'!BE65 -> 20 | R65: ='Pob x Genero'!S65+'Pob x Genero'!BF65 -> 14 | S65: ='Pob x Genero'!T65+'Pob x Genero'!BG65 -> 18 | T65: ='Pob x Genero'!U65+'Pob x Genero'!BH65 -> 14 | U65: ='Pob x Genero'!V65+'Pob x Genero'!BI65 -> 22 | V65: ='Pob x Genero'!W65+'Pob x Genero'!BJ65 -> 21 | W65: ='Pob x Genero'!X65+'Pob x Genero'!BK65 -> 16 | X65: ='Pob x Genero'!Y65+'Pob x Genero'!BL65 -> 22 | Y65: ='Pob x Genero'!Z65+'Pob x Genero'!BM65 -> 14 | Z65: ='Pob x Genero'!AA65+'Pob x Genero'!BN65 -> 19 | AA65: ='Pob x Genero'!AB65+'Pob x Genero'!BO65 -> 90 | AB65: ='Pob x Genero'!AC65+'Pob x Genero'!BP65 -> 106 | AC65: ='Pob x Genero'!AD65+'Pob x Genero'!BQ65 -> 147 | AD65: ='Pob x Genero'!AE65+'Pob x Genero'!BR65 -> 125 | AE65: ='Pob x Genero'!AF65+'Pob x Genero'!BS65 -> 126 | AF65: ='Pob x Genero'!AG65+'Pob x Genero'!BT65 -> 115 | AG65: ='Pob x Genero'!AH65+'Pob x Genero'!BU65 -> 118 | AH65: ='Pob x Genero'!AI65+'Pob x Genero'!BV65 -> 107 | AI65: ='Pob x Genero'!AJ65+'Pob x Genero'!BW65 -> 96 | AJ65: ='Pob x Genero'!AK65+'Pob x Genero'!BX65 -> 70 | AK65: ='Pob x Genero'!AL65+'Pob x Genero'!BY65 -> 59 | AL65: ='Pob x Genero'!AM65+'Pob x Genero'!BZ65 -> 37 | AM65: ='Pob x Genero'!AN65+'Pob x Genero'!CA65 -> 25 | AN65: ='Pob x Genero'!AO65+'Pob x Genero'!CB65 -> 32 | AO65: ='Pob x Genero'!AP65+'Pob x Genero'!CC65 -> 2 | AP65: ='Pob x Genero'!AQ65+'Pob x Genero'!CD65 -> 8 | AQ65: ='Pob x Genero'!AR65+'Pob x Genero'!CE65 -> 13 | AR65: ='Pob x Genero'!AS65+'Pob x Genero'!CF65 -> 27 | AS65: ='Pob x Genero'!AT65 -> 815 | AT65: =SUM('Pob x Genero'!BE65:BI65) -> 43 | AU65: =SUM('Pob x Genero'!BJ65:BN65) -> 47 | AV65: =SUM('Pob x Genero'!BO65:BT65) -> 343 | AW65: ='Pob x Genero'!CG65 -> 21 | AZ65: 1,605 | BA65: 206 | BB65: 113 | BC65: 229 | BD65: 738 | BE65: 319
A66: 040408 | B66: AREQUIPA | C66: AREQUIPA | D66: CASTILLA | E66: MACHAGUAY | F66: 418 | G66: ='Pob x Genero'!H66+'Pob x Genero'!AU66 -> 9 | H66: ='Pob x Genero'!I66+'Pob x Genero'!AV66 -> 3 | I66: ='Pob x Genero'!J66+'Pob x Genero'!AW66 -> 4 | J66: ='Pob x Genero'!K66+'Pob x Genero'!AX66 -> 3 | K66: ='Pob x Genero'!L66+'Pob x Genero'!AY66 -> 7 | L66: ='Pob x Genero'!M66+'Pob x Genero'!AZ66 -> 3 | M66: ='Pob x Genero'!N66+'Pob x Genero'!BA66 -> 2 | N66: ='Pob x Genero'!O66+'Pob x Genero'!BB66 -> 4 | O66: ='Pob x Genero'!P66+'Pob x Genero'!BC66 -> 2 | P66: ='Pob x Genero'!Q66+'Pob x Genero'!BD66 -> 5 | Q66: ='Pob x Genero'!R66+'Pob x Genero'!BE66 -> 3 | R66: ='Pob x Genero'!S66+'Pob x Genero'!BF66 -> 6 | S66: ='Pob x Genero'!T66+'Pob x Genero'!BG66 -> 5 | T66: ='Pob x Genero'!U66+'Pob x Genero'!BH66 -> 5 | U66: ='Pob x Genero'!V66+'Pob x Genero'!BI66 -> 7 | V66: ='Pob x Genero'!W66+'Pob x Genero'!BJ66 -> 5 | W66: ='Pob x Genero'!X66+'Pob x Genero'!BK66 -> 7 | X66: ='Pob x Genero'!Y66+'Pob x Genero'!BL66 -> 9 | Y66: ='Pob x Genero'!Z66+'Pob x Genero'!BM66 -> 6 | Z66: ='Pob x Genero'!AA66+'Pob x Genero'!BN66 -> 6 | AA66: ='Pob x Genero'!AB66+'Pob x Genero'!BO66 -> 24 | AB66: ='Pob x Genero'!AC66+'Pob x Genero'!BP66 -> 20 | AC66: ='Pob x Genero'!AD66+'Pob x Genero'!BQ66 -> 18 | AD66: ='Pob x Genero'!AE66+'Pob x Genero'!BR66 -> 15 | AE66: ='Pob x Genero'!AF66+'Pob x Genero'!BS66 -> 23 | AF66: ='Pob x Genero'!AG66+'Pob x Genero'!BT66 -> 27 | AG66: ='Pob x Genero'!AH66+'Pob x Genero'!BU66 -> 30 | AH66: ='Pob x Genero'!AI66+'Pob x Genero'!BV66 -> 28 | AI66: ='Pob x Genero'!AJ66+'Pob x Genero'!BW66 -> 29 | AJ66: ='Pob x Genero'!AK66+'Pob x Genero'!BX66 -> 16 | AK66: ='Pob x Genero'!AL66+'Pob x Genero'!BY66 -> 28 | AL66: ='Pob x Genero'!AM66+'Pob x Genero'!BZ66 -> 16 | AM66: ='Pob x Genero'!AN66+'Pob x Genero'!CA66 -> 19 | AN66: ='Pob x Genero'!AO66+'Pob x Genero'!CB66 -> 24 | AO66: ='Pob x Genero'!AP66+'Pob x Genero'!CC66 -> 0 | AP66: ='Pob x Genero'!AQ66+'Pob x Genero'!CD66 -> 1 | AQ66: ='Pob x Genero'!AR66+'Pob x Genero'!CE66 -> 8 | AR66: ='Pob x Genero'!AS66+'Pob x Genero'!CF66 -> 14 | AS66: ='Pob x Genero'!AT66 -> 210 | AT66: =SUM('Pob x Genero'!BE66:BI66) -> 16 | AU66: =SUM('Pob x Genero'!BJ66:BN66) -> 16 | AV66: =SUM('Pob x Genero'!BO66:BT66) -> 63 | AW66: ='Pob x Genero'!CG66 -> 8 | AZ66: 418 | BA66: 51 | BB66: 38 | BC66: 56 | BD66: 141 | BE66: 132
A67: 040409 | B67: AREQUIPA | C67: AREQUIPA | D67: CASTILLA | E67: ORCOPAMPA | F67: 8,560 | G67: ='Pob x Genero'!H67+'Pob x Genero'!AU67 -> 65 | H67: ='Pob x Genero'!I67+'Pob x Genero'!AV67 -> 74 | I67: ='Pob x Genero'!J67+'Pob x Genero'!AW67 -> 52 | J67: ='Pob x Genero'!K67+'Pob x Genero'!AX67 -> 90 | K67: ='Pob x Genero'!L67+'Pob x Genero'!AY67 -> 74 | L67: ='Pob x Genero'!M67+'Pob x Genero'!AZ67 -> 119 | M67: ='Pob x Genero'!N67+'Pob x Genero'!BA67 -> 148 | N67: ='Pob x Genero'!O67+'Pob x Genero'!BB67 -> 168 | O67: ='Pob x Genero'!P67+'Pob x Genero'!BC67 -> 199 | P67: ='Pob x Genero'!Q67+'Pob x Genero'!BD67 -> 187 | Q67: ='Pob x Genero'!R67+'Pob x Genero'!BE67 -> 202 | R67: ='Pob x Genero'!S67+'Pob x Genero'!BF67 -> 197 | S67: ='Pob x Genero'!T67+'Pob x Genero'!BG67 -> 180 | T67: ='Pob x Genero'!U67+'Pob x Genero'!BH67 -> 192 | U67: ='Pob x Genero'!V67+'Pob x Genero'!BI67 -> 188 | V67: ='Pob x Genero'!W67+'Pob x Genero'!BJ67 -> 241 | W67: ='Pob x Genero'!X67+'Pob x Genero'!BK67 -> 207 | X67: ='Pob x Genero'!Y67+'Pob x Genero'!BL67 -> 240 | Y67: ='Pob x Genero'!Z67+'Pob x Genero'!BM67 -> 164 | Z67: ='Pob x Genero'!AA67+'Pob x Genero'!BN67 -> 128 | AA67: ='Pob x Genero'!AB67+'Pob x Genero'!BO67 -> 723 | AB67: ='Pob x Genero'!AC67+'Pob x Genero'!BP67 -> 715 | AC67: ='Pob x Genero'!AD67+'Pob x Genero'!BQ67 -> 668 | AD67: ='Pob x Genero'!AE67+'Pob x Genero'!BR67 -> 693 | AE67: ='Pob x Genero'!AF67+'Pob x Genero'!BS67 -> 594 | AF67: ='Pob x Genero'!AG67+'Pob x Genero'!BT67 -> 486 | AG67: ='Pob x Genero'!AH67+'Pob x Genero'!BU67 -> 375 | AH67: ='Pob x Genero'!AI67+'Pob x Genero'!BV67 -> 371 | AI67: ='Pob x Genero'!AJ67+'Pob x Genero'!BW67 -> 267 | AJ67: ='Pob x Genero'!AK67+'Pob x Genero'!BX67 -> 201 | AK67: ='Pob x Genero'!AL67+'Pob x Genero'!BY67 -> 151 | AL67: ='Pob x Genero'!AM67+'Pob x Genero'!BZ67 -> 88 | AM67: ='Pob x Genero'!AN67+'Pob x Genero'!CA67 -> 57 | AN67: ='Pob x Genero'!AO67+'Pob x Genero'!CB67 -> 56 | AO67: ='Pob x Genero'!AP67+'Pob x Genero'!CC67 -> 5 | AP67: ='Pob x Genero'!AQ67+'Pob x Genero'!CD67 -> 38 | AQ67: ='Pob x Genero'!AR67+'Pob x Genero'!CE67 -> 27 | AR67: ='Pob x Genero'!AS67+'Pob x Genero'!CF67 -> 77 | AS67: ='Pob x Genero'!AT67 -> 4,336 | AT67: =SUM('Pob x Genero'!BE67:BI67) -> 493 | AU67: =SUM('Pob x Genero'!BJ67:BN67) -> 504 | AV67: =SUM('Pob x Genero'!BO67:BT67) -> 1,945 | AW67: ='Pob x Genero'!CG67 -> 114 | AZ67: 8,560 | BA67: 1,575 | BB67: 1,248 | BC67: 1,730 | BD67: 3,187 | BE67: 820
A68: 040410 | B68: AREQUIPA | C68: AREQUIPA | D68: CASTILLA | E68: PAMPACOLCA | F68: 1,861 | G68: ='Pob x Genero'!H68+'Pob x Genero'!AU68 -> 27 | H68: ='Pob x Genero'!I68+'Pob x Genero'!AV68 -> 17 | I68: ='Pob x Genero'!J68+'Pob x Genero'!AW68 -> 32 | J68: ='Pob x Genero'!K68+'Pob x Genero'!AX68 -> 34 | K68: ='Pob x Genero'!L68+'Pob x Genero'!AY68 -> 20 | L68: ='Pob x Genero'!M68+'Pob x Genero'!AZ68 -> 23 | M68: ='Pob x Genero'!N68+'Pob x Genero'!BA68 -> 23 | N68: ='Pob x Genero'!O68+'Pob x Genero'!BB68 -> 21 | O68: ='Pob x Genero'!P68+'Pob x Genero'!BC68 -> 33 | P68: ='Pob x Genero'!Q68+'Pob x Genero'!BD68 -> 23 | Q68: ='Pob x Genero'!R68+'Pob x Genero'!BE68 -> 34 | R68: ='Pob x Genero'!S68+'Pob x Genero'!BF68 -> 32 | S68: ='Pob x Genero'!T68+'Pob x Genero'!BG68 -> 31 | T68: ='Pob x Genero'!U68+'Pob x Genero'!BH68 -> 31 | U68: ='Pob x Genero'!V68+'Pob x Genero'!BI68 -> 27 | V68: ='Pob x Genero'!W68+'Pob x Genero'!BJ68 -> 37 | W68: ='Pob x Genero'!X68+'Pob x Genero'!BK68 -> 35 | X68: ='Pob x Genero'!Y68+'Pob x Genero'!BL68 -> 37 | Y68: ='Pob x Genero'!Z68+'Pob x Genero'!BM68 -> 22 | Z68: ='Pob x Genero'!AA68+'Pob x Genero'!BN68 -> 34 | AA68: ='Pob x Genero'!AB68+'Pob x Genero'!BO68 -> 140 | AB68: ='Pob x Genero'!AC68+'Pob x Genero'!BP68 -> 111 | AC68: ='Pob x Genero'!AD68+'Pob x Genero'!BQ68 -> 97 | AD68: ='Pob x Genero'!AE68+'Pob x Genero'!BR68 -> 84 | AE68: ='Pob x Genero'!AF68+'Pob x Genero'!BS68 -> 95 | AF68: ='Pob x Genero'!AG68+'Pob x Genero'!BT68 -> 111 | AG68: ='Pob x Genero'!AH68+'Pob x Genero'!BU68 -> 107 | AH68: ='Pob x Genero'!AI68+'Pob x Genero'!BV68 -> 127 | AI68: ='Pob x Genero'!AJ68+'Pob x Genero'!BW68 -> 84 | AJ68: ='Pob x Genero'!AK68+'Pob x Genero'!BX68 -> 73 | AK68: ='Pob x Genero'!AL68+'Pob x Genero'!BY68 -> 53 | AL68: ='Pob x Genero'!AM68+'Pob x Genero'!BZ68 -> 75 | AM68: ='Pob x Genero'!AN68+'Pob x Genero'!CA68 -> 64 | AN68: ='Pob x Genero'!AO68+'Pob x Genero'!CB68 -> 67 | AO68: ='Pob x Genero'!AP68+'Pob x Genero'!CC68 -> 2 | AP68: ='Pob x Genero'!AQ68+'Pob x Genero'!CD68 -> 7 | AQ68: ='Pob x Genero'!AR68+'Pob x Genero'!CE68 -> 20 | AR68: ='Pob x Genero'!AS68+'Pob x Genero'!CF68 -> 54 | AS68: ='Pob x Genero'!AT68 -> 940 | AT68: =SUM('Pob x Genero'!BE68:BI68) -> 75 | AU68: =SUM('Pob x Genero'!BJ68:BN68) -> 89 | AV68: =SUM('Pob x Genero'!BO68:BT68) -> 304 | AW68: ='Pob x Genero'!CG68 -> 116 | AZ68: 1,861 | BA68: 319 | BB68: 198 | BC68: 307 | BD68: 621 | BE68: 416
A69: 040411 | B69: AREQUIPA | C69: AREQUIPA | D69: CASTILLA | E69: TIPAN | F69: 406 | G69: ='Pob x Genero'!H69+'Pob x Genero'!AU69 -> 4 | H69: ='Pob x Genero'!I69+'Pob x Genero'!AV69 -> 4 | I69: ='Pob x Genero'!J69+'Pob x Genero'!AW69 -> 3 | J69: ='Pob x Genero'!K69+'Pob x Genero'!AX69 -> 2 | K69: ='Pob x Genero'!L69+'Pob x Genero'!AY69 -> 0 | L69: ='Pob x Genero'!M69+'Pob x Genero'!AZ69 -> 3 | M69: ='Pob x Genero'!N69+'Pob x Genero'!BA69 -> 5 | N69: ='Pob x Genero'!O69+'Pob x Genero'!BB69 -> 6 | O69: ='Pob x Genero'!P69+'Pob x Genero'!BC69 -> 3 | P69: ='Pob x Genero'!Q69+'Pob x Genero'!BD69 -> 3 | Q69: ='Pob x Genero'!R69+'Pob x Genero'!BE69 -> 1 | R69: ='Pob x Genero'!S69+'Pob x Genero'!BF69 -> 5 | S69: ='Pob x Genero'!T69+'Pob x Genero'!BG69 -> 5 | T69: ='Pob x Genero'!U69+'Pob x Genero'!BH69 -> 8 | U69: ='Pob x Genero'!V69+'Pob x Genero'!BI69 -> 4 | V69: ='Pob x Genero'!W69+'Pob x Genero'!BJ69 -> 6 | W69: ='Pob x Genero'!X69+'Pob x Genero'!BK69 -> 3 | X69: ='Pob x Genero'!Y69+'Pob x Genero'!BL69 -> 8 | Y69: ='Pob x Genero'!Z69+'Pob x Genero'!BM69 -> 9 | Z69: ='Pob x Genero'!AA69+'Pob x Genero'!BN69 -> 8 | AA69: ='Pob x Genero'!AB69+'Pob x Genero'!BO69 -> 22 | AB69: ='Pob x Genero'!AC69+'Pob x Genero'!BP69 -> 21 | AC69: ='Pob x Genero'!AD69+'Pob x Genero'!BQ69 -> 22 | AD69: ='Pob x Genero'!AE69+'Pob x Genero'!BR69 -> 18 | AE69: ='Pob x Genero'!AF69+'Pob x Genero'!BS69 -> 25 | AF69: ='Pob x Genero'!AG69+'Pob x Genero'!BT69 -> 22 | AG69: ='Pob x Genero'!AH69+'Pob x Genero'!BU69 -> 22 | AH69: ='Pob x Genero'!AI69+'Pob x Genero'!BV69 -> 32 | AI69: ='Pob x Genero'!AJ69+'Pob x Genero'!BW69 -> 29 | AJ69: ='Pob x Genero'!AK69+'Pob x Genero'!BX69 -> 24 | AK69: ='Pob x Genero'!AL69+'Pob x Genero'!BY69 -> 21 | AL69: ='Pob x Genero'!AM69+'Pob x Genero'!BZ69 -> 27 | AM69: ='Pob x Genero'!AN69+'Pob x Genero'!CA69 -> 8 | AN69: ='Pob x Genero'!AO69+'Pob x Genero'!CB69 -> 23 | AO69: ='Pob x Genero'!AP69+'Pob x Genero'!CC69 -> 0 | AP69: ='Pob x Genero'!AQ69+'Pob x Genero'!CD69 -> 4 | AQ69: ='Pob x Genero'!AR69+'Pob x Genero'!CE69 -> 0 | AR69: ='Pob x Genero'!AS69+'Pob x Genero'!CF69 -> 9 | AS69: ='Pob x Genero'!AT69 -> 205 | AT69: =SUM('Pob x Genero'!BE69:BI69) -> 13 | AU69: =SUM('Pob x Genero'!BJ69:BN69) -> 20 | AV69: =SUM('Pob x Genero'!BO69:BT69) -> 57 | AW69: ='Pob x Genero'!CG69 -> 6 | AZ69: 406 | BA69: 39 | BB69: 34 | BC69: 60 | BD69: 141 | BE69: 132
A70: 040412 | B70: AREQUIPA | C70: AREQUIPA | D70: CASTILLA | E70: UÑON | F70: 233 | G70: ='Pob x Genero'!H70+'Pob x Genero'!AU70 -> 3 | H70: ='Pob x Genero'!I70+'Pob x Genero'!AV70 -> 2 | I70: ='Pob x Genero'!J70+'Pob x Genero'!AW70 -> 2 | J70: ='Pob x Genero'!K70+'Pob x Genero'!AX70 -> 2 | K70: ='Pob x Genero'!L70+'Pob x Genero'!AY70 -> 0 | L70: ='Pob x Genero'!M70+'Pob x Genero'!AZ70 -> 2 | M70: ='Pob x Genero'!N70+'Pob x Genero'!BA70 -> 4 | N70: ='Pob x Genero'!O70+'Pob x Genero'!BB70 -> 0 | O70: ='Pob x Genero'!P70+'Pob x Genero'!BC70 -> 3 | P70: ='Pob x Genero'!Q70+'Pob x Genero'!BD70 -> 4 | Q70: ='Pob x Genero'!R70+'Pob x Genero'!BE70 -> 2 | R70: ='Pob x Genero'!S70+'Pob x Genero'!BF70 -> 1 | S70: ='Pob x Genero'!T70+'Pob x Genero'!BG70 -> 0 | T70: ='Pob x Genero'!U70+'Pob x Genero'!BH70 -> 1 | U70: ='Pob x Genero'!V70+'Pob x Genero'!BI70 -> 5 | V70: ='Pob x Genero'!W70+'Pob x Genero'!BJ70 -> 2 | W70: ='Pob x Genero'!X70+'Pob x Genero'!BK70 -> 2 | X70: ='Pob x Genero'!Y70+'Pob x Genero'!BL70 -> 2 | Y70: ='Pob x Genero'!Z70+'Pob x Genero'!BM70 -> 0 | Z70: ='Pob x Genero'!AA70+'Pob x Genero'!BN70 -> 3 | AA70: ='Pob x Genero'!AB70+'Pob x Genero'!BO70 -> 8 | AB70: ='Pob x Genero'!AC70+'Pob x Genero'!BP70 -> 20 | AC70: ='Pob x Genero'!AD70+'Pob x Genero'!BQ70 -> 15 | AD70: ='Pob x Genero'!AE70+'Pob x Genero'!BR70 -> 15 | AE70: ='Pob x Genero'!AF70+'Pob x Genero'!BS70 -> 17 | AF70: ='Pob x Genero'!AG70+'Pob x Genero'!BT70 -> 20 | AG70: ='Pob x Genero'!AH70+'Pob x Genero'!BU70 -> 18 | AH70: ='Pob x Genero'!AI70+'Pob x Genero'!BV70 -> 13 | AI70: ='Pob x Genero'!AJ70+'Pob x Genero'!BW70 -> 20 | AJ70: ='Pob x Genero'!AK70+'Pob x Genero'!BX70 -> 14 | AK70: ='Pob x Genero'!AL70+'Pob x Genero'!BY70 -> 11 | AL70: ='Pob x Genero'!AM70+'Pob x Genero'!BZ70 -> 8 | AM70: ='Pob x Genero'!AN70+'Pob x Genero'!CA70 -> 7 | AN70: ='Pob x Genero'!AO70+'Pob x Genero'!CB70 -> 7 | AO70: ='Pob x Genero'!AP70+'Pob x Genero'!CC70 -> 0 | AP70: ='Pob x Genero'!AQ70+'Pob x Genero'!CD70 -> 0 | AQ70: ='Pob x Genero'!AR70+'Pob x Genero'!CE70 -> 3 | AR70: ='Pob x Genero'!AS70+'Pob x Genero'!CF70 -> 6 | AS70: ='Pob x Genero'!AT70 -> 119 | AT70: =SUM('Pob x Genero'!BE70:BI70) -> 5 | AU70: =SUM('Pob x Genero'!BJ70:BN70) -> 6 | AV70: =SUM('Pob x Genero'!BO70:BT70) -> 46 | AW70: ='Pob x Genero'!CG70 -> 14 | AZ70: 233 | BA70: 25 | BB70: 12 | BC70: 31 | BD70: 98 | BE70: 67
A71: 040413 | B71: AREQUIPA | C71: AREQUIPA | D71: CASTILLA | E71: URACA | F71: 6,288 | G71: ='Pob x Genero'!H71+'Pob x Genero'!AU71 -> 68 | H71: ='Pob x Genero'!I71+'Pob x Genero'!AV71 -> 75 | I71: ='Pob x Genero'!J71+'Pob x Genero'!AW71 -> 70 | J71: ='Pob x Genero'!K71+'Pob x Genero'!AX71 -> 65 | K71: ='Pob x Genero'!L71+'Pob x Genero'!AY71 -> 80 | L71: ='Pob x Genero'!M71+'Pob x Genero'!AZ71 -> 91 | M71: ='Pob x Genero'!N71+'Pob x Genero'!BA71 -> 84 | N71: ='Pob x Genero'!O71+'Pob x Genero'!BB71 -> 90 | O71: ='Pob x Genero'!P71+'Pob x Genero'!BC71 -> 86 | P71: ='Pob x Genero'!Q71+'Pob x Genero'!BD71 -> 86 | Q71: ='Pob x Genero'!R71+'Pob x Genero'!BE71 -> 84 | R71: ='Pob x Genero'!S71+'Pob x Genero'!BF71 -> 83 | S71: ='Pob x Genero'!T71+'Pob x Genero'!BG71 -> 94 | T71: ='Pob x Genero'!U71+'Pob x Genero'!BH71 -> 98 | U71: ='Pob x Genero'!V71+'Pob x Genero'!BI71 -> 81 | V71: ='Pob x Genero'!W71+'Pob x Genero'!BJ71 -> 112 | W71: ='Pob x Genero'!X71+'Pob x Genero'!BK71 -> 120 | X71: ='Pob x Genero'!Y71+'Pob x Genero'!BL71 -> 96 | Y71: ='Pob x Genero'!Z71+'Pob x Genero'!BM71 -> 87 | Z71: ='Pob x Genero'!AA71+'Pob x Genero'!BN71 -> 105 | AA71: ='Pob x Genero'!AB71+'Pob x Genero'!BO71 -> 450 | AB71: ='Pob x Genero'!AC71+'Pob x Genero'!BP71 -> 540 | AC71: ='Pob x Genero'!AD71+'Pob x Genero'!BQ71 -> 449 | AD71: ='Pob x Genero'!AE71+'Pob x Genero'!BR71 -> 477 | AE71: ='Pob x Genero'!AF71+'Pob x Genero'!BS71 -> 459 | AF71: ='Pob x Genero'!AG71+'Pob x Genero'!BT71 -> 411 | AG71: ='Pob x Genero'!AH71+'Pob x Genero'!BU71 -> 393 | AH71: ='Pob x Genero'!AI71+'Pob x Genero'!BV71 -> 360 | AI71: ='Pob x Genero'!AJ71+'Pob x Genero'!BW71 -> 297 | AJ71: ='Pob x Genero'!AK71+'Pob x Genero'!BX71 -> 230 | AK71: ='Pob x Genero'!AL71+'Pob x Genero'!BY71 -> 176 | AL71: ='Pob x Genero'!AM71+'Pob x Genero'!BZ71 -> 117 | AM71: ='Pob x Genero'!AN71+'Pob x Genero'!CA71 -> 84 | AN71: ='Pob x Genero'!AO71+'Pob x Genero'!CB71 -> 90 | AO71: ='Pob x Genero'!AP71+'Pob x Genero'!CC71 -> 3 | AP71: ='Pob x Genero'!AQ71+'Pob x Genero'!CD71 -> 28 | AQ71: ='Pob x Genero'!AR71+'Pob x Genero'!CE71 -> 40 | AR71: ='Pob x Genero'!AS71+'Pob x Genero'!CF71 -> 119 | AS71: ='Pob x Genero'!AT71 -> 3,184 | AT71: =SUM('Pob x Genero'!BE71:BI71) -> 235 | AU71: =SUM('Pob x Genero'!BJ71:BN71) -> 281 | AV71: =SUM('Pob x Genero'!BO71:BT71) -> 1,401 | AW71: ='Pob x Genero'!CG71 -> 167 | AZ71: 6,288 | BA71: 962 | BB71: 601 | BC71: 1,182 | BD71: 2,549 | BE71: 994
A72: 040414 | B72: AREQUIPA | C72: AREQUIPA | D72: CASTILLA | E72: VIRACO | F72: 1,416 | G72: ='Pob x Genero'!H72+'Pob x Genero'!AU72 -> 16 | H72: ='Pob x Genero'!I72+'Pob x Genero'!AV72 -> 12 | I72: ='Pob x Genero'!J72+'Pob x Genero'!AW72 -> 15 | J72: ='Pob x Genero'!K72+'Pob x Genero'!AX72 -> 13 | K72: ='Pob x Genero'!L72+'Pob x Genero'!AY72 -> 13 | L72: ='Pob x Genero'!M72+'Pob x Genero'!AZ72 -> 11 | M72: ='Pob x Genero'!N72+'Pob x Genero'!BA72 -> 20 | N72: ='Pob x Genero'!O72+'Pob x Genero'!BB72 -> 18 | O72: ='Pob x Genero'!P72+'Pob x Genero'!BC72 -> 15 | P72: ='Pob x Genero'!Q72+'Pob x Genero'!BD72 -> 15 | Q72: ='Pob x Genero'!R72+'Pob x Genero'!BE72 -> 11 | R72: ='Pob x Genero'!S72+'Pob x Genero'!BF72 -> 19 | S72: ='Pob x Genero'!T72+'Pob x Genero'!BG72 -> 25 | T72: ='Pob x Genero'!U72+'Pob x Genero'!BH72 -> 20 | U72: ='Pob x Genero'!V72+'Pob x Genero'!BI72 -> 19 | V72: ='Pob x Genero'!W72+'Pob x Genero'!BJ72 -> 17 | W72: ='Pob x Genero'!X72+'Pob x Genero'!BK72 -> 21 | X72: ='Pob x Genero'!Y72+'Pob x Genero'!BL72 -> 29 | Y72: ='Pob x Genero'!Z72+'Pob x Genero'!BM72 -> 18 | Z72: ='Pob x Genero'!AA72+'Pob x Genero'!BN72 -> 18 | AA72: ='Pob x Genero'!AB72+'Pob x Genero'!BO72 -> 84 | AB72: ='Pob x Genero'!AC72+'Pob x Genero'!BP72 -> 90 | AC72: ='Pob x Genero'!AD72+'Pob x Genero'!BQ72 -> 71 | AD72: ='Pob x Genero'!AE72+'Pob x Genero'!BR72 -> 64 | AE72: ='Pob x Genero'!AF72+'Pob x Genero'!BS72 -> 90 | AF72: ='Pob x Genero'!AG72+'Pob x Genero'!BT72 -> 91 | AG72: ='Pob x Genero'!AH72+'Pob x Genero'!BU72 -> 89 | AH72: ='Pob x Genero'!AI72+'Pob x Genero'!BV72 -> 81 | AI72: ='Pob x Genero'!AJ72+'Pob x Genero'!BW72 -> 92 | AJ72: ='Pob x Genero'!AK72+'Pob x Genero'!BX72 -> 89 | AK72: ='Pob x Genero'!AL72+'Pob x Genero'!BY72 -> 64 | AL72: ='Pob x Genero'!AM72+'Pob x Genero'!BZ72 -> 61 | AM72: ='Pob x Genero'!AN72+'Pob x Genero'!CA72 -> 50 | AN72: ='Pob x Genero'!AO72+'Pob x Genero'!CB72 -> 55 | AO72: ='Pob x Genero'!AP72+'Pob x Genero'!CC72 -> 1 | AP72: ='Pob x Genero'!AQ72+'Pob x Genero'!CD72 -> 10 | AQ72: ='Pob x Genero'!AR72+'Pob x Genero'!CE72 -> 6 | AR72: ='Pob x Genero'!AS72+'Pob x Genero'!CF72 -> 34 | AS72: ='Pob x Genero'!AT72 -> 721 | AT72: =SUM('Pob x Genero'!BE72:BI72) -> 58 | AU72: =SUM('Pob x Genero'!BJ72:BN72) -> 61 | AV72: =SUM('Pob x Genero'!BO72:BT72) -> 239 | AW72: ='Pob x Genero'!CG72 -> 42 | AZ72: 1,416 | BA72: 178 | BB72: 131 | BC72: 210 | BD72: 486 | BE72: 411
A73: 040501 | B73: AREQUIPA | C73: AREQUIPA | D73: CAYLLOMA | E73: CHIVAY | F73: =SUM(G73:AN73) -> 6,917 | G73: ='Pob x Genero'!H73+'Pob x Genero'!AU73 -> 68 | H73: ='Pob x Genero'!I73+'Pob x Genero'!AV73 -> 95 | I73: ='Pob x Genero'!J73+'Pob x Genero'!AW73 -> 50 | J73: ='Pob x Genero'!K73+'Pob x Genero'!AX73 -> 85 | K73: ='Pob x Genero'!L73+'Pob x Genero'!AY73 -> 80 | L73: ='Pob x Genero'!M73+'Pob x Genero'!AZ73 -> 105 | M73: ='Pob x Genero'!N73+'Pob x Genero'!BA73 -> 123 | N73: ='Pob x Genero'!O73+'Pob x Genero'!BB73 -> 129 | O73: ='Pob x Genero'!P73+'Pob x Genero'!BC73 -> 131 | P73: ='Pob x Genero'!Q73+'Pob x Genero'!BD73 -> 130 | Q73: ='Pob x Genero'!R73+'Pob x Genero'!BE73 -> 126 | R73: ='Pob x Genero'!S73+'Pob x Genero'!BF73 -> 135 | S73: ='Pob x Genero'!T73+'Pob x Genero'!BG73 -> 152 | T73: ='Pob x Genero'!U73+'Pob x Genero'!BH73 -> 131 | U73: ='Pob x Genero'!V73+'Pob x Genero'!BI73 -> 126 | V73: ='Pob x Genero'!W73+'Pob x Genero'!BJ73 -> 144 | W73: ='Pob x Genero'!X73+'Pob x Genero'!BK73 -> 148 | X73: ='Pob x Genero'!Y73+'Pob x Genero'!BL73 -> 138 | Y73: ='Pob x Genero'!Z73+'Pob x Genero'!BM73 -> 140 | Z73: ='Pob x Genero'!AA73+'Pob x Genero'!BN73 -> 121 | AA73: ='Pob x Genero'!AB73+'Pob x Genero'!BO73 -> 672 | AB73: ='Pob x Genero'!AC73+'Pob x Genero'!BP73 -> 639 | AC73: ='Pob x Genero'!AD73+'Pob x Genero'!BQ73 -> 580 | AD73: ='Pob x Genero'!AE73+'Pob x Genero'!BR73 -> 495 | AE73: ='Pob x Genero'!AF73+'Pob x Genero'!BS73 -> 412 | AF73: ='Pob x Genero'!AG73+'Pob x Genero'!BT73 -> 368 | AG73: ='Pob x Genero'!AH73+'Pob x Genero'!BU73 -> 288 | AH73: ='Pob x Genero'!AI73+'Pob x Genero'!BV73 -> 322 | AI73: ='Pob x Genero'!AJ73+'Pob x Genero'!BW73 -> 227 | AJ73: ='Pob x Genero'!AK73+'Pob x Genero'!BX73 -> 158 | AK73: ='Pob x Genero'!AL73+'Pob x Genero'!BY73 -> 134 | AL73: ='Pob x Genero'!AM73+'Pob x Genero'!BZ73 -> 125 | AM73: ='Pob x Genero'!AN73+'Pob x Genero'!CA73 -> 62 | AN73: ='Pob x Genero'!AO73+'Pob x Genero'!CB73 -> 78 | AO73: ='Pob x Genero'!AP73+'Pob x Genero'!CC73 -> 1 | AP73: ='Pob x Genero'!AQ73+'Pob x Genero'!CD73 -> 28 | AQ73: ='Pob x Genero'!AR73+'Pob x Genero'!CE73 -> 40 | AR73: ='Pob x Genero'!AS73+'Pob x Genero'!CF73 -> 95 | AS73: ='Pob x Genero'!AT73 -> 3,495 | AT73: =SUM('Pob x Genero'!BE73:BI73) -> 324 | AU73: =SUM('Pob x Genero'!BJ73:BN73) -> 338 | AV73: =SUM('Pob x Genero'!BO73:BT73) -> 1,587 | AW73: ='Pob x Genero'!CG73 -> 123 | AZ73: =F73 -> 6,917 | BA73: =SUM(G73:R73) -> 1,257 | BB73: =SUM(S73:X73) -> 839 | BC73: =SUM(Y73:AB73) -> 1,572 | BD73: =SUM(AC73:AH73) -> 2,465 | BE73: =SUM(AI73:AN73) -> 784
A74: 040502 | B74: AREQUIPA | C74: AREQUIPA | D74: CAYLLOMA | E74: ACHOMA | F74: 997 | G74: ='Pob x Genero'!H74+'Pob x Genero'!AU74 -> 13 | H74: ='Pob x Genero'!I74+'Pob x Genero'!AV74 -> 13 | I74: ='Pob x Genero'!J74+'Pob x Genero'!AW74 -> 12 | J74: ='Pob x Genero'!K74+'Pob x Genero'!AX74 -> 7 | K74: ='Pob x Genero'!L74+'Pob x Genero'!AY74 -> 6 | L74: ='Pob x Genero'!M74+'Pob x Genero'!AZ74 -> 11 | M74: ='Pob x Genero'!N74+'Pob x Genero'!BA74 -> 10 | N74: ='Pob x Genero'!O74+'Pob x Genero'!BB74 -> 10 | O74: ='Pob x Genero'!P74+'Pob x Genero'!BC74 -> 8 | P74: ='Pob x Genero'!Q74+'Pob x Genero'!BD74 -> 5 | Q74: ='Pob x Genero'!R74+'Pob x Genero'!BE74 -> 6 | R74: ='Pob x Genero'!S74+'Pob x Genero'!BF74 -> 11 | S74: ='Pob x Genero'!T74+'Pob x Genero'!BG74 -> 13 | T74: ='Pob x Genero'!U74+'Pob x Genero'!BH74 -> 6 | U74: ='Pob x Genero'!V74+'Pob x Genero'!BI74 -> 10 | V74: ='Pob x Genero'!W74+'Pob x Genero'!BJ74 -> 12 | W74: ='Pob x Genero'!X74+'Pob x Genero'!BK74 -> 9 | X74: ='Pob x Genero'!Y74+'Pob x Genero'!BL74 -> 12 | Y74: ='Pob x Genero'!Z74+'Pob x Genero'!BM74 -> 7 | Z74: ='Pob x Genero'!AA74+'Pob x Genero'!BN74 -> 17 | AA74: ='Pob x Genero'!AB74+'Pob x Genero'!BO74 -> 73 | AB74: ='Pob x Genero'!AC74+'Pob x Genero'!BP74 -> 91 | AC74: ='Pob x Genero'!AD74+'Pob x Genero'!BQ74 -> 69 | AD74: ='Pob x Genero'!AE74+'Pob x Genero'!BR74 -> 53 | AE74: ='Pob x Genero'!AF74+'Pob x Genero'!BS74 -> 70 | AF74: ='Pob x Genero'!AG74+'Pob x Genero'!BT74 -> 80 | AG74: ='Pob x Genero'!AH74+'Pob x Genero'!BU74 -> 71 | AH74: ='Pob x Genero'!AI74+'Pob x Genero'!BV74 -> 73 | AI74: ='Pob x Genero'!AJ74+'Pob x Genero'!BW74 -> 60 | AJ74: ='Pob x Genero'!AK74+'Pob x Genero'!BX74 -> 43 | AK74: ='Pob x Genero'!AL74+'Pob x Genero'!BY74 -> 36 | AL74: ='Pob x Genero'!AM74+'Pob x Genero'!BZ74 -> 28 | AM74: ='Pob x Genero'!AN74+'Pob x Genero'!CA74 -> 26 | AN74: ='Pob x Genero'!AO74+'Pob x Genero'!CB74 -> 26 | AO74: ='Pob x Genero'!AP74+'Pob x Genero'!CC74 -> 0 | AP74: ='Pob x Genero'!AQ74+'Pob x Genero'!CD74 -> 2 | AQ74: ='Pob x Genero'!AR74+'Pob x Genero'!CE74 -> 11 | AR74: ='Pob x Genero'!AS74+'Pob x Genero'!CF74 -> 18 | AS74: ='Pob x Genero'!AT74 -> 508 | AT74: =SUM('Pob x Genero'!BE74:BI74) -> 23 | AU74: =SUM('Pob x Genero'!BJ74:BN74) -> 31 | AV74: =SUM('Pob x Genero'!BO74:BT74) -> 209 | AW74: ='Pob x Genero'!CG74 -> 22 | AZ74: 997 | BA74: 112 | BB74: 62 | BC74: 188 | BD74: 416 | BE74: 219
A75: 040503 | B75: AREQUIPA | C75: AREQUIPA | D75: CAYLLOMA | E75: CABANACONDE | F75: 2,455 | G75: ='Pob x Genero'!H75+'Pob x Genero'!AU75 -> 19 | H75: ='Pob x Genero'!I75+'Pob x Genero'!AV75 -> 20 | I75: ='Pob x Genero'!J75+'Pob x Genero'!AW75 -> 20 | J75: ='Pob x Genero'!K75+'Pob x Genero'!AX75 -> 28 | K75: ='Pob x Genero'!L75+'Pob x Genero'!AY75 -> 15 | L75: ='Pob x Genero'!M75+'Pob x Genero'!AZ75 -> 21 | M75: ='Pob x Genero'!N75+'Pob x Genero'!BA75 -> 37 | N75: ='Pob x Genero'!O75+'Pob x Genero'!BB75 -> 29 | O75: ='Pob x Genero'!P75+'Pob x Genero'!BC75 -> 23 | P75: ='Pob x Genero'!Q75+'Pob x Genero'!BD75 -> 20 | Q75: ='Pob x Genero'!R75+'Pob x Genero'!BE75 -> 25 | R75: ='Pob x Genero'!S75+'Pob x Genero'!BF75 -> 28 | S75: ='Pob x Genero'!T75+'Pob x Genero'!BG75 -> 28 | T75: ='Pob x Genero'!U75+'Pob x Genero'!BH75 -> 39 | U75: ='Pob x Genero'!V75+'Pob x Genero'!BI75 -> 32 | V75: ='Pob x Genero'!W75+'Pob x Genero'!BJ75 -> 27 | W75: ='Pob x Genero'!X75+'Pob x Genero'!BK75 -> 48 | X75: ='Pob x Genero'!Y75+'Pob x Genero'!BL75 -> 35 | Y75: ='Pob x Genero'!Z75+'Pob x Genero'!BM75 -> 31 | Z75: ='Pob x Genero'!AA75+'Pob x Genero'!BN75 -> 30 | AA75: ='Pob x Genero'!AB75+'Pob x Genero'!BO75 -> 167 | AB75: ='Pob x Genero'!AC75+'Pob x Genero'!BP75 -> 194 | AC75: ='Pob x Genero'!AD75+'Pob x Genero'!BQ75 -> 166 | AD75: ='Pob x Genero'!AE75+'Pob x Genero'!BR75 -> 145 | AE75: ='Pob x Genero'!AF75+'Pob x Genero'!BS75 -> 166 | AF75: ='Pob x Genero'!AG75+'Pob x Genero'!BT75 -> 164 | AG75: ='Pob x Genero'!AH75+'Pob x Genero'!BU75 -> 170 | AH75: ='Pob x Genero'!AI75+'Pob x Genero'!BV75 -> 199 | AI75: ='Pob x Genero'!AJ75+'Pob x Genero'!BW75 -> 121 | AJ75: ='Pob x Genero'!AK75+'Pob x Genero'!BX75 -> 117 | AK75: ='Pob x Genero'!AL75+'Pob x Genero'!BY75 -> 82 | AL75: ='Pob x Genero'!AM75+'Pob x Genero'!BZ75 -> 65 | AM75: ='Pob x Genero'!AN75+'Pob x Genero'!CA75 -> 68 | AN75: ='Pob x Genero'!AO75+'Pob x Genero'!CB75 -> 76 | AO75: ='Pob x Genero'!AP75+'Pob x Genero'!CC75 -> 0 | AP75: ='Pob x Genero'!AQ75+'Pob x Genero'!CD75 -> 9 | AQ75: ='Pob x Genero'!AR75+'Pob x Genero'!CE75 -> 10 | AR75: ='Pob x Genero'!AS75+'Pob x Genero'!CF75 -> 30 | AS75: ='Pob x Genero'!AT75 -> 1,241 | AT75: =SUM('Pob x Genero'!BE75:BI75) -> 72 | AU75: =SUM('Pob x Genero'!BJ75:BN75) -> 89 | AV75: =SUM('Pob x Genero'!BO75:BT75) -> 489 | AW75: ='Pob x Genero'!CG75 -> 57 | AZ75: 2,455 | BA75: 285 | BB75: 209 | BC75: 422 | BD75: 1,010 | BE75: 529
A76: 040504 | B76: AREQUIPA | C76: AREQUIPA | D76: CAYLLOMA | E76: CALLALLI | F76: 1,726 | G76: ='Pob x Genero'!H76+'Pob x Genero'!AU76 -> 26 | H76: ='Pob x Genero'!I76+'Pob x Genero'!AV76 -> 20 | I76: ='Pob x Genero'!J76+'Pob x Genero'!AW76 -> 19 | J76: ='Pob x Genero'!K76+'Pob x Genero'!AX76 -> 31 | K76: ='Pob x Genero'!L76+'Pob x Genero'!AY76 -> 10 | L76: ='Pob x Genero'!M76+'Pob x Genero'!AZ76 -> 17 | M76: ='Pob x Genero'!N76+'Pob x Genero'!BA76 -> 21 | N76: ='Pob x Genero'!O76+'Pob x Genero'!BB76 -> 14 | O76: ='Pob x Genero'!P76+'Pob x Genero'!BC76 -> 17 | P76: ='Pob x Genero'!Q76+'Pob x Genero'!BD76 -> 22 | Q76: ='Pob x Genero'!R76+'Pob x Genero'!BE76 -> 17 | R76: ='Pob x Genero'!S76+'Pob x Genero'!BF76 -> 26 | S76: ='Pob x Genero'!T76+'Pob x Genero'!BG76 -> 17 | T76: ='Pob x Genero'!U76+'Pob x Genero'!BH76 -> 27 | U76: ='Pob x Genero'!V76+'Pob x Genero'!BI76 -> 14 | V76: ='Pob x Genero'!W76+'Pob x Genero'!BJ76 -> 17 | W76: ='Pob x Genero'!X76+'Pob x Genero'!BK76 -> 22 | X76: ='Pob x Genero'!Y76+'Pob x Genero'!BL76 -> 15 | Y76: ='Pob x Genero'!Z76+'Pob x Genero'!BM76 -> 19 | Z76: ='Pob x Genero'!AA76+'Pob x Genero'!BN76 -> 17 | AA76: ='Pob x Genero'!AB76+'Pob x Genero'!BO76 -> 120 | AB76: ='Pob x Genero'!AC76+'Pob x Genero'!BP76 -> 148 | AC76: ='Pob x Genero'!AD76+'Pob x Genero'!BQ76 -> 130 | AD76: ='Pob x Genero'!AE76+'Pob x Genero'!BR76 -> 116 | AE76: ='Pob x Genero'!AF76+'Pob x Genero'!BS76 -> 99 | AF76: ='Pob x Genero'!AG76+'Pob x Genero'!BT76 -> 131 | AG76: ='Pob x Genero'!AH76+'Pob x Genero'!BU76 -> 129 | AH76: ='Pob x Genero'!AI76+'Pob x Genero'!BV76 -> 120 | AI76: ='Pob x Genero'!AJ76+'Pob x Genero'!BW76 -> 99 | AJ76: ='Pob x Genero'!AK76+'Pob x Genero'!BX76 -> 82 | AK76: ='Pob x Genero'!AL76+'Pob x Genero'!BY76 -> 66 | AL76: ='Pob x Genero'!AM76+'Pob x Genero'!BZ76 -> 42 | AM76: ='Pob x Genero'!AN76+'Pob x Genero'!CA76 -> 25 | AN76: ='Pob x Genero'!AO76+'Pob x Genero'!CB76 -> 31 | AO76: ='Pob x Genero'!AP76+'Pob x Genero'!CC76 -> 1 | AP76: ='Pob x Genero'!AQ76+'Pob x Genero'!CD76 -> 10 | AQ76: ='Pob x Genero'!AR76+'Pob x Genero'!CE76 -> 16 | AR76: ='Pob x Genero'!AS76+'Pob x Genero'!CF76 -> 39 | AS76: ='Pob x Genero'!AT76 -> 875 | AT76: =SUM('Pob x Genero'!BE76:BI76) -> 52 | AU76: =SUM('Pob x Genero'!BJ76:BN76) -> 54 | AV76: =SUM('Pob x Genero'!BO76:BT76) -> 358 | AW76: ='Pob x Genero'!CG76 -> 51 | AZ76: 1,726 | BA76: 240 | BB76: 112 | BC76: 304 | BD76: 725 | BE76: 345
A77: 040505 | B77: AREQUIPA | C77: AREQUIPA | D77: CAYLLOMA | E77: CAYLLOMA | F77: 4,501 | G77: ='Pob x Genero'!H77+'Pob x Genero'!AU77 -> 48 | H77: ='Pob x Genero'!I77+'Pob x Genero'!AV77 -> 59 | I77: ='Pob x Genero'!J77+'Pob x Genero'!AW77 -> 63 | J77: ='Pob x Genero'!K77+'Pob x Genero'!AX77 -> 60 | K77: ='Pob x Genero'!L77+'Pob x Genero'!AY77 -> 54 | L77: ='Pob x Genero'!M77+'Pob x Genero'!AZ77 -> 46 | M77: ='Pob x Genero'!N77+'Pob x Genero'!BA77 -> 55 | N77: ='Pob x Genero'!O77+'Pob x Genero'!BB77 -> 72 | O77: ='Pob x Genero'!P77+'Pob x Genero'!BC77 -> 84 | P77: ='Pob x Genero'!Q77+'Pob x Genero'!BD77 -> 83 | Q77: ='Pob x Genero'!R77+'Pob x Genero'!BE77 -> 89 | R77: ='Pob x Genero'!S77+'Pob x Genero'!BF77 -> 92 | S77: ='Pob x Genero'!T77+'Pob x Genero'!BG77 -> 100 | T77: ='Pob x Genero'!U77+'Pob x Genero'!BH77 -> 74 | U77: ='Pob x Genero'!V77+'Pob x Genero'!BI77 -> 90 | V77: ='Pob x Genero'!W77+'Pob x Genero'!BJ77 -> 91 | W77: ='Pob x Genero'!X77+'Pob x Genero'!BK77 -> 82 | X77: ='Pob x Genero'!Y77+'Pob x Genero'!BL77 -> 93 | Y77: ='Pob x Genero'!Z77+'Pob x Genero'!BM77 -> 92 | Z77: ='Pob x Genero'!AA77+'Pob x Genero'!BN77 -> 70 | AA77: ='Pob x Genero'!AB77+'Pob x Genero'!BO77 -> 414 | AB77: ='Pob x Genero'!AC77+'Pob x Genero'!BP77 -> 416 | AC77: ='Pob x Genero'!AD77+'Pob x Genero'!BQ77 -> 334 | AD77: ='Pob x Genero'!AE77+'Pob x Genero'!BR77 -> 337 | AE77: ='Pob x Genero'!AF77+'Pob x Genero'!BS77 -> 290 | AF77: ='Pob x Genero'!AG77+'Pob x Genero'!BT77 -> 257 | AG77: ='Pob x Genero'!AH77+'Pob x Genero'!BU77 -> 224 | AH77: ='Pob x Genero'!AI77+'Pob x Genero'!BV77 -> 210 | AI77: ='Pob x Genero'!AJ77+'Pob x Genero'!BW77 -> 173 | AJ77: ='Pob x Genero'!AK77+'Pob x Genero'!BX77 -> 130 | AK77: ='Pob x Genero'!AL77+'Pob x Genero'!BY77 -> 87 | AL77: ='Pob x Genero'!AM77+'Pob x Genero'!BZ77 -> 63 | AM77: ='Pob x Genero'!AN77+'Pob x Genero'!CA77 -> 38 | AN77: ='Pob x Genero'!AO77+'Pob x Genero'!CB77 -> 31 | AO77: ='Pob x Genero'!AP77+'Pob x Genero'!CC77 -> 4 | AP77: ='Pob x Genero'!AQ77+'Pob x Genero'!CD77 -> 26 | AQ77: ='Pob x Genero'!AR77+'Pob x Genero'!CE77 -> 22 | AR77: ='Pob x Genero'!AS77+'Pob x Genero'!CF77 -> 95 | AS77: ='Pob x Genero'!AT77 -> 2,281 | AT77: =SUM('Pob x Genero'!BE77:BI77) -> 239 | AU77: =SUM('Pob x Genero'!BJ77:BN77) -> 218 | AV77: =SUM('Pob x Genero'!BO77:BT77) -> 1,018 | AW77: ='Pob x Genero'!CG77 -> 228 | AZ77: 4,501 | BA77: 805 | BB77: 530 | BC77: 992 | BD77: 1,652 | BE77: 522
A78: 040506 | B78: AREQUIPA | C78: AREQUIPA | D78: CAYLLOMA | E78: COPORAQUE | F78: 1,307 | G78: ='Pob x Genero'!H78+'Pob x Genero'!AU78 -> 13 | H78: ='Pob x Genero'!I78+'Pob x Genero'!AV78 -> 15 | I78: ='Pob x Genero'!J78+'Pob x Genero'!AW78 -> 11 | J78: ='Pob x Genero'!K78+'Pob x Genero'!AX78 -> 16 | K78: ='Pob x Genero'!L78+'Pob x Genero'!AY78 -> 17 | L78: ='Pob x Genero'!M78+'Pob x Genero'!AZ78 -> 9 | M78: ='Pob x Genero'!N78+'Pob x Genero'!BA78 -> 22 | N78: ='Pob x Genero'!O78+'Pob x Genero'!BB78 -> 20 | O78: ='Pob x Genero'!P78+'Pob x Genero'!BC78 -> 15 | P78: ='Pob x Genero'!Q78+'Pob x Genero'!BD78 -> 16 | Q78: ='Pob x Genero'!R78+'Pob x Genero'!BE78 -> 7 | R78: ='Pob x Genero'!S78+'Pob x Genero'!BF78 -> 13 | S78: ='Pob x Genero'!T78+'Pob x Genero'!BG78 -> 15 | T78: ='Pob x Genero'!U78+'Pob x Genero'!BH78 -> 13 | U78: ='Pob x Genero'!V78+'Pob x Genero'!BI78 -> 9 | V78: ='Pob x Genero'!W78+'Pob x Genero'!BJ78 -> 17 | W78: ='Pob x Genero'!X78+'Pob x Genero'!BK78 -> 18 | X78: ='Pob x Genero'!Y78+'Pob x Genero'!BL78 -> 14 | Y78: ='Pob x Genero'!Z78+'Pob x Genero'!BM78 -> 15 | Z78: ='Pob x Genero'!AA78+'Pob x Genero'!BN78 -> 18 | AA78: ='Pob x Genero'!AB78+'Pob x Genero'!BO78 -> 77 | AB78: ='Pob x Genero'!AC78+'Pob x Genero'!BP78 -> 106 | AC78: ='Pob x Genero'!AD78+'Pob x Genero'!BQ78 -> 90 | AD78: ='Pob x Genero'!AE78+'Pob x Genero'!BR78 -> 112 | AE78: ='Pob x Genero'!AF78+'Pob x Genero'!BS78 -> 134 | AF78: ='Pob x Genero'!AG78+'Pob x Genero'!BT78 -> 87 | AG78: ='Pob x Genero'!AH78+'Pob x Genero'!BU78 -> 77 | AH78: ='Pob x Genero'!AI78+'Pob x Genero'!BV78 -> 70 | AI78: ='Pob x Genero'!AJ78+'Pob x Genero'!BW78 -> 71 | AJ78: ='Pob x Genero'!AK78+'Pob x Genero'!BX78 -> 55 | AK78: ='Pob x Genero'!AL78+'Pob x Genero'!BY78 -> 45 | AL78: ='Pob x Genero'!AM78+'Pob x Genero'!BZ78 -> 35 | AM78: ='Pob x Genero'!AN78+'Pob x Genero'!CA78 -> 26 | AN78: ='Pob x Genero'!AO78+'Pob x Genero'!CB78 -> 29 | AO78: ='Pob x Genero'!AP78+'Pob x Genero'!CC78 -> 0 | AP78: ='Pob x Genero'!AQ78+'Pob x Genero'!CD78 -> 7 | AQ78: ='Pob x Genero'!AR78+'Pob x Genero'!CE78 -> 6 | AR78: ='Pob x Genero'!AS78+'Pob x Genero'!CF78 -> 19 | AS78: ='Pob x Genero'!AT78 -> 663 | AT78: =SUM('Pob x Genero'!BE78:BI78) -> 28 | AU78: =SUM('Pob x Genero'!BJ78:BN78) -> 41 | AV78: =SUM('Pob x Genero'!BO78:BT78) -> 312 | AW78: ='Pob x Genero'!CG78 -> 34 | AZ78: 1,307 | BA78: 174 | BB78: 86 | BC78: 216 | BD78: 570 | BE78: 261
A79: 040507 | B79: AREQUIPA | C79: AREQUIPA | D79: CAYLLOMA | E79: HUAMBO | F79: 771 | G79: ='Pob x Genero'!H79+'Pob x Genero'!AU79 -> 9 | H79: ='Pob x Genero'!I79+'Pob x Genero'!AV79 -> 6 | I79: ='Pob x Genero'!J79+'Pob x Genero'!AW79 -> 6 | J79: ='Pob x Genero'!K79+'Pob x Genero'!AX79 -> 6 | K79: ='Pob x Genero'!L79+'Pob x Genero'!AY79 -> 7 | L79: ='Pob x Genero'!M79+'Pob x Genero'!AZ79 -> 7 | M79: ='Pob x Genero'!N79+'Pob x Genero'!BA79 -> 8 | N79: ='Pob x Genero'!O79+'Pob x Genero'!BB79 -> 8 | O79: ='Pob x Genero'!P79+'Pob x Genero'!BC79 -> 2 | P79: ='Pob x Genero'!Q79+'Pob x Genero'!BD79 -> 5 | Q79: ='Pob x Genero'!R79+'Pob x Genero'!BE79 -> 13 | R79: ='Pob x Genero'!S79+'Pob x Genero'!BF79 -> 9 | S79: ='Pob x Genero'!T79+'Pob x Genero'!BG79 -> 8 | T79: ='Pob x Genero'!U79+'Pob x Genero'!BH79 -> 6 | U79: ='Pob x Genero'!V79+'Pob x Genero'!BI79 -> 11 | V79: ='Pob x Genero'!W79+'Pob x Genero'!BJ79 -> 10 | W79: ='Pob x Genero'!X79+'Pob x Genero'!BK79 -> 17 | X79: ='Pob x Genero'!Y79+'Pob x Genero'!BL79 -> 17 | Y79: ='Pob x Genero'!Z79+'Pob x Genero'!BM79 -> 10 | Z79: ='Pob x Genero'!AA79+'Pob x Genero'!BN79 -> 5 | AA79: ='Pob x Genero'!AB79+'Pob x Genero'!BO79 -> 49 | AB79: ='Pob x Genero'!AC79+'Pob x Genero'!BP79 -> 55 | AC79: ='Pob x Genero'!AD79+'Pob x Genero'!BQ79 -> 50 | AD79: ='Pob x Genero'!AE79+'Pob x Genero'!BR79 -> 41 | AE79: ='Pob x Genero'!AF79+'Pob x Genero'!BS79 -> 50 | AF79: ='Pob x Genero'!AG79+'Pob x Genero'!BT79 -> 42 | AG79: ='Pob x Genero'!AH79+'Pob x Genero'!BU79 -> 53 | AH79: ='Pob x Genero'!AI79+'Pob x Genero'!BV79 -> 53 | AI79: ='Pob x Genero'!AJ79+'Pob x Genero'!BW79 -> 36 | AJ79: ='Pob x Genero'!AK79+'Pob x Genero'!BX79 -> 59 | AK79: ='Pob x Genero'!AL79+'Pob x Genero'!BY79 -> 31 | AL79: ='Pob x Genero'!AM79+'Pob x Genero'!BZ79 -> 28 | AM79: ='Pob x Genero'!AN79+'Pob x Genero'!CA79 -> 27 | AN79: ='Pob x Genero'!AO79+'Pob x Genero'!CB79 -> 27 | AO79: ='Pob x Genero'!AP79+'Pob x Genero'!CC79 -> 0 | AP79: ='Pob x Genero'!AQ79+'Pob x Genero'!CD79 -> 2 | AQ79: ='Pob x Genero'!AR79+'Pob x Genero'!CE79 -> 7 | AR79: ='Pob x Genero'!AS79+'Pob x Genero'!CF79 -> 11 | AS79: ='Pob x Genero'!AT79 -> 389 | AT79: =SUM('Pob x Genero'!BE79:BI79) -> 27 | AU79: =SUM('Pob x Genero'!BJ79:BN79) -> 34 | AV79: =SUM('Pob x Genero'!BO79:BT79) -> 134 | AW79: ='Pob x Genero'!CG79 -> 16 | AZ79: 771 | BA79: 86 | BB79: 69 | BC79: 119 | BD79: 289 | BE79: 208
A80: 040508 | B80: AREQUIPA | C80: AREQUIPA | D80: CAYLLOMA | E80: HUANCA | F80: 1,180 | G80: ='Pob x Genero'!H80+'Pob x Genero'!AU80 -> 16 | H80: ='Pob x Genero'!I80+'Pob x Genero'!AV80 -> 11 | I80: ='Pob x Genero'!J80+'Pob x Genero'!AW80 -> 12 | J80: ='Pob x Genero'!K80+'Pob x Genero'!AX80 -> 8 | K80: ='Pob x Genero'!L80+'Pob x Genero'!AY80 -> 3 | L80: ='Pob x Genero'!M80+'Pob x Genero'!AZ80 -> 12 | M80: ='Pob x Genero'!N80+'Pob x Genero'!BA80 -> 6 | N80: ='Pob x Genero'!O80+'Pob x Genero'!BB80 -> 6 | O80: ='Pob x Genero'!P80+'Pob x Genero'!BC80 -> 7 | P80: ='Pob x Genero'!Q80+'Pob x Genero'!BD80 -> 10 | Q80: ='Pob x Genero'!R80+'Pob x Genero'!BE80 -> 9 | R80: ='Pob x Genero'!S80+'Pob x Genero'!BF80 -> 8 | S80: ='Pob x Genero'!T80+'Pob x Genero'!BG80 -> 10 | T80: ='Pob x Genero'!U80+'Pob x Genero'!BH80 -> 12 | U80: ='Pob x Genero'!V80+'Pob x Genero'!BI80 -> 9 | V80: ='Pob x Genero'!W80+'Pob x Genero'!BJ80 -> 7 | W80: ='Pob x Genero'!X80+'Pob x Genero'!BK80 -> 14 | X80: ='Pob x Genero'!Y80+'Pob x Genero'!BL80 -> 16 | Y80: ='Pob x Genero'!Z80+'Pob x Genero'!BM80 -> 11 | Z80: ='Pob x Genero'!AA80+'Pob x Genero'!BN80 -> 15 | AA80: ='Pob x Genero'!AB80+'Pob x Genero'!BO80 -> 64 | AB80: ='Pob x Genero'!AC80+'Pob x Genero'!BP80 -> 75 | AC80: ='Pob x Genero'!AD80+'Pob x Genero'!BQ80 -> 70 | AD80: ='Pob x Genero'!AE80+'Pob x Genero'!BR80 -> 80 | AE80: ='Pob x Genero'!AF80+'Pob x Genero'!BS80 -> 93 | AF80: ='Pob x Genero'!AG80+'Pob x Genero'!BT80 -> 99 | AG80: ='Pob x Genero'!AH80+'Pob x Genero'!BU80 -> 93 | AH80: ='Pob x Genero'!AI80+'Pob x Genero'!BV80 -> 80 | AI80: ='Pob x Genero'!AJ80+'Pob x Genero'!BW80 -> 84 | AJ80: ='Pob x Genero'!AK80+'Pob x Genero'!BX80 -> 68 | AK80: ='Pob x Genero'!AL80+'Pob x Genero'!BY80 -> 56 | AL80: ='Pob x Genero'!AM80+'Pob x Genero'!BZ80 -> 42 | AM80: ='Pob x Genero'!AN80+'Pob x Genero'!CA80 -> 34 | AN80: ='Pob x Genero'!AO80+'Pob x Genero'!CB80 -> 40 | AO80: ='Pob x Genero'!AP80+'Pob x Genero'!CC80 -> 1 | AP80: ='Pob x Genero'!AQ80+'Pob x Genero'!CD80 -> 11 | AQ80: ='Pob x Genero'!AR80+'Pob x Genero'!CE80 -> 5 | AR80: ='Pob x Genero'!AS80+'Pob x Genero'!CF80 -> 30 | AS80: ='Pob x Genero'!AT80 -> 596 | AT80: =SUM('Pob x Genero'!BE80:BI80) -> 24 | AU80: =SUM('Pob x Genero'!BJ80:BN80) -> 35 | AV80: =SUM('Pob x Genero'!BO80:BT80) -> 224 | AW80: ='Pob x Genero'!CG80 -> 38 | AZ80: 1,180 | BA80: 108 | BB80: 68 | BC80: 165 | BD80: 515 | BE80: 324
A81: 040509 | B81: AREQUIPA | C81: AREQUIPA | D81: CAYLLOMA | E81: ICHUPAMPA | F81: 760 | G81: ='Pob x Genero'!H81+'Pob x Genero'!AU81 -> 11 | H81: ='Pob x Genero'!I81+'Pob x Genero'!AV81 -> 12 | I81: ='Pob x Genero'!J81+'Pob x Genero'!AW81 -> 7 | J81: ='Pob x Genero'!K81+'Pob x Genero'!AX81 -> 14 | K81: ='Pob x Genero'!L81+'Pob x Genero'!AY81 -> 3 | L81: ='Pob x Genero'!M81+'Pob x Genero'!AZ81 -> 7 | M81: ='Pob x Genero'!N81+'Pob x Genero'!BA81 -> 7 | N81: ='Pob x Genero'!O81+'Pob x Genero'!BB81 -> 8 | O81: ='Pob x Genero'!P81+'Pob x Genero'!BC81 -> 10 | P81: ='Pob x Genero'!Q81+'Pob x Genero'!BD81 -> 7 | Q81: ='Pob x Genero'!R81+'Pob x Genero'!BE81 -> 9 | R81: ='Pob x Genero'!S81+'Pob x Genero'!BF81 -> 12 | S81: ='Pob x Genero'!T81+'Pob x Genero'!BG81 -> 13 | T81: ='Pob x Genero'!U81+'Pob x Genero'!BH81 -> 7 | U81: ='Pob x Genero'!V81+'Pob x Genero'!BI81 -> 11 | V81: ='Pob x Genero'!W81+'Pob x Genero'!BJ81 -> 7 | W81: ='Pob x Genero'!X81+'Pob x Genero'!BK81 -> 10 | X81: ='Pob x Genero'!Y81+'Pob x Genero'!BL81 -> 12 | Y81: ='Pob x Genero'!Z81+'Pob x Genero'!BM81 -> 3 | Z81: ='Pob x Genero'!AA81+'Pob x Genero'!BN81 -> 10 | AA81: ='Pob x Genero'!AB81+'Pob x Genero'!BO81 -> 45 | AB81: ='Pob x Genero'!AC81+'Pob x Genero'!BP81 -> 60 | AC81: ='Pob x Genero'!AD81+'Pob x Genero'!BQ81 -> 70 | AD81: ='Pob x Genero'!AE81+'Pob x Genero'!BR81 -> 57 | AE81: ='Pob x Genero'!AF81+'Pob x Genero'!BS81 -> 50 | AF81: ='Pob x Genero'!AG81+'Pob x Genero'!BT81 -> 50 | AG81: ='Pob x Genero'!AH81+'Pob x Genero'!BU81 -> 44 | AH81: ='Pob x Genero'!AI81+'Pob x Genero'!BV81 -> 45 | AI81: ='Pob x Genero'!AJ81+'Pob x Genero'!BW81 -> 38 | AJ81: ='Pob x Genero'!AK81+'Pob x Genero'!BX81 -> 41 | AK81: ='Pob x Genero'!AL81+'Pob x Genero'!BY81 -> 30 | AL81: ='Pob x Genero'!AM81+'Pob x Genero'!BZ81 -> 21 | AM81: ='Pob x Genero'!AN81+'Pob x Genero'!CA81 -> 15 | AN81: ='Pob x Genero'!AO81+'Pob x Genero'!CB81 -> 14 | AO81: ='Pob x Genero'!AP81+'Pob x Genero'!CC81 -> 0 | AP81: ='Pob x Genero'!AQ81+'Pob x Genero'!CD81 -> 2 | AQ81: ='Pob x Genero'!AR81+'Pob x Genero'!CE81 -> 9 | AR81: ='Pob x Genero'!AS81+'Pob x Genero'!CF81 -> 20 | AS81: ='Pob x Genero'!AT81 -> 385 | AT81: =SUM('Pob x Genero'!BE81:BI81) -> 26 | AU81: =SUM('Pob x Genero'!BJ81:BN81) -> 19 | AV81: =SUM('Pob x Genero'!BO81:BT81) -> 172 | AW81: ='Pob x Genero'!CG81 -> 29 | AZ81: 760 | BA81: 107 | BB81: 60 | BC81: 118 | BD81: 316 | BE81: 159
A82: 040510 | B82: AREQUIPA | C82: AREQUIPA | D82: CAYLLOMA | E82: LARI | F82: 1,062 | G82: ='Pob x Genero'!H82+'Pob x Genero'!AU82 -> 16 | H82: ='Pob x Genero'!I82+'Pob x Genero'!AV82 -> 17 | I82: ='Pob x Genero'!J82+'Pob x Genero'!AW82 -> 12 | J82: ='Pob x Genero'!K82+'Pob x Genero'!AX82 -> 15 | K82: ='Pob x Genero'!L82+'Pob x Genero'!AY82 -> 11 | L82: ='Pob x Genero'!M82+'Pob x Genero'!AZ82 -> 8 | M82: ='Pob x Genero'!N82+'Pob x Genero'!BA82 -> 11 | N82: ='Pob x Genero'!O82+'Pob x Genero'!BB82 -> 13 | O82: ='Pob x Genero'!P82+'Pob x Genero'!BC82 -> 6 | P82: ='Pob x Genero'!Q82+'Pob x Genero'!BD82 -> 14 | Q82: ='Pob x Genero'!R82+'Pob x Genero'!BE82 -> 17 | R82: ='Pob x Genero'!S82+'Pob x Genero'!BF82 -> 16 | S82: ='Pob x Genero'!T82+'Pob x Genero'!BG82 -> 12 | T82: ='Pob x Genero'!U82+'Pob x Genero'!BH82 -> 23 | U82: ='Pob x Genero'!V82+'Pob x Genero'!BI82 -> 15 | V82: ='Pob x Genero'!W82+'Pob x Genero'!BJ82 -> 17 | W82: ='Pob x Genero'!X82+'Pob x Genero'!BK82 -> 18 | X82: ='Pob x Genero'!Y82+'Pob x Genero'!BL82 -> 15 | Y82: ='Pob x Genero'!Z82+'Pob x Genero'!BM82 -> 19 | Z82: ='Pob x Genero'!AA82+'Pob x Genero'!BN82 -> 20 | AA82: ='Pob x Genero'!AB82+'Pob x Genero'!BO82 -> 83 | AB82: ='Pob x Genero'!AC82+'Pob x Genero'!BP82 -> 94 | AC82: ='Pob x Genero'!AD82+'Pob x Genero'!BQ82 -> 91 | AD82: ='Pob x Genero'!AE82+'Pob x Genero'!BR82 -> 57 | AE82: ='Pob x Genero'!AF82+'Pob x Genero'!BS82 -> 71 | AF82: ='Pob x Genero'!AG82+'Pob x Genero'!BT82 -> 72 | AG82: ='Pob x Genero'!AH82+'Pob x Genero'!BU82 -> 62 | AH82: ='Pob x Genero'!AI82+'Pob x Genero'!BV82 -> 58 | AI82: ='Pob x Genero'!AJ82+'Pob x Genero'!BW82 -> 48 | AJ82: ='Pob x Genero'!AK82+'Pob x Genero'!BX82 -> 43 | AK82: ='Pob x Genero'!AL82+'Pob x Genero'!BY82 -> 23 | AL82: ='Pob x Genero'!AM82+'Pob x Genero'!BZ82 -> 22 | AM82: ='Pob x Genero'!AN82+'Pob x Genero'!CA82 -> 26 | AN82: ='Pob x Genero'!AO82+'Pob x Genero'!CB82 -> 17 | AO82: ='Pob x Genero'!AP82+'Pob x Genero'!CC82 -> 0 | AP82: ='Pob x Genero'!AQ82+'Pob x Genero'!CD82 -> 6 | AQ82: ='Pob x Genero'!AR82+'Pob x Genero'!CE82 -> 10 | AR82: ='Pob x Genero'!AS82+'Pob x Genero'!CF82 -> 26 | AS82: ='Pob x Genero'!AT82 -> 535 | AT82: =SUM('Pob x Genero'!BE82:BI82) -> 45 | AU82: =SUM('Pob x Genero'!BJ82:BN82) -> 46 | AV82: =SUM('Pob x Genero'!BO82:BT82) -> 224 | AW82: ='Pob x Genero'!CG82 -> 31 | AZ82: 1,062 | BA82: 156 | BB82: 100 | BC82: 216 | BD82: 411 | BE82: 179
A83: 040511 | B83: AREQUIPA | C83: AREQUIPA | D83: CAYLLOMA | E83: LLUTA | F83: 943 | G83: ='Pob x Genero'!H83+'Pob x Genero'!AU83 -> 20 | H83: ='Pob x Genero'!I83+'Pob x Genero'!AV83 -> 22 | I83: ='Pob x Genero'!J83+'Pob x Genero'!AW83 -> 7 | J83: ='Pob x Genero'!K83+'Pob x Genero'!AX83 -> 8 | K83: ='Pob x Genero'!L83+'Pob x Genero'!AY83 -> 7 | L83: ='Pob x Genero'!M83+'Pob x Genero'!AZ83 -> 5 | M83: ='Pob x Genero'!N83+'Pob x Genero'!BA83 -> 3 | N83: ='Pob x Genero'!O83+'Pob x Genero'!BB83 -> 6 | O83: ='Pob x Genero'!P83+'Pob x Genero'!BC83 -> 11 | P83: ='Pob x Genero'!Q83+'Pob x Genero'!BD83 -> 5 | Q83: ='Pob x Genero'!R83+'Pob x Genero'!BE83 -> 7 | R83: ='Pob x Genero'!S83+'Pob x Genero'!BF83 -> 14 | S83: ='Pob x Genero'!T83+'Pob x Genero'!BG83 -> 12 | T83: ='Pob x Genero'!U83+'Pob x Genero'!BH83 -> 16 | U83: ='Pob x Genero'!V83+'Pob x Genero'!BI83 -> 10 | V83: ='Pob x Genero'!W83+'Pob x Genero'!BJ83 -> 15 | W83: ='Pob x Genero'!X83+'Pob x Genero'!BK83 -> 10 | X83: ='Pob x Genero'!Y83+'Pob x Genero'!BL83 -> 16 | Y83: ='Pob x Genero'!Z83+'Pob x Genero'!BM83 -> 15 | Z83: ='Pob x Genero'!AA83+'Pob x Genero'!BN83 -> 7 | AA83: ='Pob x Genero'!AB83+'Pob x Genero'!BO83 -> 48 | AB83: ='Pob x Genero'!AC83+'Pob x Genero'!BP83 -> 47 | AC83: ='Pob x Genero'!AD83+'Pob x Genero'!BQ83 -> 59 | AD83: ='Pob x Genero'!AE83+'Pob x Genero'!BR83 -> 65 | AE83: ='Pob x Genero'!AF83+'Pob x Genero'!BS83 -> 68 | AF83: ='Pob x Genero'!AG83+'Pob x Genero'!BT83 -> 73 | AG83: ='Pob x Genero'!AH83+'Pob x Genero'!BU83 -> 65 | AH83: ='Pob x Genero'!AI83+'Pob x Genero'!BV83 -> 67 | AI83: ='Pob x Genero'!AJ83+'Pob x Genero'!BW83 -> 52 | AJ83: ='Pob x Genero'!AK83+'Pob x Genero'!BX83 -> 41 | AK83: ='Pob x Genero'!AL83+'Pob x Genero'!BY83 -> 46 | AL83: ='Pob x Genero'!AM83+'Pob x Genero'!BZ83 -> 39 | AM83: ='Pob x Genero'!AN83+'Pob x Genero'!CA83 -> 28 | AN83: ='Pob x Genero'!AO83+'Pob x Genero'!CB83 -> 29 | AO83: ='Pob x Genero'!AP83+'Pob x Genero'!CC83 -> 1 | AP83: ='Pob x Genero'!AQ83+'Pob x Genero'!CD83 -> 13 | AQ83: ='Pob x Genero'!AR83+'Pob x Genero'!CE83 -> 7 | AR83: ='Pob x Genero'!AS83+'Pob x Genero'!CF83 -> 26 | AS83: ='Pob x Genero'!AT83 -> 474 | AT83: =SUM('Pob x Genero'!BE83:BI83) -> 30 | AU83: =SUM('Pob x Genero'!BJ83:BN83) -> 39 | AV83: =SUM('Pob x Genero'!BO83:BT83) -> 167 | AW83: ='Pob x Genero'!CG83 -> 43 | AZ83: 943 | BA83: 115 | BB83: 79 | BC83: 117 | BD83: 397 | BE83: 235
A84: 040512 | B84: AREQUIPA | C84: AREQUIPA | D84: CAYLLOMA | E84: MACA | F84: 841 | G84: ='Pob x Genero'!H84+'Pob x Genero'!AU84 -> 5 | H84: ='Pob x Genero'!I84+'Pob x Genero'!AV84 -> 4 | I84: ='Pob x Genero'!J84+'Pob x Genero'!AW84 -> 7 | J84: ='Pob x Genero'!K84+'Pob x Genero'!AX84 -> 3 | K84: ='Pob x Genero'!L84+'Pob x Genero'!AY84 -> 6 | L84: ='Pob x Genero'!M84+'Pob x Genero'!AZ84 -> 3 | M84: ='Pob x Genero'!N84+'Pob x Genero'!BA84 -> 5 | N84: ='Pob x Genero'!O84+'Pob x Genero'!BB84 -> 10 | O84: ='Pob x Genero'!P84+'Pob x Genero'!BC84 -> 9 | P84: ='Pob x Genero'!Q84+'Pob x Genero'!BD84 -> 6 | Q84: ='Pob x Genero'!R84+'Pob x Genero'!BE84 -> 6 | R84: ='Pob x Genero'!S84+'Pob x Genero'!BF84 -> 6 | S84: ='Pob x Genero'!T84+'Pob x Genero'!BG84 -> 7 | T84: ='Pob x Genero'!U84+'Pob x Genero'!BH84 -> 6 | U84: ='Pob x Genero'!V84+'Pob x Genero'!BI84 -> 8 | V84: ='Pob x Genero'!W84+'Pob x Genero'!BJ84 -> 11 | W84: ='Pob x Genero'!X84+'Pob x Genero'!BK84 -> 9 | X84: ='Pob x Genero'!Y84+'Pob x Genero'!BL84 -> 13 | Y84: ='Pob x Genero'!Z84+'Pob x Genero'!BM84 -> 6 | Z84: ='Pob x Genero'!AA84+'Pob x Genero'!BN84 -> 14 | AA84: ='Pob x Genero'!AB84+'Pob x Genero'!BO84 -> 56 | AB84: ='Pob x Genero'!AC84+'Pob x Genero'!BP84 -> 61 | AC84: ='Pob x Genero'!AD84+'Pob x Genero'!BQ84 -> 49 | AD84: ='Pob x Genero'!AE84+'Pob x Genero'!BR84 -> 72 | AE84: ='Pob x Genero'!AF84+'Pob x Genero'!BS84 -> 69 | AF84: ='Pob x Genero'!AG84+'Pob x Genero'!BT84 -> 69 | AG84: ='Pob x Genero'!AH84+'Pob x Genero'!BU84 -> 58 | AH84: ='Pob x Genero'!AI84+'Pob x Genero'!BV84 -> 53 | AI84: ='Pob x Genero'!AJ84+'Pob x Genero'!BW84 -> 40 | AJ84: ='Pob x Genero'!AK84+'Pob x Genero'!BX84 -> 48 | AK84: ='Pob x Genero'!AL84+'Pob x Genero'!BY84 -> 33 | AL84: ='Pob x Genero'!AM84+'Pob x Genero'!BZ84 -> 44 | AM84: ='Pob x Genero'!AN84+'Pob x Genero'!CA84 -> 19 | AN84: ='Pob x Genero'!AO84+'Pob x Genero'!CB84 -> 26 | AO84: ='Pob x Genero'!AP84+'Pob x Genero'!CC84 -> 0 | AP84: ='Pob x Genero'!AQ84+'Pob x Genero'!CD84 -> 1 | AQ84: ='Pob x Genero'!AR84+'Pob x Genero'!CE84 -> 4 | AR84: ='Pob x Genero'!AS84+'Pob x Genero'!CF84 -> 9 | AS84: ='Pob x Genero'!AT84 -> 427 | AT84: =SUM('Pob x Genero'!BE84:BI84) -> 13 | AU84: =SUM('Pob x Genero'!BJ84:BN84) -> 24 | AV84: =SUM('Pob x Genero'!BO84:BT84) -> 182 | AW84: ='Pob x Genero'!CG84 -> 19 | AZ84: 841 | BA84: 70 | BB84: 54 | BC84: 137 | BD84: 370 | BE84: 210
A85: 040513 | B85: AREQUIPA | C85: AREQUIPA | D85: CAYLLOMA | E85: MADRIGAL | F85: 770 | G85: ='Pob x Genero'!H85+'Pob x Genero'!AU85 -> 6 | H85: ='Pob x Genero'!I85+'Pob x Genero'!AV85 -> 5 | I85: ='Pob x Genero'!J85+'Pob x Genero'!AW85 -> 4 | J85: ='Pob x Genero'!K85+'Pob x Genero'!AX85 -> 2 | K85: ='Pob x Genero'!L85+'Pob x Genero'!AY85 -> 6 | L85: ='Pob x Genero'!M85+'Pob x Genero'!AZ85 -> 3 | M85: ='Pob x Genero'!N85+'Pob x Genero'!BA85 -> 4 | N85: ='Pob x Genero'!O85+'Pob x Genero'!BB85 -> 5 | O85: ='Pob x Genero'!P85+'Pob x Genero'!BC85 -> 5 | P85: ='Pob x Genero'!Q85+'Pob x Genero'!BD85 -> 5 | Q85: ='Pob x Genero'!R85+'Pob x Genero'!BE85 -> 7 | R85: ='Pob x Genero'!S85+'Pob x Genero'!BF85 -> 2 | S85: ='Pob x Genero'!T85+'Pob x Genero'!BG85 -> 10 | T85: ='Pob x Genero'!U85+'Pob x Genero'!BH85 -> 8 | U85: ='Pob x Genero'!V85+'Pob x Genero'!BI85 -> 7 | V85: ='Pob x Genero'!W85+'Pob x Genero'!BJ85 -> 7 | W85: ='Pob x Genero'!X85+'Pob x Genero'!BK85 -> 12 | X85: ='Pob x Genero'!Y85+'Pob x Genero'!BL85 -> 10 | Y85: ='Pob x Genero'!Z85+'Pob x Genero'!BM85 -> 7 | Z85: ='Pob x Genero'!AA85+'Pob x Genero'!BN85 -> 8 | AA85: ='Pob x Genero'!AB85+'Pob x Genero'!BO85 -> 52 | AB85: ='Pob x Genero'!AC85+'Pob x Genero'!BP85 -> 49 | AC85: ='Pob x Genero'!AD85+'Pob x Genero'!BQ85 -> 47 | AD85: ='Pob x Genero'!AE85+'Pob x Genero'!BR85 -> 58 | AE85: ='Pob x Genero'!AF85+'Pob x Genero'!BS85 -> 49 | AF85: ='Pob x Genero'!AG85+'Pob x Genero'!BT85 -> 62 | AG85: ='Pob x Genero'!AH85+'Pob x Genero'!BU85 -> 47 | AH85: ='Pob x Genero'!AI85+'Pob x Genero'!BV85 -> 47 | AI85: ='Pob x Genero'!AJ85+'Pob x Genero'!BW85 -> 57 | AJ85: ='Pob x Genero'!AK85+'Pob x Genero'!BX85 -> 51 | AK85: ='Pob x Genero'!AL85+'Pob x Genero'!BY85 -> 38 | AL85: ='Pob x Genero'!AM85+'Pob x Genero'!BZ85 -> 35 | AM85: ='Pob x Genero'!AN85+'Pob x Genero'!CA85 -> 24 | AN85: ='Pob x Genero'!AO85+'Pob x Genero'!CB85 -> 31 | AO85: ='Pob x Genero'!AP85+'Pob x Genero'!CC85 -> 0 | AP85: ='Pob x Genero'!AQ85+'Pob x Genero'!CD85 -> 5 | AQ85: ='Pob x Genero'!AR85+'Pob x Genero'!CE85 -> 1 | AR85: ='Pob x Genero'!AS85+'Pob x Genero'!CF85 -> 7 | AS85: ='Pob x Genero'!AT85 -> 395 | AT85: =SUM('Pob x Genero'!BE85:BI85) -> 20 | AU85: =SUM('Pob x Genero'!BJ85:BN85) -> 28 | AV85: =SUM('Pob x Genero'!BO85:BT85) -> 146 | AW85: ='Pob x Genero'!CG85 -> 12 | AZ85: 770 | BA85: 54 | BB85: 54 | BC85: 116 | BD85: 310 | BE85: 236
A86: 040514 | B86: AREQUIPA | C86: AREQUIPA | D86: CAYLLOMA | E86: SAN ANTONIO DE CHUCA | F86: 1,003 | G86: ='Pob x Genero'!H86+'Pob x Genero'!AU86 -> 14 | H86: ='Pob x Genero'!I86+'Pob x Genero'!AV86 -> 10 | I86: ='Pob x Genero'!J86+'Pob x Genero'!AW86 -> 12 | J86: ='Pob x Genero'!K86+'Pob x Genero'!AX86 -> 10 | K86: ='Pob x Genero'!L86+'Pob x Genero'!AY86 -> 12 | L86: ='Pob x Genero'!M86+'Pob x Genero'!AZ86 -> 7 | M86: ='Pob x Genero'!N86+'Pob x Genero'!BA86 -> 15 | N86: ='Pob x Genero'!O86+'Pob x Genero'!BB86 -> 16 | O86: ='Pob x Genero'!P86+'Pob x Genero'!BC86 -> 14 | P86: ='Pob x Genero'!Q86+'Pob x Genero'!BD86 -> 15 | Q86: ='Pob x Genero'!R86+'Pob x Genero'!BE86 -> 21 | R86: ='Pob x Genero'!S86+'Pob x Genero'!BF86 -> 18 | S86: ='Pob x Genero'!T86+'Pob x Genero'!BG86 -> 12 | T86: ='Pob x Genero'!U86+'Pob x Genero'!BH86 -> 14 | U86: ='Pob x Genero'!V86+'Pob x Genero'!BI86 -> 15 | V86: ='Pob x Genero'!W86+'Pob x Genero'!BJ86 -> 15 | W86: ='Pob x Genero'!X86+'Pob x Genero'!BK86 -> 21 | X86: ='Pob x Genero'!Y86+'Pob x Genero'!BL86 -> 24 | Y86: ='Pob x Genero'!Z86+'Pob x Genero'!BM86 -> 18 | Z86: ='Pob x Genero'!AA86+'Pob x Genero'!BN86 -> 13 | AA86: ='Pob x Genero'!AB86+'Pob x Genero'!BO86 -> 68 | AB86: ='Pob x Genero'!AC86+'Pob x Genero'!BP86 -> 70 | AC86: ='Pob x Genero'!AD86+'Pob x Genero'!BQ86 -> 60 | AD86: ='Pob x Genero'!AE86+'Pob x Genero'!BR86 -> 75 | AE86: ='Pob x Genero'!AF86+'Pob x Genero'!BS86 -> 72 | AF86: ='Pob x Genero'!AG86+'Pob x Genero'!BT86 -> 66 | AG86: ='Pob x Genero'!AH86+'Pob x Genero'!BU86 -> 63 | AH86: ='Pob x Genero'!AI86+'Pob x Genero'!BV86 -> 65 | AI86: ='Pob x Genero'!AJ86+'Pob x Genero'!BW86 -> 52 | AJ86: ='Pob x Genero'!AK86+'Pob x Genero'!BX86 -> 37 | AK86: ='Pob x Genero'!AL86+'Pob x Genero'!BY86 -> 37 | AL86: ='Pob x Genero'!AM86+'Pob x Genero'!BZ86 -> 20 | AM86: ='Pob x Genero'!AN86+'Pob x Genero'!CA86 -> 12 | AN86: ='Pob x Genero'!AO86+'Pob x Genero'!CB86 -> 10 | AO86: ='Pob x Genero'!AP86+'Pob x Genero'!CC86 -> 0 | AP86: ='Pob x Genero'!AQ86+'Pob x Genero'!CD86 -> 9 | AQ86: ='Pob x Genero'!AR86+'Pob x Genero'!CE86 -> 5 | AR86: ='Pob x Genero'!AS86+'Pob x Genero'!CF86 -> 27 | AS86: ='Pob x Genero'!AT86 -> 502 | AT86: =SUM('Pob x Genero'!BE86:BI86) -> 38 | AU86: =SUM('Pob x Genero'!BJ86:BN86) -> 45 | AV86: =SUM('Pob x Genero'!BO86:BT86) -> 215 | AW86: ='Pob x Genero'!CG86 -> 24 | AZ86: 1,003 | BA86: 164 | BB86: 101 | BC86: 169 | BD86: 401 | BE86: 168
A87: 040515 | B87: AREQUIPA | C87: AREQUIPA | D87: CAYLLOMA | E87: SIBAYO | F87: 883 | G87: ='Pob x Genero'!H87+'Pob x Genero'!AU87 -> 13 | H87: ='Pob x Genero'!I87+'Pob x Genero'!AV87 -> 10 | I87: ='Pob x Genero'!J87+'Pob x Genero'!AW87 -> 3 | J87: ='Pob x Genero'!K87+'Pob x Genero'!AX87 -> 10 | K87: ='Pob x Genero'!L87+'Pob x Genero'!AY87 -> 7 | L87: ='Pob x Genero'!M87+'Pob x Genero'!AZ87 -> 6 | M87: ='Pob x Genero'!N87+'Pob x Genero'!BA87 -> 4 | N87: ='Pob x Genero'!O87+'Pob x Genero'!BB87 -> 12 | O87: ='Pob x Genero'!P87+'Pob x Genero'!BC87 -> 6 | P87: ='Pob x Genero'!Q87+'Pob x Genero'!BD87 -> 12 | Q87: ='Pob x Genero'!R87+'Pob x Genero'!BE87 -> 8 | R87: ='Pob x Genero'!S87+'Pob x Genero'!BF87 -> 13 | S87: ='Pob x Genero'!T87+'Pob x Genero'!BG87 -> 10 | T87: ='Pob x Genero'!U87+'Pob x Genero'!BH87 -> 11 | U87: ='Pob x Genero'!V87+'Pob x Genero'!BI87 -> 9 | V87: ='Pob x Genero'!W87+'Pob x Genero'!BJ87 -> 17 | W87: ='Pob x Genero'!X87+'Pob x Genero'!BK87 -> 15 | X87: ='Pob x Genero'!Y87+'Pob x Genero'!BL87 -> 14 | Y87: ='Pob x Genero'!Z87+'Pob x Genero'!BM87 -> 11 | Z87: ='Pob x Genero'!AA87+'Pob x Genero'!BN87 -> 11 | AA87: ='Pob x Genero'!AB87+'Pob x Genero'!BO87 -> 74 | AB87: ='Pob x Genero'!AC87+'Pob x Genero'!BP87 -> 74 | AC87: ='Pob x Genero'!AD87+'Pob x Genero'!BQ87 -> 73 | AD87: ='Pob x Genero'!AE87+'Pob x Genero'!BR87 -> 66 | AE87: ='Pob x Genero'!AF87+'Pob x Genero'!BS87 -> 68 | AF87: ='Pob x Genero'!AG87+'Pob x Genero'!BT87 -> 76 | AG87: ='Pob x Genero'!AH87+'Pob x Genero'!BU87 -> 46 | AH87: ='Pob x Genero'!AI87+'Pob x Genero'!BV87 -> 48 | AI87: ='Pob x Genero'!AJ87+'Pob x Genero'!BW87 -> 45 | AJ87: ='Pob x Genero'!AK87+'Pob x Genero'!BX87 -> 33 | AK87: ='Pob x Genero'!AL87+'Pob x Genero'!BY87 -> 27 | AL87: ='Pob x Genero'!AM87+'Pob x Genero'!BZ87 -> 25 | AM87: ='Pob x Genero'!AN87+'Pob x Genero'!CA87 -> 12 | AN87: ='Pob x Genero'!AO87+'Pob x Genero'!CB87 -> 14 | AO87: ='Pob x Genero'!AP87+'Pob x Genero'!CC87 -> 2 | AP87: ='Pob x Genero'!AQ87+'Pob x Genero'!CD87 -> 7 | AQ87: ='Pob x Genero'!AR87+'Pob x Genero'!CE87 -> 6 | AR87: ='Pob x Genero'!AS87+'Pob x Genero'!CF87 -> 18 | AS87: ='Pob x Genero'!AT87 -> 451 | AT87: =SUM('Pob x Genero'!BE87:BI87) -> 20 | AU87: =SUM('Pob x Genero'!BJ87:BN87) -> 32 | AV87: =SUM('Pob x Genero'!BO87:BT87) -> 217 | AW87: ='Pob x Genero'!CG87 -> 17 | AZ87: 883 | BA87: 104 | BB87: 76 | BC87: 170 | BD87: 377 | BE87: 156
A88: 040516 | B88: AREQUIPA | C88: AREQUIPA | D88: CAYLLOMA | E88: TAPAY | F88: 917 | G88: ='Pob x Genero'!H88+'Pob x Genero'!AU88 -> 8 | H88: ='Pob x Genero'!I88+'Pob x Genero'!AV88 -> 6 | I88: ='Pob x Genero'!J88+'Pob x Genero'!AW88 -> 9 | J88: ='Pob x Genero'!K88+'Pob x Genero'!AX88 -> 8 | K88: ='Pob x Genero'!L88+'Pob x Genero'!AY88 -> 9 | L88: ='Pob x Genero'!M88+'Pob x Genero'!AZ88 -> 3 | M88: ='Pob x Genero'!N88+'Pob x Genero'!BA88 -> 10 | N88: ='Pob x Genero'!O88+'Pob x Genero'!BB88 -> 9 | O88: ='Pob x Genero'!P88+'Pob x Genero'!BC88 -> 10 | P88: ='Pob x Genero'!Q88+'Pob x Genero'!BD88 -> 8 | Q88: ='Pob x Genero'!R88+'Pob x Genero'!BE88 -> 4 | R88: ='Pob x Genero'!S88+'Pob x Genero'!BF88 -> 9 | S88: ='Pob x Genero'!T88+'Pob x Genero'!BG88 -> 10 | T88: ='Pob x Genero'!U88+'Pob x Genero'!BH88 -> 8 | U88: ='Pob x Genero'!V88+'Pob x Genero'!BI88 -> 17 | V88: ='Pob x Genero'!W88+'Pob x Genero'!BJ88 -> 10 | W88: ='Pob x Genero'!X88+'Pob x Genero'!BK88 -> 13 | X88: ='Pob x Genero'!Y88+'Pob x Genero'!BL88 -> 10 | Y88: ='Pob x Genero'!Z88+'Pob x Genero'!BM88 -> 10 | Z88: ='Pob x Genero'!AA88+'Pob x Genero'!BN88 -> 10 | AA88: ='Pob x Genero'!AB88+'Pob x Genero'!BO88 -> 50 | AB88: ='Pob x Genero'!AC88+'Pob x Genero'!BP88 -> 71 | AC88: ='Pob x Genero'!AD88+'Pob x Genero'!BQ88 -> 66 | AD88: ='Pob x Genero'!AE88+'Pob x Genero'!BR88 -> 84 | AE88: ='Pob x Genero'!AF88+'Pob x Genero'!BS88 -> 74 | AF88: ='Pob x Genero'!AG88+'Pob x Genero'!BT88 -> 64 | AG88: ='Pob x Genero'!AH88+'Pob x Genero'!BU88 -> 51 | AH88: ='Pob x Genero'!AI88+'Pob x Genero'!BV88 -> 54 | AI88: ='Pob x Genero'!AJ88+'Pob x Genero'!BW88 -> 55 | AJ88: ='Pob x Genero'!AK88+'Pob x Genero'!BX88 -> 52 | AK88: ='Pob x Genero'!AL88+'Pob x Genero'!BY88 -> 41 | AL88: ='Pob x Genero'!AM88+'Pob x Genero'!BZ88 -> 27 | AM88: ='Pob x Genero'!AN88+'Pob x Genero'!CA88 -> 27 | AN88: ='Pob x Genero'!AO88+'Pob x Genero'!CB88 -> 20 | AO88: ='Pob x Genero'!AP88+'Pob x Genero'!CC88 -> 0 | AP88: ='Pob x Genero'!AQ88+'Pob x Genero'!CD88 -> 3 | AQ88: ='Pob x Genero'!AR88+'Pob x Genero'!CE88 -> 5 | AR88: ='Pob x Genero'!AS88+'Pob x Genero'!CF88 -> 29 | AS88: ='Pob x Genero'!AT88 -> 461 | AT88: =SUM('Pob x Genero'!BE88:BI88) -> 27 | AU88: =SUM('Pob x Genero'!BJ88:BN88) -> 33 | AV88: =SUM('Pob x Genero'!BO88:BT88) -> 191 | AW88: ='Pob x Genero'!CG88 -> 32 | AZ88: 917 | BA88: 93 | BB88: 68 | BC88: 141 | BD88: 393 | BE88: 222
A89: 040517 | B89: AREQUIPA | C89: AREQUIPA | D89: CAYLLOMA | E89: TISCO | F89: 1,782 | G89: ='Pob x Genero'!H89+'Pob x Genero'!AU89 -> 12 | H89: ='Pob x Genero'!I89+'Pob x Genero'!AV89 -> 13 | I89: ='Pob x Genero'!J89+'Pob x Genero'!AW89 -> 13 | J89: ='Pob x Genero'!K89+'Pob x Genero'!AX89 -> 12 | K89: ='Pob x Genero'!L89+'Pob x Genero'!AY89 -> 16 | L89: ='Pob x Genero'!M89+'Pob x Genero'!AZ89 -> 16 | M89: ='Pob x Genero'!N89+'Pob x Genero'!BA89 -> 23 | N89: ='Pob x Genero'!O89+'Pob x Genero'!BB89 -> 20 | O89: ='Pob x Genero'!P89+'Pob x Genero'!BC89 -> 21 | P89: ='Pob x Genero'!Q89+'Pob x Genero'!BD89 -> 20 | Q89: ='Pob x Genero'!R89+'Pob x Genero'!BE89 -> 17 | R89: ='Pob x Genero'!S89+'Pob x Genero'!BF89 -> 24 | S89: ='Pob x Genero'!T89+'Pob x Genero'!BG89 -> 34 | T89: ='Pob x Genero'!U89+'Pob x Genero'!BH89 -> 25 | U89: ='Pob x Genero'!V89+'Pob x Genero'!BI89 -> 33 | V89: ='Pob x Genero'!W89+'Pob x Genero'!BJ89 -> 32 | W89: ='Pob x Genero'!X89+'Pob x Genero'!BK89 -> 28 | X89: ='Pob x Genero'!Y89+'Pob x Genero'!BL89 -> 37 | Y89: ='Pob x Genero'!Z89+'Pob x Genero'!BM89 -> 35 | Z89: ='Pob x Genero'!AA89+'Pob x Genero'!BN89 -> 23 | AA89: ='Pob x Genero'!AB89+'Pob x Genero'!BO89 -> 158 | AB89: ='Pob x Genero'!AC89+'Pob x Genero'!BP89 -> 138 | AC89: ='Pob x Genero'!AD89+'Pob x Genero'!BQ89 -> 120 | AD89: ='Pob x Genero'!AE89+'Pob x Genero'!BR89 -> 113 | AE89: ='Pob x Genero'!AF89+'Pob x Genero'!BS89 -> 127 | AF89: ='Pob x Genero'!AG89+'Pob x Genero'!BT89 -> 122 | AG89: ='Pob x Genero'!AH89+'Pob x Genero'!BU89 -> 116 | AH89: ='Pob x Genero'!AI89+'Pob x Genero'!BV89 -> 117 | AI89: ='Pob x Genero'!AJ89+'Pob x Genero'!BW89 -> 89 | AJ89: ='Pob x Genero'!AK89+'Pob x Genero'!BX89 -> 67 | AK89: ='Pob x Genero'!AL89+'Pob x Genero'!BY89 -> 52 | AL89: ='Pob x Genero'!AM89+'Pob x Genero'!BZ89 -> 57 | AM89: ='Pob x Genero'!AN89+'Pob x Genero'!CA89 -> 28 | AN89: ='Pob x Genero'!AO89+'Pob x Genero'!CB89 -> 24 | AO89: ='Pob x Genero'!AP89+'Pob x Genero'!CC89 -> 0 | AP89: ='Pob x Genero'!AQ89+'Pob x Genero'!CD89 -> 3 | AQ89: ='Pob x Genero'!AR89+'Pob x Genero'!CE89 -> 9 | AR89: ='Pob x Genero'!AS89+'Pob x Genero'!CF89 -> 17 | AS89: ='Pob x Genero'!AT89 -> 899 | AT89: =SUM('Pob x Genero'!BE89:BI89) -> 64 | AU89: =SUM('Pob x Genero'!BJ89:BN89) -> 77 | AV89: =SUM('Pob x Genero'!BO89:BT89) -> 378 | AW89: ='Pob x Genero'!CG89 -> 34 | AZ89: 1,782 | BA89: 207 | BB89: 189 | BC89: 354 | BD89: 715 | BE89: 317
A90: 040518 | B90: AREQUIPA | C90: AREQUIPA | D90: CAYLLOMA | E90: TUTI | F90: 818 | G90: ='Pob x Genero'!H90+'Pob x Genero'!AU90 -> 10 | H90: ='Pob x Genero'!I90+'Pob x Genero'!AV90 -> 9 | I90: ='Pob x Genero'!J90+'Pob x Genero'!AW90 -> 6 | J90: ='Pob x Genero'!K90+'Pob x Genero'!AX90 -> 10 | K90: ='Pob x Genero'!L90+'Pob x Genero'!AY90 -> 5 | L90: ='Pob x Genero'!M90+'Pob x Genero'!AZ90 -> 7 | M90: ='Pob x Genero'!N90+'Pob x Genero'!BA90 -> 14 | N90: ='Pob x Genero'!O90+'Pob x Genero'!BB90 -> 13 | O90: ='Pob x Genero'!P90+'Pob x Genero'!BC90 -> 6 | P90: ='Pob x Genero'!Q90+'Pob x Genero'!BD90 -> 9 | Q90: ='Pob x Genero'!R90+'Pob x Genero'!BE90 -> 12 | R90: ='Pob x Genero'!S90+'Pob x Genero'!BF90 -> 12 | S90: ='Pob x Genero'!T90+'Pob x Genero'!BG90 -> 11 | T90: ='Pob x Genero'!U90+'Pob x Genero'!BH90 -> 6 | U90: ='Pob x Genero'!V90+'Pob x Genero'!BI90 -> 9 | V90: ='Pob x Genero'!W90+'Pob x Genero'!BJ90 -> 10 | W90: ='Pob x Genero'!X90+'Pob x Genero'!BK90 -> 19 | X90: ='Pob x Genero'!Y90+'Pob x Genero'!BL90 -> 12 | Y90: ='Pob x Genero'!Z90+'Pob x Genero'!BM90 -> 15 | Z90: ='Pob x Genero'!AA90+'Pob x Genero'!BN90 -> 19 | AA90: ='Pob x Genero'!AB90+'Pob x Genero'!BO90 -> 67 | AB90: ='Pob x Genero'!AC90+'Pob x Genero'!BP90 -> 63 | AC90: ='Pob x Genero'!AD90+'Pob x Genero'!BQ90 -> 62 | AD90: ='Pob x Genero'!AE90+'Pob x Genero'!BR90 -> 65 | AE90: ='Pob x Genero'!AF90+'Pob x Genero'!BS90 -> 64 | AF90: ='Pob x Genero'!AG90+'Pob x Genero'!BT90 -> 54 | AG90: ='Pob x Genero'!AH90+'Pob x Genero'!BU90 -> 42 | AH90: ='Pob x Genero'!AI90+'Pob x Genero'!BV90 -> 41 | AI90: ='Pob x Genero'!AJ90+'Pob x Genero'!BW90 -> 35 | AJ90: ='Pob x Genero'!AK90+'Pob x Genero'!BX90 -> 27 | AK90: ='Pob x Genero'!AL90+'Pob x Genero'!BY90 -> 36 | AL90: ='Pob x Genero'!AM90+'Pob x Genero'!BZ90 -> 24 | AM90: ='Pob x Genero'!AN90+'Pob x Genero'!CA90 -> 12 | AN90: ='Pob x Genero'!AO90+'Pob x Genero'!CB90 -> 12 | AO90: ='Pob x Genero'!AP90+'Pob x Genero'!CC90 -> 0 | AP90: ='Pob x Genero'!AQ90+'Pob x Genero'!CD90 -> 4 | AQ90: ='Pob x Genero'!AR90+'Pob x Genero'!CE90 -> 6 | AR90: ='Pob x Genero'!AS90+'Pob x Genero'!CF90 -> 15 | AS90: ='Pob x Genero'!AT90 -> 416 | AT90: =SUM('Pob x Genero'!BE90:BI90) -> 25 | AU90: =SUM('Pob x Genero'!BJ90:BN90) -> 30 | AV90: =SUM('Pob x Genero'!BO90:BT90) -> 191 | AW90: ='Pob x Genero'!CG90 -> 21 | AZ90: 818 | BA90: 113 | BB90: 67 | BC90: 164 | BD90: 328 | BE90: 146
A91: 040519 | B91: AREQUIPA | C91: AREQUIPA | D91: CAYLLOMA | E91: YANQUE | F91: 2,607 | G91: ='Pob x Genero'!H91+'Pob x Genero'!AU91 -> 30 | H91: ='Pob x Genero'!I91+'Pob x Genero'!AV91 -> 25 | I91: ='Pob x Genero'!J91+'Pob x Genero'!AW91 -> 25 | J91: ='Pob x Genero'!K91+'Pob x Genero'!AX91 -> 39 | K91: ='Pob x Genero'!L91+'Pob x Genero'!AY91 -> 24 | L91: ='Pob x Genero'!M91+'Pob x Genero'!AZ91 -> 23 | M91: ='Pob x Genero'!N91+'Pob x Genero'!BA91 -> 33 | N91: ='Pob x Genero'!O91+'Pob x Genero'!BB91 -> 32 | O91: ='Pob x Genero'!P91+'Pob x Genero'!BC91 -> 25 | P91: ='Pob x Genero'!Q91+'Pob x Genero'!BD91 -> 30 | Q91: ='Pob x Genero'!R91+'Pob x Genero'!BE91 -> 35 | R91: ='Pob x Genero'!S91+'Pob x Genero'!BF91 -> 27 | S91: ='Pob x Genero'!T91+'Pob x Genero'!BG91 -> 39 | T91: ='Pob x Genero'!U91+'Pob x Genero'!BH91 -> 33 | U91: ='Pob x Genero'!V91+'Pob x Genero'!BI91 -> 27 | V91: ='Pob x Genero'!W91+'Pob x Genero'!BJ91 -> 27 | W91: ='Pob x Genero'!X91+'Pob x Genero'!BK91 -> 34 | X91: ='Pob x Genero'!Y91+'Pob x Genero'!BL91 -> 45 | Y91: ='Pob x Genero'!Z91+'Pob x Genero'!BM91 -> 41 | Z91: ='Pob x Genero'!AA91+'Pob x Genero'!BN91 -> 43 | AA91: ='Pob x Genero'!AB91+'Pob x Genero'!BO91 -> 200 | AB91: ='Pob x Genero'!AC91+'Pob x Genero'!BP91 -> 239 | AC91: ='Pob x Genero'!AD91+'Pob x Genero'!BQ91 -> 227 | AD91: ='Pob x Genero'!AE91+'Pob x Genero'!BR91 -> 198 | AE91: ='Pob x Genero'!AF91+'Pob x Genero'!BS91 -> 193 | AF91: ='Pob x Genero'!AG91+'Pob x Genero'!BT91 -> 183 | AG91: ='Pob x Genero'!AH91+'Pob x Genero'!BU91 -> 143 | AH91: ='Pob x Genero'!AI91+'Pob x Genero'!BV91 -> 131 | AI91: ='Pob x Genero'!AJ91+'Pob x Genero'!BW91 -> 119 | AJ91: ='Pob x Genero'!AK91+'Pob x Genero'!BX91 -> 105 | AK91: ='Pob x Genero'!AL91+'Pob x Genero'!BY91 -> 96 | AL91: ='Pob x Genero'!AM91+'Pob x Genero'!BZ91 -> 53 | AM91: ='Pob x Genero'!AN91+'Pob x Genero'!CA91 -> 42 | AN91: ='Pob x Genero'!AO91+'Pob x Genero'!CB91 -> 41 | AO91: ='Pob x Genero'!AP91+'Pob x Genero'!CC91 -> 1 | AP91: ='Pob x Genero'!AQ91+'Pob x Genero'!CD91 -> 18 | AQ91: ='Pob x Genero'!AR91+'Pob x Genero'!CE91 -> 12 | AR91: ='Pob x Genero'!AS91+'Pob x Genero'!CF91 -> 38 | AS91: ='Pob x Genero'!AT91 -> 1,318 | AT91: =SUM('Pob x Genero'!BE91:BI91) -> 87 | AU91: =SUM('Pob x Genero'!BJ91:BN91) -> 85 | AV91: =SUM('Pob x Genero'!BO91:BT91) -> 621 | AW91: ='Pob x Genero'!CG91 -> 80 | AZ91: 2,607 | BA91: 348 | BB91: 205 | BC91: 523 | BD91: 1,075 | BE91: 456
A92: 040520 | B92: AREQUIPA | C92: AREQUIPA | D92: CAYLLOMA | E92: MAJES | F92: 76,440 | G92: ='Pob x Genero'!H92+'Pob x Genero'!AU92 -> 1,062 | H92: ='Pob x Genero'!I92+'Pob x Genero'!AV92 -> 1,182 | I92: ='Pob x Genero'!J92+'Pob x Genero'!AW92 -> 1,219 | J92: ='Pob x Genero'!K92+'Pob x Genero'!AX92 -> 1,311 | K92: ='Pob x Genero'!L92+'Pob x Genero'!AY92 -> 1,326 | L92: ='Pob x Genero'!M92+'Pob x Genero'!AZ92 -> 1,292 | M92: ='Pob x Genero'!N92+'Pob x Genero'!BA92 -> 1,326 | N92: ='Pob x Genero'!O92+'Pob x Genero'!BB92 -> 1,432 | O92: ='Pob x Genero'!P92+'Pob x Genero'!BC92 -> 1,241 | P92: ='Pob x Genero'!Q92+'Pob x Genero'!BD92 -> 1,249 | Q92: ='Pob x Genero'!R92+'Pob x Genero'!BE92 -> 1,197 | R92: ='Pob x Genero'!S92+'Pob x Genero'!BF92 -> 1,261 | S92: ='Pob x Genero'!T92+'Pob x Genero'!BG92 -> 1,255 | T92: ='Pob x Genero'!U92+'Pob x Genero'!BH92 -> 1,251 | U92: ='Pob x Genero'!V92+'Pob x Genero'!BI92 -> 1,211 | V92: ='Pob x Genero'!W92+'Pob x Genero'!BJ92 -> 1,053 | W92: ='Pob x Genero'!X92+'Pob x Genero'!BK92 -> 1,247 | X92: ='Pob x Genero'!Y92+'Pob x Genero'!BL92 -> 1,216 | Y92: ='Pob x Genero'!Z92+'Pob x Genero'!BM92 -> 1,187 | Z92: ='Pob x Genero'!AA92+'Pob x Genero'!BN92 -> 1,132 | AA92: ='Pob x Genero'!AB92+'Pob x Genero'!BO92 -> 5,593 | AB92: ='Pob x Genero'!AC92+'Pob x Genero'!BP92 -> 6,645 | AC92: ='Pob x Genero'!AD92+'Pob x Genero'!BQ92 -> 6,774 | AD92: ='Pob x Genero'!AE92+'Pob x Genero'!BR92 -> 6,736 | AE92: ='Pob x Genero'!AF92+'Pob x Genero'!BS92 -> 5,958 | AF92: ='Pob x Genero'!AG92+'Pob x Genero'!BT92 -> 5,300 | AG92: ='Pob x Genero'!AH92+'Pob x Genero'!BU92 -> 4,193 | AH92: ='Pob x Genero'!AI92+'Pob x Genero'!BV92 -> 3,355 | AI92: ='Pob x Genero'!AJ92+'Pob x Genero'!BW92 -> 2,507 | AJ92: ='Pob x Genero'!AK92+'Pob x Genero'!BX92 -> 1,838 | AK92: ='Pob x Genero'!AL92+'Pob x Genero'!BY92 -> 1,298 | AL92: ='Pob x Genero'!AM92+'Pob x Genero'!BZ92 -> 836 | AM92: ='Pob x Genero'!AN92+'Pob x Genero'!CA92 -> 428 | AN92: ='Pob x Genero'!AO92+'Pob x Genero'!CB92 -> 329 | AO92: ='Pob x Genero'!AP92+'Pob x Genero'!CC92 -> 76 | AP92: ='Pob x Genero'!AQ92+'Pob x Genero'!CD92 -> 546 | AQ92: ='Pob x Genero'!AR92+'Pob x Genero'!CE92 -> 516 | AR92: ='Pob x Genero'!AS92+'Pob x Genero'!CF92 -> 1,643 | AS92: ='Pob x Genero'!AT92 -> 38,745 | AT92: =SUM('Pob x Genero'!BE92:BI92) -> 3,085 | AU92: =SUM('Pob x Genero'!BJ92:BN92) -> 2,878 | AV92: =SUM('Pob x Genero'!BO92:BT92) -> 18,981 | AW92: ='Pob x Genero'!CG92 -> 2,090 | AZ92: 76,440 | BA92: 15,098 | BB92: 7,233 | BC92: 14,557 | BD92: 32,316 | BE92: 7,236
A93: 040601 | B93: AREQUIPA | C93: AREQUIPA | D93: CONDESUYOS | E93: CHUQUIBAMBA | F93: 3,282 | G93: ='Pob x Genero'!H93+'Pob x Genero'!AU93 -> 38 | H93: ='Pob x Genero'!I93+'Pob x Genero'!AV93 -> 32 | I93: ='Pob x Genero'!J93+'Pob x Genero'!AW93 -> 36 | J93: ='Pob x Genero'!K93+'Pob x Genero'!AX93 -> 42 | K93: ='Pob x Genero'!L93+'Pob x Genero'!AY93 -> 42 | L93: ='Pob x Genero'!M93+'Pob x Genero'!AZ93 -> 57 | M93: ='Pob x Genero'!N93+'Pob x Genero'!BA93 -> 46 | N93: ='Pob x Genero'!O93+'Pob x Genero'!BB93 -> 51 | O93: ='Pob x Genero'!P93+'Pob x Genero'!BC93 -> 55 | P93: ='Pob x Genero'!Q93+'Pob x Genero'!BD93 -> 59 | Q93: ='Pob x Genero'!R93+'Pob x Genero'!BE93 -> 54 | R93: ='Pob x Genero'!S93+'Pob x Genero'!BF93 -> 57 | S93: ='Pob x Genero'!T93+'Pob x Genero'!BG93 -> 65 | T93: ='Pob x Genero'!U93+'Pob x Genero'!BH93 -> 51 | U93: ='Pob x Genero'!V93+'Pob x Genero'!BI93 -> 64 | V93: ='Pob x Genero'!W93+'Pob x Genero'!BJ93 -> 70 | W93: ='Pob x Genero'!X93+'Pob x Genero'!BK93 -> 58 | X93: ='Pob x Genero'!Y93+'Pob x Genero'!BL93 -> 61 | Y93: ='Pob x Genero'!Z93+'Pob x Genero'!BM93 -> 58 | Z93: ='Pob x Genero'!AA93+'Pob x Genero'!BN93 -> 48 | AA93: ='Pob x Genero'!AB93+'Pob x Genero'!BO93 -> 253 | AB93: ='Pob x Genero'!AC93+'Pob x Genero'!BP93 -> 250 | AC93: ='Pob x Genero'!AD93+'Pob x Genero'!BQ93 -> 211 | AD93: ='Pob x Genero'!AE93+'Pob x Genero'!BR93 -> 177 | AE93: ='Pob x Genero'!AF93+'Pob x Genero'!BS93 -> 209 | AF93: ='Pob x Genero'!AG93+'Pob x Genero'!BT93 -> 193 | AG93: ='Pob x Genero'!AH93+'Pob x Genero'!BU93 -> 163 | AH93: ='Pob x Genero'!AI93+'Pob x Genero'!BV93 -> 159 | AI93: ='Pob x Genero'!AJ93+'Pob x Genero'!BW93 -> 129 | AJ93: ='Pob x Genero'!AK93+'Pob x Genero'!BX93 -> 120 | AK93: ='Pob x Genero'!AL93+'Pob x Genero'!BY93 -> 125 | AL93: ='Pob x Genero'!AM93+'Pob x Genero'!BZ93 -> 84 | AM93: ='Pob x Genero'!AN93+'Pob x Genero'!CA93 -> 73 | AN93: ='Pob x Genero'!AO93+'Pob x Genero'!CB93 -> 92 | AO93: ='Pob x Genero'!AP93+'Pob x Genero'!CC93 -> 2 | AP93: ='Pob x Genero'!AQ93+'Pob x Genero'!CD93 -> 14 | AQ93: ='Pob x Genero'!AR93+'Pob x Genero'!CE93 -> 24 | AR93: ='Pob x Genero'!AS93+'Pob x Genero'!CF93 -> 53 | AS93: ='Pob x Genero'!AT93 -> 1,678 | AT93: =SUM('Pob x Genero'!BE93:BI93) -> 151 | AU93: =SUM('Pob x Genero'!BJ93:BN93) -> 132 | AV93: =SUM('Pob x Genero'!BO93:BT93) -> 665 | AW93: ='Pob x Genero'!CG93 -> 61 | AZ93: 3,282 | BA93: 569 | BB93: 369 | BC93: 609 | BD93: 1,112 | BE93: 623
A94: 040602 | B94: AREQUIPA | C94: AREQUIPA | D94: CONDESUYOS | E94: ANDARAY | F94: 668 | G94: ='Pob x Genero'!H94+'Pob x Genero'!AU94 -> 8 | H94: ='Pob x Genero'!I94+'Pob x Genero'!AV94 -> 6 | I94: ='Pob x Genero'!J94+'Pob x Genero'!AW94 -> 3 | J94: ='Pob x Genero'!K94+'Pob x Genero'!AX94 -> 4 | K94: ='Pob x Genero'!L94+'Pob x Genero'!AY94 -> 4 | L94: ='Pob x Genero'!M94+'Pob x Genero'!AZ94 -> 2 | M94: ='Pob x Genero'!N94+'Pob x Genero'!BA94 -> 5 | N94: ='Pob x Genero'!O94+'Pob x Genero'!BB94 -> 2 | O94: ='Pob x Genero'!P94+'Pob x Genero'!BC94 -> 6 | P94: ='Pob x Genero'!Q94+'Pob x Genero'!BD94 -> 8 | Q94: ='Pob x Genero'!R94+'Pob x Genero'!BE94 -> 6 | R94: ='Pob x Genero'!S94+'Pob x Genero'!BF94 -> 6 | S94: ='Pob x Genero'!T94+'Pob x Genero'!BG94 -> 5 | T94: ='Pob x Genero'!U94+'Pob x Genero'!BH94 -> 7 | U94: ='Pob x Genero'!V94+'Pob x Genero'!BI94 -> 3 | V94: ='Pob x Genero'!W94+'Pob x Genero'!BJ94 -> 8 | W94: ='Pob x Genero'!X94+'Pob x Genero'!BK94 -> 5 | X94: ='Pob x Genero'!Y94+'Pob x Genero'!BL94 -> 10 | Y94: ='Pob x Genero'!Z94+'Pob x Genero'!BM94 -> 5 | Z94: ='Pob x Genero'!AA94+'Pob x Genero'!BN94 -> 10 | AA94: ='Pob x Genero'!AB94+'Pob x Genero'!BO94 -> 35 | AB94: ='Pob x Genero'!AC94+'Pob x Genero'!BP94 -> 62 | AC94: ='Pob x Genero'!AD94+'Pob x Genero'!BQ94 -> 42 | AD94: ='Pob x Genero'!AE94+'Pob x Genero'!BR94 -> 60 | AE94: ='Pob x Genero'!AF94+'Pob x Genero'!BS94 -> 37 | AF94: ='Pob x Genero'!AG94+'Pob x Genero'!BT94 -> 53 | AG94: ='Pob x Genero'!AH94+'Pob x Genero'!BU94 -> 42 | AH94: ='Pob x Genero'!AI94+'Pob x Genero'!BV94 -> 37 | AI94: ='Pob x Genero'!AJ94+'Pob x Genero'!BW94 -> 44 | AJ94: ='Pob x Genero'!AK94+'Pob x Genero'!BX94 -> 31 | AK94: ='Pob x Genero'!AL94+'Pob x Genero'!BY94 -> 41 | AL94: ='Pob x Genero'!AM94+'Pob x Genero'!BZ94 -> 21 | AM94: ='Pob x Genero'!AN94+'Pob x Genero'!CA94 -> 19 | AN94: ='Pob x Genero'!AO94+'Pob x Genero'!CB94 -> 31 | AO94: ='Pob x Genero'!AP94+'Pob x Genero'!CC94 -> 0 | AP94: ='Pob x Genero'!AQ94+'Pob x Genero'!CD94 -> 4 | AQ94: ='Pob x Genero'!AR94+'Pob x Genero'!CE94 -> 4 | AR94: ='Pob x Genero'!AS94+'Pob x Genero'!CF94 -> 11 | AS94: ='Pob x Genero'!AT94 -> 335 | AT94: =SUM('Pob x Genero'!BE94:BI94) -> 14 | AU94: =SUM('Pob x Genero'!BJ94:BN94) -> 17 | AV94: =SUM('Pob x Genero'!BO94:BT94) -> 143 | AW94: ='Pob x Genero'!CG94 -> 8 | AZ94: 668 | BA94: 60 | BB94: 38 | BC94: 112 | BD94: 271 | BE94: 187
A95: 040603 | B95: AREQUIPA | C95: AREQUIPA | D95: CONDESUYOS | E95: CAYARANI | F95: 3,168 | G95: ='Pob x Genero'!H95+'Pob x Genero'!AU95 -> 36 | H95: ='Pob x Genero'!I95+'Pob x Genero'!AV95 -> 31 | I95: ='Pob x Genero'!J95+'Pob x Genero'!AW95 -> 44 | J95: ='Pob x Genero'!K95+'Pob x Genero'!AX95 -> 34 | K95: ='Pob x Genero'!L95+'Pob x Genero'!AY95 -> 38 | L95: ='Pob x Genero'!M95+'Pob x Genero'!AZ95 -> 47 | M95: ='Pob x Genero'!N95+'Pob x Genero'!BA95 -> 52 | N95: ='Pob x Genero'!O95+'Pob x Genero'!BB95 -> 53 | O95: ='Pob x Genero'!P95+'Pob x Genero'!BC95 -> 55 | P95: ='Pob x Genero'!Q95+'Pob x Genero'!BD95 -> 54 | Q95: ='Pob x Genero'!R95+'Pob x Genero'!BE95 -> 56 | R95: ='Pob x Genero'!S95+'Pob x Genero'!BF95 -> 59 | S95: ='Pob x Genero'!T95+'Pob x Genero'!BG95 -> 53 | T95: ='Pob x Genero'!U95+'Pob x Genero'!BH95 -> 72 | U95: ='Pob x Genero'!V95+'Pob x Genero'!BI95 -> 59 | V95: ='Pob x Genero'!W95+'Pob x Genero'!BJ95 -> 82 | W95: ='Pob x Genero'!X95+'Pob x Genero'!BK95 -> 76 | X95: ='Pob x Genero'!Y95+'Pob x Genero'!BL95 -> 70 | Y95: ='Pob x Genero'!Z95+'Pob x Genero'!BM95 -> 67 | Z95: ='Pob x Genero'!AA95+'Pob x Genero'!BN95 -> 68 | AA95: ='Pob x Genero'!AB95+'Pob x Genero'!BO95 -> 316 | AB95: ='Pob x Genero'!AC95+'Pob x Genero'!BP95 -> 277 | AC95: ='Pob x Genero'!AD95+'Pob x Genero'!BQ95 -> 243 | AD95: ='Pob x Genero'!AE95+'Pob x Genero'!BR95 -> 209 | AE95: ='Pob x Genero'!AF95+'Pob x Genero'!BS95 -> 178 | AF95: ='Pob x Genero'!AG95+'Pob x Genero'!BT95 -> 188 | AG95: ='Pob x Genero'!AH95+'Pob x Genero'!BU95 -> 134 | AH95: ='Pob x Genero'!AI95+'Pob x Genero'!BV95 -> 166 | AI95: ='Pob x Genero'!AJ95+'Pob x Genero'!BW95 -> 105 | AJ95: ='Pob x Genero'!AK95+'Pob x Genero'!BX95 -> 92 | AK95: ='Pob x Genero'!AL95+'Pob x Genero'!BY95 -> 54 | AL95: ='Pob x Genero'!AM95+'Pob x Genero'!BZ95 -> 34 | AM95: ='Pob x Genero'!AN95+'Pob x Genero'!CA95 -> 32 | AN95: ='Pob x Genero'!AO95+'Pob x Genero'!CB95 -> 34 | AO95: ='Pob x Genero'!AP95+'Pob x Genero'!CC95 -> 3 | AP95: ='Pob x Genero'!AQ95+'Pob x Genero'!CD95 -> 21 | AQ95: ='Pob x Genero'!AR95+'Pob x Genero'!CE95 -> 15 | AR95: ='Pob x Genero'!AS95+'Pob x Genero'!CF95 -> 76 | AS95: ='Pob x Genero'!AT95 -> 1,591 | AT95: =SUM('Pob x Genero'!BE95:BI95) -> 156 | AU95: =SUM('Pob x Genero'!BJ95:BN95) -> 192 | AV95: =SUM('Pob x Genero'!BO95:BT95) -> 680 | AW95: ='Pob x Genero'!CG95 -> 76 | AZ95: 3,168 | BA95: 559 | BB95: 412 | BC95: 728 | BD95: 1,118 | BE95: 351
A96: 040604 | B96: AREQUIPA | C96: AREQUIPA | D96: CONDESUYOS | E96: CHICHAS | F96: 677 | G96: ='Pob x Genero'!H96+'Pob x Genero'!AU96 -> 8 | H96: ='Pob x Genero'!I96+'Pob x Genero'!AV96 -> 7 | I96: ='Pob x Genero'!J96+'Pob x Genero'!AW96 -> 5 | J96: ='Pob x Genero'!K96+'Pob x Genero'!AX96 -> 3 | K96: ='Pob x Genero'!L96+'Pob x Genero'!AY96 -> 1 | L96: ='Pob x Genero'!M96+'Pob x Genero'!AZ96 -> 6 | M96: ='Pob x Genero'!N96+'Pob x Genero'!BA96 -> 7 | N96: ='Pob x Genero'!O96+'Pob x Genero'!BB96 -> 6 | O96: ='Pob x Genero'!P96+'Pob x Genero'!BC96 -> 6 | P96: ='Pob x Genero'!Q96+'Pob x Genero'!BD96 -> 6 | Q96: ='Pob x Genero'!R96+'Pob x Genero'!BE96 -> 9 | R96: ='Pob x Genero'!S96+'Pob x Genero'!BF96 -> 9 | S96: ='Pob x Genero'!T96+'Pob x Genero'!BG96 -> 8 | T96: ='Pob x Genero'!U96+'Pob x Genero'!BH96 -> 9 | U96: ='Pob x Genero'!V96+'Pob x Genero'!BI96 -> 6 | V96: ='Pob x Genero'!W96+'Pob x Genero'!BJ96 -> 8 | W96: ='Pob x Genero'!X96+'Pob x Genero'!BK96 -> 9 | X96: ='Pob x Genero'!Y96+'Pob x Genero'!BL96 -> 12 | Y96: ='Pob x Genero'!Z96+'Pob x Genero'!BM96 -> 6 | Z96: ='Pob x Genero'!AA96+'Pob x Genero'!BN96 -> 8 | AA96: ='Pob x Genero'!AB96+'Pob x Genero'!BO96 -> 30 | AB96: ='Pob x Genero'!AC96+'Pob x Genero'!BP96 -> 36 | AC96: ='Pob x Genero'!AD96+'Pob x Genero'!BQ96 -> 38 | AD96: ='Pob x Genero'!AE96+'Pob x Genero'!BR96 -> 35 | AE96: ='Pob x Genero'!AF96+'Pob x Genero'!BS96 -> 32 | AF96: ='Pob x Genero'!AG96+'Pob x Genero'!BT96 -> 45 | AG96: ='Pob x Genero'!AH96+'Pob x Genero'!BU96 -> 55 | AH96: ='Pob x Genero'!AI96+'Pob x Genero'!BV96 -> 51 | AI96: ='Pob x Genero'!AJ96+'Pob x Genero'!BW96 -> 37 | AJ96: ='Pob x Genero'!AK96+'Pob x Genero'!BX96 -> 45 | AK96: ='Pob x Genero'!AL96+'Pob x Genero'!BY96 -> 26 | AL96: ='Pob x Genero'!AM96+'Pob x Genero'!BZ96 -> 35 | AM96: ='Pob x Genero'!AN96+'Pob x Genero'!CA96 -> 28 | AN96: ='Pob x Genero'!AO96+'Pob x Genero'!CB96 -> 45 | AO96: ='Pob x Genero'!AP96+'Pob x Genero'!CC96 -> 0 | AP96: ='Pob x Genero'!AQ96+'Pob x Genero'!CD96 -> 3 | AQ96: ='Pob x Genero'!AR96+'Pob x Genero'!CE96 -> 5 | AR96: ='Pob x Genero'!AS96+'Pob x Genero'!CF96 -> 13 | AS96: ='Pob x Genero'!AT96 -> 338 | AT96: =SUM('Pob x Genero'!BE96:BI96) -> 22 | AU96: =SUM('Pob x Genero'!BJ96:BN96) -> 22 | AV96: =SUM('Pob x Genero'!BO96:BT96) -> 104 | AW96: ='Pob x Genero'!CG96 -> 15 | AZ96: 677 | BA96: 73 | BB96: 52 | BC96: 80 | BD96: 256 | BE96: 216
A97: 040605 | B97: AREQUIPA | C97: AREQUIPA | D97: CONDESUYOS | E97: IRAY | F97: 636 | G97: ='Pob x Genero'!H97+'Pob x Genero'!AU97 -> 9 | H97: ='Pob x Genero'!I97+'Pob x Genero'!AV97 -> 5 | I97: ='Pob x Genero'!J97+'Pob x Genero'!AW97 -> 9 | J97: ='Pob x Genero'!K97+'Pob x Genero'!AX97 -> 6 | K97: ='Pob x Genero'!L97+'Pob x Genero'!AY97 -> 6 | L97: ='Pob x Genero'!M97+'Pob x Genero'!AZ97 -> 2 | M97: ='Pob x Genero'!N97+'Pob x Genero'!BA97 -> 8 | N97: ='Pob x Genero'!O97+'Pob x Genero'!BB97 -> 6 | O97: ='Pob x Genero'!P97+'Pob x Genero'!BC97 -> 8 | P97: ='Pob x Genero'!Q97+'Pob x Genero'!BD97 -> 5 | Q97: ='Pob x Genero'!R97+'Pob x Genero'!BE97 -> 8 | R97: ='Pob x Genero'!S97+'Pob x Genero'!BF97 -> 9 | S97: ='Pob x Genero'!T97+'Pob x Genero'!BG97 -> 9 | T97: ='Pob x Genero'!U97+'Pob x Genero'!BH97 -> 10 | U97: ='Pob x Genero'!V97+'Pob x Genero'!BI97 -> 4 | V97: ='Pob x Genero'!W97+'Pob x Genero'!BJ97 -> 4 | W97: ='Pob x Genero'!X97+'Pob x Genero'!BK97 -> 10 | X97: ='Pob x Genero'!Y97+'Pob x Genero'!BL97 -> 12 | Y97: ='Pob x Genero'!Z97+'Pob x Genero'!BM97 -> 6 | Z97: ='Pob x Genero'!AA97+'Pob x Genero'!BN97 -> 3 | AA97: ='Pob x Genero'!AB97+'Pob x Genero'!BO97 -> 37 | AB97: ='Pob x Genero'!AC97+'Pob x Genero'!BP97 -> 41 | AC97: ='Pob x Genero'!AD97+'Pob x Genero'!BQ97 -> 38 | AD97: ='Pob x Genero'!AE97+'Pob x Genero'!BR97 -> 31 | AE97: ='Pob x Genero'!AF97+'Pob x Genero'!BS97 -> 38 | AF97: ='Pob x Genero'!AG97+'Pob x Genero'!BT97 -> 37 | AG97: ='Pob x Genero'!AH97+'Pob x Genero'!BU97 -> 49 | AH97: ='Pob x Genero'!AI97+'Pob x Genero'!BV97 -> 41 | AI97: ='Pob x Genero'!AJ97+'Pob x Genero'!BW97 -> 39 | AJ97: ='Pob x Genero'!AK97+'Pob x Genero'!BX97 -> 35 | AK97: ='Pob x Genero'!AL97+'Pob x Genero'!BY97 -> 24 | AL97: ='Pob x Genero'!AM97+'Pob x Genero'!BZ97 -> 28 | AM97: ='Pob x Genero'!AN97+'Pob x Genero'!CA97 -> 24 | AN97: ='Pob x Genero'!AO97+'Pob x Genero'!CB97 -> 35 | AO97: ='Pob x Genero'!AP97+'Pob x Genero'!CC97 -> 0 | AP97: ='Pob x Genero'!AQ97+'Pob x Genero'!CD97 -> 1 | AQ97: ='Pob x Genero'!AR97+'Pob x Genero'!CE97 -> 8 | AR97: ='Pob x Genero'!AS97+'Pob x Genero'!CF97 -> 15 | AS97: ='Pob x Genero'!AT97 -> 325 | AT97: =SUM('Pob x Genero'!BE97:BI97) -> 19 | AU97: =SUM('Pob x Genero'!BJ97:BN97) -> 18 | AV97: =SUM('Pob x Genero'!BO97:BT97) -> 112 | AW97: ='Pob x Genero'!CG97 -> 17 | AZ97: 636 | BA97: 81 | BB97: 49 | BC97: 87 | BD97: 234 | BE97: 185
A98: 040606 | B98: AREQUIPA | C98: AREQUIPA | D98: CONDESUYOS | E98: RIO GRANDE | F98: 3,571 | G98: ='Pob x Genero'!H98+'Pob x Genero'!AU98 -> 49 | H98: ='Pob x Genero'!I98+'Pob x Genero'!AV98 -> 50 | I98: ='Pob x Genero'!J98+'Pob x Genero'!AW98 -> 33 | J98: ='Pob x Genero'!K98+'Pob x Genero'!AX98 -> 48 | K98: ='Pob x Genero'!L98+'Pob x Genero'!AY98 -> 56 | L98: ='Pob x Genero'!M98+'Pob x Genero'!AZ98 -> 70 | M98: ='Pob x Genero'!N98+'Pob x Genero'!BA98 -> 54 | N98: ='Pob x Genero'!O98+'Pob x Genero'!BB98 -> 55 | O98: ='Pob x Genero'!P98+'Pob x Genero'!BC98 -> 45 | P98: ='Pob x Genero'!Q98+'Pob x Genero'!BD98 -> 42 | Q98: ='Pob x Genero'!R98+'Pob x Genero'!BE98 -> 43 | R98: ='Pob x Genero'!S98+'Pob x Genero'!BF98 -> 43 | S98: ='Pob x Genero'!T98+'Pob x Genero'!BG98 -> 45 | T98: ='Pob x Genero'!U98+'Pob x Genero'!BH98 -> 45 | U98: ='Pob x Genero'!V98+'Pob x Genero'!BI98 -> 49 | V98: ='Pob x Genero'!W98+'Pob x Genero'!BJ98 -> 52 | W98: ='Pob x Genero'!X98+'Pob x Genero'!BK98 -> 76 | X98: ='Pob x Genero'!Y98+'Pob x Genero'!BL98 -> 63 | Y98: ='Pob x Genero'!Z98+'Pob x Genero'!BM98 -> 34 | Z98: ='Pob x Genero'!AA98+'Pob x Genero'!BN98 -> 44 | AA98: ='Pob x Genero'!AB98+'Pob x Genero'!BO98 -> 220 | AB98: ='Pob x Genero'!AC98+'Pob x Genero'!BP98 -> 273 | AC98: ='Pob x Genero'!AD98+'Pob x Genero'!BQ98 -> 236 | AD98: ='Pob x Genero'!AE98+'Pob x Genero'!BR98 -> 297 | AE98: ='Pob x Genero'!AF98+'Pob x Genero'!BS98 -> 273 | AF98: ='Pob x Genero'!AG98+'Pob x Genero'!BT98 -> 263 | AG98: ='Pob x Genero'!AH98+'Pob x Genero'!BU98 -> 231 | AH98: ='Pob x Genero'!AI98+'Pob x Genero'!BV98 -> 214 | AI98: ='Pob x Genero'!AJ98+'Pob x Genero'!BW98 -> 164 | AJ98: ='Pob x Genero'!AK98+'Pob x Genero'!BX98 -> 133 | AK98: ='Pob x Genero'!AL98+'Pob x Genero'!BY98 -> 91 | AL98: ='Pob x Genero'!AM98+'Pob x Genero'!BZ98 -> 70 | AM98: ='Pob x Genero'!AN98+'Pob x Genero'!CA98 -> 54 | AN98: ='Pob x Genero'!AO98+'Pob x Genero'!CB98 -> 56 | AO98: ='Pob x Genero'!AP98+'Pob x Genero'!CC98 -> 4 | AP98: ='Pob x Genero'!AQ98+'Pob x Genero'!CD98 -> 29 | AQ98: ='Pob x Genero'!AR98+'Pob x Genero'!CE98 -> 20 | AR98: ='Pob x Genero'!AS98+'Pob x Genero'!CF98 -> 67 | AS98: ='Pob x Genero'!AT98 -> 1,814 | AT98: =SUM('Pob x Genero'!BE98:BI98) -> 118 | AU98: =SUM('Pob x Genero'!BJ98:BN98) -> 134 | AV98: =SUM('Pob x Genero'!BO98:BT98) -> 785 | AW98: ='Pob x Genero'!CG98 -> 114 | AZ98: 3,571 | BA98: 588 | BB98: 330 | BC98: 571 | BD98: 1,514 | BE98: 568
A99: 040607 | B99: AREQUIPA | C99: AREQUIPA | D99: CONDESUYOS | E99: SALAMANCA | F99: 407 | G99: ='Pob x Genero'!H99+'Pob x Genero'!AU99 -> 7 | H99: ='Pob x Genero'!I99+'Pob x Genero'!AV99 -> 6 | I99: ='Pob x Genero'!J99+'Pob x Genero'!AW99 -> 4 | J99: ='Pob x Genero'!K99+'Pob x Genero'!AX99 -> 3 | K99: ='Pob x Genero'!L99+'Pob x Genero'!AY99 -> 4 | L99: ='Pob x Genero'!M99+'Pob x Genero'!AZ99 -> 6 | M99: ='Pob x Genero'!N99+'Pob x Genero'!BA99 -> 4 | N99: ='Pob x Genero'!O99+'Pob x Genero'!BB99 -> 3 | O99: ='Pob x Genero'!P99+'Pob x Genero'!BC99 -> 5 | P99: ='Pob x Genero'!Q99+'Pob x Genero'!BD99 -> 4 | Q99: ='Pob x Genero'!R99+'Pob x Genero'!BE99 -> 4 | R99: ='Pob x Genero'!S99+'Pob x Genero'!BF99 -> 6 | S99: ='Pob x Genero'!T99+'Pob x Genero'!BG99 -> 4 | T99: ='Pob x Genero'!U99+'Pob x Genero'!BH99 -> 2 | U99: ='Pob x Genero'!V99+'Pob x Genero'!BI99 -> 8 | V99: ='Pob x Genero'!W99+'Pob x Genero'!BJ99 -> 4 | W99: ='Pob x Genero'!X99+'Pob x Genero'!BK99 -> 6 | X99: ='Pob x Genero'!Y99+'Pob x Genero'!BL99 -> 7 | Y99: ='Pob x Genero'!Z99+'Pob x Genero'!BM99 -> 5 | Z99: ='Pob x Genero'!AA99+'Pob x Genero'!BN99 -> 4 | AA99: ='Pob x Genero'!AB99+'Pob x Genero'!BO99 -> 26 | AB99: ='Pob x Genero'!AC99+'Pob x Genero'!BP99 -> 22 | AC99: ='Pob x Genero'!AD99+'Pob x Genero'!BQ99 -> 22 | AD99: ='Pob x Genero'!AE99+'Pob x Genero'!BR99 -> 23 | AE99: ='Pob x Genero'!AF99+'Pob x Genero'!BS99 -> 22 | AF99: ='Pob x Genero'!AG99+'Pob x Genero'!BT99 -> 25 | AG99: ='Pob x Genero'!AH99+'Pob x Genero'!BU99 -> 27 | AH99: ='Pob x Genero'!AI99+'Pob x Genero'!BV99 -> 28 | AI99: ='Pob x Genero'!AJ99+'Pob x Genero'!BW99 -> 21 | AJ99: ='Pob x Genero'!AK99+'Pob x Genero'!BX99 -> 22 | AK99: ='Pob x Genero'!AL99+'Pob x Genero'!BY99 -> 19 | AL99: ='Pob x Genero'!AM99+'Pob x Genero'!BZ99 -> 20 | AM99: ='Pob x Genero'!AN99+'Pob x Genero'!CA99 -> 19 | AN99: ='Pob x Genero'!AO99+'Pob x Genero'!CB99 -> 15 | AO99: ='Pob x Genero'!AP99+'Pob x Genero'!CC99 -> 1 | AP99: ='Pob x Genero'!AQ99+'Pob x Genero'!CD99 -> 3 | AQ99: ='Pob x Genero'!AR99+'Pob x Genero'!CE99 -> 4 | AR99: ='Pob x Genero'!AS99+'Pob x Genero'!CF99 -> 9 | AS99: ='Pob x Genero'!AT99 -> 204 | AT99: =SUM('Pob x Genero'!BE99:BI99) -> 10 | AU99: =SUM('Pob x Genero'!BJ99:BN99) -> 12 | AV99: =SUM('Pob x Genero'!BO99:BT99) -> 62 | AW99: ='Pob x Genero'!CG99 -> 13 | AZ99: 407 | BA99: 56 | BB99: 31 | BC99: 57 | BD99: 147 | BE99: 116
A100: 040608 | B100: AREQUIPA | C100: AREQUIPA | D100: CONDESUYOS | E100: YANAQUIHUA | F100: 3,887 | G100: ='Pob x Genero'!H100+'Pob x Genero'!AU100 -> 56 | H100: ='Pob x Genero'!I100+'Pob x Genero'!AV100 -> 70 | I100: ='Pob x Genero'!J100+'Pob x Genero'!AW100 -> 46 | J100: ='Pob x Genero'!K100+'Pob x Genero'!AX100 -> 47 | K100: ='Pob x Genero'!L100+'Pob x Genero'!AY100 -> 34 | L100: ='Pob x Genero'!M100+'Pob x Genero'!AZ100 -> 33 | M100: ='Pob x Genero'!N100+'Pob x Genero'!BA100 -> 37 | N100: ='Pob x Genero'!O100+'Pob x Genero'!BB100 -> 33 | O100: ='Pob x Genero'!P100+'Pob x Genero'!BC100 -> 43 | P100: ='Pob x Genero'!Q100+'Pob x Genero'!BD100 -> 53 | Q100: ='Pob x Genero'!R100+'Pob x Genero'!BE100 -> 52 | R100: ='Pob x Genero'!S100+'Pob x Genero'!BF100 -> 59 | S100: ='Pob x Genero'!T100+'Pob x Genero'!BG100 -> 49 | T100: ='Pob x Genero'!U100+'Pob x Genero'!BH100 -> 39 | U100: ='Pob x Genero'!V100+'Pob x Genero'!BI100 -> 48 | V100: ='Pob x Genero'!W100+'Pob x Genero'!BJ100 -> 59 | W100: ='Pob x Genero'!X100+'Pob x Genero'!BK100 -> 62 | X100: ='Pob x Genero'!Y100+'Pob x Genero'!BL100 -> 79 | Y100: ='Pob x Genero'!Z100+'Pob x Genero'!BM100 -> 64 | Z100: ='Pob x Genero'!AA100+'Pob x Genero'!BN100 -> 42 | AA100: ='Pob x Genero'!AB100+'Pob x Genero'!BO100 -> 245 | AB100: ='Pob x Genero'!AC100+'Pob x Genero'!BP100 -> 343 | AC100: ='Pob x Genero'!AD100+'Pob x Genero'!BQ100 -> 280 | AD100: ='Pob x Genero'!AE100+'Pob x Genero'!BR100 -> 318 | AE100: ='Pob x Genero'!AF100+'Pob x Genero'!BS100 -> 313 | AF100: ='Pob x Genero'!AG100+'Pob x Genero'!BT100 -> 282 | AG100: ='Pob x Genero'!AH100+'Pob x Genero'!BU100 -> 239 | AH100: ='Pob x Genero'!AI100+'Pob x Genero'!BV100 -> 215 | AI100: ='Pob x Genero'!AJ100+'Pob x Genero'!BW100 -> 168 | AJ100: ='Pob x Genero'!AK100+'Pob x Genero'!BX100 -> 142 | AK100: ='Pob x Genero'!AL100+'Pob x Genero'!BY100 -> 92 | AL100: ='Pob x Genero'!AM100+'Pob x Genero'!BZ100 -> 77 | AM100: ='Pob x Genero'!AN100+'Pob x Genero'!CA100 -> 75 | AN100: ='Pob x Genero'!AO100+'Pob x Genero'!CB100 -> 93 | AO100: ='Pob x Genero'!AP100+'Pob x Genero'!CC100 -> 4 | AP100: ='Pob x Genero'!AQ100+'Pob x Genero'!CD100 -> 22 | AQ100: ='Pob x Genero'!AR100+'Pob x Genero'!CE100 -> 34 | AR100: ='Pob x Genero'!AS100+'Pob x Genero'!CF100 -> 78 | AS100: ='Pob x Genero'!AT100 -> 1,967 | AT100: =SUM('Pob x Genero'!BE100:BI100) -> 124 | AU100: =SUM('Pob x Genero'!BJ100:BN100) -> 174 | AV100: =SUM('Pob x Genero'!BO100:BT100) -> 842 | AW100: ='Pob x Genero'!CG100 -> 105 | AZ100: 3,887 | BA100: 563 | BB100: 336 | BC100: 694 | BD100: 1,647 | BE100: 647
A101: 040701 | B101: AREQUIPA | C101: AREQUIPA | D101: ISLAY | E101: MOLLENDO | F101: 26,815 | G101: ='Pob x Genero'!H101+'Pob x Genero'!AU101 -> 262 | H101: ='Pob x Genero'!I101+'Pob x Genero'!AV101 -> 291 | I101: ='Pob x Genero'!J101+'Pob x Genero'!AW101 -> 314 | J101: ='Pob x Genero'!K101+'Pob x Genero'!AX101 -> 308 | K101: ='Pob x Genero'!L101+'Pob x Genero'!AY101 -> 379 | L101: ='Pob x Genero'!M101+'Pob x Genero'!AZ101 -> 345 | M101: ='Pob x Genero'!N101+'Pob x Genero'!BA101 -> 381 | N101: ='Pob x Genero'!O101+'Pob x Genero'!BB101 -> 431 | O101: ='Pob x Genero'!P101+'Pob x Genero'!BC101 -> 390 | P101: ='Pob x Genero'!Q101+'Pob x Genero'!BD101 -> 400 | Q101: ='Pob x Genero'!R101+'Pob x Genero'!BE101 -> 370 | R101: ='Pob x Genero'!S101+'Pob x Genero'!BF101 -> 378 | S101: ='Pob x Genero'!T101+'Pob x Genero'!BG101 -> 396 | T101: ='Pob x Genero'!U101+'Pob x Genero'!BH101 -> 385 | U101: ='Pob x Genero'!V101+'Pob x Genero'!BI101 -> 391 | V101: ='Pob x Genero'!W101+'Pob x Genero'!BJ101 -> 369 | W101: ='Pob x Genero'!X101+'Pob x Genero'!BK101 -> 400 | X101: ='Pob x Genero'!Y101+'Pob x Genero'!BL101 -> 376 | Y101: ='Pob x Genero'!Z101+'Pob x Genero'!BM101 -> 381 | Z101: ='Pob x Genero'!AA101+'Pob x Genero'!BN101 -> 375 | AA101: ='Pob x Genero'!AB101+'Pob x Genero'!BO101 -> 1,896 | AB101: ='Pob x Genero'!AC101+'Pob x Genero'!BP101 -> 2,039 | AC101: ='Pob x Genero'!AD101+'Pob x Genero'!BQ101 -> 1,926 | AD101: ='Pob x Genero'!AE101+'Pob x Genero'!BR101 -> 1,875 | AE101: ='Pob x Genero'!AF101+'Pob x Genero'!BS101 -> 1,951 | AF101: ='Pob x Genero'!AG101+'Pob x Genero'!BT101 -> 1,933 | AG101: ='Pob x Genero'!AH101+'Pob x Genero'!BU101 -> 1,690 | AH101: ='Pob x Genero'!AI101+'Pob x Genero'!BV101 -> 1,482 | AI101: ='Pob x Genero'!AJ101+'Pob x Genero'!BW101 -> 1,263 | AJ101: ='Pob x Genero'!AK101+'Pob x Genero'!BX101 -> 1,069 | AK101: ='Pob x Genero'!AL101+'Pob x Genero'!BY101 -> 862 | AL101: ='Pob x Genero'!AM101+'Pob x Genero'!BZ101 -> 653 | AM101: ='Pob x Genero'!AN101+'Pob x Genero'!CA101 -> 464 | AN101: ='Pob x Genero'!AO101+'Pob x Genero'!CB101 -> 390 | AO101: ='Pob x Genero'!AP101+'Pob x Genero'!CC101 -> 19 | AP101: ='Pob x Genero'!AQ101+'Pob x Genero'!CD101 -> 131 | AQ101: ='Pob x Genero'!AR101+'Pob x Genero'!CE101 -> 131 | AR101: ='Pob x Genero'!AS101+'Pob x Genero'!CF101 -> 406 | AS101: ='Pob x Genero'!AT101 -> 13,590 | AT101: =SUM('Pob x Genero'!BE101:BI101) -> 974 | AU101: =SUM('Pob x Genero'!BJ101:BN101) -> 980 | AV101: =SUM('Pob x Genero'!BO101:BT101) -> 5,886 | AW101: ='Pob x Genero'!CG101 -> 577 | AZ101: 26,815 | BA101: 4,249 | BB101: 2,317 | BC101: 4,691 | BD101: 10,857 | BE101: 4,701
A102: 040702 | B102: AREQUIPA | C102: AREQUIPA | D102: ISLAY | E102: COCACHACRA | F102: 8,517 | G102: ='Pob x Genero'!H102+'Pob x Genero'!AU102 -> 104 | H102: ='Pob x Genero'!I102+'Pob x Genero'!AV102 -> 95 | I102: ='Pob x Genero'!J102+'Pob x Genero'!AW102 -> 94 | J102: ='Pob x Genero'!K102+'Pob x Genero'!AX102 -> 97 | K102: ='Pob x Genero'!L102+'Pob x Genero'!AY102 -> 114 | L102: ='Pob x Genero'!M102+'Pob x Genero'!AZ102 -> 107 | M102: ='Pob x Genero'!N102+'Pob x Genero'!BA102 -> 95 | N102: ='Pob x Genero'!O102+'Pob x Genero'!BB102 -> 112 | O102: ='Pob x Genero'!P102+'Pob x Genero'!BC102 -> 133 | P102: ='Pob x Genero'!Q102+'Pob x Genero'!BD102 -> 98 | Q102: ='Pob x Genero'!R102+'Pob x Genero'!BE102 -> 94 | R102: ='Pob x Genero'!S102+'Pob x Genero'!BF102 -> 100 | S102: ='Pob x Genero'!T102+'Pob x Genero'!BG102 -> 98 | T102: ='Pob x Genero'!U102+'Pob x Genero'!BH102 -> 118 | U102: ='Pob x Genero'!V102+'Pob x Genero'!BI102 -> 112 | V102: ='Pob x Genero'!W102+'Pob x Genero'!BJ102 -> 119 | W102: ='Pob x Genero'!X102+'Pob x Genero'!BK102 -> 100 | X102: ='Pob x Genero'!Y102+'Pob x Genero'!BL102 -> 114 | Y102: ='Pob x Genero'!Z102+'Pob x Genero'!BM102 -> 110 | Z102: ='Pob x Genero'!AA102+'Pob x Genero'!BN102 -> 120 | AA102: ='Pob x Genero'!AB102+'Pob x Genero'!BO102 -> 566 | AB102: ='Pob x Genero'!AC102+'Pob x Genero'!BP102 -> 683 | AC102: ='Pob x Genero'!AD102+'Pob x Genero'!BQ102 -> 694 | AD102: ='Pob x Genero'!AE102+'Pob x Genero'!BR102 -> 711 | AE102: ='Pob x Genero'!AF102+'Pob x Genero'!BS102 -> 638 | AF102: ='Pob x Genero'!AG102+'Pob x Genero'!BT102 -> 593 | AG102: ='Pob x Genero'!AH102+'Pob x Genero'!BU102 -> 569 | AH102: ='Pob x Genero'!AI102+'Pob x Genero'!BV102 -> 549 | AI102: ='Pob x Genero'!AJ102+'Pob x Genero'!BW102 -> 401 | AJ102: ='Pob x Genero'!AK102+'Pob x Genero'!BX102 -> 357 | AK102: ='Pob x Genero'!AL102+'Pob x Genero'!BY102 -> 222 | AL102: ='Pob x Genero'!AM102+'Pob x Genero'!BZ102 -> 165 | AM102: ='Pob x Genero'!AN102+'Pob x Genero'!CA102 -> 114 | AN102: ='Pob x Genero'!AO102+'Pob x Genero'!CB102 -> 121 | AO102: ='Pob x Genero'!AP102+'Pob x Genero'!CC102 -> 9 | AP102: ='Pob x Genero'!AQ102+'Pob x Genero'!CD102 -> 45 | AQ102: ='Pob x Genero'!AR102+'Pob x Genero'!CE102 -> 59 | AR102: ='Pob x Genero'!AS102+'Pob x Genero'!CF102 -> 147 | AS102: ='Pob x Genero'!AT102 -> 4,300 | AT102: =SUM('Pob x Genero'!BE102:BI102) -> 268 | AU102: =SUM('Pob x Genero'!BJ102:BN102) -> 292 | AV102: =SUM('Pob x Genero'!BO102:BT102) -> 1,952 | AW102: ='Pob x Genero'!CG102 -> 272 | AZ102: 8,517 | BA102: 1,243 | BB102: 661 | BC102: 1,479 | BD102: 3,754 | BE102: 1,380
A103: 040703 | B103: AREQUIPA | C103: AREQUIPA | D103: ISLAY | E103: DEAN VALDIVIA | F103: 7,376 | G103: ='Pob x Genero'!H103+'Pob x Genero'!AU103 -> 94 | H103: ='Pob x Genero'!I103+'Pob x Genero'!AV103 -> 101 | I103: ='Pob x Genero'!J103+'Pob x Genero'!AW103 -> 101 | J103: ='Pob x Genero'!K103+'Pob x Genero'!AX103 -> 98 | K103: ='Pob x Genero'!L103+'Pob x Genero'!AY103 -> 87 | L103: ='Pob x Genero'!M103+'Pob x Genero'!AZ103 -> 104 | M103: ='Pob x Genero'!N103+'Pob x Genero'!BA103 -> 114 | N103: ='Pob x Genero'!O103+'Pob x Genero'!BB103 -> 106 | O103: ='Pob x Genero'!P103+'Pob x Genero'!BC103 -> 94 | P103: ='Pob x Genero'!Q103+'Pob x Genero'!BD103 -> 103 | Q103: ='Pob x Genero'!R103+'Pob x Genero'!BE103 -> 99 | R103: ='Pob x Genero'!S103+'Pob x Genero'!BF103 -> 94 | S103: ='Pob x Genero'!T103+'Pob x Genero'!BG103 -> 121 | T103: ='Pob x Genero'!U103+'Pob x Genero'!BH103 -> 92 | U103: ='Pob x Genero'!V103+'Pob x Genero'!BI103 -> 95 | V103: ='Pob x Genero'!W103+'Pob x Genero'!BJ103 -> 112 | W103: ='Pob x Genero'!X103+'Pob x Genero'!BK103 -> 124 | X103: ='Pob x Genero'!Y103+'Pob x Genero'!BL103 -> 98 | Y103: ='Pob x Genero'!Z103+'Pob x Genero'!BM103 -> 102 | Z103: ='Pob x Genero'!AA103+'Pob x Genero'!BN103 -> 103 | AA103: ='Pob x Genero'!AB103+'Pob x Genero'!BO103 -> 562 | AB103: ='Pob x Genero'!AC103+'Pob x Genero'!BP103 -> 648 | AC103: ='Pob x Genero'!AD103+'Pob x Genero'!BQ103 -> 667 | AD103: ='Pob x Genero'!AE103+'Pob x Genero'!BR103 -> 563 | AE103: ='Pob x Genero'!AF103+'Pob x Genero'!BS103 -> 554 | AF103: ='Pob x Genero'!AG103+'Pob x Genero'!BT103 -> 480 | AG103: ='Pob x Genero'!AH103+'Pob x Genero'!BU103 -> 417 | AH103: ='Pob x Genero'!AI103+'Pob x Genero'!BV103 -> 381 | AI103: ='Pob x Genero'!AJ103+'Pob x Genero'!BW103 -> 309 | AJ103: ='Pob x Genero'!AK103+'Pob x Genero'!BX103 -> 251 | AK103: ='Pob x Genero'!AL103+'Pob x Genero'!BY103 -> 176 | AL103: ='Pob x Genero'!AM103+'Pob x Genero'!BZ103 -> 126 | AM103: ='Pob x Genero'!AN103+'Pob x Genero'!CA103 -> 95 | AN103: ='Pob x Genero'!AO103+'Pob x Genero'!CB103 -> 105 | AO103: ='Pob x Genero'!AP103+'Pob x Genero'!CC103 -> 4 | AP103: ='Pob x Genero'!AQ103+'Pob x Genero'!CD103 -> 45 | AQ103: ='Pob x Genero'!AR103+'Pob x Genero'!CE103 -> 49 | AR103: ='Pob x Genero'!AS103+'Pob x Genero'!CF103 -> 154 | AS103: ='Pob x Genero'!AT103 -> 3,756 | AT103: =SUM('Pob x Genero'!BE103:BI103) -> 247 | AU103: =SUM('Pob x Genero'!BJ103:BN103) -> 278 | AV103: =SUM('Pob x Genero'!BO103:BT103) -> 1,763 | AW103: ='Pob x Genero'!CG103 -> 199 | AZ103: 7,376 | BA103: 1,195 | BB103: 642 | BC103: 1,415 | BD103: 3,062 | BE103: 1,062
A104: 040704 | B104: AREQUIPA | C104: AREQUIPA | D104: ISLAY | E104: ISLAY | F104: 5,261 | G104: ='Pob x Genero'!H104+'Pob x Genero'!AU104 -> 83 | H104: ='Pob x Genero'!I104+'Pob x Genero'!AV104 -> 85 | I104: ='Pob x Genero'!J104+'Pob x Genero'!AW104 -> 81 | J104: ='Pob x Genero'!K104+'Pob x Genero'!AX104 -> 94 | K104: ='Pob x Genero'!L104+'Pob x Genero'!AY104 -> 80 | L104: ='Pob x Genero'!M104+'Pob x Genero'!AZ104 -> 94 | M104: ='Pob x Genero'!N104+'Pob x Genero'!BA104 -> 97 | N104: ='Pob x Genero'!O104+'Pob x Genero'!BB104 -> 86 | O104: ='Pob x Genero'!P104+'Pob x Genero'!BC104 -> 83 | P104: ='Pob x Genero'!Q104+'Pob x Genero'!BD104 -> 95 | Q104: ='Pob x Genero'!R104+'Pob x Genero'!BE104 -> 83 | R104: ='Pob x Genero'!S104+'Pob x Genero'!BF104 -> 90 | S104: ='Pob x Genero'!T104+'Pob x Genero'!BG104 -> 86 | T104: ='Pob x Genero'!U104+'Pob x Genero'!BH104 -> 83 | U104: ='Pob x Genero'!V104+'Pob x Genero'!BI104 -> 61 | V104: ='Pob x Genero'!W104+'Pob x Genero'!BJ104 -> 79 | W104: ='Pob x Genero'!X104+'Pob x Genero'!BK104 -> 101 | X104: ='Pob x Genero'!Y104+'Pob x Genero'!BL104 -> 96 | Y104: ='Pob x Genero'!Z104+'Pob x Genero'!BM104 -> 90 | Z104: ='Pob x Genero'!AA104+'Pob x Genero'!BN104 -> 78 | AA104: ='Pob x Genero'!AB104+'Pob x Genero'!BO104 -> 373 | AB104: ='Pob x Genero'!AC104+'Pob x Genero'!BP104 -> 442 | AC104: ='Pob x Genero'!AD104+'Pob x Genero'!BQ104 -> 426 | AD104: ='Pob x Genero'!AE104+'Pob x Genero'!BR104 -> 429 | AE104: ='Pob x Genero'!AF104+'Pob x Genero'!BS104 -> 394 | AF104: ='Pob x Genero'!AG104+'Pob x Genero'!BT104 -> 384 | AG104: ='Pob x Genero'!AH104+'Pob x Genero'!BU104 -> 313 | AH104: ='Pob x Genero'!AI104+'Pob x Genero'!BV104 -> 247 | AI104: ='Pob x Genero'!AJ104+'Pob x Genero'!BW104 -> 172 | AJ104: ='Pob x Genero'!AK104+'Pob x Genero'!BX104 -> 147 | AK104: ='Pob x Genero'!AL104+'Pob x Genero'!BY104 -> 100 | AL104: ='Pob x Genero'!AM104+'Pob x Genero'!BZ104 -> 66 | AM104: ='Pob x Genero'!AN104+'Pob x Genero'!CA104 -> 18 | AN104: ='Pob x Genero'!AO104+'Pob x Genero'!CB104 -> 25 | AO104: ='Pob x Genero'!AP104+'Pob x Genero'!CC104 -> 5 | AP104: ='Pob x Genero'!AQ104+'Pob x Genero'!CD104 -> 36 | AQ104: ='Pob x Genero'!AR104+'Pob x Genero'!CE104 -> 47 | AR104: ='Pob x Genero'!AS104+'Pob x Genero'!CF104 -> 115 | AS104: ='Pob x Genero'!AT104 -> 2,654 | AT104: =SUM('Pob x Genero'!BE104:BI104) -> 195 | AU104: =SUM('Pob x Genero'!BJ104:BN104) -> 237 | AV104: =SUM('Pob x Genero'!BO104:BT104) -> 1,250 | AW104: ='Pob x Genero'!CG104 -> 188 | AZ104: 5,261 | BA104: 1,051 | BB104: 506 | BC104: 983 | BD104: 2,193 | BE104: 528
A105: 040705 | B105: AREQUIPA | C105: AREQUIPA | D105: ISLAY | E105: MEJIA | F105: 1,332 | G105: ='Pob x Genero'!H105+'Pob x Genero'!AU105 -> 15 | H105: ='Pob x Genero'!I105+'Pob x Genero'!AV105 -> 18 | I105: ='Pob x Genero'!J105+'Pob x Genero'!AW105 -> 16 | J105: ='Pob x Genero'!K105+'Pob x Genero'!AX105 -> 16 | K105: ='Pob x Genero'!L105+'Pob x Genero'!AY105 -> 12 | L105: ='Pob x Genero'!M105+'Pob x Genero'!AZ105 -> 20 | M105: ='Pob x Genero'!N105+'Pob x Genero'!BA105 -> 13 | N105: ='Pob x Genero'!O105+'Pob x Genero'!BB105 -> 14 | O105: ='Pob x Genero'!P105+'Pob x Genero'!BC105 -> 13 | P105: ='Pob x Genero'!Q105+'Pob x Genero'!BD105 -> 15 | Q105: ='Pob x Genero'!R105+'Pob x Genero'!BE105 -> 18 | R105: ='Pob x Genero'!S105+'Pob x Genero'!BF105 -> 14 | S105: ='Pob x Genero'!T105+'Pob x Genero'!BG105 -> 11 | T105: ='Pob x Genero'!U105+'Pob x Genero'!BH105 -> 14 | U105: ='Pob x Genero'!V105+'Pob x Genero'!BI105 -> 14 | V105: ='Pob x Genero'!W105+'Pob x Genero'!BJ105 -> 7 | W105: ='Pob x Genero'!X105+'Pob x Genero'!BK105 -> 11 | X105: ='Pob x Genero'!Y105+'Pob x Genero'!BL105 -> 11 | Y105: ='Pob x Genero'!Z105+'Pob x Genero'!BM105 -> 14 | Z105: ='Pob x Genero'!AA105+'Pob x Genero'!BN105 -> 16 | AA105: ='Pob x Genero'!AB105+'Pob x Genero'!BO105 -> 89 | AB105: ='Pob x Genero'!AC105+'Pob x Genero'!BP105 -> 95 | AC105: ='Pob x Genero'!AD105+'Pob x Genero'!BQ105 -> 95 | AD105: ='Pob x Genero'!AE105+'Pob x Genero'!BR105 -> 107 | AE105: ='Pob x Genero'!AF105+'Pob x Genero'!BS105 -> 110 | AF105: ='Pob x Genero'!AG105+'Pob x Genero'!BT105 -> 86 | AG105: ='Pob x Genero'!AH105+'Pob x Genero'!BU105 -> 95 | AH105: ='Pob x Genero'!AI105+'Pob x Genero'!BV105 -> 96 | AI105: ='Pob x Genero'!AJ105+'Pob x Genero'!BW105 -> 94 | AJ105: ='Pob x Genero'!AK105+'Pob x Genero'!BX105 -> 53 | AK105: ='Pob x Genero'!AL105+'Pob x Genero'!BY105 -> 51 | AL105: ='Pob x Genero'!AM105+'Pob x Genero'!BZ105 -> 32 | AM105: ='Pob x Genero'!AN105+'Pob x Genero'!CA105 -> 25 | AN105: ='Pob x Genero'!AO105+'Pob x Genero'!CB105 -> 22 | AO105: ='Pob x Genero'!AP105+'Pob x Genero'!CC105 -> 1 | AP105: ='Pob x Genero'!AQ105+'Pob x Genero'!CD105 -> 6 | AQ105: ='Pob x Genero'!AR105+'Pob x Genero'!CE105 -> 9 | AR105: ='Pob x Genero'!AS105+'Pob x Genero'!CF105 -> 28 | AS105: ='Pob x Genero'!AT105 -> 674 | AT105: =SUM('Pob x Genero'!BE105:BI105) -> 35 | AU105: =SUM('Pob x Genero'!BJ105:BN105) -> 23 | AV105: =SUM('Pob x Genero'!BO105:BT105) -> 311 | AW105: ='Pob x Genero'!CG105 -> 37 | AZ105: 1,332 | BA105: 184 | BB105: 68 | BC105: 214 | BD105: 589 | BE105: 277
A106: 040706 | B106: AREQUIPA | C106: AREQUIPA | D106: ISLAY | E106: PUNTA DE BOMBON | F106: 6,646 | G106: ='Pob x Genero'!H106+'Pob x Genero'!AU106 -> 84 | H106: ='Pob x Genero'!I106+'Pob x Genero'!AV106 -> 88 | I106: ='Pob x Genero'!J106+'Pob x Genero'!AW106 -> 76 | J106: ='Pob x Genero'!K106+'Pob x Genero'!AX106 -> 104 | K106: ='Pob x Genero'!L106+'Pob x Genero'!AY106 -> 80 | L106: ='Pob x Genero'!M106+'Pob x Genero'!AZ106 -> 91 | M106: ='Pob x Genero'!N106+'Pob x Genero'!BA106 -> 84 | N106: ='Pob x Genero'!O106+'Pob x Genero'!BB106 -> 81 | O106: ='Pob x Genero'!P106+'Pob x Genero'!BC106 -> 88 | P106: ='Pob x Genero'!Q106+'Pob x Genero'!BD106 -> 74 | Q106: ='Pob x Genero'!R106+'Pob x Genero'!BE106 -> 81 | R106: ='Pob x Genero'!S106+'Pob x Genero'!BF106 -> 116 | S106: ='Pob x Genero'!T106+'Pob x Genero'!BG106 -> 91 | T106: ='Pob x Genero'!U106+'Pob x Genero'!BH106 -> 84 | U106: ='Pob x Genero'!V106+'Pob x Genero'!BI106 -> 78 | V106: ='Pob x Genero'!W106+'Pob x Genero'!BJ106 -> 105 | W106: ='Pob x Genero'!X106+'Pob x Genero'!BK106 -> 92 | X106: ='Pob x Genero'!Y106+'Pob x Genero'!BL106 -> 102 | Y106: ='Pob x Genero'!Z106+'Pob x Genero'!BM106 -> 91 | Z106: ='Pob x Genero'!AA106+'Pob x Genero'!BN106 -> 88 | AA106: ='Pob x Genero'!AB106+'Pob x Genero'!BO106 -> 458 | AB106: ='Pob x Genero'!AC106+'Pob x Genero'!BP106 -> 535 | AC106: ='Pob x Genero'!AD106+'Pob x Genero'!BQ106 -> 499 | AD106: ='Pob x Genero'!AE106+'Pob x Genero'!BR106 -> 533 | AE106: ='Pob x Genero'!AF106+'Pob x Genero'!BS106 -> 465 | AF106: ='Pob x Genero'!AG106+'Pob x Genero'!BT106 -> 433 | AG106: ='Pob x Genero'!AH106+'Pob x Genero'!BU106 -> 409 | AH106: ='Pob x Genero'!AI106+'Pob x Genero'!BV106 -> 366 | AI106: ='Pob x Genero'!AJ106+'Pob x Genero'!BW106 -> 336 | AJ106: ='Pob x Genero'!AK106+'Pob x Genero'!BX106 -> 291 | AK106: ='Pob x Genero'!AL106+'Pob x Genero'!BY106 -> 196 | AL106: ='Pob x Genero'!AM106+'Pob x Genero'!BZ106 -> 143 | AM106: ='Pob x Genero'!AN106+'Pob x Genero'!CA106 -> 86 | AN106: ='Pob x Genero'!AO106+'Pob x Genero'!CB106 -> 118 | AO106: ='Pob x Genero'!AP106+'Pob x Genero'!CC106 -> 6 | AP106: ='Pob x Genero'!AQ106+'Pob x Genero'!CD106 -> 35 | AQ106: ='Pob x Genero'!AR106+'Pob x Genero'!CE106 -> 49 | AR106: ='Pob x Genero'!AS106+'Pob x Genero'!CF106 -> 125 | AS106: ='Pob x Genero'!AT106 -> 3,357 | AT106: =SUM('Pob x Genero'!BE106:BI106) -> 233 | AU106: =SUM('Pob x Genero'!BJ106:BN106) -> 245 | AV106: =SUM('Pob x Genero'!BO106:BT106) -> 1,458 | AW106: ='Pob x Genero'!CG106 -> 161 | AZ106: 6,646 | BA106: 1,047 | BB106: 552 | BC106: 1,172 | BD106: 2,705 | BE106: 1,170
